Workbook

Sheet ปก
A10: =ปร.5!C3 -> สำนักงานเทศบาลตำบลนากลาง
A11: =ปร.5!G3 -> กระทรวงมหาดไทย
F13: =CONCATENATE("ประเมินราคากลางงานก่อสร้าง",ข้อมูลโครงการ!G2) -> ประเมินราคากลางงานก่อสร้างก่อสร้างขยายใหล่ทางคอนกรีตเสริมเหล็ก พร้อมระบบระบายน้ำ 2 ข้างทางตามแบบมาตฐานงานทางสำหรับ อปท
C15: =CONCATENATE(ข้อมูลโครงการ!G7) -> ซอยจันทร์สุวรรณ
D16: =ข้อมูลโครงการ!G8 -> บ้านกุดแห่ หมู่ 1 ตำบลกุดแห่ อำเภอนากลาง จังหวัดหนองบัวลำภู
D18: ระยะทาง | F18: =ข้อมูลโครงการ!G12 -> 0.000 | H18: กิโลเมตร
D19: ราคากลาง | F19: =ปร.5!G21 -> 803800 | H19: บาท
L34: =ปร.5!G2 -> กองช่างเทศบาลตำบลนากลาง
A35: =ปร.5!C2 -> งานแบบแผนและก่อสร้าง | L35: =A10 -> สำนักงานเทศบาลตำบลนากลาง

Sheet ข้อมูลโครงการ
B1: กรอกข้อมูลในแถบสีเหลือง
C2: ประเภทงาน | G2: ก่อสร้างขยายใหล่ทางคอนกรีตเสริมเหล็ก พร้อมระบบระบายน้ำ 2 ข้างทางตามแบบมาตฐานงานทางสำหรับ อปท | T2: ก่อสร้าง ถนนลาดยางผิวทาง Para Asphalt concrete | AI2: ก่อสร้างถนนลาดยางผิวทางพาราแอสฟัลท์คอนกรีตปรับปรุงคุณภาพด้วยยางธรรมชาติ (Natural Rubber Modified - Asphalt Concrete)
C3: ประมาณราคาเมื่อ | G3: 2020-02-11 | N3: ปีงบประมาณ | O3: 2563 | AI3: ซ่อมสร้างถนนลาดยางผิวทางแอสฟัลท์คอนกรีต (โดยวิธี Pavement In-place Recycling)
G4: สำนักงานเทศบาลตำบลนากลาง | N4: กระทรวง | O4: มหาดไทย | AI4: ก่อสร้างถนนลาดยางผิวทางแอสฟัลท์คอนกรีต
C5: หน่วยประมาณราคา | G5: งานแบบแผนและก่อสร้าง | N5: สังกัดหน่วยงาน | O5: กองช่างเทศบาลตำบลนากลาง | AI5: ก่อสร้างถนนผิวทางคอนกรีตเสริมเหล็ก
C7: สถานที่ก่อสร้าง | G7: ซอยจันทร์สุวรรณ | X7: รื้อลูกรัง 10 ซม.
G8: บ้านกุดแห่ หมู่ 1 ตำบลกุดแห่ อำเภอนากลาง จังหวัดหนองบัวลำภู | X8: ="รื้อหินคลุก "&ราคาต่อหน่วย!E52&" ซม." -> รื้อหินคลุก 20 ซม.
C10: ผิวจราจร | F10: =IF(OR(G10=X11,G10=X12),1,IF(G10=X13,2,3)) -> 3 | G10: คอนกรีตเสริมเหล็ก | M10: ( Type 3 ) | N10: กว้าง | O10: 1.00 | R10: เมตร | S10: วัสดุมวลรวม | T10: หินปูน(Limestone) | V10: =IF(T10=AA10,1,IF(T10=AA11,2,3)) -> 1 | X10: ผิว AC 5 ซม.(ขนทิ้ง) | AA10: หินปูน(Limestone)
C11: ไหล่ทาง | F11: =IF(G11=X11,1,IF(G11=X13,2,IF(G11=X14,3,4))) -> 4 | G11: ลูกรัง | N11: กว้างข้างละ | O11: 0 | R11: เมตร | S11: หนา | T11: 0 | U11: ม. | X11: ลาดยางแบบ Cape Seal | AA11: หินแลาดยางแบบ Para Cape Sealกรนิต(Granite)
C12: ระยะทางก่อสร้าง | G12: =TEXT(ปร.4!H6,"0.000") -> 0.000 | N12: กิโลเมตร | P12: =ROUND(IF(R13="ปกติ",Factor_FR!C53,IF(R13="ฝนตกชุก 1",Factor_FR!D53,Factor_FR!E53)),4) -> 1.3592 | S12: จำนวน | T12: 0 | U12: ช่อง | X12: ลาดยางแบบ Para Cape Seal | AA12: หินบะซอลต์(Basalt)
C13: ข้อมูล ณ เดือน | G13: =G3 -> 43872 | N13: จังหวัดที่ตั้ง | O13: จังหวัดพื้นที่ปกติ | R13: =ข้อมูลขนส่ง!C4 -> ปกติ | X13: ลาดยางแบบ Asphalt concrete | AA13: ขนาดเบา
C14: ราคาน้ำมันดีเซล | G14: ณ อ.เมือง จ.หนองบัวลำภู | N14: เฉลี่ย | O14: =24.5+Q14 -> 26.5 | Q14: 2 | R14: บาท/ลิตร | X14: คอนกรีตเสริมเหล็ก | AA14: ขนาดกลาง
N15: คันทางเดิม | O15: =IF(BackUp!F74=BackUp!BD73,X7,X8) -> รื้อหินคลุก 20 ซม. | R15: =O15 -> รื้อหินคลุก 20 ซม. | X15: =IF(G10=X14,"ลูกรัง","ไม่มี") -> ลูกรัง | AA15: ขนาดหนัก
C17: ผู้เกี่ยวข้องกับงานประมาณราคาโครงการนี้
D18: ประมาณราคา | G18: นายวิทยา ทิพย์ทอง | O18: คณะกรรมการกำหนดราคากลาง
D19: ตำแหน่ง | G19: นายช่างโยธาชำนาญงาน | O19: นายประยุทธ์ เย็นอารมย์ | R19: ประธานกรรมการฯ
D20: ตรวจ | G20: นายคำสอน อักษรกลาง | O20: ผู้อำนวยการกองช่าง | R20: ตำแหน่ง
D21: ตำแหน่ง | G21: นายช่างโยธาอาวุโส | O21: นายชัชฤทธิ์ ระวิพันธ์ | R21: กรรมการฯ
D22: เห็นชอบ | G22: นายประยุทธ์ เย็นอารมย์ | O22: หัวหน้าฝ่ายการโยธา | R22: ตำแหน่ง
D23: ตำแหน่ง | G23: ผู้อำนวยการกองช่าง | O23: นายชัชฤทธิ์ ระวิพันธ์ | R23: กรรมการฯ
D24: เห็นชอบ | G24: นายชัยพร ขันทะชา | O24: หัวหน้าฝ่ายการโยธา | R24: ตำแหน่ง
D25: ตำแหน่ง | G25: ปลัดเทศบาลตำบลนากลาง
D26: อนุมัติ | G26: นายทองหลั่น เกษทองมา | N26: 2 | O26: 1 | P26: นายนฤชิต ชาตะบุตร | Q26: ผู้อำนวยการกลุ่มวิชาการและถ่ายทอดเทคโนโลยี
D27: ตำแหน่ง | G27: นายกเทศมนตรีตำบลนากลาง | O27: 2 | P27: นายไพวรรน์ ตันนารัตน์ | Q27: ผู้อำนวยการส่วนบูรณะ

Sheet ข้อมูลขนส่ง
A1: กรอกข้อมูล ระยะขนส่ง และชนิดรถบรรทุกในช่องสีเหลืองเท่านั้น | K1: =+ค่าเสื่อมราคา!AJ8 -> 29.5
A2: ข้อมูลภูมิอากาศ สภาพพื้นที่และการขนส่งวัสดุก่อสร้าง | K2: งานกรุยทาง
A3: เลือกจังหวัดที่ตั้ง (เฉพาะในกรณีอยู่ในพื้นที่ฝนตกชุกเท่านั้น) | C3: =ข้อมูลโครงการ!O13 -> จังหวัดพื้นที่ปกติ | G3: ข้อมูลในการใช้ประมาณราคา | K3: ขนาด | L3: ปกติ | M3: ฝนชุก | N3: =D4&C5 -> ปกติขนาดกลาง | AC3: ปกติ | AD3: ขนาดเบา | AE3: รถบรรทุก 6 ล้อ
A4: สภาพภูมิอากาศของโครงการ | C4: =IF(C3="จังหวัดพื้นที่ปกติ","ปกติ","ฝนตกชุก "&VLOOKUP(C3,AO10:AP25,2,FALSE)) -> ปกติ | D4: =IF(ข้อมูลโครงการ!R13="ปกติ","ปกติ","ฝนตกชุก") -> ปกติ | G4: =" ภูมิอากาศของโครงการ "&D4 -> ภูมิอากาศของโครงการ ปกติ | K4: เบา | L4: =ค่าเสื่อมราคา!G15 -> 1.68 | M4: =ค่าเสื่อมราคา!H15 -> 1.74 | N4: =IF(N3="ปกติขนาดเบา",L4,IF(N3="ปกติขนาดกลาง",L5,IF(N3="ปกติขนาดหนัก",L6,IF(N3="ฝนตกชุกขนาดเบา",M4,IF(N3="ฝนตกชุกขนาดกลาง",M5,M6))))) -> 3.54 | AC4: ฝนตกชุก | AD4: ขนาดกลาง | AE4: รถบรรทุก 10 ล้อ
A5: สภาพพื้นที่งานกรุยทางถางป่า | C5: =BackUp!I52 -> ขนาดกลาง | G5: =" งานถางป่าขุดตอ "&C5 -> งานถางป่าขุดตอ ขนาดกลาง | K5: กลาง | L5: =ค่าเสื่อมราคา!G16 -> 3.54 | M5: =ค่าเสื่อมราคา!H16 -> 3.68 | N5: พื้นที่ | AD5: ขนาดหนัก | AE5: รถบรรทุก 10 ล้อ + ลากพ่วง
A6: ราคาน้ำมันโซล่า ณ อำเภอเมือง เฉลี่ย | C6: =ราคาน้ำมันเฉลี่ย*0+K1 -> 29.5 | D6: บาท | E6: 10 | G6: ="ราคาน้ำมันโซล่าเฉลี่ยลิตรละ "&ROUNDDOWN(C6,-0.2)+0.5&"0 บาท" -> ราคาน้ำมันโซล่าเฉลี่ยลิตรละ 29.50 บาท | K6: หนัก | L6: =ค่าเสื่อมราคา!G17 -> 5.3 | M6: =ค่าเสื่อมราคา!H17 -> 5.5 | N6: =D4 -> ปกติ
A7: ข้อมูลขนส่งวัสดุ | X7: ค่าขนส่ง
A8: พาหนะขนส่ง / ราคา ระยะทางขนส่ง | C8: ระยะทางขนส่งผิวทางลาดยาง (กม.) | G8: ระยะทางขนส่งผิวทางลูกรัง (กม.) | N8: ระยะที่หาค่าขนส่ง x Factor | W8: 6 ล้อ | X8: 10 ล้อ | Y8: 10 ล้อ+ลากพ่วง | AO8: จังหวัด | AP8: Factor เพิ่ม
N9: ระยะทางขนส่งผิวทางลาดยาง (กม.) | R9: ระยะทางขนส่งผิวทางลูกรัง (กม.) | V9: ระยะขนส่ง | AO9: จังหวัดพื้นที่ปกติ | AP9: 0
A10: 1. ขนส่งงานดินตัด | B10: (ลบ.ม.) | C10: ทางราบ | D10: ทางลูกเนิน | E10: ทางภูเขา | G10: ทางราบ | H10: ทางลูกเนิน | I10: ทางภูเขา | L10: ="งานขนส่งดินตัด ขนส่ง "&SUM(C11:I11)&" กม."&" ด้วย"&A11 -> งานขนส่งดินตัด ขนส่ง 1 กม. ด้วยรถบรรทุก 10 ล้อ | N10: 1 | O10: =IF(A11=$AE$3,2.12,IF(A11=$AE$4,1.95,2.13)) -> 1.95 | P10: =IF(A11=$AE$3,2.56,IF(A11=$AE$4,2.52,2.13)) -> 2.52 | R10: =IF(A11=$AE$3,1.24,IF(A11=$AE$4,1.23,1.2)) -> 1.23 | S10: =IF(A11=$AE$3,2.36,IF(A11=$AE$4,2.18,2.33)) -> 2.18 | T10: =IF(A11=$AE$3,2.8,IF(A11=$AE$4,2.75,2.33)) -> 2.75 | Z10: ค่าขนส่ง | AB10: เส้นทางขนส่ง | AE10: =A10 -> 1. ขนส่งงานดินตัด | AO10: จันทบุรี | AP10: 1
A11: รถบรรทุก 10 ล้อ | C11: 1 | G11: 0 | H11: 0 | I11: 0 | N11: =C11*N10 -> 1 | O11: =D11*O10 -> 0 | P11: =E11*P10 -> 0 | R11: =G11*R10 -> 0 | S11: =H11*S10 -> 0 | T11: =I11*T10 -> 0 | U11: =SUM(N11:T11) -> 1 | V11: =SUM(C11:I11) -> 1 | W11: =IF(V11=0,0,ROUND((ROUND(VLOOKUP(ข้อมูลขนส่ง!V11,หกล้อขนส่ง!$M$9:$O$208,3),2)+IF(V11>200,(V11-200)*$W$12,0))*U11/V11,2)) -> 15.12 | X11: =IF(V11=0,0,ROUND((ROUND(VLOOKUP(V11,สิบล้อขนส่ง!$M$9:$O$208,3),2)+IF(V11>200,(V11-200)*$X$12,0))*U11/V11,2)) -> 11.19 | Y11: =IF(V11=0,0,ROUND((ROUND(VLOOKUP(V11,รถพ่วงขนส่ง!$M$9:$O$208,3),2)+IF(V11>200,(V11-200)*$Y$12,0))*U11/V11,2)) -> 6.16 | Z11: =IF(A11="รถบรรทุก 6 ล้อ",W11,IF(A11="รถบรรทุก 10 ล้อ",X11,IF(A11="รถบรรทุก 10 ล้อ + ลากพ่วง",Y11))) -> 11.19 | AB11: =IF(C11>0,"ทางราบ","") -> ทางราบ | AC11: =IF(D11>0,"ทางลูกเนิน","") ->  | AD11: =IF(E11>0,"ทางภูเขา","") ->  | AE11: ="เส้นทางขนส่ง "&AB11&" "&AC11&" "&AD11 -> เส้นทางขนส่ง ทางราบ | AF11: =+A11 -> รถบรรทุก 10 ล้อ | AO11: ชุมพร | AP11: 1
A12: 2. ขนส่งงานดินถม | B12: (ลบ.ม.) | C12: ทางราบ | D12: ทางลูกเนิน | E12: ทางภูเขา | G12: ทางราบ | H12: ทางลูกเนิน | I12: ทางภูเขา | L12: ="งานขนส่งดินตัด ขนส่ง "&SUM(C13:I13)&" กม."&" ด้วย"&A13 -> งานขนส่งดินตัด ขนส่ง 1 กม. ด้วยรถบรรทุก 10 ล้อ | O12: =IF(A13=$AE$3,2.12,IF(A13=$AE$4,1.95,2.13)) -> 1.95 | P12: =IF(A13=$AE$3,2.56,IF(A13=$AE$4,2.52,2.13)) -> 2.52 | R12: =IF(A13=$AE$3,1.24,IF(A13=$AE$4,1.23,1.2)) -> 1.23 | S12: =IF(A13=$AE$3,2.36,IF(A13=$AE$4,2.18,2.33)) -> 2.18 | T12: =IF(A13=$AE$3,2.8,IF(A13=$AE$4,2.75,2.33)) -> 2.75 | V12: บาท/ลบ.ม. | W12: =ROUND(หกล้อขนส่ง!O209,2) -> 3.78 | X12: =ROUND(สิบล้อขนส่ง!O209,2) -> 3.3 | Y12: =ROUND(รถพ่วงขนส่ง!O209,2) -> 2.04 | AE12: =A12 -> 2. ขนส่งงานดินถม | AO12: เชียงราย | AP12: 1
A13: รถบรรทุก 10 ล้อ | C13: 1 | G13: 0 | H13: 0 | I13: 0 | N13: =C13 -> 1 | O13: =D13*O12 -> 0 | P13: =E13*P12 -> 0 | R13: =G13*R12 -> 0 | S13: =H13*S12 -> 0 | T13: =I13*T12 -> 0 | U13: =SUM(N13:T13) -> 1 | V13: =SUM(C13:I13) -> 1 | W13: =IF(V13=0,0,ROUND((ROUND(VLOOKUP(ข้อมูลขนส่ง!V13,หกล้อขนส่ง!$M$9:$O$208,3),2)+IF(V13>200,(V13-200)*$W$12,0))*U13/V13,2)) -> 15.12 | X13: =IF(V13=0,0,ROUND((ROUND(VLOOKUP(V13,สิบล้อขนส่ง!$M$9:$O$208,3),2)+IF(V13>200,(V13-200)*$X$12,0))*U13/V13,2)) -> 11.19 | Y13: =IF(V13=0,0,ROUND((ROUND(VLOOKUP(V13,รถพ่วงขนส่ง!$M$9:$O$208,3),2)+IF(V13>200,(V13-200)*$Y$12,0))*U13/V13,2)) -> 6.16 | Z13: =IF(A13="รถบรรทุก 6 ล้อ",W13,IF(A13="รถบรรทุก 10 ล้อ",X13,IF(A13="รถบรรทุก 10 ล้อ + ลากพ่วง",Y13))) -> 11.19 | AB13: =IF(C13>0,"ทางราบ","") -> ทางราบ | AC13: =IF(D13>0,"ทางลูกเนิน","") ->  | AD13: =IF(E13>0,"ทางภูเขา","") ->  | AE13: ="เส้นทางขนส่ง "&AB13&" "&AC13&" "&AD13 -> เส้นทางขนส่ง ทางราบ | AF13: =+A13 -> รถบรรทุก 10 ล้อ | AO13: ตรัง | AP13: 1
A14: 3. ขนส่งลูกรัง | B14: (ลบ.ม.) | C14: ทางราบ | D14: ทางลูกเนิน | E14: ทางภูเขา | G14: ทางราบ | H14: ทางลูกเนิน | I14: ทางภูเขา | L14: ="งานขนส่งดินตัด ขนส่ง "&SUM(C15:I15)&" กม."&" ด้วย"&A15 -> งานขนส่งดินตัด ขนส่ง 2 กม. ด้วยรถบรรทุก 10 ล้อ | O14: =IF(A15=$AE$3,2.12,IF(A15=$AE$4,1.95,2.13)) -> 1.95 | P14: =IF(A15=$AE$3,2.56,IF(A15=$AE$4,2.52,2.13)) -> 2.52 | R14: =IF(A15=$AE$3,1.24,IF(A15=$AE$4,1.23,1.2)) -> 1.23 | S14: =IF(A15=$AE$3,2.36,IF(A15=$AE$4,2.18,2.33)) -> 2.18 | T14: =IF(A15=$AE$3,2.8,IF(A15=$AE$4,2.75,2.33)) -> 2.75 | AE14: =A14 -> 3. ขนส่งลูกรัง | AO14: นครศรีธรรมราช | AP14: 1
A15: รถบรรทุก 10 ล้อ | C15: 2 | G15: 0 | H15: 0 | I15: 0 | N15: =C15 -> 2 | O15: =D15*O14 -> 0 | P15: =E15*P14 -> 0 | R15: =G15*R14 -> 0 | S15: =H15*S14 -> 0 | T15: =I15*T14 -> 0 | U15: =SUM(N15:T15) -> 2 | V15: =SUM(C15:I15) -> 2 | W15: =IF(V15=0,0,ROUND((ROUND(VLOOKUP(ข้อมูลขนส่ง!V15,หกล้อขนส่ง!$M$9:$O$208,3),2)+IF(V15>200,(V15-200)*$W$12,0))*U15/V15,2)) -> 17.3 | X15: =IF(V15=0,0,ROUND((ROUND(VLOOKUP(V15,สิบล้อขนส่ง!$M$9:$O$208,3),2)+IF(V15>200,(V15-200)*$X$12,0))*U15/V15,2)) -> 13.55 | Y15: =IF(V15=0,0,ROUND((ROUND(VLOOKUP(V15,รถพ่วงขนส่ง!$M$9:$O$208,3),2)+IF(V15>200,(V15-200)*$Y$12,0))*U15/V15,2)) -> 7.95 | Z15: =IF(A15="รถบรรทุก 6 ล้อ",W15,IF(A15="รถบรรทุก 10 ล้อ",X15,IF(A15="รถบรรทุก 10 ล้อ + ลากพ่วง",Y15))) -> 13.55 | AB15: =IF(C15>0,"ทางราบ","") -> ทางราบ | AC15: =IF(D15>0,"ทางลูกเนิน","") ->  | AD15: =IF(E15>0,"ทางภูเขา","") ->  | AE15: ="เส้นทางขนส่ง "&AB15&" "&AC15&" "&AD15 -> เส้นทางขนส่ง ทางราบ | AF15: รถบรรทุก 10 ล้อ | AO15: นราธิวาส | AP15: 2
A16: 4. ขนส่งวัสดุคัดเลือก | B16: (ลบ.ม.) | C16: ทางราบ | D16: ทางลูกเนิน | E16: ทางภูเขา | G16: ทางราบ | H16: ทางลูกเนิน | I16: ทางภูเขา | L16: ="งานขนส่งดินตัด ขนส่ง "&SUM(C17:I17)&" กม."&" ด้วย"&A17 -> งานขนส่งดินตัด ขนส่ง 2 กม. ด้วยรถบรรทุก 10 ล้อ | O16: =IF(A17=$AE$3,2.12,IF(A17=$AE$4,1.95,2.13)) -> 1.95 | P16: =IF(A17=$AE$3,2.56,IF(A17=$AE$4,2.52,2.13)) -> 2.52 | R16: =IF(A17=$AE$3,1.24,IF(A17=$AE$4,1.23,1.2)) -> 1.23 | S16: =IF(A17=$AE$3,2.36,IF(A17=$AE$4,2.18,2.33)) -> 2.18 | T16: =IF(A17=$AE$3,2.8,IF(A17=$AE$4,2.75,2.33)) -> 2.75 | AE16: =A16 -> 4. ขนส่งวัสดุคัดเลือก | AO16: นครศรีธรรมราช | AP16: 1
A17: รถบรรทุก 10 ล้อ | C17: 2 | G17: 0 | H17: 0 | I17: 0 | N17: =C17 -> 2 | O17: =D17*O16 -> 0 | P17: =E17*P16 -> 0 | R17: =G17*R16 -> 0 | S17: =H17*S16 -> 0 | T17: =I17*T16 -> 0 | U17: =SUM(N17:T17) -> 2 | V17: =SUM(C17:I17) -> 2 | W17: =IF(V17=0,0,ROUND((ROUND(VLOOKUP(ข้อมูลขนส่ง!V17,หกล้อขนส่ง!$M$9:$O$208,3),2)+IF(V17>200,(V17-200)*$W$12,0))*U17/V17,2)) -> 17.3 | X17: =IF(V17=0,0,ROUND((ROUND(VLOOKUP(V17,สิบล้อขนส่ง!$M$9:$O$208,3),2)+IF(V17>200,(V17-200)*$X$12,0))*U17/V17,2)) -> 13.55 | Y17: =IF(V17=0,0,ROUND((ROUND(VLOOKUP(V17,รถพ่วงขนส่ง!$M$9:$O$208,3),2)+IF(V17>200,(V17-200)*$Y$12,0))*U17/V17,2)) -> 7.95 | Z17: =IF(A17="รถบรรทุก 6 ล้อ",W17,IF(A17="รถบรรทุก 10 ล้อ",X17,IF(A17="รถบรรทุก 10 ล้อ + ลากพ่วง",Y17))) -> 13.55 | AB17: =IF(C17>0,"ทางราบ","") -> ทางราบ | AC17: =IF(D17>0,"ทางลูกเนิน","") ->  | AD17: =IF(E17>0,"ทางภูเขา","") ->  | AE17: ="เส้นทางขนส่ง "&AB17&" "&AC17&" "&AD17 -> เส้นทางขนส่ง ทางราบ | AF17: รถบรรทุก 10 ล้อ | AO17: นราธิวาส | AP17: 2
A18: 5. ขนส่งหินคลุก, 1/2" , 3/4" , 3/8" , หินฝุ่น | B18: (ลบ.ม.) | C18: ทางราบ | D18: ทางลูกเนิน | E18: ทางภูเขา | G18: ทางราบ | H18: ทางลูกเนิน | I18: ทางภูเขา | L18: ="งานขนส่งดินตัด ขนส่ง "&SUM(C19:I19)&" กม."&" ด้วย"&A19 -> งานขนส่งดินตัด ขนส่ง 62 กม. ด้วยรถบรรทุก 10 ล้อ + ลากพ่วง | O18: =IF(A19=$AE$3,2.12,IF(A19=$AE$4,1.95,2.13)) -> 2.13 | P18: =IF(A19=$AE$3,2.56,IF(A19=$AE$4,2.52,2.13)) -> 2.13 | R18: =IF(A19=$AE$3,1.24,IF(A19=$AE$4,1.23,1.2)) -> 1.2 | S18: =IF(A19=$AE$3,2.36,IF(A19=$AE$4,2.18,2.33)) -> 2.33 | T18: =IF(A19=$AE$3,2.8,IF(A19=$AE$4,2.75,2.33)) -> 2.33 | AE18: =A18 -> 5. ขนส่งหินคลุก, 1/2" , 3/4" , 3/8" , หินฝุ่น | AO18: ปราจีนบุรี | AP18: 1
A19: รถบรรทุก 10 ล้อ + ลากพ่วง | C19: 62 | G19: 0 | H19: 0 | I19: 0 | N19: =C19 -> 62 | O19: =D19*O18 -> 0 | P19: =E19*P18 -> 0 | R19: =G19*R18 -> 0 | S19: =H19*S18 -> 0 | T19: =I19*T18 -> 0 | U19: =SUM(N19:T19) -> 62 | V19: =SUM(C19:I19) -> 62 | W19: =IF(V19=0,0,ROUND((ROUND(VLOOKUP(ข้อมูลขนส่ง!V19,หกล้อขนส่ง!$M$9:$O$208,3),2)+IF(V19>200,(V19-200)*$W$12,0))*U19/V19,2)) -> 235.89 | X19: =IF(V19=0,0,ROUND((ROUND(VLOOKUP(V19,สิบล้อขนส่ง!$M$9:$O$208,3),2)+IF(V19>200,(V19-200)*$X$12,0))*U19/V19,2)) -> 205.65 | Y19: =IF(V19=0,0,ROUND((ROUND(VLOOKUP(V19,รถพ่วงขนส่ง!$M$9:$O$208,3),2)+IF(V19>200,(V19-200)*$Y$12,0))*U19/V19,2)) -> 126.94 | Z19: =IF(A19="รถบรรทุก 6 ล้อ",W19,IF(A19="รถบรรทุก 10 ล้อ",X19,IF(A19="รถบรรทุก 10 ล้อ + ลากพ่วง",Y19))) -> 126.94 | AB19: =IF(C19>0,"ทางราบ","") -> ทางราบ | AC19: =IF(D19>0,"ทางลูกเนิน","") ->  | AD19: =IF(E19>0,"ทางภูเขา","") ->  | AE19: ="เส้นทางขนส่ง "&AB19&" "&AC19&" "&AD19 -> เส้นทางขนส่ง ทางราบ | AF19: รถบรรทุก 10 ล้อ + ลากพ่วง | AO19: ปัตตานี | AP19: 1
A20: 6. ขนส่งทรายหยาบ(ผสมคอนกรีต) | B20: (ลบ.ม.) | C20: ทางราบ | D20: ทางลูกเนิน | E20: ทางภูเขา | G20: ทางราบ | H20: ทางลูกเนิน | I20: ทางภูเขา | L20: ="งานขนส่งดินตัด ขนส่ง "&SUM(C21:I21)&" กม."&" ด้วย"&A21 -> งานขนส่งดินตัด ขนส่ง 30 กม. ด้วยรถบรรทุก 10 ล้อ | O20: =IF(A21=$AE$3,2.12,IF(A21=$AE$4,1.95,2.13)) -> 1.95 | P20: =IF(A21=$AE$3,2.56,IF(A21=$AE$4,2.52,2.13)) -> 2.52 | R20: =IF(A21=$AE$3,1.24,IF(A21=$AE$4,1.23,1.2)) -> 1.23 | S20: =IF(A21=$AE$3,2.36,IF(A21=$AE$4,2.18,2.33)) -> 2.18 | T20: =IF(A21=$AE$3,2.8,IF(A21=$AE$4,2.75,2.33)) -> 2.75 | AE20: =A34 -> 13. ขนส่งเหล็กรูปพรรณ | AO20: ระนอง | AP20: 2
A21: รถบรรทุก 10 ล้อ | C21: 30 | G21: 0 | H21: 0 | I21: 0 | N21: =C21 -> 30 | O21: =D21*O20 -> 0 | P21: =E21*P20 -> 0 | R21: =G21*R20 -> 0 | S21: =H21*S20 -> 0 | T21: =I21*T20 -> 0 | U21: =SUM(N21:T21) -> 30 | V21: =SUM(C21:I21) -> 30 | W21: =IF(V21=0,0,ROUND((ROUND(VLOOKUP(ข้อมูลขนส่ง!V21,หกล้อขนส่ง!$M$9:$O$208,3),2)+IF(V21>200,(V21-200)*$W$12,0))*U21/V21,2)) -> 115.47 | X21: =IF(V21=0,0,ROUND((ROUND(VLOOKUP(V21,สิบล้อขนส่ง!$M$9:$O$208,3),2)+IF(V21>200,(V21-200)*$X$12,0))*U21/V21,2)) -> 100.39 | Y21: =IF(V21=0,0,ROUND((ROUND(VLOOKUP(V21,รถพ่วงขนส่ง!$M$9:$O$208,3),2)+IF(V21>200,(V21-200)*$Y$12,0))*U21/V21,2)) -> 61.87 | Z21: =IF(A21="รถบรรทุก 6 ล้อ",W21,IF(A21="รถบรรทุก 10 ล้อ",X21,IF(A21="รถบรรทุก 10 ล้อ + ลากพ่วง",Y21))) -> 100.39 | AB21: =IF(C21>0,"ทางราบ","") -> ทางราบ | AC21: =IF(D21>0,"ทางลูกเนิน","") ->  | AD21: =IF(E21>0,"ทางภูเขา","") ->  | AE21: ="เส้นทางขนส่ง "&AB35&" "&AC35&" "&AD35 -> เส้นทางขนส่ง ทางราบ | AF21: รถบรรทุก 10 ล้อ | AO21: สงขลา | AP21: 1
A22: 8. ขนส่งหินผสมคอนกรีต | B22: (ลบ.ม.) | C22: ทางราบ | D22: ทางลูกเนิน | E22: ทางภูเขา | F22: 1 | G22: ทางราบ | H22: ทางลูกเนิน | I22: ทางภูเขา | L22: ="งานขนส่งดินตัด ขนส่ง "&SUM(C23:I23)&" กม."&" ด้วย"&A23 -> งานขนส่งดินตัด ขนส่ง 62 กม. ด้วยรถบรรทุก 10 ล้อ | O22: =IF(A23=$AE$3,2.12,IF(A23=$AE$4,1.95,2.13)) -> 1.95 | P22: =IF(A23=$AE$3,2.56,IF(A23=$AE$4,2.52,2.13)) -> 2.52 | R22: =IF(A23=$AE$3,1.24,IF(A23=$AE$4,1.23,1.2)) -> 1.23 | S22: =IF(A23=$AE$3,2.36,IF(A23=$AE$4,2.18,2.33)) -> 2.18 | T22: =IF(A23=$AE$3,2.8,IF(A23=$AE$4,2.75,2.33)) -> 2.75 | AE22: =A20 -> 6. ขนส่งทรายหยาบ(ผสมคอนกรีต) | AO22: สตูล | AP22: 1
A23: รถบรรทุก 10 ล้อ | C23: =+C19 -> 62 | G23: 0 | H23: 0 | I23: 0 | N23: =C23 -> 62 | O23: =D23*O22 -> 0 | P23: =E23*P22 -> 0 | R23: =G23*R22 -> 0 | S23: =H23*S22 -> 0 | T23: =I23*T22 -> 0 | U23: =SUM(N23:T23) -> 62 | V23: =SUM(C23:I23) -> 62 | W23: =IF(V23=0,0,ROUND((ROUND(VLOOKUP(ข้อมูลขนส่ง!V23,หกล้อขนส่ง!$M$9:$O$208,3),2)+IF(V23>200,(V23-200)*$W$12,0))*U23/V23,2)) -> 235.89 | X23: =IF(V23=0,0,ROUND((ROUND(VLOOKUP(V23,สิบล้อขนส่ง!$M$9:$O$208,3),2)+IF(V23>200,(V23-200)*$X$12,0))*U23/V23,2)) -> 205.65 | Y23: =IF(V23=0,0,ROUND((ROUND(VLOOKUP(V23,รถพ่วงขนส่ง!$M$9:$O$208,3),2)+IF(V23>200,(V23-200)*$Y$12,0))*U23/V23,2)) -> 126.94 | Z23: =IF(A23="รถบรรทุก 6 ล้อ",W23,IF(A23="รถบรรทุก 10 ล้อ",X23,IF(A23="รถบรรทุก 10 ล้อ + ลากพ่วง",Y23))) -> 205.65 | AB23: =IF(C23>0,"ทางราบ","") -> ทางราบ | AC23: =IF(D23>0,"ทางลูกเนิน","") ->  | AD23: =IF(E23>0,"ทางภูเขา","") ->  | AE23: ="เส้นทางขนส่ง "&AB21&" "&AC21&" "&AD21 -> เส้นทางขนส่ง ทางราบ | AF23: รถบรรทุก 10 ล้อ | AO23: สุราษฎร์ธานี | AP23: 1
A24: 8. ขนส่งยางแอสฟัลท์ | B24: (ตัน) | C24: ทางราบ | D24: ทางลูกเนิน | E24: ทางภูเขา | G24: ทางราบ | H24: ทางลูกเนิน | I24: ทางภูเขา | L24: ="งานขนส่งดินตัด ขนส่ง "&SUM(C25:I25)&" กม."&" ด้วย"&A25 -> งานขนส่งดินตัด ขนส่ง 631 กม. ด้วยรถบรรทุก 10 ล้อ + ลากพ่วง | O24: =IF(A25=$AE$3,2.12,IF(A25=$AE$4,1.95,2.13)) -> 2.13 | P24: =IF(A25=$AE$3,2.56,IF(A25=$AE$4,2.52,2.13)) -> 2.13 | R24: =IF(A25=$AE$3,1.24,IF(A25=$AE$4,1.23,1.2)) -> 1.2 | S24: =IF(A25=$AE$3,2.36,IF(A25=$AE$4,2.18,2.33)) -> 2.33 | T24: =IF(A25=$AE$3,2.8,IF(A25=$AE$4,2.75,2.33)) -> 2.33 | AE24: =A22 -> 8. ขนส่งหินผสมคอนกรีต | AO24: หนองคาย | AP24: 1
A25: รถบรรทุก 10 ล้อ + ลากพ่วง | C25: 631 | G25: 0 | H25: 0 | I25: 0 | N25: =C25 -> 631 | O25: =D25*O24 -> 0 | P25: =E25*P24 -> 0 | R25: =G25*R24 -> 0 | S25: =H25*S24 -> 0 | T25: =I25*T24 -> 0 | U25: =SUM(N25:T25) -> 631 | V25: =SUM(C25:I25) -> 631 | W25: =IF(V25=0,0,ROUND((ROUND(VLOOKUP(ข้อมูลขนส่ง!V25,หกล้อขนส่ง!$M$9:$O$208,2),2)+IF(V25>200,(V25-200)*$W$28,0))*U25/V25,2)) -> 1703.13 | X25: =IF(V25=0,0,ROUND((ROUND(VLOOKUP(V25,สิบล้อขนส่ง!$M$9:$O$208,2),2)+IF(V25>200,(V25-200)*$X$28,0))*U25/V25,2)) -> 1488.36 | Y25: =IF(V25=0,0,ROUND((ROUND(VLOOKUP(V25,รถพ่วงขนส่ง!$M$9:$O$208,2),2)+IF(V25>200,(V25-200)*$Y$28,0))*U25/V25,2)) -> 920.47 | Z25: =IF(A25="รถบรรทุก 6 ล้อ",W25,IF(A25="รถบรรทุก 10 ล้อ",X25,IF(A25="รถบรรทุก 10 ล้อ + ลากพ่วง",Y25))) -> 920.47 | AB25: =IF(C25>0,"ทางราบ","") -> ทางราบ | AC25: =IF(D25>0,"ทางลูกเนิน","") ->  | AD25: =IF(E25>0,"ทางภูเขา","") ->  | AE25: ="เส้นทางขนส่ง "&AB23&" "&AC23&" "&AD23 -> เส้นทางขนส่ง ทางราบ | AF25: รถบรรทุก 10 ล้อ + ลากพ่วง | AO25: บึงกาฬ | AP25: 1
A26: 9. ขนส่งยางแอสฟัลท์ (ยาง CSS-1h(EMA)) | B26: (ตัน) | C26: ทางราบ | D26: ทางลูกเนิน | E26: ทางภูเขา | G26: ทางราบ | H26: ทางลูกเนิน | I26: ทางภูเขา | L26: ="งานขนส่งดินตัด ขนส่ง "&SUM(C27:I27)&" กม."&" ด้วย"&A27 -> งานขนส่งดินตัด ขนส่ง 356 กม. ด้วยรถบรรทุก 10 ล้อ + ลากพ่วง | O26: =IF(A27=$AE$3,2.12,IF(A27=$AE$4,1.95,2.13)) -> 2.13 | P26: =IF(A27=$AE$3,2.56,IF(A27=$AE$4,2.52,2.13)) -> 2.13 | R26: =IF(A27=$AE$3,1.24,IF(A27=$AE$4,1.23,1.2)) -> 1.2 | S26: =IF(A27=$AE$3,2.36,IF(A27=$AE$4,2.18,2.33)) -> 2.33 | T26: =IF(A27=$AE$3,2.8,IF(A27=$AE$4,2.75,2.33)) -> 2.33 | AE26: =A24 -> 8. ขนส่งยางแอสฟัลท์ | AO26: หนองคาย | AP26: 1
A27: รถบรรทุก 10 ล้อ + ลากพ่วง | C27: 356 | G27: 0 | H27: 0 | I27: 0 | N27: =C27 -> 356 | O27: =D27*O26 -> 0 | P27: =E27*P26 -> 0 | R27: =G27*R26 -> 0 | S27: =H27*S26 -> 0 | T27: =I27*T26 -> 0 | U27: =SUM(N27:T27) -> 356 | V27: =SUM(C27:I27) -> 356 | W27: =IF(V27=0,0,ROUND((ROUND(VLOOKUP(ข้อมูลขนส่ง!V27,หกล้อขนส่ง!$M$9:$O$208,2),2)+IF(V27>200,(V27-200)*$W$28,0))*U27/V27,2)) -> 960.63 | X27: =IF(V27=0,0,ROUND((ROUND(VLOOKUP(V27,สิบล้อขนส่ง!$M$9:$O$208,2),2)+IF(V27>200,(V27-200)*$X$28,0))*U27/V27,2)) -> 839.36 | Y27: =IF(V27=0,0,ROUND((ROUND(VLOOKUP(V27,รถพ่วงขนส่ง!$M$9:$O$208,2),2)+IF(V27>200,(V27-200)*$Y$28,0))*U27/V27,2)) -> 518.97 | Z27: =IF(A27="รถบรรทุก 6 ล้อ",W27,IF(A27="รถบรรทุก 10 ล้อ",X27,IF(A27="รถบรรทุก 10 ล้อ + ลากพ่วง",Y27))) -> 518.97 | AB27: =IF(C27>0,"ทางราบ","") -> ทางราบ | AC27: =IF(D27>0,"ทางลูกเนิน","") ->  | AD27: =IF(E27>0,"ทางภูเขา","") ->  | AE27: ="เส้นทางขนส่ง "&AB25&" "&AC25&" "&AD25 -> เส้นทางขนส่ง ทางราบ | AF27: รถบรรทุก 10 ล้อ + ลากพ่วง | AO27: บึงกาฬ | AP27: 1
A28: 10. ขนส่งเหล็กเสริม | B28: (ตัน) | C28: ทางราบ | D28: ทางลูกเนิน | E28: ทางภูเขา | G28: ทางราบ | H28: ทางลูกเนิน | I28: ทางภูเขา | L28: ="งานขนส่งดินตัด ขนส่ง "&SUM(C29:I29)&" กม."&" ด้วย"&A29 -> งานขนส่งดินตัด ขนส่ง 46 กม. ด้วยรถบรรทุก 10 ล้อ + ลากพ่วง | O28: =IF(A29=$AE$3,2.12,IF(A29=$AE$4,1.95,2.13)) -> 2.13 | P28: =IF(A29=$AE$3,2.56,IF(A29=$AE$4,2.52,2.13)) -> 2.13 | R28: =IF(A29=$AE$3,1.24,IF(A29=$AE$4,1.23,1.2)) -> 1.2 | S28: =IF(A29=$AE$3,2.36,IF(A29=$AE$4,2.18,2.33)) -> 2.33 | T28: =IF(A29=$AE$3,2.8,IF(A29=$AE$4,2.75,2.33)) -> 2.33 | V28: บาท/ตัน | W28: =ROUND(หกล้อขนส่ง!N209,2) -> 2.7 | X28: =ROUND(สิบล้อขนส่ง!N209,2) -> 2.36 | Y28: =ROUND(รถพ่วงขนส่ง!N209,2) -> 1.46 | AE28: =A28 -> 10. ขนส่งเหล็กเสริม | AO28: พังงา | AP28: 2
A29: รถบรรทุก 10 ล้อ + ลากพ่วง | C29: 46 | G29: 0 | H29: 0 | I29: 0 | N29: =C29 -> 46 | O29: =D29*O28 -> 0 | P29: =E29*P28 -> 0 | R29: =G29*R28 -> 0 | S29: =H29*S28 -> 0 | T29: =I29*T28 -> 0 | U29: =SUM(N29:T29) -> 46 | V29: =SUM(C29:I29) -> 46 | W29: =IF(V29=0,0,ROUND((ROUND(VLOOKUP(ข้อมูลขนส่ง!V29,หกล้อขนส่ง!$M$9:$O$208,2),2)+IF(V29>200,(V29-200)*$W$28,0))*U29/V29,2)) -> 125.49 | X29: =IF(V29=0,0,ROUND((ROUND(VLOOKUP(V29,สิบล้อขนส่ง!$M$9:$O$208,2),2)+IF(V29>200,(V29-200)*$X$28,0))*U29/V29,2)) -> 109.29 | Y29: =IF(V29=0,0,ROUND((ROUND(VLOOKUP(V29,รถพ่วงขนส่ง!$M$9:$O$208,2),2)+IF(V29>200,(V29-200)*$Y$28,0))*U29/V29,2)) -> 67.44 | Z29: =IF(A29="รถบรรทุก 6 ล้อ",W29,IF(A29="รถบรรทุก 10 ล้อ",X29,IF(A29="รถบรรทุก 10 ล้อ + ลากพ่วง",Y29))) -> 67.44 | AB29: =IF(C29>0,"ทางราบ","") -> ทางราบ | AC29: =IF(D29>0,"ทางลูกเนิน","") ->  | AD29: =IF(E29>0,"ทางภูเขา","") ->  | AE29: ="เส้นทางขนส่ง "&AB29&" "&AC29&" "&AD29 -> เส้นทางขนส่ง ทางราบ | AF29: รถบรรทุก 10 ล้อ + ลากพ่วง | AO29: พัทลุง | AP29: 1
A30: 11. ขนส่งปูนซิเมนต์ | B30: (ตัน) | C30: ทางราบ | D30: ทางลูกเนิน | E30: ทางภูเขา | G30: ทางราบ | H30: ทางลูกเนิน | I30: ทางภูเขา | L30: ="งานขนส่งดินตัด ขนส่ง "&SUM(C31:I31)&" กม."&" ด้วย"&A31 -> งานขนส่งดินตัด ขนส่ง 46 กม. ด้วยรถบรรทุก 10 ล้อ + ลากพ่วง | O30: =IF(A31=$AE$3,2.12,IF(A31=$AE$4,1.95,2.13)) -> 2.13 | P30: =IF(A31=$AE$3,2.56,IF(A31=$AE$4,2.52,2.13)) -> 2.13 | R30: =IF(A31=$AE$3,1.24,IF(A31=$AE$4,1.23,1.2)) -> 1.2 | S30: =IF(A31=$AE$3,2.36,IF(A31=$AE$4,2.18,2.33)) -> 2.33 | T30: =IF(A31=$AE$3,2.8,IF(A31=$AE$4,2.75,2.33)) -> 2.33 | AE30: =A30 -> 11. ขนส่งปูนซิเมนต์ | AO30: ภูเก็ต | AP30: 2
A31: รถบรรทุก 10 ล้อ + ลากพ่วง | C31: =C29 -> 46 | G31: 0 | H31: 0 | I31: 0 | N31: =C31 -> 46 | O31: =D31*O30 -> 0 | P31: =E31*P30 -> 0 | R31: =G31*R30 -> 0 | S31: =H31*S30 -> 0 | T31: =I31*T30 -> 0 | U31: =SUM(N31:T31) -> 46 | V31: =SUM(C31:I31) -> 46 | W31: =IF(V31=0,0,ROUND((ROUND(VLOOKUP(ข้อมูลขนส่ง!V31,หกล้อขนส่ง!$M$9:$O$208,2),2)+IF(V31>200,(V31-200)*$W$28,0))*U31/V31,2)) -> 125.49 | X31: =IF(V31=0,0,ROUND((ROUND(VLOOKUP(V31,สิบล้อขนส่ง!$M$9:$O$208,2),2)+IF(V31>200,(V31-200)*$X$28,0))*U31/V31,2)) -> 109.29 | Y31: =IF(V31=0,0,ROUND((ROUND(VLOOKUP(V31,รถพ่วงขนส่ง!$M$9:$O$208,2),2)+IF(V31>200,(V31-200)*$Y$28,0))*U31/V31,2)) -> 67.44 | Z31: =IF(A31="รถบรรทุก 6 ล้อ",W31,IF(A31="รถบรรทุก 10 ล้อ",X31,IF(A31="รถบรรทุก 10 ล้อ + ลากพ่วง",Y31))) -> 67.44 | AB31: =IF(C31>0,"ทางราบ","") -> ทางราบ | AC31: =IF(D31>0,"ทางลูกเนิน","") ->  | AD31: =IF(E31>0,"ทางภูเขา","") ->  | AE31: ="เส้นทางขนส่ง "&AB31&" "&AC31&" "&AD31 -> เส้นทางขนส่ง ทางราบ | AF31: รถบรรทุก 10 ล้อ + ลากพ่วง | AO31: ยะลา | AP31: 2
A32: 12. ขนส่งไม้แบบ | B32: (ตัน) | C32: ทางราบ | D32: ทางลูกเนิน | E32: ทางภูเขา | G32: ทางราบ | H32: ทางลูกเนิน | I32: ทางภูเขา | L32: ="งานขนส่งดินตัด ขนส่ง "&SUM(C33:I33)&" กม."&" ด้วย"&A33 -> งานขนส่งดินตัด ขนส่ง 46 กม. ด้วยรถบรรทุก 10 ล้อ + ลากพ่วง | O32: =IF(A33=$AE$3,2.12,IF(A33=$AE$4,1.95,2.13)) -> 2.13 | P32: =IF(A33=$AE$3,2.56,IF(A33=$AE$4,2.52,2.13)) -> 2.13 | R32: =IF(A33=$AE$3,1.24,IF(A33=$AE$4,1.23,1.2)) -> 1.2 | S32: =IF(A33=$AE$3,2.36,IF(A33=$AE$4,2.18,2.33)) -> 2.33 | T32: =IF(A33=$AE$3,2.8,IF(A33=$AE$4,2.75,2.33)) -> 2.33 | AE32: =A32 -> 12. ขนส่งไม้แบบ
A33: รถบรรทุก 10 ล้อ + ลากพ่วง | C33: =C31 -> 46 | G33: 0 | H33: 0 | I33: 0 | N33: =C33 -> 46 | O33: =D33*O32 -> 0 | P33: =E33*P32 -> 0 | R33: =G33*R32 -> 0 | S33: =H33*S32 -> 0 | T33: =I33*T32 -> 0 | U33: =SUM(N33:T33) -> 46 | V33: =SUM(C33:I33) -> 46 | W33: =IF(V33=0,0,ROUND((ROUND(VLOOKUP(ข้อมูลขนส่ง!V33,หกล้อขนส่ง!$M$9:$O$208,2),2)+IF(V33>200,(V33-200)*$W$28,0))*U33/V33,2)) -> 125.49 | X33: =IF(V33=0,0,ROUND((ROUND(VLOOKUP(V33,สิบล้อขนส่ง!$M$9:$O$208,2),2)+IF(V33>200,(V33-200)*$X$28,0))*U33/V33,2)) -> 109.29 | Y33: =IF(V33=0,0,ROUND((ROUND(VLOOKUP(V33,รถพ่วงขนส่ง!$M$9:$O$208,2),2)+IF(V33>200,(V33-200)*$Y$28,0))*U33/V33,2)) -> 67.44 | Z33: =IF(A33="รถบรรทุก 6 ล้อ",W33,IF(A33="รถบรรทุก 10 ล้อ",X33,IF(A33="รถบรรทุก 10 ล้อ + ลากพ่วง",Y33))) -> 67.44 | AB33: =IF(C33>0,"ทางราบ","") -> ทางราบ | AC33: =IF(D33>0,"ทางลูกเนิน","") ->  | AD33: =IF(E33>0,"ทางภูเขา","") ->  | AE33: ="เส้นทางขนส่ง "&AB33&" "&AC33&" "&AD33 -> เส้นทางขนส่ง ทางราบ | AF33: รถบรรทุก 10 ล้อ + ลากพ่วง
A34: 13. ขนส่งเหล็กรูปพรรณ | B34: (ตัน) | C34: ทางราบ | D34: ทางลูกเนิน | E34: ทางภูเขา | G34: ทางราบ | H34: ทางลูกเนิน | I34: ทางภูเขา | L34: ="งานขนส่งดินตัด ขนส่ง "&SUM(C35:I35)&" กม."&" ด้วย"&A35 -> งานขนส่งดินตัด ขนส่ง 46 กม. ด้วยรถบรรทุก 10 ล้อ + ลากพ่วง | O34: =IF(A35=$AE$3,2.12,IF(A35=$AE$4,1.95,2.13)) -> 2.13 | P34: =IF(A35=$AE$3,2.56,IF(A35=$AE$4,2.52,2.13)) -> 2.13 | R34: =IF(A35=$AE$3,1.24,IF(A35=$AE$4,1.23,1.2)) -> 1.2 | S34: =IF(A35=$AE$3,2.36,IF(A35=$AE$4,2.18,2.33)) -> 2.33 | T34: =IF(A35=$AE$3,2.8,IF(A35=$AE$4,2.75,2.33)) -> 2.33 | AE34: =A24 -> 8. ขนส่งยางแอสฟัลท์
A35: รถบรรทุก 10 ล้อ + ลากพ่วง | C35: =C33 -> 46 | G35: 0 | H35: 0 | I35: 0 | N35: =C35 -> 46 | O35: =D35*O34 -> 0 | P35: =E35*P34 -> 0 | R35: =G35*R34 -> 0 | S35: =H35*S34 -> 0 | T35: =I35*T34 -> 0 | U35: =SUM(N35:T35) -> 46 | V35: =SUM(C35:I35) -> 46 | W35: =IF(V35=0,0,ROUND((ROUND(VLOOKUP(ข้อมูลขนส่ง!V35,หกล้อขนส่ง!$M$9:$O$208,2),2)+IF(V35>200,(V35-200)*$W$28,0))*U35/V35,2)) -> 125.49 | X35: =IF(V35=0,0,ROUND((ROUND(VLOOKUP(V35,สิบล้อขนส่ง!$M$9:$O$208,2),2)+IF(V35>200,(V35-200)*$X$28,0))*U35/V35,2)) -> 109.29 | Y35: =IF(V35=0,0,ROUND((ROUND(VLOOKUP(V35,รถพ่วงขนส่ง!$M$9:$O$208,2),2)+IF(V35>200,(V35-200)*$Y$28,0))*U35/V35,2)) -> 67.44 | Z35: =IF(A35="รถบรรทุก 6 ล้อ",W35,IF(A35="รถบรรทุก 10 ล้อ",X35,IF(A35="รถบรรทุก 10 ล้อ + ลากพ่วง",Y35))) -> 67.44 | AB35: =IF(C35>0,"ทางราบ","") -> ทางราบ | AC35: =IF(D35>0,"ทางลูกเนิน","") ->  | AD35: =IF(E35>0,"ทางภูเขา","") ->  | AE35: ="เส้นทางขนส่ง "&AB25&" "&AC25&" "&AD25 -> เส้นทางขนส่ง ทางราบ | AF35: รถบรรทุก 10 ล้อ + ลากพ่วง
A36: 14. ขนส่งแอสฟัลท์ติกคอนกรีตในสายทาง | B36: (ตัน) | C36: ทางราบ | D36: ทางลูกเนิน | E36: ทางภูเขา | G36: ทางราบ | H36: ทางลูกเนิน | I36: ทางภูเขา | L36: ="งานขนส่งดินตัด ขนส่ง "&SUM(C37:I37)&" กม."&" ด้วย"&A37 -> งานขนส่งดินตัด ขนส่ง 1 กม. ด้วยรถบรรทุก 10 ล้อ + ลากพ่วง | O36: =IF(A37=$AE$3,2.12,IF(A37=$AE$4,1.95,2.13)) -> 2.13 | P36: =IF(A37=$AE$3,2.56,IF(A37=$AE$4,2.52,2.13)) -> 2.13 | R36: =IF(A37=$AE$3,1.24,IF(A37=$AE$4,1.23,1.2)) -> 1.2 | S36: =IF(A37=$AE$3,2.36,IF(A37=$AE$4,2.18,2.33)) -> 2.33 | T36: =IF(A37=$AE$3,2.8,IF(A37=$AE$4,2.75,2.33)) -> 2.33 | AE36: =A36 -> 14. ขนส่งแอสฟัลท์ติกคอนกรีตในสายทาง
A37: รถบรรทุก 10 ล้อ + ลากพ่วง | C37: 1 | G37: 0 | H37: 0 | I37: 0 | N37: =C37 -> 1 | O37: =D37*O36 -> 0 | P37: =E37*P36 -> 0 | R37: =G37*R36 -> 0 | S37: =H37*S36 -> 0 | T37: =I37*T36 -> 0 | U37: =SUM(N37:T37) -> 1 | V37: =SUM(C37:I37) -> 1 | W37: =IF(V37=0,0,ROUND((ROUND(VLOOKUP(ข้อมูลขนส่ง!V37,หกล้อขนส่ง!$M$9:$O$208,2),2)+IF(V37>200,(V37-200)*$W$28,0))*U37/V37,2)) -> 10.8 | X37: =IF(V37=0,0,ROUND((ROUND(VLOOKUP(V37,สิบล้อขนส่ง!$M$9:$O$208,2),2)+IF(V37>200,(V37-200)*$X$28,0))*U37/V37,2)) -> 7.99 | Y37: =IF(V37=0,0,ROUND((ROUND(VLOOKUP(V37,รถพ่วงขนส่ง!$M$9:$O$208,2),2)+IF(V37>200,(V37-200)*$Y$28,0))*U37/V37,2)) -> 4.4 | Z37: =IF(A37="รถบรรทุก 6 ล้อ",W37,IF(A37="รถบรรทุก 10 ล้อ",X37,IF(A37="รถบรรทุก 10 ล้อ + ลากพ่วง",Y37))) -> 4.4 | AB37: =IF(C37>0,"ทางราบ","") -> ทางราบ | AE37: ="เส้นทางขนส่ง "&AB37&" "&AC37&" "&AD37 -> เส้นทางขนส่ง ทางราบ | AF37: รถบรรทุก 10 ล้อ + ลากพ่วง
A38: 14. ขนส่งเครื่องจักร Plant AC | C38: ทางราบ | D38: ทางลูกเนิน | E38: ทางภูเขา | G38: ทางราบ | H38: ทางลูกเนิน | I38: ทางภูเขา | L38: ="งานขนส่งดินตัด ขนส่ง "&SUM(C39:I39)&" กม."&" ด้วย"&A39 -> งานขนส่งดินตัด ขนส่ง 100 กม. ด้วยรถบรรทุก 10 ล้อ + ลากพ่วง | O38: =IF(A39=$AE$3,2.12,IF(A39=$AE$4,1.95,2.13)) -> 2.13 | P38: =IF(A39=$AE$3,2.56,IF(A39=$AE$4,2.52,2.13)) -> 2.13 | R38: =IF(A39=$AE$3,1.24,IF(A39=$AE$4,1.23,1.2)) -> 1.2 | S38: =IF(A39=$AE$3,2.36,IF(A39=$AE$4,2.18,2.33)) -> 2.33 | T38: =IF(A39=$AE$3,2.8,IF(A39=$AE$4,2.75,2.33)) -> 2.33 | AE38: =A38 -> 14. ขนส่งเครื่องจักร Plant AC | AF38: 14. ขนส่งเครื่องจักร Plant AC
A39: รถบรรทุก 10 ล้อ + ลากพ่วง | C39: 100 | G39: 0 | H39: 0 | I39: 0 | N39: =C39 -> 100 | O39: =D39*O38 -> 0 | P39: =E39*P38 -> 0 | R39: =G39*R38 -> 0 | S39: =H39*S38 -> 0 | T39: =I39*T38 -> 0 | U39: =SUM(N39:T39) -> 100 | V39: =SUM(C39:I39) -> 100 | W39: =IF(V39=0,0,ROUND((ROUND(VLOOKUP(ข้อมูลขนส่ง!V39,หกล้อขนส่ง!$M$9:$O$208,2),2)+IF(V39>200,(V39-200)*$W$28,0))*U39/V39,2)) -> 270.63 | X39: =IF(V39=0,0,ROUND((ROUND(VLOOKUP(V39,สิบล้อขนส่ง!$M$9:$O$208,2),2)+IF(V39>200,(V39-200)*$X$28,0))*U39/V39,2)) -> 236.1 | Y39: =IF(V39=0,0,ROUND((ROUND(VLOOKUP(V39,รถพ่วงขนส่ง!$M$9:$O$208,2),2)+IF(V39>200,(V39-200)*$Y$28,0))*U39/V39,2)) -> 145.88 | Z39: =IF(A39="รถบรรทุก 6 ล้อ",W39,IF(A39="รถบรรทุก 10 ล้อ",X39,IF(A39="รถบรรทุก 10 ล้อ + ลากพ่วง",Y39))) -> 145.88 | AB39: =IF(C39>0,"ทางราบ","") -> ทางราบ | AE39: ="เส้นทางขนส่ง "&AB39&" "&AC39&" "&AD39 -> เส้นทางขนส่ง ทางราบ | AF39: รถบรรทุก 10 ล้อ + ลากพ่วง
A40: 15. ขนส่งท่อ คสล. | B40: (ตัน) | C40: ทางราบ | D40: ทางลูกเนิน | E40: ทางภูเขา | G40: ทางราบ | H40: ทางลูกเนิน | I40: ทางภูเขา | L40: ="งานขนส่งดินตัด ขนส่ง "&SUM(C41:I41)&" กม."&" ด้วย"&A41 -> งานขนส่งดินตัด ขนส่ง 70 กม. ด้วยรถบรรทุก 10 ล้อ | O40: =IF(A41=$AE$3,2.12,IF(A41=$AE$4,1.95,2.13)) -> 1.95 | P40: =IF(A41=$AE$3,2.56,IF(A41=$AE$4,2.52,2.13)) -> 2.52 | R40: =IF(A41=$AE$3,1.24,IF(A41=$AE$4,1.23,1.2)) -> 1.23 | S40: =IF(A41=$AE$3,2.36,IF(A41=$AE$4,2.18,2.33)) -> 2.18 | T40: =IF(A41=$AE$3,2.8,IF(A41=$AE$4,2.75,2.33)) -> 2.75 | AE40: =A40 -> 15. ขนส่งท่อ คสล.
A41: รถบรรทุก 10 ล้อ | C41: 70 | G41: 0 | H41: 0 | I41: 0 | N41: =C41 -> 70 | O41: =D41*O40 -> 0 | P41: =E41*P40 -> 0 | R41: =G41*R40 -> 0 | S41: =H41*S40 -> 0 | T41: =I41*T40 -> 0 | U41: =SUM(N41:T41) -> 70 | V41: =SUM(C41:I41) -> 70 | W41: =IF(V41=0,0,ROUND((ROUND(VLOOKUP(ข้อมูลขนส่ง!V41,หกล้อขนส่ง!$M$9:$O$208,2),2)+IF(V41>200,(V41-200)*$W$28,0))*U41/V41,2)) -> 190 | X41: =IF(V41=0,0,ROUND((ROUND(VLOOKUP(V41,สิบล้อขนส่ง!$M$9:$O$208,2),2)+IF(V41>200,(V41-200)*$X$28,0))*U41/V41,2)) -> 165.64 | Y41: =IF(V41=0,0,ROUND((ROUND(VLOOKUP(V41,รถพ่วงขนส่ง!$M$9:$O$208,2),2)+IF(V41>200,(V41-200)*$Y$28,0))*U41/V41,2)) -> 102.29 | Z41: =IF(A41="รถบรรทุก 6 ล้อ",W41,IF(A41="รถบรรทุก 10 ล้อ",X41,IF(A41="รถบรรทุก 10 ล้อ + ลากพ่วง",Y41))) -> 165.64 | AB41: =IF(C41>0,"ทางราบ","") -> ทางราบ | AC41: =IF(D41>0,"ทางลูกเนิน","") ->  | AD41: =IF(E41>0,"ทางภูเขา","") ->  | AE41: ="เส้นทางขนส่ง "&AB41&" "&AC41&" "&AD41 -> เส้นทางขนส่ง ทางราบ | AF41: รถบรรทุก 10 ล้อ
A42: 16. ระยะทางจากกรุงเทพ - อ.ศรีราชา จ.ชลบุรี | B42: (ตัน) | C42: ทางราบ | D42: ทางลูกเนิน | E42: ทางภูเขา | G42: ทางราบ | H42: ทางลูกเนิน | I42: ทางภูเขา | L42: ="งานขนส่งดินตัด ขนส่ง "&SUM(C43:I43)&" กม."&" ด้วย"&A43 -> งานขนส่งดินตัด ขนส่ง 124 กม. ด้วยรถบรรทุก 10 ล้อ + ลากพ่วง | O42: =IF(A43=$AE$3,2.12,IF(A43=$AE$4,1.95,2.13)) -> 2.13 | P42: =IF(A43=$AE$3,2.56,IF(A43=$AE$4,2.52,2.13)) -> 2.13 | R42: =IF(A43=$AE$3,1.24,IF(A43=$AE$4,1.23,1.2)) -> 1.2 | S42: =IF(A43=$AE$3,2.36,IF(A43=$AE$4,2.18,2.33)) -> 2.33 | T42: =IF(A43=$AE$3,2.8,IF(A43=$AE$4,2.75,2.33)) -> 2.33 | AE42: =A32 -> 12. ขนส่งไม้แบบ
A43: รถบรรทุก 10 ล้อ + ลากพ่วง | C43: 124 | G43: 0 | H43: 0 | I43: 0 | N43: =C43 -> 124 | O43: =D43*O42 -> 0 | P43: =E43*P42 -> 0 | R43: =G43*R42 -> 0 | S43: =H43*S42 -> 0 | T43: =I43*T42 -> 0 | U43: =SUM(N43:T43) -> 124 | V43: =SUM(C43:I43) -> 124 | W43: =IF(V43=0,0,ROUND((ROUND(VLOOKUP(ข้อมูลขนส่ง!V43,หกล้อขนส่ง!$M$9:$O$208,2),2)+IF(V43>200,(V43-200)*$W$28,0))*U43/V43,2)) -> 335.16 | X43: =IF(V43=0,0,ROUND((ROUND(VLOOKUP(V43,สิบล้อขนส่ง!$M$9:$O$208,2),2)+IF(V43>200,(V43-200)*$X$28,0))*U43/V43,2)) -> 292.59 | Y43: =IF(V43=0,0,ROUND((ROUND(VLOOKUP(V43,รถพ่วงขนส่ง!$M$9:$O$208,2),2)+IF(V43>200,(V43-200)*$Y$28,0))*U43/V43,2)) -> 180.73 | Z43: =IF(A43="รถบรรทุก 6 ล้อ",W43,IF(A43="รถบรรทุก 10 ล้อ",X43,IF(A43="รถบรรทุก 10 ล้อ + ลากพ่วง",Y43))) -> 180.73 | AB43: =IF(C43>0,"ทางราบ","") -> ทางราบ | AC43: =IF(D43>0,"ทางลูกเนิน","") ->  | AD43: =IF(E43>0,"ทางภูเขา","") ->  | AE43: ="เส้นทางขนส่ง "&AB33&" "&AC33&" "&AD33 -> เส้นทางขนส่ง ทางราบ | AF43: รถบรรทุก 10 ล้อ + ลากพ่วง
A45: ข้อมูลเพื่อนำไปใช้
A46: ตัวจังหวัด - ที่ตั้งโครงการ | C46: =+C29 -> 46
A47: กรุงเทพฯ - ชลบุรี | C47: =+C43 -> 124
A48: อ.สูงเนิน จ.นครราชสีมา - ที่ตั้งโครงการ | C48: =+C27 -> 356
A49: กรุงเทพฯ - ที่ตั้งโครงการ | C49: 541
A50: อ.ศรีราชา จ.ชลบุรี - ที่ตั้งโครงการ | C50: =+C25 -> 631
A51: อ.นากลาง จ.หนองบัวลำภู - ที่ตั้งโครงการ | C51: =+C19 -> 62
A52: อ.น้ำโสม จ.อุดรธานี - ที่ตั้งโครงการ | C52: 98

Sheet ราคาวัสดุ
A1: กรอกข้อมูลในแถบสีเหลือง
A2: ที่ | B2: วัสดุ | K2: หน่วย | L2: ราคาที่แหล่ง (บาท) | M2: แหล่งวัสดุ
A3: 1 | B3: งานดิน | M3: http://www.price.moc.go.th/price/struct/index_new.asp
B4: 1.1 | C4: ดินถมคันทาง | K4: บาท/ลบ.ม. | L4: 84.11 | M4: พื้นที่ใกล้เคียงสถานที่ก่อสร้าง
B5: 1.2 | C5: วัสดุลูกรัง | K5: บาท/ลบ.ม. | L5: 140.19 | M5: =M4 -> พื้นที่ใกล้เคียงสถานที่ก่อสร้าง
B6: 1.3 | C6: วัสดุคัดเลือก | K6: บาท/ลบ.ม. | L6: =+L5*0.75 -> 105.1425 | M6: =M5 -> พื้นที่ใกล้เคียงสถานที่ก่อสร้าง
A7: 2 | B7: หิน
B8: 2.1 | C8: หินคลุก | K8: บาท/ลบ.ม. | L8: =เปรียบเทียบราคา!M25 -> 170 | M8: =เปรียบเทียบราคา!Q25 -> โรงโม่ อ.นากลาง จ.หนองบัวลำภู
B9: 2.2 | C9: หินฝุ่น | K9: บาท/ลบ.ม. | L9: =เปรียบเทียบราคา!M26 -> 280 | M9: =เปรียบเทียบราคา!Q26 -> โรงโม่ อ.นากลาง จ.หนองบัวลำภู
B10: 2.3 | C10: หิน 3/8" | K10: บาท/ลบ.ม. | L10: =เปรียบเทียบราคา!M27 -> 230 | M10: =เปรียบเทียบราคา!Q27 -> โรงโม่ อ.นากลาง จ.หนองบัวลำภู
B11: 2.4 | C11: หิน 1/2" | K11: บาท/ลบ.ม. | L11: =เปรียบเทียบราคา!M28 -> 330 | M11: =เปรียบเทียบราคา!Q28 -> โรงโม่ อ.นากลาง จ.หนองบัวลำภู
B12: 2.5 | C12: หิน 3/4" | K12: บาท/ลบ.ม. | L12: =เปรียบเทียบราคา!M29 -> 290 | M12: =เปรียบเทียบราคา!Q29 -> โรงโม่ อ.นากลาง จ.หนองบัวลำภู
B13: 2.6 | C13: หินใหญ่ | K13: บาท/ลบ.ม. | L13: =เปรียบเทียบราคา!M30 -> 220 | M13: =เปรียบเทียบราคา!Q30 -> โรงโม่ อ.นากลาง จ.หนองบัวลำภู
B14: 2.7 | C14: หินกรวดผสมคอนกรีต | K14: บาท/ลบ.ม. | M14: อ.นากลาง จ.หนองบัวลำภู
A15: 3 | B15: ปูนซีเมนต์ | M15: =+เปรียบเทียบราคา!D4 -> 43872
B16: 3.1 | C16: ปูนซีเมนต์ปอร์ตแลนด์ TYPE 1 | K16: บาท/ตัน | L16: 2242.99
B17: 3.2 | C17: ปูนฉาบ | K17: บาท/ตัน | L17: =+ราคาปูนtype1ที่แหล่ง -> 2242.99
A18: 4 | B18: ทราย | M18: =+M15 -> 43872
B19: 4.1 | C19: ทรายผสมคอนกรีต | K19: บาท/ลบ.ม. | L19: 529.6
B20: 4.2 | C20: ทรายรองพื้นหรือทรายถมที่ | K20: บาท/ลบ.ม. | L20: =+L19 -> 529.6
A21: 5 | B21: ยางแอสฟัลท์
B22: 5.1 | C22: ยางแอสฟัลท์ CSS-1h | K22: บาท/ตัน | L22: =เปรียบเทียบราคา!M10 -> 19057.94 | M22: =เปรียบเทียบราคา!Q10 -> บมจ. เอสโซ่ (ประเทศไทย) อ.ศรีราชา จ.ชลบุรี
B23: 5.2 | C23: ยางแอสฟัลท์ CSS-1 | K23: บาท/ตัน | L23: =เปรียบเทียบราคา!M11 -> 19488.6 | M23: =เปรียบเทียบราคา!Q11 -> บมจ. เอสโซ่ (ประเทศไทย) อ.ศรีราชา จ.ชลบุรี
B24: 5.3 | C24: ยางแอสฟัลท์ CRS-2 | K24: บาท/ตัน | L24: =เปรียบเทียบราคา!M12 -> 18841.94 | M24: =เปรียบเทียบราคา!Q12 -> บมจ. เอสโซ่ (ประเทศไทย) อ.ศรีราชา จ.ชลบุรี
B25: 5.4 | C25: ยางแอสฟัลท์ AC 60/70 | K25: บาท/ตัน | L25: =เปรียบเทียบราคา!M13 -> 14469.27 | M25: =เปรียบเทียบราคา!Q13 -> บมจ. เอสโซ่ (ประเทศไทย) อ.ศรีราชา จ.ชลบุรี
B26: 5.5 | C26: ยางแอสฟัลท์ MC-70 | K26: บาท/ตัน | L26: =เปรียบเทียบราคา!M14 -> 35469.27 | M26: =เปรียบเทียบราคา!Q14 -> บมจ. เอสโซ่ (ประเทศไทย) อ.ศรีราชา จ.ชลบุรี
B27: 5.6 | C27: ยางแอสฟัลท์ CSS-1h (EMA) | K27: บาท/ตัน | L27: =เปรียบเทียบราคา!M15 -> 0 | M27: บมจ.ทิปโก้แอสฟัลท์ อ.สูงเนิน จ.นครราชสีมา
A28: 6 | B28: เหล็กเสริม
B29: 6.1 | C29: เหล็กเส้นกลม SR-24 | M29: =+M18:M18 -> 43872
C30: 6.1.1) RB6 | K30: บาท/ตัน | L30: 20630.38
C31: 6.1.2) RB9 | K31: บาท/ตัน | L31: 18448.04
C32: 6.1.3 RB12 | K32: บาท/ตัน | L32: 18750 | M32: =+เปรียบเทียบราคา!D4 -> 43872
C33: 6.1.4) RB15 | K33: บาท/ตัน | L33: 19921.26
C34: 6.1.5) RB19 | K34: บาท/ตัน | L34: 19688.08
C35: 6.1.6) RB25 | K35: บาท/ตัน | L35: 21818.22
B36: 6.2 | C36: เหล็กเส้นข้ออ้อย SD-30 | M36: =+M32 -> 43872
C37: 6.2.1) DB12 | K37: บาท/ตัน | L37: 16995.24
C38: 6.2.2) DB16 | K38: บาท/ตัน | L38: 19844.24
C39: 6.2.3) DB20 | K39: บาท/ตัน | L39: 19829.59
C40: 6.2.4) DB25 | K40: บาท/ตัน | L40: 19953.27
B41: 6.3 | C41: เหล็กเส้นข้ออ้อย SD-40 | M41: =+M29 -> 43872
C42: 6.3.1) DB12 | K42: บาท/ตัน | L42: 17434.58
C43: 6.3.2) DB16 | K43: บาท/ตัน | L43: 17000
C44: 6.3.3) DB20 | K44: บาท/ตัน | L44: 17000
C45: 6.3.4) DB25 | K45: บาท/ตัน | L45: 16700 | M45: =+M32 -> 43872
B46: 6.4 | C46: ลวดผูกเหล็ก | K46: บาท/กก. | L46: 57.95 | M46: =+M41 -> 43872
B47: 6.5 | C47: เหล็กตะแกรง WIRE MESH | M47: สืบราคา
C48: 6.5.1) ขนาด | D48: Ø | E48: 6 x 4 มม. @ 0.30 x 0.30 ม. | K48: บาท/ตร.ม. | L48: 27.1
C49: 6.5.2) ขนาด | D49: Ø | E49: 6 x 4 มม. @ 0.20 x 0.20 ม. | K49: บาท/ตร.ม. | L49: 45
C50: 6.5.3) ขนาด | D50: Ø | E50: 6 มม. @ 0.10 x 0.30 ม. | K50: บาท/ตร.ม. | L50: 37
B51: 6.6 | C51: ลวดอัดแรง | M51: สืบราคา
C52: 6.6.1) PC WIRE | G52: Ø | H52: 4, 5, 7, 9 มม. | K52: บาท/ตัน | L52: 40000
C53: 6.6.2) PC STRAND 7 เส้น | G53: Ø | H53: 9.5 , 12.7 มม. | K53: บาท/ตัน | L53: 45000
B54: 6.7 | C54: ค่าแรง
C55: - ผูกเหล็กกลม | K55: บาท/ตัน | L55: 4100 | M55: กรมบัญชีกลาง ต.ค.58)
C56: - เหล็กตะแกรง WIRE MESH | K56: บาท/ตร.ม. | L56: 5 | M56: กรมบัญชีกลาง ต.ค.58)
C57: - ลวดอัดแรง | K57: บาท/ตัน | L57: 15000 | M57: สืบราคา
A58: 7 | B58: เหล็กรูปพรรณ | M58: สืบราคา
B59: 7.1 | C59: L - | D59: 50 x 50 x 6 มม. ยาว 6 เมตร น้ำหนัก 26.8 กก. | K59: บาท/ท่อน | L59: 485.98
B60: 7.2 | C60: Plate | D60: 100 x 10 มม. ยาว 6 เมตร น้ำหนัก 47.1 กก. | K60: บาท/ท่อน | L60: =+(N61/210)*47.1 -> 1104.869557
B61: 7.3 | C61: Plate | D61: 80 x 9 มม. ยาว 6 เมตร น้ำหนัก 33.9 กก. | K61: บาท/ท่อน | L61: =+(N61/210)*33.9 -> 795.2245857 | N61: 4926.17
B62: 7.4 | C62: Plate | D62: 50 x 5 มม. ยาว 6 เมตร น้ำหนัก 11.8 กก. | K62: บาท/ท่อน | L62: =+(N62/140)*11.8 -> 271.2112 | N62: 3217.76
B63: 7.5 | C63: ค่าแรง | K63: บาท/กก. | L63: 10 | M63: กรมบัญชีกลาง ต.ค.58)
A64: 8 | B64: ไม้แบบ | M64: =+M41 -> 43872
B65: 8.1 | C65: ไม้แบบ | K65: บาท/ลบ.ฟ. | L65: 585.67
B66: 8.2 | C66: ไม้เคร่า & ไม้รัดแบบ | K66: บาท/ลบ.ฟ. | L66: 427.57
B67: 8.3 | C67: ไม้ค้ำยัน | K67: บาท/ต้น | L67: 50 | M67: สืบราคา
B68: 8.4 | C68: ไม้คิ้ว 1''x1'' | K68: บาท/ลบฟ. | L68: 530
B69: 8.5 | C69: ตะปูยึดไม้แบบ | K69: บาท/กก. | L69: 40.37
B70: 8.6 | C70: น้ำมันทาแบบ | K70: บาท/ลิตร | L70: 25
B71: 8.7 | C71: ค่าแรงติดตั้งไม้แบบ | K71: บาท/ตร.ม. | L71: 154 | M71: คอนกรีตเปลือย กรมบัญชีกลาง (มี.ค.56)
A72: 9 | B72: งานท่อลอดกลม คสล. | M72: =+เปรียบเทียบราคา!D4 -> 43872
B73: 9.1 | C73: ท่อลอดกลม คสล. ขนาด Ø 0.40 ม. | K73: บาท/ท่อน | L73: 385.61
B74: 9.2 | C74: ท่อลอดกลม คสล. ขนาด Ø 0.60 ม. | K74: บาท/ท่อน | L74: 531.03
B75: 9.3 | C75: ท่อลอดกลม คสล. ขนาด Ø 0.80 ม. | K75: บาท/ท่อน | L75: 889.02
B76: 9.4 | C76: ท่อลอดกลม คสล. ขนาด Ø 1.00 ม. | K76: บาท/ท่อน | L76: 1278.74
B77: 9.5 | C77: ท่อลอดกลม คสล. ขนาด Ø 1.20 ม. | K77: บาท/ท่อน | L77: 1678.04
B78: 9.6 | C78: ท่อลอดกลม คสล. ขนาด Ø 1.50 ม. | K78: บาท/ท่อน | L78: 3271.03
A79: 10 | B79: งานสี | M79: =+M64 -> 43872 | AA79: ต่อ ตร.ม.
B80: 10.1 | C80: สีพลาสติก (1 ถัง = 3.785 ลิตร = 20 ตร.ม.) | K80: บาท/ถัง | L80: 373.83 | AA80: =ROUND(L80/20,2) -> 18.69
B81: 10.2 | C81: สีน้ำมัน (1 ถัง = 3.785 ลิตร = 18 ตร.ม.) | K81: บาท/ถัง | L81: 331.78 | AA81: =ROUND(L81/18,2) -> 18.43
B82: 10.3 | C82: สีกันสนิม (1 ถัง = 3.785 ลิตร = 20 ตร.ม.) | K82: บาท/ถัง | L82: 271.03 | AA82: =ROUND(L82/20,2) -> 13.55
B83: 10.4 | C83: สีสะท้อนแสง | K83: บาท/ลิตร | L83: 2600
B84: 10.5 | C84: น้ำยา Primer | K84: บาท/กก. | L84: 15
B85: 10.6 | C85: ค่าแรงทาสี | K85: บาท/ตร.ม. | L85: 30 | M85: กรมบัญชีกลาง (มี.ค.56)
A86: 11 | B86: งานไฟฟ้าแสงสว่าง | M86: สืบราคา
B87: 11.1 | C87: เสาไฟฟ้าแสงสว่าง (เหล็กอาบสังกะสี) สูง 9.00 ม. กิ่งเดี่ยว | K87: บาท/ต้น | L87: 5400
B88: 11.2 | C88: เสาไฟฟ้าแสงสว่าง (เหล็กอาบสังกะสี) สูง 9.00 ม. สองกิ่ง | K88: บาท/ต้น | L88: 5800
B89: 11.3 | C89: แผ่นเหล็ก PLATE หนา 25 มม. รองฐานเสาไฟฟ้าแสงสว่าง | K89: บาท/แผ่น | L89: 500
B90: 11.4 | C90: ANCHOR BOLT ขนาด Dia. 24 มม. | K90: บาท/ตัว | L90: 100
B91: 11.5 | C91: ค่าธรรมเนียมการไฟฟ้า | K91: บาท
B92: 11.6 | C92: ดวงโคม 1 โคม 150 W .HPS พร้อมอุปกรณ์ รวมติดตั้ง | K92: บาท/ชุด | L92: 5000
B93: 11.7 | C93: สายไฟฟ้า NYY 3 x 10 mm2 | K93: บาท/ม. | L93: 65
B94: 11.8 | C94: สายไฟฟ้า THW 2 x 25 mm2 | K94: บาท/ม. | L94: 21
B95: 11.9 | C95: Ground Rod | K95: บาท/ชุด | L95: 300
B96: 12 | C96: รีเลย์พร้อมโฟโตเซล 60A 220V (1 ชุดควบคุมได้ 28 ดวงโคม) | K96: บาท/ชุด | L96: 4200
B97: 12.1 | C97: เซฟตี้สวิทซ์ 30 A 220 V พร้อมท่อ Dia.1 1/4 | K97: บาท | L97: 6500
B98: 12.2 | C98: ท่อ Ø 1 1/2" พร้อมค่าดันท่อลอด | K98: บาท | L98: 600
B99: 12.3 | C99: ค่าประกอบและติดตั้งเสาไฟฟ้าแสงสว่าง | K99: ชุด | L99: 500
B100: 12.4 | C100: ค่าสีและแผ่นสะท้อนแสง พร้อมค่าแรง | K100: ชุด | L100: 250
B101: 12.5 | C101: ท่อ HDPE Ø 1 1/2" | K101: ชุด | L101: 90
A102: 12 | B102: ค่าแรงและอื่น ๆ
B103: 12.1 | C103: น้ำยา CON-AID | K103: บาท/ลิตร | L103: 1500 | M103: สืบราคา
B104: 12.2 | C104: น้ำยา Emusion | K104: บาท/ลิตร | L104: 200000 | M104: สืบราคา
B105: 12.3 | C105: กล่องตาข่าย Gabion ขนาด 1.00x1.00x1.00 ม. | K105: บาท/กล่อง | L105: 1275 | M105: สืบราคา
B106: 12.4 | C106: กล่องตาข่าย Mattres ขนาด 3.00x2.00x0.30 ม. | K106: บาท/ตร.ม. | L106: 1380.825 | M106: สืบราคา
B107: 12.5 | C107: แผ่นใยสงเคราะห์ Geotextile | K107: บาท/ตร.ม. | L107: 85 | M107: สืบราคา
B108: 12.6 | C108: รางระบายน้ำสำเร็จรูป (ขนาด 0.58 x 0.60 ม.) | K108: บาท/ม. | L108: =680+195*4 -> 1460 | M108: สืบราคา
B109: 12.7 | C109: งานดินขุด ถมคืน | K109: บาท/ลบ.ม. | L109: 99 | M109: กรมบัญชีกลาง (มี.ค.56)
B110: 12.8 | C110: ค่าแรงผสมและเทคอนกรีตหยาบ | K110: บาท/ลบ.ม. | L110: 398 | M110: กรมบัญชีกลาง (มี.ค.56)
B111: 12.9 | C111: ค่าแรงผสมและเทคอนกรีตโครงสร้าง | K111: บาท/ลบ.ม. | L111: 436 | M111: กรมบัญชีกลาง (มี.ค.56)
B112: 12.1 | C112: ค่าแรงเทคอนกรีตผสมเสร็จ | K112: บาท/ลบ.ม. | L112: 306 | M112: กรมบัญชีกลาง (มี.ค.56)

Sheet เปรียบเทียบราคา
A1: เปรียบเทรียบราคาวัสดุและค่าขนส่ง
A2: =ราคาต่อหน่วย!A2 -> (ใช้ราคาเฉลี่ยน้ำมัน ลิตรละ 29.50 บาท หาค่าขนส่ง,ค่าดำเนินการและค่าเสื่อมราคา)
B4: ยางแอสฟัลท์ | C4: ณ วันที่ | D4: =ข้อมูลโครงการ!G3 -> 2020-02-11
B5: ชนิดยาง | C5: กรุงเทพมหานคร | H5: =+R6 -> บมจ. เอสโซ่ (ประเทศไทย) อ.ศรีราชา จ.ชลบุรี | P5: สรุปใช้ | R5: บมจ.ทิปโก้แอสฟัลท์ อ.สูงเนิน จ.นครราชสีมา
D6: รถบรรทุก 10 ล้อ + ลากพ่วง | I6: รถบรรทุก 10 ล้อ + ลากพ่วง | R6: บมจ. เอสโซ่ (ประเทศไทย) อ.ศรีราชา จ.ชลบุรี
C8: ราคาที่แหล่ง | D8: ระยะทาง | E8: ค่าขนส่ง | F8: รวม | H8: ราคาที่แหล่ง | I8: ระยะทาง | J8: ค่าขนส่ง | K8: รวม | M8: ราคาที่แหล่ง | N8: ระยะทาง | O8: ค่าขนส่ง | P8: รวม | Q8: แหล่งวัสดุ
C9: (บาท) | D9: (กม.) | E9: (บาท) | F9: (บาท/ตัน) | H9: (บาท) | I9: (กม.) | J9: (บาท) | K9: (บาท/ตัน) | M9: (บาท) | N9: (กม.) | O9: (บาท) | P9: (บาท/ตัน) | R9: อ.สูงเนิน จ.นครราชสีมา
B10: CSS-1h | C10: 19238.67 | D10: =ข้อมูลขนส่ง!C49 -> 541 | E10: =IF(D10=0,0,ROUND(IF($D$6=ข้อมูลขนส่ง!$AE$5,(ROUND(VLOOKUP(D10,รถพ่วงขนส่ง!$M$9:$O$208,2),2)+IF(D10>200,(D10-200)*ข้อมูลขนส่ง!$Y$28,0))*1,(ROUND(VLOOKUP(D10,สิบล้อขนส่ง!$M$9:$O$208,2),2)+IF(D10>200,(D10-200)*ข้อมูลขนส่ง!$X$28,0))*1),2)) -> 789.07 | F10: =IF(D10=0,0,ROUND(C10+E10,2)) -> 20027.74 | H10: =+C10-$J$17 -> 19057.94 | I10: =+ข้อมูลขนส่ง!C50 -> 631 | J10: =IF(I10=0,0,ROUND(IF($I$6=ข้อมูลขนส่ง!$AE$5,(ROUND(VLOOKUP(I10,รถพ่วงขนส่ง!$M$9:$O$208,2),2)+IF(I10>200,(I10-200)*ข้อมูลขนส่ง!$Y$28,0))*1,(ROUND(VLOOKUP(I10,สิบล้อขนส่ง!$M$9:$O$208,2),2)+IF(I10>200,(I10-200)*ข้อมูลขนส่ง!$X$28,0))*1),2)) -> 920.47 | K10: =IF(I10=0,0,ROUND(H10+J10,2)) -> 19978.41 | M10: =IF(F10<K10,C10,H10) -> 19057.94 | N10: =IF(F10<K10,D10,I10) -> 631 | O10: =+J10 -> 920.47 | P10: =IF(N10=0,0,ROUND(M10+O10,2)) -> 19978.41 | Q10: =IF(F10<K10,$C$5,$H$5) -> บมจ. เอสโซ่ (ประเทศไทย) อ.ศรีราชา จ.ชลบุรี | R10: 1 | S10: AC 60/70
B11: CSS-1 | C11: 19669.33 | D11: =D10 -> 541 | E11: =IF(D11=0,0,ROUND(IF($D$6=ข้อมูลขนส่ง!$AE$5,(ROUND(VLOOKUP(D11,รถพ่วงขนส่ง!$M$9:$O$208,2),2)+IF(D11>200,(D11-200)*ข้อมูลขนส่ง!$Y$28,0))*1,(ROUND(VLOOKUP(D11,สิบล้อขนส่ง!$M$9:$O$208,2),2)+IF(D11>200,(D11-200)*ข้อมูลขนส่ง!$X$28,0))*1),2)) -> 789.07 | F11: 20458.4 | H11: =+C11-$J$17 -> 19488.6 | I11: =I10 -> 631 | J11: =IF(I11=0,0,ROUND(IF($I$6=ข้อมูลขนส่ง!$AE$5,(ROUND(VLOOKUP(I11,รถพ่วงขนส่ง!$M$9:$O$208,2),2)+IF(I11>200,(I11-200)*ข้อมูลขนส่ง!$Y$28,0))*1,(ROUND(VLOOKUP(I11,สิบล้อขนส่ง!$M$9:$O$208,2),2)+IF(I11>200,(I11-200)*ข้อมูลขนส่ง!$X$28,0))*1),2)) -> 920.47 | K11: =IF(I11=0,0,ROUND(H11+J11,2)) -> 20409.07 | M11: =IF(F11<K11,C11,H11) -> 19488.6 | N11: =IF(F11<K11,D11,I11) -> 631 | O11: =+J11 -> 920.47 | P11: 20409.07 | Q11: =IF(F11<K11,$C$5,$H$5) -> บมจ. เอสโซ่ (ประเทศไทย) อ.ศรีราชา จ.ชลบุรี | R11: 29315 | S11: PARA AC
B12: CRS-2 | C12: 19022.67 | D12: =D11 -> 541 | E12: =IF(D12=0,0,ROUND(IF($D$6=ข้อมูลขนส่ง!$AE$5,(ROUND(VLOOKUP(D12,รถพ่วงขนส่ง!$M$9:$O$208,2),2)+IF(D12>200,(D12-200)*ข้อมูลขนส่ง!$Y$28,0))*1,(ROUND(VLOOKUP(D12,สิบล้อขนส่ง!$M$9:$O$208,2),2)+IF(D12>200,(D12-200)*ข้อมูลขนส่ง!$X$28,0))*1),2)) -> 789.07 | F12: 19811.74 | H12: 18841.94 | I12: =I11 -> 631 | J12: =IF(I12=0,0,ROUND(IF($I$6=ข้อมูลขนส่ง!$AE$5,(ROUND(VLOOKUP(I12,รถพ่วงขนส่ง!$M$9:$O$208,2),2)+IF(I12>200,(I12-200)*ข้อมูลขนส่ง!$Y$28,0))*1,(ROUND(VLOOKUP(I12,สิบล้อขนส่ง!$M$9:$O$208,2),2)+IF(I12>200,(I12-200)*ข้อมูลขนส่ง!$X$28,0))*1),2)) -> 920.47 | K12: =IF(I12=0,0,ROUND(H12+J12,2)) -> 19762.41 | M12: =IF(F12<K12,C12,H12) -> 18841.94 | N12: =IF(F12<K12,D12,I12) -> 631 | O12: 920.47 | P12: 19762.41 | Q12: =IF(F12<K12,$C$5,$H$5) -> บมจ. เอสโซ่ (ประเทศไทย) อ.ศรีราชา จ.ชลบุรี | R12: กรุงเทพมหานคร
B13: =IF(ปร.4!V4=ปร.4!U7,"Para AC",IF(ปร.4!V4=ปร.4!U8,"AC 60/70")) -> AC 60/70 | C13: =IF(ปร.4!V4=ปร.4!U7,R14,IF(ปร.4!V4=ปร.4!U8,R13)) -> 14650 | D13: =D12 -> 541 | E13: =IF(D13=0,0,ROUND(IF($D$6=ข้อมูลขนส่ง!$AE$5,(ROUND(VLOOKUP(D13,รถพ่วงขนส่ง!$M$9:$O$208,2),2)+IF(D13>200,(D13-200)*ข้อมูลขนส่ง!$Y$28,0))*1,(ROUND(VLOOKUP(D13,สิบล้อขนส่ง!$M$9:$O$208,2),2)+IF(D13>200,(D13-200)*ข้อมูลขนส่ง!$X$28,0))*1),2)) -> 789.07 | F13: 15439.07 | H13: 14469.27 | I13: =I12 -> 631 | J13: =IF(I13=0,0,ROUND(IF($I$6=ข้อมูลขนส่ง!$AE$5,(ROUND(VLOOKUP(I13,รถพ่วงขนส่ง!$M$9:$O$208,2),2)+IF(I13>200,(I13-200)*ข้อมูลขนส่ง!$Y$28,0))*1,(ROUND(VLOOKUP(I13,สิบล้อขนส่ง!$M$9:$O$208,2),2)+IF(I13>200,(I13-200)*ข้อมูลขนส่ง!$X$28,0))*1),2)) -> 920.47 | K13: =IF(I13=0,0,ROUND(H13+J13,2)) -> 15389.74 | M13: =IF(F13<K13,C13,H13) -> 14469.27 | N13: =IF(F13<K13,D13,I13) -> 631 | O13: 920.47 | P13: 15389.74 | Q13: =IF(F13<K13,$C$5,$H$5) -> บมจ. เอสโซ่ (ประเทศไทย) อ.ศรีราชา จ.ชลบุรี | R13: 14650 | S13: AC 60/70
B14: MC-70 | C14: 35650 | D14: =D13 -> 541 | E14: =IF(D14=0,0,ROUND(IF($D$6=ข้อมูลขนส่ง!$AE$5,(ROUND(VLOOKUP(D14,รถพ่วงขนส่ง!$M$9:$O$208,2),2)+IF(D14>200,(D14-200)*ข้อมูลขนส่ง!$Y$28,0))*1,(ROUND(VLOOKUP(D14,สิบล้อขนส่ง!$M$9:$O$208,2),2)+IF(D14>200,(D14-200)*ข้อมูลขนส่ง!$X$28,0))*1),2)) -> 789.07 | F14: 36439.07 | H14: 35469.27 | I14: =I13 -> 631 | J14: =IF(I14=0,0,ROUND(IF($I$6=ข้อมูลขนส่ง!$AE$5,(ROUND(VLOOKUP(I14,รถพ่วงขนส่ง!$M$9:$O$208,2),2)+IF(I14>200,(I14-200)*ข้อมูลขนส่ง!$Y$28,0))*1,(ROUND(VLOOKUP(I14,สิบล้อขนส่ง!$M$9:$O$208,2),2)+IF(I14>200,(I14-200)*ข้อมูลขนส่ง!$X$28,0))*1),2)) -> 920.47 | K14: =IF(I14=0,0,ROUND(H14+J14,2)) -> 36389.74 | M14: =IF(F14<K14,C14,H14) -> 35469.27 | N14: =IF(F14<K14,D14,I14) -> 631 | O14: 920.47 | P14: 36389.74 | Q14: =IF(F14<K14,$C$5,$H$5) -> บมจ. เอสโซ่ (ประเทศไทย) อ.ศรีราชา จ.ชลบุรี | R14: 32750 | S14: PARA AC
B15: CSS-1h (EMA) | D15: =IF(C15=0,0,ข้อมูลขนส่ง!C48) -> 0 | E15: =IF(D15=0,0,ROUND(IF($D$6=ข้อมูลขนส่ง!$AE$5,(ROUND(VLOOKUP(D15,รถพ่วงขนส่ง!$M$9:$O$208,2),2)+IF(D15>200,(D15-200)*ข้อมูลขนส่ง!$Y$28,0))*1,(ROUND(VLOOKUP(D15,สิบล้อขนส่ง!$M$9:$O$208,2),2)+IF(D15>200,(D15-200)*ข้อมูลขนส่ง!$X$28,0))*1),2)) -> 0 | F15: 0 | M15: =C15 -> 0 | N15: =D15 -> 0 | O15: =E15 -> 0 | P15: 0 | Q15: =IF(C15=0,"","บมจ.ทิปโก้แอสฟัลท์ อ.สูงเนิน จ.นครราชสีมา") -> 
E16: =IF(D16=0,0,ROUND(IF($D$6=ข้อมูลขนส่ง!$AE$5,(ROUND(VLOOKUP(D16,รถพ่วงขนส่ง!$M$9:$O$208,2),2)+IF(D16>200,(D16-200)*ข้อมูลขนส่ง!$Y$28,0))*1,(ROUND(VLOOKUP(D16,สิบล้อขนส่ง!$M$9:$O$208,2),2)+IF(D16>200,(D16-200)*ข้อมูลขนส่ง!$X$28,0))*1),2)) -> 0 | F16: =IF(D16=0,0,ROUND(C16+E16,2)) -> 0 | H16: =IF(C16=0,0,C16-$J$7) -> 0 | I16: =IF(C16=0,0,I10) -> 0 | J16: =IF(I16=0,0,ROUND(IF($I$6=ข้อมูลขนส่ง!$AE$5,(ROUND(VLOOKUP(I16,รถพ่วงขนส่ง!$M$9:$O$208,2),2)+IF(I16>200,(I16-200)*ข้อมูลขนส่ง!$Y$28,0))*1,(ROUND(VLOOKUP(I16,สิบล้อขนส่ง!$M$9:$O$208,2),2)+IF(I16>200,(I16-200)*ข้อมูลขนส่ง!$X$28,0))*1),2)) -> 0 | K16: =IF(I16=0,0,ROUND(H16+J16,2)) -> 0 | M16: =IF(F16<K16,C16,H16) -> 0 | N16: =IF(F16<K16,D16,I16) -> 0 | O16: =IF(N16=0,0,ROUND((ROUND(VLOOKUP(N16,รถพ่วงขนส่ง!$M$9:$O$208,2),2)+IF(N16>200,(N16-200)*ข้อมูลขนส่ง!$Y$28,0))*1,2)) -> 0 | P16: =IF(N16=0,0,ROUND(M16+O16,2)) -> 0 | Q16: =IF(C16=0,"",IF(F16<K16,$C$5,$H$5)) -> 
B17: หมายเหตุ | C17: หักระยะทางขนส่งจาก กรุงเทพฯ - อ.ศรีราชา จ.ชลบุรี | H17: =+ข้อมูลขนส่ง!C43 -> 124 | I17: กม. = | J17: =+ข้อมูลขนส่ง!Z43 -> 180.73 | K17: บาท/ตัน | M17: (ใช้ราคาเฉลี่ยน้ำมัน ลิตรละ | P17: =+ข้อมูลขนส่ง!C6 -> 29.5 | Q17: บาท / ลิตร ณ กรุงเทพมหานคร)
B20: หินโม่ | C20: ณ วันที่ | D20: =D4 -> 2020-02-11
B21: ชนิดหิน | C21: โรงโม่ อ.นากลาง จ.หนองบัวลำภู | H21: โรงโม่ อ.นากลาง จ.หนองบัวลำภู | P21: สรุปใช้ | S21: โรงโม่ศิลาวัฒน์ ตำบล สามัคคี อำเภอ น้ำโสม อุดรธานี 41210
C22: ขนส่ง | D22: รถบรรทุก 10 ล้อ + ลากพ่วง | H22: ขนส่ง | I22: รถบรรทุก 10 ล้อ + ลากพ่วง | S22: โรงโม่หินต้อยติ่ง ตำบล อุทัยสวรรค์ อำเภอ นากลาง หนองบัวลำภู 39170
C23: ราคาที่แหล่ง | D23: ระยะทาง | E23: ค่าขนส่ง | F23: รวม | H23: ราคาที่แหล่ง | I23: ระยะทาง | J23: ค่าขนส่ง | K23: รวม | M23: ราคาที่แหล่ง | N23: ระยะทาง | O23: ค่าขนส่ง | P23: รวม | Q23: แหล่งวัสดุ
C24: (บาท) | D24: (กม.) | E24: (บาท) | F24: (บาท/ลบ.ม.) | H24: (บาท) | I24: (กม.) | J24: (บาท) | K24: (บาท/ตัน) | M24: (บาท) | N24: (กม.) | O24: (บาท) | P24: (บาท/ตัน)
B25: หินคลุก | C25: 170 | D25: =ข้อมูลขนส่ง!C51 -> 62 | E25: =IF(D25=0,0,ROUND(IF($D$22=ข้อมูลขนส่ง!$AE$5,(ROUND(VLOOKUP(D25,รถพ่วงขนส่ง!$M$9:$O$208,2),2)+IF(D25>200,(D25-200)*ข้อมูลขนส่ง!$Y$28,0))*1,(ROUND(VLOOKUP(D25,สิบล้อขนส่ง!$M$9:$O$208,2),2)+IF(D25>200,(D25-200)*ข้อมูลขนส่ง!$X$28,0))*1),2)) -> 90.67 | F25: =IF(D25=0,0,ROUND(C25+E25,2)) -> 260.67 | H25: 170 | I25: =ข้อมูลขนส่ง!C51 -> 62 | J25: =IF(I25=0,0,ROUND(IF($I$22=ข้อมูลขนส่ง!$AE$5,(ROUND(VLOOKUP(I25,รถพ่วงขนส่ง!$M$9:$O$208,2),2)+IF(I25>200,(I25-200)*ข้อมูลขนส่ง!$Y$28,0))*1,(ROUND(VLOOKUP(I25,สิบล้อขนส่ง!$M$9:$O$208,2),2)+IF(I25>200,(I25-200)*ข้อมูลขนส่ง!$X$28,0))*1),2)) -> 90.67 | K25: =IF(I25=0,0,ROUND(H25+J25,2)) -> 260.67 | M25: =IF(F25<K25,C25,H25) -> 170 | N25: =IF(F25<K25,D25,I25) -> 62 | O25: =IF(F25<K25,E25,J25) -> 90.67 | P25: =IF(N25=0,0,ROUND(M25+O25,2)) -> 260.67 | Q25: =IF(F25<K25,$C$21,$H$21) -> โรงโม่ อ.นากลาง จ.หนองบัวลำภู
B26: หินฝุ่น | C26: 280 | D26: =D25 -> 62 | E26: =+E25 -> 90.67 | F26: =IF(D26=0,0,ROUND(C26+E26,2)) -> 370.67 | H26: 280 | I26: =I25 -> 62 | J26: 90.67 | K26: =IF(I26=0,0,ROUND(H26+J26,2)) -> 370.67 | M26: 280 | N26: =IF(F26<K26,D26,I26) -> 62 | O26: =IF(F26<K26,E26,J26) -> 90.67 | P26: =IF(N26=0,0,ROUND(M26+O26,2)) -> 370.67 | Q26: =IF(F26<K26,$C$21,$H$21) -> โรงโม่ อ.นากลาง จ.หนองบัวลำภู
B27: หิน 3/8" | C27: 230 | D27: =D26 -> 62 | E27: =+E26 -> 90.67 | F27: 320.67 | H27: 230 | I27: 62 | J27: 90.67 | K27: 320.67 | M27: 230 | N27: 62 | O27: 90.67 | P27: 320.67 | Q27: โรงโม่ อ.นากลาง จ.หนองบัวลำภู
B28: หิน 1/2" | C28: 330 | D28: =D27 -> 62 | E28: 90.67 | F28: 420.67 | H28: 330 | I28: 62 | J28: 90.67 | K28: 420.67 | M28: 330 | N28: 62 | O28: 90.67 | P28: 420.67 | Q28: โรงโม่ อ.นากลาง จ.หนองบัวลำภู
B29: หิน 3/4" | C29: 290 | D29: =D28 -> 62 | E29: 90.67 | F29: 380.67 | H29: 290 | I29: 62 | J29: 90.67 | K29: 380.67 | M29: 290 | N29: 62 | O29: 90.67 | P29: 380.67 | Q29: โรงโม่ อ.นากลาง จ.หนองบัวลำภู
B30: หินใหญ่ | C30: 220 | D30: =D29 -> 62 | E30: 90.67 | F30: 310.67 | H30: 220 | I30: 62 | J30: 90.67 | K30: 310.67 | M30: 220 | N30: 62 | O30: 90.67 | P30: 310.67 | Q30: โรงโม่ อ.นากลาง จ.หนองบัวลำภู
E31: =IF(D31=0,0,ROUND(IF($D$22=ข้อมูลขนส่ง!$AE$5,(ROUND(VLOOKUP(D31,รถพ่วงขนส่ง!$M$9:$O$208,3),2)+IF(D31>200,(D31-200)*ข้อมูลขนส่ง!$Y$28,0))*1,(ROUND(VLOOKUP(D31,สิบล้อขนส่ง!$M$9:$O$208,3),2)+IF(D31>200,(D31-200)*ข้อมูลขนส่ง!$X$28,0))*1),2)) -> 0 | F31: 0 | I31: =IF(H31=0,0,I30) -> 0 | J31: =IF(I31=0,0,J30) -> 0 | K31: 0 | M31: 0 | N31: 0 | O31: 0 | P31: 0 | Q31: =IF(C31=0,"",IF(F31<K31,$C$5,$H$5)) -> 

Sheet ราคาป้าย
D1: ป้ายและเครื่องหมายจราจร
B2: งานติดตั้งป้ายและเครื่องหมายจราจร (ป้ายจราจร 2) | F2: ณ วันที่ | G2: 2016-01-01
C3: รายละเอียด | F3: ราคา | G3: หน่วย
C4: 1 ป้ายจราจร
C5: - แบบ บ1 | E5: (แบบที่ 9) | F5: 4040 | G5: ชุด
C6: - แบบ บ2 | F6: 2380 | G6: ชุด
C7: - แบบ บ3-บ55 | F7: 2660 | G7: ชุด
C8: - แบบ ต1-ต27,ต31-ต60,ต75 | F8: 2840 | G8: ชุด
C9: - แบบ ต28-ต30,ต62 | E9: (แบบที่ 9) | F9: 4040 | G9: ชุด
C10: - แบบ ต61 | E10: (แบบที่ 9) | F10: 4830 | G10: ชุด
C11: - แบบ ต63+ต66 (1 แผ่น) | E11: (แบบที่ 9) | F11: 4550 | G11: ชุด
C12: - แบบ ต63+ต66 (2 แผ่น เสาเดียว) | E12: (แบบที่ 9) | F12: 8540 | G12: ชุด
C13: - แบบ ต64,ต67 | E13: (แบบที่ 9) | F13: 3920 | G13: ชุด
C14: - แบบ ต65,ต68,ต70 | E14: (แบบที่ 9) | F14: 6070 | G14: ชุด
C15: - แบบ ต69 | E15: (แบบที่ 9) | F15: 4940 | G15: ชุด
C16: - แบบ ต71 | E16: (แบบที่ 9) | F16: 3920 | G16: ชุด
C17: - แบบ ต72-ต73 | E17: (แบบที่ 9) | F17: 3920 | G17: ชุด
C18: - แบบ ต74 | F18: 4310 | G18: ชุด
C19: - แบบ ต76 | F19: 2470 | G19: ชุด
C20: - แบบ ต77 | F20: 4240 | G20: ชุด
C21: - แบบ ต78 | F21: 2960 | G21: ชุด
C22: - แบบ บ3 - บ55 + ต1 - ต27, ต31- ต60 | F22: 3490 | G22: ชุด
C23: - แบบ ต1-ต27+ต73,ต31-ต60+ต73 | F23: 4220 | G23: ชุด
C24: - แบบ ต1-ต27+ต74,ต31-ต60+ต74 | F24: 5350 | G24: ชุด
C25: - แบบ ต1-ต27+ต75,ต31-ต60+ต75 | F25: 3670 | G25: ชุด
C26: - แบบ ต1-ต27+ต76,ต31-ต60+ต76 | F26: 3300 | G26: ชุด
C27: - แบบ ต1-ต27+ต77,ต31-ต60+ต77 | F27: 5280 | G27: ชุด
C28: - แบบ ต1-ต27+ต78,ต31-ต60+ต78 | F28: 3790 | G28: ชุด
C29: - ป้าย หมายเลขทางหลวงชนบท (น-1) | F29: 4380 | G29: ชุด
C30: - ป้าย หมายเลขทางหลวงชนบท (น-1/1) | F30: 2900 | G30: ชุด
C31: - ป้าย บอกจุดหมาย ปลายทาง (1-น-2) | F31: 8510 | G31: ชุด
C32: - ป้าย บอกจุดหมาย ปลายทาง (2-น-2) | F32: 13040 | G32: ชุด
C33: - ป้าย บอกจุดหมาย ปลายทาง (3-น-2) | F33: 17690 | G33: ชุด
C34: - ป้าย บอกระยะทาง (1-น-3) | F34: 7920 | G34: ชุด
C35: - ป้าย บอกระยะทาง (2-น-3) | F35: 11860 | G35: ชุด
C36: - ป้าย บอกระยะทาง (3-น-3) | F36: 15920 | G36: ชุด
C37: - ป้าย บอกจุดหมายและระยะทาง (น-4) | F37: 8510 | G37: ชุด
C38: - ป้าย บอกหมู่บ้าน (น-5) | F38: 5000 | G38: ชุด
C39: - ป้าย บอกคลองทางน้ำ (น-6) | F39: 3240 | G39: ชุด
C40: - ป้าย สิ้นสุดสายทาง (น-7) | F40: 3860 | G40: ชุด
C41: - ป้าย ระบุทิศทาง (น-8 ) | F41: 2420 | G41: ชุด
C42: - ป้าย ระบุทิศทาง (นส-1 ถึง นส-14) | F42: 2520 | G42: ชุด
C43: - ป้าย น-1+นส-1 ถึง นส-14 | F43: 5100 | G43: ชุด
C44: - ป้าย น-1/1+นส-1 ถึง นส-14 | F44: 3410 | G44: ชุด
C45: - ป้าย น-1+นส-1 ถึง นส-14 + น-1+นส-1 ถึง นส-14 | F45: 7980 | G45: ชุด
C46: - ป้าย น-1+น-1/1+นส-1 ถึง นส-14 + นส-14 | F46: 5600 | G46: ชุด
C47: - ป้าย น-1+น-1/1(2ชิ้น)+นส-1 ถึง นส-14(3ชิ้น) | F47: 7900 | G47: ชุด
C48: - ป้ายกำหนดน้ำหนักบรรทุก | F48: 9910 | G48: ชุด
C49: 2 งานหลักนำโค้ง หลักกิโลเมตร หลักเขตทาง
C50: - หลักนำโค้ง / หลักตำแหน่งท่อ คสล. | F50: 750 | G50: หลัก
C51: - หลักกิโลเมตร | F51: 2260 | G51: หลัก
C52: - หลักเขตทาง | F52: 340 | G52: หลัก
C53: 3 งานเครื่องหมายจราจรบนผิวทาง
C54: - สีเหลือง กว้าง | F54: 290 | G54: ตร.ม.
C55: - สีขาว กว้าง | F55: 290 | G55: ตร.ม.
C56: - ทางม้าลาย ( 1 แห่ง = 9.0 ตร.ม.) | F56: 2610 | G56: แห่ง
C57: 4 หมุดสะท้อนแสง
C58: - ชนิดทิศทางเดียว | F58: 175 | G58: ชุด
C59: - ชนิดสองทิศทาง | F59: 215 | G59: ชุด
C60: 5 สัญญาณไฟกระพริบ
C61: - สัญญาณไฟกระพริบ | F61: 19000 | G61: ชุด
C62: - สัญญาณไฟกระพริบ + บ1 | F62: 21100 | G62: ชุด
C63: - สัญญาณไฟกระพริบ + ต | F63: 19900 | G63: ชุด
C64: 6 RUMBLE STRIP ( 3 จุด = 1 แห่ง = 7.8 ตร.ม.) | F64: 410 | G64: ตร.ม.
C65: 7 TIMBER BARRICADE | F65: 870 | G65: ม.
C66: 8 GUARD RAIL
C67: - GUARD RAIL (ทางตรง) | F67: 1280 | G67: ม.
C68: - GUARD RAIL (ทางโค้ง) | F68: 1660 | G68: ม.
B70: งานจัดการจราจรระหว่างก่อสร้าง | F70: ณ วันที่ | G70: 2012-08-27
C71: รายละเอียด | F71: เช่าติดตั้ง | H71: ซื้อติดตั้ง
F72: ราคา | G72: หน่วย | H72: ราคา | I72: หน่วย
D73: รูปแบบที่ 1 | F73: 3060 | G73: บาท/เดือน | H73: 1 | I73: บาท/ชุด
D74: รูปแบบที่ 2 | F74: 3830 | G74: บาท/เดือน | H74: 2 | I74: บาท/ชุด
D75: รูปแบบที่ 3 | F75: 4980 | G75: บาท/เดือน | H75: 3 | I75: บาท/ชุด
D76: รูปแบบที่ 4 | F76: 5040 | G76: บาท/เดือน | H76: 4 | I76: บาท/ชุด
D77: รูปแบบที่ 5 | F77: 4610 | G77: บาท/เดือน | H77: 5 | I77: บาท/ชุด
D78: รูปแบบที่ 6 | F78: 5140 | G78: บาท/เดือน | H78: 6 | I78: บาท/ชุด
D79: รูปแบบที่ 7 | F79: 6970 | G79: บาท/เดือน | H79: 7 | I79: บาท/ชุด
D80: รูปแบบที่ 8 | F80: 4630 | G80: บาท/เดือน | H80: 8 | I80: บาท/ชุด
D81: รูปแบบที่ 9 | F81: 9200 | G81: บาท/เดือน | H81: 9 | I81: บาท/ชุด
D82: รูปแบบเฉพาะ | G82: บาท/เดือน | H82: 10 | I82: บาท/ชุด

Sheet ดินตัด-ถม
K1: ="งาน"&ข้อมูลโครงการ!$G$2&" สาย"&ข้อมูลโครงการ!$G$7 -> งานก่อสร้างขยายใหล่ทางคอนกรีตเสริมเหล็ก พร้อมระบบระบายน้ำ 2 ข้างทางตามแบบมาตฐานงานทางสำหรับ อปท สายซอยจันทร์สุวรรณ
K2: =ปร.5!C8 -> บ้านกุดแห่ หมู่ 1 ตำบลกุดแห่ อำเภอนากลาง จังหวัดหนองบัวลำภู จำนวน 1 แห่ง
B4: กรณีระหว่างช่วง กม.หรือสะพานให้เว้น 1 บรรทัด | L4: ช่วง | M4: =BackUp!G3 -> กม.0+000 - กม.0+590 , กม.1+698 - กม.2+098 , กม.2+128 - กม.2+178
B5: ตำแหน่ง (กม.) | C5: พื้นที่หน้าตัด (ตร.ม.) | E5: ปริมาณ (ลบ.ม.) | M5: =BackUp!G4 ->  | R5: =ข้อมูลโครงการ!G7 -> ซอยจันทร์สุวรรณ
K6: กม. | L6: ดินตัด (ตร.ม.) | M6: ดินถม (ตร.ม.) | N6: ดินตัด (ลบ.ม.) | O6: ดินถม (ลบ.ม.) | Q6: กม. | R6: ดินตัด (ตร.ม.) | S6: ดินถม (ตร.ม.) | T6: ดินตัด (ลบ.ม.) | U6: ดินถม (ลบ.ม.)
C7: ดินตัด | D7: ดินถม | E7: ดินตัด | F7: ดินถม
A8: =IF(OR(ISTEXT(B8)=TRUE,B8=""),"",B8) -> 0 | B8: 0 | C8: 1 | D8: 1 | E8: =IF(OR(C8="-",C8=""),0,ROUND(IF(A9="",(($A8-$A7)/2*C8),IF(AND($A9>$A8,$A7=""),($A9-$A8)/2*C8,IF(($A9>$A8),(($A9-$A8)/2*C8)+(($A8-$A7)/2*C8),(($A8-$A7)/2*C8)))),2)) -> 12.5 | F8: =IF(OR(D8="-",D8=""),0,ROUND(IF(A9="",(($A8-$A7)/2*D8),IF(AND($A9>$A8,$A7=""),($A9-$A8)/2*D8,IF(($A9>$A8),(($A9-$A8)/2*D8)+(($A8-$A7)/2*D8),(($A8-$A7)/2*D8)))),2)) -> 12.5 | K8: =IF(B8="","",TEXT(B8,"0+000")) -> 0+000 | L8: =IF(K8="","",C8) -> 1 | M8: =IF(K8="","",D8) -> 1 | N8: =IF(L8="","",E8) -> 12.5 | O8: =IF(M8="","",F8) -> 12.5 | Q8: =IF(B41="","",TEXT(B41,"0+000")) -> 0+825 | R8: =IF(Q8="","",C41) -> 0 | S8: =IF(Q8="","",D41) -> 0 | T8: =IF(R8="","",E41) -> 0 | U8: =IF(S8="","",F41) -> 0
A9: =IF(OR(ISTEXT(B9)=TRUE,B9=""),"",B9) -> 25 | B9: 25 | C9: 1 | D9: 1 | E9: 25 | F9: 25 | K9: 0+025 | L9: 1 | M9: 1 | N9: 25 | O9: 25 | Q9: 0+850 | R9: 0 | S9: 0 | T9: 0 | U9: 0
A10: 50 | B10: 50 | C10: 1 | D10: 1 | E10: 25 | F10: 25 | K10: 0+050 | L10: 1 | M10: 1 | N10: 25 | O10: 25 | Q10: 0+875 | R10: 0 | S10: 0 | T10: 0 | U10: 0
A11: 75 | B11: 75 | C11: 1 | D11: 0.4 | E11: 25 | F11: 10 | K11: 0+075 | L11: 1 | M11: 0.4 | N11: 25 | O11: 10 | Q11: 0+900 | R11: 0 | S11: 0 | T11: 0 | U11: 0
A12: 100 | B12: 100 | C12: 2 | D12: 0.2 | E12: 50 | F12: 5 | K12: 0+100 | L12: 2 | M12: 0.2 | N12: 50 | O12: 5 | Q12: 0+925 | R12: 0 | S12: 0 | T12: 0 | U12: 0
A13: 125 | B13: 125 | C13: 2.1 | D13: 0.3 | E13: 52.5 | F13: 7.5 | K13: 0+125 | L13: 2.1 | M13: 0.3 | N13: 52.5 | O13: 7.5 | Q13: 0+950 | R13: 0 | S13: 0 | T13: 0 | U13: 0
A14: 150 | B14: 150 | C14: 1 | D14: 0.5 | E14: 25 | F14: 12.5 | K14: 0+150 | L14: 1 | M14: 0.5 | N14: 25 | O14: 12.5 | Q14: 0+975 | R14: 0 | S14: 0 | T14: 0 | U14: 0
A15: 175 | B15: 175 | C15: 2 | D15: 0.5 | E15: 50 | F15: 12.5 | K15: 0+175 | L15: 2 | M15: 0.5 | N15: 50 | O15: 12.5 | Q15: 1+000 | R15: 0 | S15: 0 | T15: 0 | U15: 0
A16: 200 | B16: 200 | C16: 2 | D16: 0.5 | E16: 50 | F16: 12.5 | K16: 0+200 | L16: 2 | M16: 0.5 | N16: 50 | O16: 12.5
A17: 225 | B17: 225 | C17: 2 | D17: 0.5 | E17: 50 | F17: 12.5 | K17: 0+225 | L17: 2 | M17: 0.5 | N17: 50 | O17: 12.5
A18: 250 | B18: 250 | C18: 2 | D18: 0.5 | E18: 50 | F18: 12.5 | K18: 0+250 | L18: 2 | M18: 0.5 | N18: 50 | O18: 12.5
A19: 275 | B19: 275 | C19: 1 | D19: 0.5 | E19: 25 | F19: 12.5 | K19: 0+275 | L19: 1 | M19: 0.5 | N19: 25 | O19: 12.5
A20: 300 | B20: 300 | C20: 1.7 | D20: 0.5 | E20: 42.5 | F20: 12.5 | K20: 0+300 | L20: 1.7 | M20: 0.5 | N20: 42.5 | O20: 12.5
A21: 325 | B21: 325 | C21: 2 | D21: 0.5 | E21: 50 | F21: 12.5 | K21: 0+325 | L21: 2 | M21: 0.5 | N21: 50 | O21: 12.5
A22: 350 | B22: 350 | E22: 0 | F22: 0 | K22: 0+350 | L22: 0 | M22: 0 | N22: 0 | O22: 0
A23: 375 | B23: 375 | E23: 0 | F23: 0 | K23: 0+375 | L23: 0 | M23: 0 | N23: 0 | O23: 0
A24: 400 | B24: 400 | E24: 0 | F24: 0 | K24: 0+400 | L24: 0 | M24: 0 | N24: 0 | O24: 0
A25: 425 | B25: 425 | E25: 0 | F25: 0 | K25: 0+425 | L25: 0 | M25: 0 | N25: 0 | O25: 0
A26: 450 | B26: 450 | E26: 0 | F26: 0 | K26: 0+450 | L26: 0 | M26: 0 | N26: 0 | O26: 0
A27: 475 | B27: 475 | E27: 0 | F27: 0 | K27: 0+475 | L27: 0 | M27: 0 | N27: 0 | O27: 0
A28: 500 | B28: 500 | E28: 0 | F28: 0 | K28: 0+500 | L28: 0 | M28: 0 | N28: 0 | O28: 0
A29: 525 | B29: 525 | E29: 0 | F29: 0 | K29: 0+525 | L29: 0 | M29: 0 | N29: 0 | O29: 0
A30: 550 | B30: 550 | E30: 0 | F30: 0 | K30: 0+550 | L30: 0 | M30: 0 | N30: 0 | O30: 0
A31: 575 | B31: 575 | E31: 0 | F31: 0 | K31: 0+575 | L31: 0 | M31: 0 | N31: 0 | O31: 0
A32: 600 | B32: 600 | E32: 0 | F32: 0 | K32: 0+600 | L32: 0 | M32: 0 | N32: 0 | O32: 0
A33: 625 | B33: 625 | E33: 0 | F33: 0 | K33: 0+625 | L33: 0 | M33: 0 | N33: 0 | O33: 0
A34: 650 | B34: 650 | E34: 0 | F34: 0 | K34: 0+650 | L34: 0 | M34: 0 | N34: 0 | O34: 0
A35: 675 | B35: 675 | E35: 0 | F35: 0 | K35: 0+675 | L35: 0 | M35: 0 | N35: 0 | O35: 0
A36: 700 | B36: 700 | E36: 0 | F36: 0 | K36: 0+700 | L36: 0 | M36: 0 | N36: 0 | O36: 0
A37: 725 | B37: 725 | E37: 0 | F37: 0 | K37: 0+725 | L37: 0 | M37: 0 | N37: 0 | O37: 0
A38: 750 | B38: 750 | E38: 0 | F38: 0 | K38: 0+750 | L38: 0 | M38: 0 | N38: 0 | O38: 0
A39: 775 | B39: 775 | E39: 0 | F39: 0 | K39: 0+775 | L39: 0 | M39: 0 | N39: 0 | O39: 0
A40: 800 | B40: 800 | E40: 0 | F40: 0 | K40: 0+800 | L40: 0 | M40: 0 | N40: 0 | O40: 0
A41: 825 | B41: 825 | E41: 0 | F41: 0
A42: 850 | B42: 850 | E42: 0 | F42: 0 | Q42: รวมทั้งสิ้น | R42: =SUM(L8:L40)+SUM(R8:R40) -> 21.8 | S42: =SUM(M8:M40)+SUM(S8:S40) -> 7.9 | T42: =SUM(N8:N40)+SUM(T8:T40) -> 532.5 | U42: =SUM(O8:O40)+SUM(U8:U40) -> 185 | V42: =SUM(N8:O40,T8:U40) -> 717.5
A43: 875 | B43: 875 | E43: 0 | F43: 0 | K43: กม. | L43: ดินตัด (ตร.ม.) | M43: ดินถม (ตร.ม.) | N43: ดินตัด (ลบ.ม.) | O43: ดินถม (ลบ.ม.) | Q43: กม. | R43: ดินตัด (ตร.ม.) | S43: ดินถม (ตร.ม.) | T43: ดินตัด (ลบ.ม.) | U43: ดินถม (ลบ.ม.)
A44: 900 | B44: 900 | E44: 0 | F44: 0
A45: 925 | B45: 925 | E45: 0 | F45: 0 | K45: ยอดยกมา | L45: =+R42 -> 21.8 | M45: =+S42 -> 7.9 | N45: =+T42 -> 532.5 | O45: =+U42 -> 185
A46: 950 | B46: 950 | E46: 0 | F46: 0 | K46: =IF(B74="","",TEXT(B74,"0+000")) ->  | L46: =IF(K46="","",C74) ->  | M46: =IF(K46="","",D74) ->  | N46: =IF(L46="","",E74) ->  | O46: =IF(M46="","",F74) ->  | Q46: =IF(B108="","",TEXT(B108,"0+000")) ->  | R46: =IF(Q46="","",C108) ->  | S46: =IF(Q46="","",D108) ->  | T46: =IF(R46="","",E108) ->  | U46: =IF(S46="","",F108) -> 
A47: 975 | B47: 975 | E47: 0 | F47: 0
A48: 1000 | B48: 1000 | E48: 0 | F48: 0
E49: 0 | F49: 0
E50: 0 | F50: 0
E51: 0 | F51: 0
E52: 0 | F52: 0
E53: 0 | F53: 0
E54: 0 | F54: 0
E55: 0 | F55: 0
E56: 0 | F56: 0
E57: 0 | F57: 0
E58: 0 | F58: 0
E59: 0 | F59: 0
E60: 0 | F60: 0
E61: 0 | F61: 0
E62: 0 | F62: 0
E63: 0 | F63: 0
E64: 0 | F64: 0
E65: 0 | F65: 0
E66: 0 | F66: 0
E67: =IF(OR(C67="-",C67=""),0,ROUND(IF(A68="",(($A67-$A66)/2*C67),IF(AND($A68>$A67,$A66=""),($A68-$A67)/2*C67,IF(($A68>$A67),(($A68-$A67)/2*C67)+(($A67-$A66)/2*C67),(($A67-$A66)/2*C67)))),2)) -> 0 | F67: 0
E68: =IF(OR(C68="-",C68=""),0,ROUND(IF(A69="",(($A68-$A67)/2*C68),IF(AND($A69>$A68,$A67=""),($A69-$A68)/2*C68,IF(($A69>$A68),(($A69-$A68)/2*C68)+(($A68-$A67)/2*C68),(($A68-$A67)/2*C68)))),2)) -> 0 | F68: 0
E69: 0 | F69: 0
E70: 0 | F70: 0
E71: 0 | F71: 0
E72: 0 | F72: =IF(OR(D72="-",D72=""),0,ROUND(IF(A73="",(($A72-$A71)/2*D72),IF(AND($A73>$A72,$A71=""),($A73-$A72)/2*D72,IF(($A73>$A72),(($A73-$A72)/2*D72)+(($A72-$A71)/2*D72),(($A72-$A71)/2*D72)))),2)) -> 0
A73: =IF(OR(ISTEXT(B73)=TRUE,B73=""),"",B73) ->  | E73: 0 | F73: 0
E74: 0 | F74: 0
E75: 0 | F75: 0
E76: 0 | F76: 0
E77: 0 | F77: 0
E78: 0 | F78: =IF(OR(D78="-",D78=""),0,ROUND(IF(A79="",(($A78-$A77)/2*D78),IF(AND($A79>$A78,$A77=""),($A79-$A78)/2*D78,IF(($A79>$A78),(($A79-$A78)/2*D78)+(($A78-$A77)/2*D78),(($A78-$A77)/2*D78)))),2)) -> 0
E79: 0 | F79: 0
E80: 0 | F80: 0
E81: 0 | F81: 0 | Q81: รวมทั้งสิ้น | R81: =SUM(L45:L79)+SUM(R45:R79) -> 21.8 | S81: =SUM(M45:M79)+SUM(S45:S79) -> 7.9 | T81: =SUM(N45:N79)+SUM(T45:T79) -> 532.5 | U81: =SUM(O45:O79)+SUM(U45:U79) -> 185 | V81: =SUM(N46:O79,T46:U79) -> 0
E82: 0 | F82: 0
E83: 0 | F83: 0 | K83: กม. | L83: ดินตัด (ตร.ม.) | M83: ดินถม (ตร.ม.) | N83: ดินตัด (ลบ.ม.) | O83: ดินถม (ลบ.ม.) | Q83: กม. | R83: ดินตัด (ตร.ม.) | S83: ดินถม (ตร.ม.) | T83: ดินตัด (ลบ.ม.) | U83: ดินถม (ลบ.ม.)
E84: 0 | F84: 0
E85: 0 | F85: 0 | K85: ยอดยกมา | L85: =+R81 -> 21.8 | M85: =+S81 -> 7.9 | N85: =+T81 -> 532.5 | O85: =+U81 -> 185
E86: 0 | F86: 0 | K86: =IF(B142="","",TEXT(B142,"0+000")) ->  | L86: =IF(K86="","",C142) ->  | M86: =IF(K86="","",D142) ->  | N86: =IF(L86="","",E142) ->  | O86: =IF(M86="","",F142) ->  | Q86: =IF(B175="","",TEXT(B175,"0+000")) ->  | R86: =IF(Q86="","",C175) ->  | S86: =IF(Q86="","",D175) ->  | T86: =IF(R86="","",E175) ->  | U86: =IF(S86="","",F175) -> 
E87: 0 | F87: 0
E88: 0 | F88: 0
E89: 0 | F89: 0
E90: 0 | F90: 0
E91: 0 | F91: 0
E92: 0 | F92: 0
E93: 0 | F93: 0
E94: 0 | F94: 0
E95: 0 | F95: 0
E96: 0 | F96: 0
E97: 0 | F97: 0
E98: 0 | F98: 0
E99: 0 | F99: 0
E100: 0 | F100: 0
E101: 0 | F101: 0
E102: 0 | F102: 0
E103: 0 | F103: 0
E104: 0 | F104: 0
E105: 0 | F105: 0
E106: 0 | F106: 0
E107: 0 | F107: 0
E108: 0 | F108: 0
E109: 0 | F109: 0
E110: 0 | F110: 0
E111: 0 | F111: 0
E112: 0 | F112: 0
E113: 0 | F113: 0
E114: 0 | F114: 0
E115: 0 | F115: 0
E116: 0 | F116: 0
E117: 0 | F117: 0
E118: 0 | F118: 0
E119: 0 | F119: 0
E120: 0 | F120: 0 | Q120: รวมทั้งสิ้น | R120: =SUM(L84:L118)+SUM(R84:R118) -> 21.8 | S120: =SUM(M84:M118)+SUM(S84:S118) -> 7.9 | T120: =SUM(N84:N118)+SUM(T84:T118) -> 532.5 | U120: =SUM(O84:O118)+SUM(U84:U118) -> 185 | V120: =SUM(N86:O118,T86:U118) -> 0
E121: 0 | F121: 0
E122: 0 | F122: 0 | K122: กม. | L122: ดินตัด (ตร.ม.) | M122: ดินถม (ตร.ม.) | N122: ดินตัด (ลบ.ม.) | O122: ดินถม (ลบ.ม.) | Q122: กม. | R122: ดินตัด (ตร.ม.) | S122: ดินถม (ตร.ม.) | T122: ดินตัด (ลบ.ม.) | U122: ดินถม (ลบ.ม.)
E123: 0 | F123: 0
E124: 0 | F124: 0 | K124: ยอดยกมา | L124: =+R120 -> 21.8 | M124: =+S120 -> 7.9 | N124: =+T120 -> 532.5 | O124: =+U120 -> 185
E125: 0 | F125: 0 | K125: =IF(B208="","",TEXT(B208,"0+000")) ->  | L125: =IF(K125="","",C208) ->  | M125: =IF(K125="","",D208) ->  | N125: =IF(L125="","",E208) ->  | O125: =IF(M125="","",F208) ->  | Q125: =IF(B241="","",TEXT(B241,"0+000")) ->  | R125: =IF(Q125="","",C241) ->  | S125: =IF(Q125="","",D241) ->  | T125: =IF(R125="","",E241) ->  | U125: =IF(S125="","",F241) -> 
E126: 0 | F126: 0
E127: 0 | F127: 0
E128: 0 | F128: 0
E129: 0 | F129: 0
E130: 0 | F130: 0
E131: 0 | F131: 0
E132: =IF(OR(C132="-",C132=""),0,ROUND(IF(A133="",(($A132-$A131)/2*C132),IF(AND($A133>$A132,$A131=""),($A133-$A132)/2*C132,IF(($A133>$A132),(($A133-$A132)/2*C132)+(($A132-$A131)/2*C132),(($A132-$A131)/2*C132)))),2)) -> 0 | F132: 0
E133: 0 | F133: 0
E134: 0 | F134: 0
E135: 0 | F135: 0
E136: 0 | F136: 0
A137: =IF(OR(ISTEXT(B137)=TRUE,B137=""),"",B137) ->  | E137: 0 | F137: 0
E138: 0 | F138: 0
E139: 0 | F139: 0
E140: 0 | F140: 0
E141: 0 | F141: 0
E142: 0 | F142: =IF(OR(D142="-",D142=""),0,ROUND(IF(A143="",(($A142-$A141)/2*D142),IF(AND($A143>$A142,$A141=""),($A143-$A142)/2*D142,IF(($A143>$A142),(($A143-$A142)/2*D142)+(($A142-$A141)/2*D142),(($A142-$A141)/2*D142)))),2)) -> 0
E143: 0 | F143: 0
E144: 0 | F144: 0
E145: 0 | F145: 0
E146: 0 | F146: 0
E147: 0 | F147: 0
E148: 0 | F148: 0
E149: 0 | F149: 0
E150: 0 | F150: 0
E151: 0 | F151: 0
E152: 0 | F152: 0
E153: 0 | F153: 0
E154: 0 | F154: 0
E155: 0 | F155: 0
E156: 0 | F156: 0
E157: 0 | F157: 0
E158: 0 | F158: 0
E159: 0 | F159: 0 | Q159: รวมทั้งสิ้น | R159: =SUM(L123:L157)+SUM(R123:R157) -> 21.8 | S159: =SUM(M123:M157)+SUM(S123:S157) -> 7.9 | T159: =SUM(N123:N157)+SUM(T123:T157) -> 532.5 | U159: =SUM(O123:O157)+SUM(U123:U157) -> 185 | V159: =SUM(N125:O157,T125:U157) -> 0
E160: 0 | F160: 0
E161: 0 | F161: 0 | K161: กม. | L161: ดินตัด (ตร.ม.) | M161: ดินถม (ตร.ม.) | N161: ดินตัด (ลบ.ม.) | O161: ดินถม (ลบ.ม.) | Q161: กม. | R161: ดินตัด (ตร.ม.) | S161: ดินถม (ตร.ม.) | T161: ดินตัด (ลบ.ม.) | U161: ดินถม (ลบ.ม.)
E162: 0 | F162: 0
E163: 0 | F163: 0 | K163: ยอดยกมา | L163: =+R159 -> 21.8 | M163: =+S159 -> 7.9 | N163: =+T159 -> 532.5 | O163: =+U159 -> 185
E164: 0 | F164: 0 | K164: =IF(B274="","",TEXT(B274,"0+000")) ->  | L164: =IF(K164="","",C274) ->  | M164: =IF(K164="","",D274) ->  | N164: =IF(L164="","",E274) ->  | O164: =IF(M164="","",F274) ->  | Q164: =IF(B307="","",TEXT(B307,"0+000")) ->  | R164: =IF(Q164="","",C307) ->  | S164: =IF(Q164="","",D307) ->  | T164: =IF(R164="","",E307) ->  | U164: =IF(S164="","",F307) -> 
E165: 0 | F165: 0
E166: 0 | F166: 0
E167: 0 | F167: 0
E168: 0 | F168: 0
E169: 0 | F169: 0
E170: 0 | F170: 0
E171: 0 | F171: 0
E172: 0 | F172: 0
E173: 0 | F173: 0
E174: 0 | F174: 0
E175: 0 | F175: 0
E176: 0 | F176: 0
E177: 0 | F177: 0
E178: 0 | F178: 0
E179: 0 | F179: 0
E180: 0 | F180: 0
E181: 0 | F181: 0
E182: 0 | F182: 0
E183: 0 | F183: 0
E184: 0 | F184: 0
E185: 0 | F185: 0
E186: 0 | F186: 0
E187: 0 | F187: 0
E188: 0 | F188: 0
E189: 0 | F189: 0
E190: 0 | F190: 0
E191: 0 | F191: 0
E192: 0 | F192: 0
E193: 0 | F193: 0
E194: 0 | F194: 0
E195: 0 | F195: 0
E196: =IF(OR(C196="-",C196=""),0,ROUND(IF(A197="",(($A196-$A195)/2*C196),IF(AND($A197>$A196,$A195=""),($A197-$A196)/2*C196,IF(($A197>$A196),(($A197-$A196)/2*C196)+(($A196-$A195)/2*C196),(($A196-$A195)/2*C196)))),2)) -> 0 | F196: 0
E197: 0 | F197: 0
E198: 0 | F198: 0 | Q198: รวมทั้งสิ้น | R198: =SUM(L162:L196)+SUM(R162:R196) -> 21.8 | S198: =SUM(M162:M196)+SUM(S162:S196) -> 7.9 | T198: =SUM(N162:N196)+SUM(T162:T196) -> 532.5 | U198: =SUM(O162:O196)+SUM(U162:U196) -> 185 | V198: =SUM(N164:O196,T164:U196) -> 0
E199: 0 | F199: 0
E200: 0 | F200: 0 | K200: กม. | L200: ดินตัด (ตร.ม.) | M200: ดินถม (ตร.ม.) | N200: ดินตัด (ลบ.ม.) | O200: ดินถม (ลบ.ม.) | Q200: กม. | R200: ดินตัด (ตร.ม.) | S200: ดินถม (ตร.ม.) | T200: ดินตัด (ลบ.ม.) | U200: ดินถม (ลบ.ม.)
A201: =IF(OR(ISTEXT(B201)=TRUE,B201=""),"",B201) ->  | E201: 0 | F201: 0
... 272 more rows

Sheet BackUp
B1: =+'ดินตัด-ถม'!$K$1 -> งานก่อสร้างขยายใหล่ทางคอนกรีตเสริมเหล็ก พร้อมระบบระบายน้ำ 2 ข้างทางตามแบบมาตฐานงานทางสำหรับ อปท สายซอยจันทร์สุวรรณ | AJ1: .
B2: ='ดินตัด-ถม'!K2 -> บ้านกุดแห่ หมู่ 1 ตำบลกุดแห่ อำเภอนากลาง จังหวัดหนองบัวลำภู จำนวน 1 แห่ง
E3: ="ช่วง" -> ช่วง | G3: =BX127 -> กม.0+000 - กม.0+590 , กม.1+698 - กม.2+098 , กม.2+128 - กม.2+178
G4: =BX128 -> 
B5: สรุปงานรื้อย้ายงานทาง
G6: กว้าง | H6: ระยะทาง | I6: ขุดรื้อผิวลาดยางเดิม | L6: ขุดรื้อผิวคอนกรีตเดิม | N6: หินคลุกเดิม(ขนกอง)
C7: ที่ | D7: ช่วง กม. - กม. | G7: (ม.) | H7: (กม.) | I7: (ตร.ม.) | L7: (ตร.ม.) | N7: (ตร.ม.) | O7: (ลบ.ม.(แน่น)) | Q7: หมายเหตุ
I8: หนา (ม.) | J8: 0.05 | L8: หนา (ม.) | M8: 0.1 | N8: หนา (ม.) | O8: 0.2
C9: =IF(H9=0,0,1) -> 0 | H9: =(F9-D9)/1000 -> 0 | I9: =IF(P9=$BD$10,G9*H9*1000,0) -> 0 | L9: =IF(P9=$BD$11,G9*H9*1000,0) -> 0 | N9: =IF(P9=$BD$12,ROUND(G9*H9*1000,0),0) -> 0 | O9: =IF(N9="","",IF(N9=0,0,ROUND(N9*$O$8,2))) -> 0
C10: =IF(H10=0,0,MAX($C$9:C9)+1) -> 0 | H10: 0 | I10: 0 | L10: 0 | N10: 0 | O10: 0 | BD10: งานรื้อผิวจราจรลาดยางเดิม
C11: =IF(H11=0,0,MAX($C$9:C10)+1) -> 0 | H11: 0 | I11: 0 | L11: 0 | N11: 0 | O11: 0 | BD11: งานรื้อผิวคอนกรีตเดิม(ขนทิ้ง)
C12: =IF(H12=0,0,MAX($C$9:C11)+1) -> 0 | H12: 0 | I12: 0 | L12: 0 | N12: 0 | O12: 0 | BD12: งานรื้อพื้นทางหินคลุกเดิม(ขนกอง)
C13: =IF(H13=0,0,MAX($C$9:C12)+1) -> 0 | H13: 0 | I13: 0 | L13: 0 | N13: 0 | O13: 0
C14: =IF(H14=0,0,MAX($C$9:C13)+1) -> 0 | H14: 0 | I14: 0 | L14: 0 | N14: 0 | O14: 0
C15: =IF(H15=0,0,MAX($C$9:C14)+1) -> 0 | H15: 0 | I15: 0 | L15: 0 | N15: 0 | O15: 0
C16: =IF(H16=0,0,MAX($C$9:C15)+1) -> 0 | H16: 0 | I16: 0 | L16: 0 | N16: 0 | O16: 0
C17: =IF(H17=0,0,MAX($C$9:C16)+1) -> 0 | H17: 0 | I17: 0 | L17: 0 | N17: 0 | O17: 0
C18: =IF(H18=0,0,MAX($C$9:C17)+1) -> 0 | H18: 0 | I18: 0 | L18: 0 | N18: 0 | O18: 0
C19: =IF(H19=0,0,MAX($C$9:C18)+1) -> 0 | H19: 0 | I19: 0 | L19: 0 | N19: 0 | O19: 0
C20: =IF(H20=0,0,MAX($C$9:C19)+1) -> 0 | H20: 0 | I20: 0 | L20: 0 | N20: 0 | O20: 0
H21: =(F21-D21)/1000 -> 0 | I21: 0 | L21: 0 | N21: 0 | O21: =IF(N21="","",IF(N21=0,0,ROUND(N21*$O$8,2))) -> 0
H22: 0 | I22: 0 | L22: 0 | N22: 0 | O22: 0
H23: 0 | I23: 0 | L23: 0 | N23: 0 | O23: 0
H24: 0 | I24: 0 | L24: 0 | N24: 0 | O24: 0
H25: =(F25-D25)/1000 -> 0 | I25: 0 | L25: 0 | N25: 0 | O25: =IF(N25="","",IF(N25=0,0,ROUND(N25*$O$8,2))) -> 0
H26: =(F26-D26)/1000 -> 0 | I26: 0 | L26: 0 | N26: 0 | O26: =IF(N26="","",IF(N26=0,0,ROUND(N26*$O$8,2))) -> 0
H27: 0 | I27: 0 | L27: 0 | N27: 0 | O27: 0
H28: 0 | I28: 0 | L28: 0 | N28: 0 | O28: 0
H29: 0 | I29: 0 | L29: 0 | N29: 0 | O29: 0
C30: =IF(H30=0,0,MAX($C$9:C16)+1) -> 0 | H30: 0 | I30: 0 | L30: 0 | N30: 0 | O30: 0
C31: =IF(H31=0,0,MAX($C$9:C30)+1) -> 0 | H31: 0 | I31: 0 | L31: 0 | N31: 0 | O31: 0
C32: =IF(H32=0,0,MAX($C$9:C31)+1) -> 0 | H32: 0 | I32: 0 | L32: 0 | N32: 0 | O32: 0
C33: =IF(H33=0,0,MAX($C$9:C32)+1) -> 0 | H33: 0 | I33: 0 | L33: 0 | N33: 0 | O33: 0
C34: =IF(H34=0,0,MAX($C$9:C16)+1) -> 0 | H34: 0 | I34: 0 | L34: 0 | N34: 0 | O34: 0
C35: =IF(H35=0,0,MAX($C$9:C34)+1) -> 0 | H35: 0 | I35: 0 | L35: 0 | N35: 0 | O35: 0
C36: =IF(H36=0,0,MAX($C$9:C35)+1) -> 0 | H36: 0 | I36: 0 | L36: 0 | N36: 0 | O36: 0
F37: รวม | H37: =SUM(H9:H36) -> 0 | I37: =SUM(I9:J36) -> 0 | L37: =SUM(L9:M36) -> 0 | N37: =SUM(N9:N36) -> 0 | O37: =SUM(O9:O36) -> 0
B39: สรุปงานรื้อสะพานและท่อลอดเหลี่ยมเดิม
C40: ที่ | D40: ตำแหน่ง (กม.) | F40: ท่อลอดเหลี่ยมเดิม | N40: สะพานเดิม | R40: หมายเหตุ | BD40: ท่อลอดเหลี่ยม | BJ40: สะพาน
F41: ช่อง | G41: - | H41: กว้าง | I41: x | J41: สูง | L41: x | M41: ยาว | N41: กว้าง | O41: x | P41: ยาว | BD41: กว้าง | BE41: สูง | BF41: หูช้าง | BI41: รวม | BJ41: พื้น | BK41: อื่นๆ | BL41: รวม
C42: =IF(SUM(D42:E42)=0,0,1) -> 0 | BD42: =H42*2*F42*M42*0.25 -> 0 | BE42: =J42*(F42+1)*M42*0.25 -> 0 | BF42: =(H42+J42)/2-H42*0.1 -> 0 | BG42: =J42*1.5 -> 0 | BH42: =((F42*H42+(BF42-H42/2))*BG42*0.25*2)+(J42*0.9*BG42*0.25*4) -> 0 | BI42: =BD42+BE42+BH42 -> 0 | BJ42: =(N42+1)*P42*0.5 -> 0 | BK42: =BJ42*0.5 -> 0 | BL42: =BJ42+BK42 -> 0
C43: =IF(SUM(D43:E43)=0,0,MAX($C$42:C42)+1) -> 0 | BD43: =H43*2*F43*M43*0.25 -> 0 | BE43: =J43*(F43+1)*M43*0.25 -> 0 | BF43: =(H43+J43)/2-H43*0.1 -> 0 | BG43: =J43*1.5 -> 0 | BH43: =((F43*H43+(BF43-H43/2))*BG43*0.25*2)+(J43*0.9*BG43*0.25*4) -> 0 | BI43: 0 | BJ43: =(N43+1)*P43*0.5 -> 0 | BK43: 0 | BL43: 0
C44: =IF(SUM(D44:E44)=0,0,MAX($C$42:C43)+1) -> 0 | BD44: =H44*2*F44*M44*0.25 -> 0 | BE44: =J44*(F44+1)*M44*0.25 -> 0 | BF44: =(H44+J44)/2-H44*0.1 -> 0 | BG44: =J44*1.5 -> 0 | BH44: =((F44*H44+(BF44-H44/2))*BG44*0.25*2)+(J44*0.9*BG44*0.25*4) -> 0 | BI44: 0 | BJ44: =(N44+1)*P44*0.5 -> 0 | BK44: 0 | BL44: 0
C45: =IF(SUM(D45:E45)=0,0,MAX($C$42:C44)+1) -> 0 | BD45: =H45*2*F45*M45*0.25 -> 0 | BE45: =J45*(F45+1)*M45*0.25 -> 0 | BF45: =(H45+J45)/2-H45*0.1 -> 0 | BG45: =J45*1.5 -> 0 | BH45: =((F45*H45+(BF45-H45/2))*BG45*0.25*2)+(J45*0.9*BG45*0.25*4) -> 0 | BI45: 0 | BJ45: =(N45+1)*P45*0.5 -> 0 | BK45: 0 | BL45: 0
C46: =IF(SUM(D46:E46)=0,0,MAX($C$42:C45)+1) -> 0 | BD46: =H46*2*F46*M46*0.25 -> 0 | BE46: =J46*(F46+1)*M46*0.25 -> 0 | BF46: =(H46+J46)/2-H46*0.1 -> 0 | BG46: =J46*1.5 -> 0 | BH46: =((F46*H46+(BF46-H46/2))*BG46*0.25*2)+(J46*0.9*BG46*0.25*4) -> 0 | BI46: 0 | BJ46: =(N46+1)*P46*0.5 -> 0 | BK46: 0 | BL46: 0
C48: =IF(SUM(D48:E48)=0,0,MAX($C$42:C46)+1) -> 0 | BD48: =H48*2*F48*M48*0.25 -> 0 | BE48: =J48*(F48+1)*M48*0.25 -> 0 | BF48: =(H48+J48)/2-H48*0.1 -> 0 | BG48: =J48*1.5 -> 0 | BH48: =((F48*H48+(BF48-H48/2))*BG48*0.25*2)+(J48*0.9*BG48*0.25*4) -> 0 | BI48: 0 | BJ48: =(N48+1)*P48*0.5 -> 0 | BK48: 0 | BL48: 0
C49: =IF(SUM(D49:E49)=0,0,MAX($C$42:C48)+1) -> 0 | BD49: =H49*2*F49*M49*0.25 -> 0 | BE49: =J49*(F49+1)*M49*0.25 -> 0 | BF49: =(H49+J49)/2-H49*0.1 -> 0 | BG49: =J49*1.5 -> 0 | BH49: =((F49*H49+(BF49-H49/2))*BG49*0.25*2)+(J49*0.9*BG49*0.25*4) -> 0 | BI49: 0 | BJ49: =(N49+1)*P49*0.5 -> 0 | BK49: 0 | BL49: 0
C50: =IF(SUM(D50:E50)=0,0,MAX($C$42:C49)+1) -> 0 | BD50: =H50*2*F50*M50*0.25 -> 0 | BE50: =J50*(F50+1)*M50*0.25 -> 0 | BF50: =(H50+J50)/2-H50*0.1 -> 0 | BG50: =J50*1.5 -> 0 | BH50: =((F50*H50+(BF50-H50/2))*BG50*0.25*2)+(J50*0.9*BG50*0.25*4) -> 0 | BI50: 0 | BJ50: =(N50+1)*P50*0.5 -> 0 | BK50: 0 | BL50: 0
BH51: รวม | BI51: =SUM(BI42:BI50) -> 0 | BL51: =SUM(BL42:BL50) -> 0
B52: สรุปงานกรุยทางถางป่า | I52: ขนาดกลาง
B53: ที่ | D53: ตำแหน่ง (กม.-กม.) | F53: กรุยทางถางป่า (ม.) | H53: ระยะทาง | I53: กรุยทางถางป่า | L53: ที่ | N53: ตำแหน่ง (กม.-กม.) | P53: กรุยทางถางป่า (ม.) | R53: ระยะทาง | S53: เกลี่ยปรับแต่ง
F54: LT | G54: RT | H54: (กม.) | I54: (ตร.ม.) | P54: LT | Q54: RT | R54: (กม.) | S54: คันทางเดิม (ตร.ม.)
B55: =IF(H55=0,0,1) -> 0 | D55: =IF(AND(C55<=0,E55<=0),"","-") ->  | F55: 2 | G55: 2 | H55: =(E55-C55)/1000 -> 0 | I55: =(F55+G55)*H55*1000 -> 0 | L55: =IF(R55=0,0,MAX($B55:B$70)+1) -> 0 | N55: - | R55: =(O55-M55)/1000 -> 0 | S55: =(P55+Q55)*R55*1000 -> 0
B56: =IF(H56=0,0,MAX($B$55:B55)+1) -> 0 | H56: =(E56-C56)/1000 -> 0 | I56: =(F56+G56)*H56*1000 -> 0 | L56: =IF(P56=0,0,MAX($L$55:L55)+1) -> 0 | N56: =IF(AND(M56<=0,O56<=0),"","-") ->  | R56: =(O56-M56)/1000 -> 0 | S56: =(P56+Q56)*R56*1000 -> 0
B57: =IF(H57=0,0,MAX($B$55:B56)+1) -> 0 | H57: =(E57-C57)/1000 -> 0 | I57: =(F57+G57)*H57*1000 -> 0 | L57: =IF(P57=0,0,MAX($L$55:L56)+1) -> 0 | N57: =IF(AND(M57<=0,O57<=0),"","-") ->  | R57: =(O57-M57)/1000 -> 0 | S57: =(P57+Q57)*R57*1000 -> 0
B58: =IF(H58=0,0,MAX($B$55:B57)+1) -> 0 | D58: =IF(AND(C58<=0,E58<=0),"","-") ->  | H58: 0 | I58: =(F58+G58)*H58*1000 -> 0 | L58: =IF(P58=0,0,MAX($L$55:L57)+1) -> 0 | R58: 0 | S58: =(P58+Q58)*R58*1000 -> 0
B59: =IF(H59=0,0,MAX($B$55:B58)+1) -> 0 | H59: 0 | I59: 0 | L59: =IF(P59=0,0,MAX($L$55:L58)+1) -> 0 | R59: 0 | S59: 0
B60: =IF(H60=0,0,MAX($B$55:B59)+1) -> 0 | H60: 0 | I60: 0 | L60: =IF(P60=0,0,MAX($L$55:L59)+1) -> 0 | R60: 0 | S60: 0
B61: =IF(H61=0,0,MAX($B$55:B60)+1) -> 0 | H61: 0 | I61: 0 | L61: =IF(P61=0,0,MAX($L$55:L60)+1) -> 0 | R61: 0 | S61: 0
B62: =IF(H62=0,0,MAX($B$55:B61)+1) -> 0 | H62: 0 | I62: 0 | L62: =IF(P62=0,0,MAX($L$55:L61)+1) -> 0 | R62: 0 | S62: 0
B63: =IF(H63=0,0,MAX($B$55:B62)+1) -> 0 | H63: 0 | I63: 0 | L63: =IF(P63=0,0,MAX($L$55:L62)+1) -> 0 | R63: 0 | S63: 0
B64: =IF(H64=0,0,MAX($B$55:B63)+1) -> 0 | H64: 0 | I64: 0 | L64: =IF(P64=0,0,MAX($L$55:L63)+1) -> 0 | R64: 0 | S64: 0
B65: =IF(H65=0,0,MAX($B$55:B64)+1) -> 0 | H65: 0 | I65: 0 | L65: =IF(P65=0,0,MAX($L$55:L64)+1) -> 0 | R65: 0 | S65: 0
B66: =IF(H66=0,0,MAX($B$55:B65)+1) -> 0 | H66: 0 | I66: 0 | L66: =IF(P66=0,0,MAX($L$55:L65)+1) -> 0 | R66: 0 | S66: 0
B67: =IF(H67=0,0,MAX($B$55:B66)+1) -> 0 | H67: 0 | I67: 0 | L67: =IF(P67=0,0,MAX($L$55:L66)+1) -> 0 | R67: 0 | S67: 0
B68: =IF(H68=0,0,MAX($B$55:B67)+1) -> 0 | H68: 0 | I68: 0 | L68: =IF(P68=0,0,MAX($L$55:L67)+1) -> 0 | R68: 0 | S68: 0
B69: =IF(H69=0,0,MAX($B$55:B68)+1) -> 0 | H69: 0 | I69: 0 | L69: =IF(P69=0,0,MAX($L$55:L68)+1) -> 0 | R69: 0 | S69: 0
B70: =IF(H70=0,0,MAX($B$55:B69)+1) -> 0 | H70: 0 | I70: 0 | L70: =IF(P70=0,0,MAX($L$55:L69)+1) -> 0 | R70: 0 | S70: 0
P71: รวม | R71: =SUM(H55:H70)+SUM(R55:R70) -> 0 | S71: =SUM(I55:J70,S55:T70) -> 0
B72: สรุปงานเกลี่ยปรับแต่ง
B73: ที่ | D73: ตำแหน่ง (กม.-กม.) | F73: เกลี่ยแต่งคันทางเดิม(ม.) | H73: ระยะทาง | I73: เกลี่ยปรับแต่ง | L73: ที่ | N73: ตำแหน่ง (กม.-กม.) | P73: เกลี่ยแต่งคันทางเดิม(ม.) | R73: ระยะทาง | S73: เกลี่ยปรับแต่ง | BD73: ลูกรัง หนา
F74: หินคลุก หนา | G74: 0.1 | H74: (กม.) | I74: คันทางเดิม (ตร.ม.) | P74: =F74 -> หินคลุก หนา | Q74: =G74 -> 0.1 | R74: (กม.) | S74: คันทางเดิม (ตร.ม.) | BD74: หินคลุก หนา
B75: =IF(H75=0,0,MAX($B74:B$74)+1) -> 0 | D75: =IF(AND(C75<=0,E75<=0),"","-") ->  | F75: 8 | H75: =(E75-C75)/1000 -> 0 | I75: =F75*H75*1000 -> 0 | L75: =IF(R75=0,0,MAX($B$75:$B$100,$L$74:L74)+1) -> 0 | N75: =IF(AND(M75<=0,O75<=0),"","-") ->  | R75: =(O75-M75)/1000 -> 0 | S75: =P75*R75*1000 -> 0
B76: =IF(H76=0,0,MAX($B$74:B75)+1) -> 0 | H76: =(E76-C76)/1000 -> 0 | I76: 0 | L76: =IF(R76=0,0,MAX($B$75:$B$100,$L$74:L75)+1) -> 0 | R76: 0 | S76: 0
B77: =IF(H77=0,0,MAX($B$74:B76)+1) -> 0 | H77: 0 | I77: 0 | L77: =IF(R77=0,0,MAX($B$75:$B$100,$L$74:L76)+1) -> 0 | R77: 0 | S77: 0
B78: =IF(H78=0,0,MAX($B$74:B77)+1) -> 0 | H78: 0 | I78: 0 | L78: =IF(R78=0,0,MAX($B$75:$B$100,$L$74:L77)+1) -> 0 | R78: 0 | S78: 0
B79: =IF(H79=0,0,MAX($B$74:B78)+1) -> 0 | H79: 0 | I79: 0 | L79: =IF(R79=0,0,MAX($B$75:$B$100,$L$74:L78)+1) -> 0 | R79: 0 | S79: 0
B80: =IF(H80=0,0,MAX($B$74:B79)+1) -> 0 | H80: 0 | I80: 0 | L80: =IF(R80=0,0,MAX($B$75:$B$100,$L$74:L79)+1) -> 0 | R80: =(O80-M80)/1000 -> 0 | S80: =P80*R80*1000 -> 0
B81: =IF(H81=0,0,MAX($B$74:B80)+1) -> 0 | H81: 0 | I81: =F81*H81*1000 -> 0 | L81: =IF(R81=0,0,MAX($B$75:$B$100,$L$74:L80)+1) -> 0 | R81: 0 | S81: 0
B82: =IF(H82=0,0,MAX($B$74:B81)+1) -> 0 | H82: 0 | I82: 0 | L82: =IF(R82=0,0,MAX($B$75:$B$100,$L$74:L81)+1) -> 0 | R82: 0 | S82: 0
B83: =IF(H83=0,0,MAX($B$74:B82)+1) -> 0 | H83: 0 | I83: 0 | L83: =IF(R83=0,0,MAX($B$75:$B$100,$L$74:L82)+1) -> 0 | R83: 0 | S83: 0
B84: =IF(H84=0,0,MAX($B$74:B83)+1) -> 0 | H84: 0 | I84: 0 | L84: =IF(R84=0,0,MAX($B$75:$B$100,$L$74:L83)+1) -> 0 | R84: 0 | S84: 0
B85: =IF(H85=0,0,MAX($B$74:B84)+1) -> 0 | H85: 0 | I85: 0 | L85: =IF(R85=0,0,MAX($B$75:$B$100,$L$74:L84)+1) -> 0 | R85: 0 | S85: 0
B86: =IF(H86=0,0,MAX($B$74:B85)+1) -> 0 | H86: 0 | I86: 0 | L86: =IF(R86=0,0,MAX($B$75:$B$100,$L$74:L85)+1) -> 0 | R86: 0 | S86: 0
B87: =IF(H87=0,0,MAX($B$74:B86)+1) -> 0 | H87: 0 | I87: 0 | L87: =IF(R87=0,0,MAX($B$75:$B$100,$L$74:L86)+1) -> 0 | R87: 0 | S87: 0
B88: =IF(H88=0,0,MAX($B$74:B87)+1) -> 0 | H88: 0 | I88: 0 | L88: =IF(R88=0,0,MAX($B$75:$B$100,$L$74:L87)+1) -> 0 | R88: 0 | S88: 0
B89: =IF(H89=0,0,MAX($B$74:B88)+1) -> 0 | H89: 0 | I89: 0 | L89: =IF(R89=0,0,MAX($B$75:$B$100,$L$74:L88)+1) -> 0 | R89: 0 | S89: 0
B90: =IF(H90=0,0,MAX($B$74:B89)+1) -> 0 | H90: 0 | I90: 0 | L90: =IF(R90=0,0,MAX($B$75:$B$100,$L$74:L89)+1) -> 0 | R90: 0 | S90: 0
B91: =IF(H91=0,0,MAX($B$74:B90)+1) -> 0 | H91: 0 | I91: 0 | L91: =IF(R91=0,0,MAX($B$75:$B$100,$L$74:L90)+1) -> 0 | R91: 0 | S91: 0
B92: =IF(H92=0,0,MAX($B$74:B91)+1) -> 0 | H92: 0 | I92: 0 | L92: =IF(R92=0,0,MAX($B$75:$B$100,$L$74:L91)+1) -> 0 | R92: 0 | S92: 0
B93: =IF(H93=0,0,MAX($B$74:B92)+1) -> 0 | H93: 0 | I93: 0 | L93: =IF(R93=0,0,MAX($B$75:$B$100,$L$74:L92)+1) -> 0 | R93: 0 | S93: 0
B94: =IF(H94=0,0,MAX($B$74:B93)+1) -> 0 | H94: 0 | I94: 0 | L94: =IF(R94=0,0,MAX($B$75:$B$100,$L$74:L93)+1) -> 0 | N94: =IF(AND(M94<=0,O94<=0),"","-") ->  | R94: 0 | S94: 0
B95: =IF(H95=0,0,MAX($B$74:B94)+1) -> 0 | H95: 0 | I95: 0 | L95: =IF(R95=0,0,MAX($B$75:$B$100,$L$74:L94)+1) -> 0 | R95: 0 | S95: 0
B96: =IF(H96=0,0,MAX($B$74:B95)+1) -> 0 | H96: 0 | I96: 0 | L96: =IF(R96=0,0,MAX($B$75:$B$100,$L$74:L95)+1) -> 0 | R96: 0 | S96: 0
B97: =IF(H97=0,0,MAX($B$74:B96)+1) -> 0 | H97: 0 | I97: 0 | L97: =IF(R97=0,0,MAX($B$75:$B$100,$L$74:L96)+1) -> 0 | R97: 0 | S97: 0
B98: =IF(H98=0,0,MAX($B$74:B97)+1) -> 0 | H98: 0 | I98: 0 | L98: =IF(R98=0,0,MAX($B$75:$B$100,$L$74:L97)+1) -> 0 | R98: 0 | S98: 0
B99: =IF(H99=0,0,MAX($B$74:B98)+1) -> 0 | H99: 0 | I99: 0 | L99: =IF(R99=0,0,MAX($B$75:$B$100,$L$74:L98)+1) -> 0 | R99: 0 | S99: 0
B100: =IF(H100=0,0,MAX($B$74:B99)+1) -> 0 | H100: 0 | I100: 0 | L100: =IF(R100=0,0,MAX($B$75:$B$100,$L$74:L99)+1) -> 0 | R100: 0 | S100: 0
O101: รวม | R101: =SUM(H75:H100,R75:R100) -> 0 | S101: =SUM(I75:J100,S75:T100) -> 0
B103: สรุปงานดินตัดและดินถม
D104: ปริมาณดินตัด | G104: ปริมาณดินถม (ลบ.ม.)
D105: (ลบ.ม.) | G105: จากดินตัด | I105: 0.5 | J105: จากนอกโครงการ | N105: รวม
D106: =ROUND('ดินตัด-ถม'!T276+'ดินตัด-ถม'!S300,2) -> 532.5 | G106: =ROUND(IF(ROUND(D106*I105,0)>N106,N106,ROUND(D106*I105,0)),2) -> 185 | J106: =ROUND(IF(G106>N106,0,N106-G106),2) -> 0 | N106: =ROUND('ดินตัด-ถม'!U276+'ดินตัด-ถม'!T300,2) -> 185
B107: สรุปงานปรับปรุงโครงสร้างถนนเดิม
D108: ที่ | F108: ตำแหน่ง (กม.-กม.) | H108: ปรับปรุงโครงสร้างถนนเดิม Deep Patch | N108: หมายเหตุ
H109: (ตร.ม.)
D110: =IF(H110=0,0,1) -> 0
D111: =IF(H111=0,0,MAX($D110:D$110)+1) -> 0
D112: =IF(H112=0,0,MAX($D$110:D111)+1) -> 0
D113: =IF(H113=0,0,MAX($D$110:D112)+1) -> 0
D114: =IF(H114=0,0,MAX($D$110:D113)+1) -> 0
D115: =IF(H115=0,0,MAX($D$110:D114)+1) -> 0
D116: =IF(H116=0,0,MAX($D$110:D115)+1) -> 0
F117: รวม | I117: =SUM(H110:L116) -> 0
B118: สรุปงานก่อสร้างสะพานและท่อลอดเหลี่ยม
D119: ที่ | F119: ตำแหน่ง (กม.-กม.) | H119: รายละเอียด | N119: หลักตำแหน่งท่อ | P119: หมายเหตุ
D120: =IF(E120=0,0,1) -> 0
D121: =IF(E121=0,0,MAX($D$120:D120)+1) -> 0
D122: =IF(E122=0,0,MAX($D$120:D121)+1) -> 0
D123: =IF(E123=0,0,MAX($D$120:D122)+1) -> 0
D124: =IF(E124=0,0,MAX($D$120:D123)+1) -> 0
N125: =SUM(N120:O124) -> 0
B126: สรุปผิวจราจรและไหล่ทาง | BJ126: ผิวทาง | BM126: ไหล่ทาง
C127: ตำแหน่ง (กม.-กม.) | E127: ความกว้าง | I127: ระยะทาง | J127: ก่อสร้าง | M127: Recycling พร้อมปูผิว | O127: เสริมผิว AC | Q127: ชนิด/ประเภท | BJ127: ลาดยาง | BP127: Expansion Joint | BQ127: Contraction Joint | BR127: Longitudinal Joint | BS127: Expansion Joint | BT127: Contraction Joint | BU127: Longitudinal Joint | BX127: =IF(AND(CD129="",CD133<>""),CD133,IF(CD133="",CD129&" "&CD137,CD129)) -> กม.0+000 - กม.0+590 , กม.1+698 - กม.2+098 , กม.2+128 - กม.2+178 | CS127: ก่อสร้าง | CV127: ก่อสร้าง คสล. | CY127: Recycling | DB127: ก่อสร้าง + Recycling | DE127: เสริมผิว AC | DH127: หินคลุก | DL127: ลูกรัง | DP127: Approach Slab | DS127: เช็ค Approach
E128: ผิวทาง | G128: ไหล่ทางข้างละ | J128: พ.ท.ผิวทาง | L128: พ.ท.ไหล่ทาง | M128: พ.ท.ผิวทาง | N128: พ.ท.ไหล่ทาง | O128: พ.ท.ผิวทาง | P128: พ.ท.ไหล่ทาง | Q128: ผิวทาง | S128: ไหล่ทาง | BJ128: คสล. | BP128: 200 | BQ128: 10 | BS128: 200 | BT128: 10 | BU128: ไม่คิดงาน | BX128: =IF(AND(CD129="",CD133<>""),"",IF(CD133="","",CD133&" "&CD137)) ->  | CB128: ระยะทาง | CS128: ผิว | CT128: ไหล่ | CU128: ระยะ | CV128: ผิว | CW128: ไหล่ | CX128: ระยะ | CY128: ผิว | CZ128: ไหล่ | DA128: ระยะ | DB128: ผิว | DC128: ไหล่ | DD128: ระยะ | DE128: ผิว | DF128: ไหล่ | DG128: ระยะ | DH128: ผิว | DI128: ไหล่ | DJ128: ระยะทำผิว | DK128: ระยะทำไหล่ | DL128: ผิว | DM128: ไหล่ | DN128: ระยะทำผิว | DO128: ระยะทำไหล่ | DP128: ระยะ | DQ128: พท. | DR128: จำนวน | DT128: พท. | DU128: ระยะ
B129: 0 | C129: =IF(AND(B129<=0,D129<=0),"","-") -> - | D129: 590 | E129: 6 | G129: 1 | I129: =IF(AND(SUM(B129:D129)=0,SUM(E129:H129)<>0),I128,(D129-B129)/1000) -> 0.59 | J129: =IF(OR(Q129=$BJ$127,Q129=$BJ$128,Q129=$BJ$130,Q129=$BJ$132,Q129=$BJ$133),IF(F129="",(I129*1000*E129),(I129*1000*(E129+F129)*0.5)),0) -> 3540 | L129: =IF(OR(S129=$BJ$127,S129=$BJ$128,S129=$BJ$130,S129=$BJ$132,S129=$BJ$133),IF(H129="",(I129*1000*G129*2),(I129*1000*(G129+H129)*0.5*2)),0) -> 1180 | M129: =IF(OR(Q129=$BJ$129,Q129=$BJ$130),IF(F129="",(I129*1000*E129),(I129*1000*(E129+F129)*0.5)),0) -> 0 | N129: =IF(OR(S129=$BJ$129,S129=$BJ$130),IF(H129="",(I129*1000*G129*2),(I129*1000*(G129+H129)*0.5*2)),0) -> 0 | O129: =IF(Q129=$BJ$131,IF(F129="",(I129*1000*E129),(I129*1000*(E129+F129)*0.5)),0) -> 0 | P129: =IF(S129=$BJ$131,IF(H129="",(I129*1000*G129*2),(I129*1000*(G129+H129)*0.5*2)),0) -> 0 | Q129: คสล. | S129: คสล. | BD129: =IF(OR(Q129=$BE$127,Q129=$BE$129),I129,0) -> 0 | BJ129: Recycling | BO129: =IF(AND(Q129=$BJ$128,S129=$BJ$128),(IF(F129=0,E129,(E129+F129)/2))+(IF(H129=0,G129,(G129+H129)/2)),IF(AND(Q129=$BJ$128,S129<>$BJ$128),(IF(F129=0,E129,(E129+F129)/2)),IF(AND(Q129<>$BJ$128,S129=$BJ$128),(IF(H129=0,G129,(G129+H129)/2)),0))) -> 7 | BP129: =IF(Q129<>$BJ$128,0,ROUND(I129*1000/BQ128,0)-1) -> 58 | BQ129: =IF(I129=0,0,ROUNDDOWN((ROUNDUP(I129*1000/$BQ$128,0)-1)*E129-BP129,0)) -> 290 | BR129: =I129*1000 -> 590 | BS129: =IF(I129=0,0,ROUNDDOWN(IF(BR130<>0,(ROUNDUP(I129*1000/$BP$128,0)*G129*2),((ROUNDUP(I129*1000/$BP$128,0)-1)*G129*2)),0)) -> 6 | BT129: =IF(I129=0,0,ROUNDDOWN((ROUNDUP(I129*1000/$BQ$128,0)-1)*(G129*2)-BP129,0)) -> 58 | BU129: =IF($BU$128="คิดงาน",I129*1000,0) -> 0 | BX129: =IF(CO129="","","กม."&TEXT(CO129,"0+000")&" - กม."&TEXT(CQ129,"0+000")) -> กม.0+000 - กม.0+590 | CA129: =IF(CQ129=MAX($CM$129:$CM$152),"",IF(BX129="",""," , ")) -> , | CB129: =I129 -> 0.59 | CD129: =BX129&CA129&BX130&CA130&BX131&CA131&BX132&CA132 -> กม.0+000 - กม.0+590 , กม.1+698 - กม.2+098 , กม.2+128 - กม.2+178 | CF129: =CN129 -> 0 | CG129: =IF(B129="","",B129) -> 0 | CH129: - | CI129: =IF(D129="","",D129) -> 590 | CK129: =CG129 -> 0 | CL129: - | CM129: =IF(MAX($CI$128:CI128)=CI129,"",IF(AND(CG130<>"",CJ130=0),"",CI129)) -> 590 | CN129: =IF(AND(CK129<>"",CM129<>""),0,CN128+1) -> 0 | CO129: =IF(CR129=1,MAX($CK$129:CK129),"") -> 0 | CP129: - | CQ129: =IF(CR129=1,CM129,"") -> 590 | CR129: =TYPE(CM129) -> 1 | CS129: =IF(Q129=$BJ$127,J129,0) -> 0 | CT129: =IF(S129=$BJ$127,L129,0) -> 0 | CU129: =IF(CS129+CT129=0,0,IF(AND(CS129<>0,CT129<>0),$I129,IF(AND(CT129=0,$G129+$H129=0),$I129,IF(AND(CT129=0,$G129+$H129<>0),0,$I129)))) -> 0 | CV129: =IF(Q129=$BJ$128,J129,0) -> 3540 | CW129: =IF(S129=$BJ$128,L129,0) -> 1180 | CX129: =IF(CV129+CW129=0,0,IF(AND(CV129<>0,CW129<>0),$I129,IF(AND(CW129=0,$G129+$H129=0),$I129,IF(AND(CW129=0,$G129+$H129<>0),0,$I129)))) -> 0.59 | CY129: =IF(Q129=$BJ$129,M129,0) -> 0 | CZ129: =IF(S129=$BJ$129,N129,0) -> 0 | DA129: =IF(CY129+CZ129=0,0,IF(AND(CY129<>0,CZ129<>0),$I129,IF(AND(CZ129=0,$G129+$H129=0),$I129,IF(AND(CZ129=0,$G129+$H129<>0),0,$I129)))) -> 0 | DB129: =IF(Q129=$BJ$130,M129,0) -> 0 | DC129: =IF(S129=$BJ$130,N129,0) -> 0 | DD129: =IF(DB129+DC129=0,0,IF(AND(DB129<>0,DC129<>0),$I129,IF(AND(DC129=0,$G129+$H129=0),$I129,IF(AND(DC129=0,$G129+$H129<>0),0,$I129)))) -> 0 | DE129: =O129 -> 0 | DF129: =P129 -> 0 | DG129: =IF(DE129+DF129=0,0,IF(AND(DE129<>0,DF129<>0),$I129,IF(AND(DF129=0,$G129+$H129=0),$I129,IF(AND(DF129=0,$G129+$H129<>0),0,$I129)))) -> 0 | DH129: =IF(Q129=$BJ$132,J129,0) -> 0 | DI129: =IF(S129=$BJ$132,L129,0) -> 0 | DJ129: =IF(DH129=0,0,I129) -> 0 | DK129: =IF(DI129=0,0,I129) -> 0 | DL129: =IF(Q129=$BJ$133,J129,0) -> 0 | DM129: =IF(S129=$BJ$133,L129,0) -> 0 | DN129: =IF(DL129=0,0,I129) -> 0 | DO129: =IF(DM129=0,0,I129) -> 0 | DP129: =IF(Q129=$BJ$135,I129*1000,0) -> 0 | DQ129: =IF(Q129=$BJ$135,E129*I129*1000-(E129*I129*1000)/DP129*0.2,0) -> 0 | DR129: =IF(DP129=0,0,1) -> 0 | DS129: =IF(OR(AND(D128=B129,Q129=$BJ$135,Q128=$BJ$133),AND(D129=B130,Q129=$BJ$135,Q130=$BJ$133)),1,0) -> 0 | DT129: =IF(DS129=0,0,DQ129) -> 0 | DU129: =IF(DS129=0,0,DP129) -> 0
B130: 1698 | C130: =IF(AND(B130<=0,D130<=0),"","-") -> - | D130: 2098 | I130: =IF(AND(SUM(B130:D130)=0,SUM(E130:H130)<>0),I129,(D130-B130)/1000) -> 0.4 | J130: 0 | L130: 0 | M130: 0 | N130: =IF(OR(S130=$BJ$129,S130=$BJ$130),IF(H130="",(I130*1000*G130*2),(I130*1000*(G130+H130)*0.5*2)),0) -> 0 | O130: 0 | P130: =IF(S130=$BJ$131,IF(H130="",(I130*1000*G130*2),(I130*1000*(G130+H130)*0.5*2)),0) -> 0 | BD130: 0.4 | BJ130: ก่อสร้าง&Recycling | BO130: 0 | BP130: =IF(I130=0,0,ROUNDDOWN(IF(BR131<>0,(ROUNDUP(I130*1000/$BP$128,0)*E130),((ROUNDUP(I130*1000/$BP$128,0)-1)*E130)),0)) -> 0 | BQ130: 0 | BR130: 400 | BS130: 0 | BT130: 0 | BU130: 0 | BX130: =IF(CO130="","","กม."&TEXT(CO130,"0+000")&" - กม."&TEXT(CQ130,"0+000")) -> กม.1+698 - กม.2+098 | CA130: , | CB130: =IF(IF(B130>=MAX($B$129:B129),1,0)+IF(D130>MAX($D$129:D129),1,0)=2,I130,0) -> 0.4 | CF130: =IF(CG130="","",CN130) -> 0 | CG130: 1698 | CH130: - | CI130: 2098 | CJ130: =IF(CG130="",0,CG130-CI129) -> 1108 | CK130: =IF(CJ130<=0,"",CG130) -> 1698 | CL130: - | CM130: =IF(MAX($CI$128:CI129)=CI130,"",IF(AND(CG131<>"",CJ131=0),"",CI130)) -> 2098 | CN130: 0 | CO130: =IF(CR130=1,MAX($CK$129:CK130),"") -> 1698 | CP130: - | CQ130: =IF(CR130=1,CM130,"") -> 2098 | CR130: =TYPE(CM130) -> 1 | CS130: 0 | CT130: 0 | CU130: 0 | CV130: 0 | CW130: 0 | CX130: 0 | CY130: 0 | CZ130: =IF(S130=$BJ$129,N130,0) -> 0 | DA130: 0 | DB130: 0 | DC130: 0 | DD130: 0 | DE130: 0 | DF130: 0 | DG130: 0 | DH130: =IF(Q130=$BJ$132,J130,0) -> 0 | DI130: =IF(S130=$BJ$132,L130,0) -> 0 | DJ130: =IF(DH130=0,0,I130) -> 0 | DK130: =IF(DI130=0,0,I130) -> 0 | DL130: 0 | DM130: 0 | DN130: =IF(DL130=0,0,I130) -> 0 | DO130: =IF(DM130=0,0,I130) -> 0 | DP130: 0 | DQ130: 0 | DR130: 0 | DS130: 0 | DT130: 0 | DU130: 0
B131: 2128 | C131: - | D131: 2178 | I131: 0.05 | J131: 0 | L131: 0 | M131: 0 | N131: =IF(OR(S131=$BJ$129,S131=$BJ$130),IF(H131="",(I131*1000*G131*2),(I131*1000*(G131+H131)*0.5*2)),0) -> 0 | O131: 0 | P131: 0 | BD131: 0.05 | BJ131: เสริมผิว | BO131: 0 | BP131: 0 | BQ131: 0 | BR131: 50 | BS131: 0 | BT131: 0 | BU131: 0 | BX131: กม.2+128 - กม.2+178 | CB131: =IF(IF(B131>=MAX($B$129:B130),1,0)+IF(D131>MAX($D$129:D130),1,0)=2,I131,0) -> 0.05 | CF131: =IF(CG131="","",CN131) -> 0 | CG131: 2128 | CH131: - | CI131: 2178 | CJ131: 30 | CK131: 2128 | CL131: - | CM131: =IF(MAX($CI$128:CI130)=CI131,"",IF(AND(CG132<>"",CJ132=0),"",CI131)) -> 2178 | CN131: 0 | CO131: =IF(CR131=1,MAX($CK$129:CK131),"") -> 2128 | CP131: - | CQ131: =IF(CR131=1,CM131,"") -> 2178 | CR131: =TYPE(CM131) -> 1 | CS131: 0 | CT131: 0 | CU131: 0 | CV131: 0 | CW131: 0 | CX131: 0 | CY131: 0 | CZ131: 0 | DA131: 0 | DB131: 0 | DC131: 0 | DD131: 0 | DE131: 0 | DF131: 0 | DG131: 0 | DH131: 0 | DI131: 0 | DJ131: 0 | DK131: 0 | DL131: 0 | DM131: 0 | DN131: 0 | DO131: 0 | DP131: 0 | DQ131: =IF(Q131=$BJ$135,E131*I131*1000-(E131*I131*1000)/DP131*0.2,0) -> 0 | DR131: =IF(DP131=0,0,1) -> 0 | DS131: =IF(OR(AND(D130=B131,Q131=$BJ$135,Q130=$BJ$133),AND(D131=B132,Q131=$BJ$135,Q132=$BJ$133)),1,0) -> 0 | DT131: =IF(DS131=0,0,DQ131) -> 0 | DU131: =IF(DS131=0,0,DP131) -> 0
I132: 0 | J132: 0 | L132: 0 | M132: 0 | N132: 0 | O132: 0 | P132: 0 | BD132: 0 | BJ132: หินคลุก | BO132: 0 | BP132: 0 | BQ132: 0 | BR132: 0 | BS132: 0 | BT132: 0 | BU132: 0 | CB132: =IF(IF(B132>=MAX($B$129:B131),1,0)+IF(D132>MAX($D$129:D131),1,0)=2,I132,0) -> 0 | CF132: =IF(CG132="","",CN132) ->  | CH132: - | CJ132: 0 | CL132: - | CM132: =IF(MAX($CI$128:CI131)=CI132,"",IF(AND(CG133<>"",CJ133=0),"",CI132)) ->  | CN132: 1 | CO132: =IF(CR132=1,MAX($CK$129:CK132),"") ->  | CP132: - | CR132: 2 | CS132: 0 | CT132: 0 | CU132: 0 | CV132: 0 | CW132: 0 | CX132: 0 | CY132: 0 | CZ132: 0 | DA132: 0 | DB132: 0 | DC132: 0 | DD132: 0 | DE132: 0 | DF132: 0 | DG132: 0 | DH132: 0 | DI132: 0 | DJ132: 0 | DK132: 0 | DL132: 0 | DM132: 0 | DN132: 0 | DO132: 0 | DP132: 0 | DQ132: =IF(Q132=$BJ$135,E132*I132*1000-(E132*I132*1000)/DP132*0.2,0) -> 0 | DR132: =IF(DP132=0,0,1) -> 0 | DS132: =IF(OR(AND(D131=B132,Q132=$BJ$135,Q131=$BJ$133),AND(D132=B133,Q132=$BJ$135,Q133=$BJ$133)),1,0) -> 0 | DT132: =IF(DS132=0,0,DQ132) -> 0 | DU132: =IF(DS132=0,0,DP132) -> 0
I133: 0 | J133: =IF(OR(Q133=$BJ$127,Q133=$BJ$128,Q133=$BJ$130,Q133=$BJ$132,Q133=$BJ$133),IF(F133="",(I133*1000*E133),(I133*1000*(E133+F133)*0.5)),0) -> 0 | L133: 0 | M133: 0 | N133: 0 | O133: 0 | P133: 0 | BD133: 0 | BJ133: ลูกรัง | BO133: 0 | BP133: 0 | BQ133: 0 | BR133: 0 | BS133: 0 | BT133: 0 | BU133: 0 | CB133: =IF(IF(B133>=MAX($B$129:B132),1,0)+IF(D133>MAX($D$129:D132),1,0)=2,I133,0) -> 0 | CD133: =BX133&CA133&BX134&CA134&BX135&CA135&BX136&CA136 ->  | CF133: =IF(CG133="","",CN133) ->  | CH133: - | CJ133: 0 | CL133: - | CM133: =IF(MAX($CI$128:CI132)=CI133,"",IF(AND(CG134<>"",CJ134=0),"",CI133)) ->  | CN133: 2 | CO133: =IF(CR133=1,MAX($CK$129:CK133),"") ->  | CP133: - | CR133: =TYPE(CM133) -> 2 | CS133: 0 | CT133: 0 | CU133: 0 | CV133: 0 | CW133: 0 | CX133: 0 | CY133: 0 | CZ133: 0 | DA133: 0 | DB133: 0 | DC133: 0 | DD133: 0 | DE133: 0 | DF133: 0 | DG133: =IF(DE133+DF133=0,0,IF(AND(DE133<>0,DF133<>0),$I133,IF(AND(DF133=0,$G133+$H133=0),$I133,IF(AND(DF133=0,$G133+$H133<>0),0,$I133)))) -> 0 | DH133: 0 | DI133: 0 | DJ133: 0 | DK133: 0 | DL133: 0 | DM133: 0 | DN133: 0 | DO133: 0 | DP133: 0 | DQ133: 0 | DR133: 0 | DS133: 0 | DT133: 0 | DU133: 0
I134: 0 | J134: =IF(OR(Q134=$BJ$127,Q134=$BJ$128,Q134=$BJ$130,Q134=$BJ$132,Q134=$BJ$133),IF(F134="",(I134*1000*E134),(I134*1000*(E134+F134)*0.5)),0) -> 0 | L134: =IF(OR(S134=$BJ$127,S134=$BJ$128,S134=$BJ$130,S134=$BJ$132,S134=$BJ$133),IF(H134="",(I134*1000*G134*2),(I134*1000*(G134+H134)*0.5*2)),0) -> 0 | M134: 0 | N134: 0 | O134: 0 | P134: 0 | BD134: 0 | BJ134: สะพาน | BO134: 0 | BP134: 0 | BQ134: 0 | BR134: 0 | BS134: 0 | BT134: 0 | BU134: 0 | CB134: =IF(IF(B134>=MAX($B$129:B133),1,0)+IF(D134>MAX($D$129:D133),1,0)=2,I134,0) -> 0 | CF134: =IF(CG134="","",CN134) ->  | CH134: - | CJ134: 0 | CK134: =IF(CJ134<=0,"",CG134) ->  | CL134: - | CM134: =IF(MAX($CI$128:CI133)=CI134,"",IF(AND(CG135<>"",CJ135=0),"",CI134)) ->  | CN134: 3 | CO134: =IF(CR134=1,MAX($CK$129:CK134),"") ->  | CP134: - | CR134: =TYPE(CM134) -> 2 | CS134: 0 | CT134: 0 | CU134: 0 | CV134: 0 | CW134: 0 | CX134: 0 | CY134: 0 | CZ134: 0 | DA134: 0 | DB134: 0 | DC134: 0 | DD134: 0 | DE134: 0 | DF134: 0 | DG134: 0 | DH134: 0 | DI134: 0 | DJ134: 0 | DK134: 0 | DL134: 0 | DM134: 0 | DN134: 0 | DO134: 0 | DP134: 0 | DQ134: 0 | DR134: 0 | DS134: 0 | DT134: 0 | DU134: 0
I135: 0 | J135: 0 | L135: =IF(OR(S135=$BJ$127,S135=$BJ$128,S135=$BJ$130,S135=$BJ$132,S135=$BJ$133),IF(H135="",(I135*1000*G135*2),(I135*1000*(G135+H135)*0.5*2)),0) -> 0 | M135: 0 | N135: 0 | O135: 0 | P135: 0 | BD135: 0 | BJ135: Approach Slab | BO135: 0 | BP135: 0 | BQ135: 0 | BR135: 0 | BS135: 0 | BT135: 0 | BU135: 0 | CB135: =IF(IF(B135>=MAX($B$129:B134),1,0)+IF(D135>MAX($D$129:D134),1,0)=2,I135,0) -> 0 | CF135: =IF(CN135=1,CF134+CN135,0) -> 0 | CH135: - | CJ135: 0 | CL135: - | CM135: =IF(MAX($CI$128:CI134)=CI135,"",IF(AND(CG136<>"",CJ136=0),"",CI135)) ->  | CN135: =IF(AND(CK135<>"",CM135<>""),0,CN134+1) -> 4 | CO135: =IF(CR135=1,MAX($CK$129:CK135),"") ->  | CP135: - | CR135: 2 | CS135: 0 | CT135: 0 | CU135: 0 | CV135: 0 | CW135: 0 | CX135: 0 | CY135: 0 | CZ135: 0 | DA135: 0 | DB135: 0 | DC135: 0 | DD135: 0 | DE135: 0 | DF135: 0 | DG135: 0 | DH135: 0 | DI135: 0 | DJ135: 0 | DK135: 0 | DL135: 0 | DM135: 0 | DN135: 0 | DO135: 0 | DP135: 0 | DQ135: 0 | DR135: 0 | DS135: 0 | DT135: 0 | DU135: 0
I136: 0 | J136: 0 | L136: 0 | M136: 0 | N136: 0 | O136: 0 | P136: 0 | BD136: 0 | BJ136: ท่อลอดเหลี่ยม | BO136: 0 | BP136: 0 | BQ136: 0 | BR136: 0 | BS136: 0 | BT136: 0 | BU136: 0 | CB136: =IF(IF(B136>=MAX($B$129:B135),1,0)+IF(D136>MAX($D$129:D135),1,0)=2,I136,0) -> 0 | CF136: 0 | CH136: - | CJ136: =IF(CG136="",0,CG136-CI135) -> 0 | CL136: - | CM136: =IF(MAX($CI$128:CI135)=CI136,"",IF(AND(CG137<>"",CJ137=0),"",CI136)) ->  | CN136: =IF(CG136="",0,IF(CG136-CI135<=0,1,0)) -> 0 | CO136: =IF(CR136=1,MAX($CK$129:CK136),"") ->  | CP136: - | CR136: 2 | CS136: 0 | CT136: 0 | CU136: 0 | CV136: 0 | CW136: 0 | CX136: 0 | CY136: 0 | CZ136: 0 | DA136: 0 | DB136: 0 | DC136: 0 | DD136: 0 | DE136: 0 | DF136: 0 | DG136: 0 | DH136: 0 | DI136: 0 | DJ136: 0 | DK136: 0 | DL136: 0 | DM136: 0 | DN136: 0 | DO136: 0 | DP136: 0 | DQ136: 0 | DR136: 0 | DS136: 0 | DT136: 0 | DU136: 0
I137: 0 | J137: 0 | L137: 0 | M137: 0 | N137: 0 | O137: 0 | P137: 0 | BD137: 0 | BO137: 0 | BP137: 0 | BQ137: 0 | BR137: 0 | BS137: 0 | BT137: 0 | BU137: 0 | CB137: =IF(IF(B137>=MAX($B$129:B136),1,0)+IF(D137>MAX($D$129:D136),1,0)=2,I137,0) -> 0 | CD137: =BX137&CA137&BX138&CA138&BX139&CA139&BX140&CA140 ->  | CF137: 0 | CH137: - | CJ137: 0 | CK137: =IF(CJ137=0,"",CG137) ->  | CL137: - | CM137: =IF(MAX($CI$128:CI136)=CI137,"",IF(AND(CG138<>"",CJ138=0),"",CI137)) ->  | CN137: 0 | CO137: =IF(CR137=1,MAX($CK$129:CK137),"") ->  | CP137: - | CR137: 2 | CS137: 0 | CT137: 0 | CU137: 0 | CV137: 0 | CW137: 0 | CX137: 0 | CY137: 0 | CZ137: 0 | DA137: 0 | DB137: 0 | DC137: 0 | DD137: 0 | DE137: 0 | DF137: 0 | DG137: 0 | DH137: 0 | DI137: 0 | DJ137: 0 | DK137: 0 | DL137: 0 | DM137: 0 | DN137: 0 | DO137: 0 | DP137: 0 | DQ137: 0 | DR137: 0 | DS137: 0 | DT137: 0 | DU137: 0
I138: 0 | J138: 0 | L138: 0 | M138: 0 | N138: 0 | O138: 0 | P138: 0 | BD138: 0 | BO138: 0 | BP138: 0 | BQ138: 0 | BR138: 0 | BS138: 0 | BT138: 0 | BU138: 0 | CB138: =IF(IF(B138>=MAX($B$129:B137),1,0)+IF(D138>MAX($D$129:D137),1,0)=2,I138,0) -> 0 | CF138: 0 | CH138: - | CJ138: 0 | CL138: - | CM138: =IF(MAX($CI$128:CI137)=CI138,"",IF(AND(CG139<>"",CJ139=0),"",CI138)) ->  | CN138: 0 | CO138: =IF(CR138=1,MAX($CK$129:CK138),"") ->  | CP138: - | CR138: 2 | CS138: 0 | CT138: 0 | CU138: 0 | CV138: 0 | CW138: 0 | CX138: 0 | CY138: 0 | CZ138: 0 | DA138: 0 | DB138: 0 | DC138: 0 | DD138: 0 | DE138: 0 | DF138: 0 | DG138: 0 | DH138: 0 | DI138: 0 | DJ138: 0 | DK138: 0 | DL138: 0 | DM138: 0 | DN138: 0 | DO138: 0 | DP138: 0 | DQ138: 0 | DR138: 0 | DS138: 0 | DT138: 0 | DU138: 0
I139: 0 | J139: 0 | L139: 0 | M139: 0 | N139: 0 | O139: 0 | P139: 0 | BD139: 0 | BO139: 0 | BP139: 0 | BQ139: 0 | BR139: 0 | BS139: 0 | BT139: 0 | BU139: 0 | CB139: =IF(IF(B139>=MAX($B$129:B138),1,0)+IF(D139>MAX($D$129:D138),1,0)=2,I139,0) -> 0 | CF139: 0 | CH139: - | CJ139: 0 | CL139: - | CM139: =IF(MAX($CI$128:CI138)=CI139,"",IF(AND(CG140<>"",CJ140=0),"",CI139)) ->  | CN139: 0 | CO139: =IF(CR139=1,MAX($CK$129:CK139),"") ->  | CP139: - | CR139: 2 | CS139: 0 | CT139: 0 | CU139: 0 | CV139: 0 | CW139: 0 | CX139: 0 | CY139: 0 | CZ139: 0 | DA139: 0 | DB139: 0 | DC139: 0 | DD139: 0 | DE139: 0 | DF139: 0 | DG139: 0 | DH139: 0 | DI139: 0 | DJ139: 0 | DK139: 0 | DL139: 0 | DM139: 0 | DN139: 0 | DO139: 0 | DP139: 0 | DQ139: 0 | DR139: 0 | DS139: 0 | DT139: 0 | DU139: 0
I140: 0 | J140: 0 | L140: 0 | M140: 0 | N140: 0 | O140: 0 | P140: 0 | BD140: 0 | BO140: 0 | BP140: 0 | BQ140: 0 | BR140: 0 | BS140: 0 | BT140: 0 | BU140: 0 | CB140: =IF(IF(B140>=MAX($B$129:B139),1,0)+IF(D140>MAX($D$129:D139),1,0)=2,I140,0) -> 0 | CF140: 0 | CH140: - | CJ140: 0 | CL140: - | CM140: =IF(MAX($CI$128:CI139)=CI140,"",IF(AND(CG141<>"",CJ141=0),"",CI140)) ->  | CN140: 0 | CO140: =IF(CR140=1,MAX($CK$129:CK140),"") ->  | CP140: - | CR140: 2 | CS140: 0 | CT140: 0 | CU140: 0 | CV140: 0 | CW140: 0 | CX140: 0 | CY140: 0 | CZ140: 0 | DA140: 0 | DB140: 0 | DC140: 0 | DD140: 0 | DE140: 0 | DF140: 0 | DG140: 0 | DH140: 0 | DI140: 0 | DJ140: 0 | DK140: 0 | DL140: 0 | DM140: 0 | DN140: 0 | DO140: 0 | DP140: 0 | DQ140: 0 | DR140: 0 | DS140: 0 | DT140: 0 | DU140: 0
I141: 0 | J141: 0 | L141: 0 | M141: 0 | N141: 0 | O141: 0 | P141: 0 | BD141: 0 | BO141: 0 | BP141: 0 | BQ141: 0 | BR141: 0 | BS141: 0 | BT141: 0 | BU141: 0 | CB141: =IF(IF(B141>=MAX($B$129:B140),1,0)+IF(D141>MAX($D$129:D140),1,0)=2,I141,0) -> 0 | CD141: =BX141&CA141&BX142&CA142&BX143&CA143&BX144&CA144 ->  | CF141: 0 | CH141: - | CJ141: 0 | CL141: - | CM141: =IF(MAX($CI$128:CI140)=CI141,"",IF(AND(CG142<>"",CJ142=0),"",CI141)) ->  | CN141: 0 | CO141: =IF(CR141=1,MAX($CK$129:CK141),"") ->  | CP141: - | CR141: 2 | CS141: 0 | CT141: 0 | CU141: 0 | CV141: 0 | CW141: 0 | CX141: 0 | CY141: 0 | CZ141: 0 | DA141: 0 | DB141: 0 | DC141: 0 | DD141: 0 | DE141: 0 | DF141: 0 | DG141: 0 | DH141: 0 | DI141: 0 | DJ141: 0 | DK141: 0 | DL141: 0 | DM141: 0 | DN141: 0 | DO141: 0 | DP141: 0 | DQ141: 0 | DR141: 0 | DS141: 0 | DT141: 0 | DU141: 0
I142: 0 | J142: 0 | L142: 0 | M142: 0 | N142: 0 | O142: 0 | P142: 0 | BD142: 0 | BO142: 0 | BP142: 0 | BQ142: 0 | BR142: 0 | BS142: 0 | BT142: 0 | BU142: 0 | BX142: =IF(CO142="","","กม."&TEXT(CO142,"0+000")&" - กม."&TEXT(CQ142,"0+000")) ->  | CB142: =IF(IF(B142>=MAX($B$129:B141),1,0)+IF(D142>MAX($D$129:D141),1,0)=2,I142,0) -> 0 | CF142: =IF(CN142=1,CF141+CN142,0) -> 0 | CH142: - | CJ142: =IF(CG142="",0,CG142-CI141) -> 0 | CK142: =IF(CJ142=0,"",CG142) ->  | CL142: - | CM142: =IF(MAX($CI$128:CI141)=CI142,"",IF(AND(CG143<>"",CJ143=0),"",CI142)) ->  | CN142: =IF(CG142="",0,IF(CG142-CI141<=0,1,0)) -> 0 | CO142: =IF(CR142=1,MAX($CK$129:CK142),"") ->  | CP142: - | CQ142: =IF(CR142=1,CM142,"") ->  | CR142: =TYPE(CM142) -> 2 | CS142: 0 | CT142: 0 | CU142: 0 | CV142: 0 | CW142: 0 | CX142: 0 | CY142: 0 | CZ142: 0 | DA142: 0 | DB142: 0 | DC142: 0 | DD142: 0 | DE142: 0 | DF142: 0 | DG142: 0 | DH142: 0 | DI142: 0 | DJ142: 0 | DK142: 0 | DL142: 0 | DM142: 0 | DN142: 0 | DO142: 0 | DP142: 0 | DQ142: 0 | DR142: 0 | DS142: 0 | DT142: 0 | DU142: 0
I143: 0 | J143: 0 | L143: 0 | M143: 0 | N143: 0 | O143: 0 | P143: 0 | BD143: 0 | BO143: 0 | BP143: 0 | BQ143: 0 | BR143: 0 | BS143: 0 | BT143: 0 | BU143: 0 | CB143: =IF(IF(B143>=MAX($B$129:B142),1,0)+IF(D143>MAX($D$129:D142),1,0)=2,I143,0) -> 0 | CF143: 0 | CH143: - | CJ143: 0 | CL143: - | CM143: =IF(MAX($CI$128:CI142)=CI143,"",IF(AND(CG144<>"",CJ144=0),"",CI143)) ->  | CN143: 0 | CO143: =IF(CR143=1,MAX($CK$129:CK143),"") ->  | CP143: - | CR143: 2 | CS143: 0 | CT143: 0 | CU143: 0 | CV143: 0 | CW143: 0 | CX143: 0 | CY143: 0 | CZ143: 0 | DA143: 0 | DB143: 0 | DC143: 0 | DD143: 0 | DE143: 0 | DF143: 0 | DG143: 0 | DH143: 0 | DI143: 0 | DJ143: 0 | DK143: 0 | DL143: 0 | DM143: 0 | DN143: 0 | DO143: 0 | DP143: 0 | DQ143: 0 | DR143: 0 | DS143: 0 | DT143: 0 | DU143: 0
I144: 0 | J144: 0 | L144: 0 | M144: 0 | N144: 0 | O144: 0 | P144: 0 | BD144: 0 | BO144: 0 | BP144: 0 | BQ144: 0 | BR144: 0 | BS144: 0 | BT144: 0 | BU144: 0 | CB144: =IF(IF(B144>=MAX($B$129:B143),1,0)+IF(D144>MAX($D$129:D143),1,0)=2,I144,0) -> 0 | CF144: 0 | CH144: - | CJ144: 0 | CL144: - | CM144: =IF(MAX($CI$128:CI143)=CI144,"",IF(AND(CG145<>"",CJ145=0),"",CI144)) ->  | CN144: 0 | CO144: =IF(CR144=1,MAX($CK$129:CK144),"") ->  | CP144: - | CR144: 2 | CS144: 0 | CT144: 0 | CU144: 0 | CV144: 0 | CW144: 0 | CX144: 0 | CY144: 0 | CZ144: 0 | DA144: 0 | DB144: 0 | DC144: 0 | DD144: 0 | DE144: 0 | DF144: 0 | DG144: 0 | DH144: 0 | DI144: 0 | DJ144: 0 | DK144: 0 | DL144: 0 | DM144: 0 | DN144: 0 | DO144: 0 | DP144: 0 | DQ144: 0 | DR144: 0 | DS144: 0 | DT144: 0 | DU144: 0
I145: 0 | J145: 0 | L145: 0 | M145: 0 | N145: 0 | O145: 0 | P145: 0 | BD145: 0 | BO145: 0 | BP145: 0 | BQ145: 0 | BR145: 0 | BS145: 0 | BT145: 0 | BU145: 0 | CB145: =IF(IF(B145>=MAX($B$129:B144),1,0)+IF(D145>MAX($D$129:D144),1,0)=2,I145,0) -> 0 | CD145: =BX145&CA145&BX146&CA146&BX147&CA147&BX148&CA148 ->  | CF145: 0 | CH145: - | CJ145: 0 | CL145: - | CM145: =IF(MAX($CI$128:CI144)=CI145,"",IF(AND(CG146<>"",CJ146=0),"",CI145)) ->  | CN145: 0 | CO145: =IF(CR145=1,MAX($CK$129:CK145),"") ->  | CP145: - | CR145: 2 | CS145: 0 | CT145: 0 | CU145: 0 | CV145: 0 | CW145: 0 | CX145: 0 | CY145: 0 | CZ145: 0 | DA145: 0 | DB145: 0 | DC145: 0 | DD145: 0 | DE145: 0 | DF145: 0 | DG145: 0 | DH145: 0 | DI145: 0 | DJ145: 0 | DK145: 0 | DL145: 0 | DM145: 0 | DN145: 0 | DO145: 0 | DP145: 0 | DQ145: 0 | DR145: 0 | DS145: 0 | DT145: 0 | DU145: 0
I146: 0 | J146: 0 | L146: 0 | M146: 0 | N146: 0 | O146: 0 | P146: 0 | BD146: 0 | BO146: 0 | BP146: 0 | BQ146: 0 | BR146: 0 | BS146: 0 | BT146: 0 | BU146: 0 | CB146: =IF(IF(B146>=MAX($B$129:B145),1,0)+IF(D146>MAX($D$129:D145),1,0)=2,I146,0) -> 0 | CF146: 0 | CH146: - | CJ146: 0 | CL146: - | CM146: =IF(MAX($CI$128:CI145)=CI146,"",IF(AND(CG147<>"",CJ147=0),"",CI146)) ->  | CN146: 0 | CO146: =IF(CR146=1,MAX($CK$129:CK146),"") ->  | CP146: - | CR146: 2 | CS146: 0 | CT146: 0 | CU146: 0 | CV146: 0 | CW146: 0 | CX146: 0 | CY146: 0 | CZ146: 0 | DA146: 0 | DB146: 0 | DC146: 0 | DD146: 0 | DE146: 0 | DF146: 0 | DG146: 0 | DH146: 0 | DI146: 0 | DJ146: 0 | DK146: 0 | DL146: 0 | DM146: 0 | DN146: 0 | DO146: 0 | DP146: 0 | DQ146: 0 | DR146: 0 | DS146: 0 | DT146: 0 | DU146: 0
I147: 0 | J147: 0 | L147: 0 | M147: 0 | N147: 0 | O147: 0 | P147: 0 | BD147: 0 | BO147: 0 | BP147: 0 | BQ147: 0 | BR147: 0 | BS147: 0 | BT147: 0 | BU147: 0 | CB147: =IF(IF(B147>=MAX($B$129:B146),1,0)+IF(D147>MAX($D$129:D146),1,0)=2,I147,0) -> 0 | CF147: =IF(CN147=1,CF146+CN147,0) -> 0 | CG147: =IF(B147="","",B147) ->  | CH147: - | CI147: =IF(D147="","",D147) ->  | CJ147: =IF(CG147="",0,CG147-CI146) -> 0 | CK147: =IF(CJ147=0,"",CG147) ->  | CL147: - | CM147: =IF(MAX($CI$128:CI146)=CI147,"",IF(AND(CG148<>"",CJ148=0),"",CI147)) ->  | CN147: =IF(CG147="",0,IF(CG147-CI146<=0,1,0)) -> 0 | CO147: =IF(CR147=1,MAX($CK$129:CK147),"") ->  | CP147: - | CQ147: =IF(CR147=1,CM147,"") ->  | CR147: 2 | CS147: 0 | CT147: 0 | CU147: 0 | CV147: 0 | CW147: 0 | CX147: 0 | CY147: 0 | CZ147: 0 | DA147: 0 | DB147: 0 | DC147: 0 | DD147: 0 | DE147: 0 | DF147: 0 | DG147: 0 | DH147: 0 | DI147: 0 | DJ147: 0 | DK147: 0 | DL147: 0 | DM147: 0 | DN147: 0 | DO147: 0 | DP147: 0 | DQ147: 0 | DR147: 0 | DS147: 0 | DT147: 0 | DU147: 0
I148: 0 | J148: 0 | L148: 0 | M148: 0 | N148: 0 | O148: 0 | P148: 0 | BD148: 0 | BO148: 0 | BP148: 0 | BQ148: 0 | BR148: 0 | BS148: 0 | BT148: 0 | BU148: 0 | CB148: =IF(IF(B148>=MAX($B$129:B147),1,0)+IF(D148>MAX($D$129:D147),1,0)=2,I148,0) -> 0 | CF148: 0 | CH148: - | CJ148: 0 | CL148: - | CM148: =IF(MAX($CI$128:CI147)=CI148,"",IF(AND(CG149<>"",CJ149=0),"",CI148)) ->  | CN148: 0 | CO148: =IF(CR148=1,MAX($CK$129:CK148),"") ->  | CP148: - | CR148: 2 | CS148: 0 | CT148: 0 | CU148: 0 | CV148: 0 | CW148: 0 | CX148: 0 | CY148: 0 | CZ148: 0 | DA148: 0 | DB148: 0 | DC148: 0 | DD148: 0 | DE148: 0 | DF148: 0 | DG148: 0 | DH148: 0 | DI148: 0 | DJ148: 0 | DK148: 0 | DL148: 0 | DM148: 0 | DN148: 0 | DO148: 0 | DP148: 0 | DQ148: 0 | DR148: 0 | DS148: 0 | DT148: 0 | DU148: 0
I149: 0 | J149: 0 | L149: 0 | M149: 0 | N149: 0 | O149: 0 | P149: 0 | BD149: 0 | BO149: 0 | BP149: 0 | BQ149: 0 | BR149: 0 | BS149: 0 | BT149: 0 | BU149: 0 | CB149: =IF(IF(B149>=MAX($B$129:B148),1,0)+IF(D149>MAX($D$129:D148),1,0)=2,I149,0) -> 0 | CD149: =BX149&CA149&BX150&CA150&BX151&CA151&BX152&CA152 ->  | CF149: 0 | CH149: - | CJ149: 0 | CL149: - | CM149: =IF(MAX($CI$128:CI148)=CI149,"",IF(AND(CG150<>"",CJ150=0),"",CI149)) ->  | CN149: 0 | CO149: =IF(CR149=1,MAX($CK$129:CK149),"") ->  | CP149: - | CR149: 2 | CS149: 0 | CT149: 0 | CU149: 0 | CV149: 0 | CW149: 0 | CX149: 0 | CY149: 0 | CZ149: 0 | DA149: 0 | DB149: 0 | DC149: 0 | DD149: 0 | DE149: 0 | DF149: 0 | DG149: 0 | DH149: 0 | DI149: 0 | DJ149: 0 | DK149: 0 | DL149: 0 | DM149: 0 | DN149: 0 | DO149: 0 | DP149: 0 | DQ149: 0 | DR149: 0 | DS149: 0 | DT149: 0 | DU149: 0
I150: 0 | J150: 0 | L150: 0 | M150: 0 | N150: 0 | O150: 0 | P150: 0 | BD150: 0 | BO150: 0 | BP150: 0 | BQ150: 0 | BR150: 0 | BS150: 0 | BT150: 0 | BU150: 0 | CB150: =IF(IF(B150>=MAX($B$129:B149),1,0)+IF(D150>MAX($D$129:D149),1,0)=2,I150,0) -> 0 | CF150: 0 | CH150: - | CJ150: 0 | CL150: - | CM150: =IF(MAX($CI$128:CI149)=CI150,"",IF(AND(CG151<>"",CJ151=0),"",CI150)) ->  | CN150: 0 | CO150: =IF(CR150=1,MAX($CK$129:CK150),"") ->  | CP150: - | CR150: 2 | CS150: 0 | CT150: 0 | CU150: 0 | CV150: 0 | CW150: 0 | CX150: 0 | CY150: 0 | CZ150: 0 | DA150: 0 | DB150: 0 | DC150: 0 | DD150: 0 | DE150: 0 | DF150: 0 | DG150: 0 | DH150: 0 | DI150: 0 | DJ150: 0 | DK150: 0 | DL150: 0 | DM150: 0 | DN150: 0 | DO150: 0 | DP150: 0 | DQ150: 0 | DR150: 0 | DS150: 0 | DT150: 0 | DU150: 0
I151: 0 | J151: 0 | L151: 0 | M151: 0 | N151: 0 | O151: 0 | P151: 0 | BD151: 0 | BO151: 0 | BP151: 0 | BQ151: 0 | BR151: 0 | BS151: 0 | BT151: 0 | BU151: 0 | CB151: =IF(IF(B151>=MAX($B$129:B150),1,0)+IF(D151>MAX($D$129:D150),1,0)=2,I151,0) -> 0 | CF151: 0 | CH151: - | CJ151: 0 | CL151: - | CM151: =IF(MAX($CI$128:CI150)=CI151,"",IF(AND(CG152<>"",CJ152=0),"",CI151)) ->  | CN151: 0 | CO151: =IF(CR151=1,MAX($CK$129:CK151),"") ->  | CP151: - | CR151: 2 | CS151: 0 | CT151: 0 | CU151: 0 | CV151: 0 | CW151: 0 | CX151: 0 | CY151: 0 | CZ151: 0 | DA151: 0 | DB151: 0 | DC151: 0 | DD151: 0 | DE151: 0 | DF151: 0 | DG151: 0 | DH151: 0 | DI151: 0 | DJ151: 0 | DK151: 0 | DL151: 0 | DM151: 0 | DN151: 0 | DO151: 0 | DP151: 0 | DQ151: 0 | DR151: 0 | DS151: 0 | DT151: 0 | DU151: 0
I152: 0 | J152: 0 | L152: 0 | M152: 0 | N152: 0 | O152: 0 | P152: 0 | BD152: 0 | BO152: 0 | BP152: =IF(I152=0,0,ROUNDDOWN(IF(#REF!<>0,(ROUNDUP(I152*1000/$BP$128,0)*E152),((ROUNDUP(I152*1000/$BP$128,0)-1)*E152)),0)) -> 0 | BQ152: 0 | BR152: 0 | BS152: =IF(I152=0,0,ROUNDDOWN(IF(#REF!<>0,(ROUNDUP(I152*1000/$BP$128,0)*G152*2),((ROUNDUP(I152*1000/$BP$128,0)-1)*G152*2)),0)) -> 0 | BT152: 0 | BU152: 0 | CB152: =IF(IF(B152>=MAX($B$129:B151),1,0)+IF(D152>MAX($D$129:D151),1,0)=2,I152,0) -> 0 | CF152: 0 | CH152: - | CJ152: 0 | CL152: - | CM152: =IF(MAX($CI$128:CI151)=CI152,"",IF(AND(CG153<>"",CJ153=0),"",CI152)) ->  | CN152: 0 | CO152: =IF(CR152=1,MAX($CK$129:CK152),"") ->  | CP152: - | CR152: 2 | CS152: 0 | CT152: 0 | CU152: 0 | CV152: 0 | CW152: 0 | CX152: 0 | CY152: 0 | CZ152: 0 | DA152: 0 | DB152: 0 | DC152: 0 | DD152: 0 | DE152: 0 | DF152: 0 | DG152: 0 | DH152: 0 | DI152: 0 | DJ152: 0 | DK152: 0 | DL152: 0 | DM152: 0 | DN152: 0 | DO152: 0 | DP152: 0 | DQ152: 0 | DR152: 0 | DS152: 0 | DT152: 0 | DU152: 0
I153: 0.356 | J153: =SUM(J129:J152) -> 3540 | L153: 1180 | M153: 0 | N153: 0 | O153: 0 | P153: 0 | BD153: =SUM(BD129:BD152) -> 0.45 | BP153: =SUM(BP129:BP152) -> 58 | BQ153: 290 | BR153: 1040 | BS153: 6 | BT153: 58 | BU153: 0 | CB153: =SUM(CB129:CB152) -> 1.04 | CS153: =SUM(CS129:CS152) -> 0 | CT153: 0 | CU153: 0 | CV153: 3540 | CW153: 1180 | CX153: 0.59 | CY153: 0 | CZ153: 0 | DA153: 0 | DB153: 0 | DC153: 0 | DD153: 0 | DE153: 0 | DF153: 0 | DG153: 0 | DH153: =SUM(DH129:DH152) -> 0 | DI153: =SUM(DI129:DI152) -> 0 | DJ153: =SUM(DJ129:DJ152) -> 0 | DK153: =SUM(DK129:DK152) -> 0 | DL153: 0 | DM153: 0 | DN153: =SUM(DN129:DN152) -> 0 | DO153: =SUM(DO129:DO152) -> 0 | DP153: =SUM(DP129:DP152) -> 0 | DQ153: =SUM(DQ129:DQ152) -> 0 | DR153: =SUM(DR129:DR152)*1.75 -> 0 | DS153: =SUM(DS129:DS152)*1.75 -> 0 | DT153: =SUM(DT129:DT152) -> 0 | DU153: =SUM(DU129:DU152) -> 0
B154: สรุปพื้นที่ Widening (ตร.ม.)
C155: ที่ | D155: Curve NO. | E155: PI.STA. | F155: Sta.Att. | G155: Sta.Att.to | H155: Sta.Rem. | I155: Sta.Rem.to | J155: Widening | L155: หลักโค้ง | M155: พท. | N155: หักหน้า | O155: หักหลัง | P155: เหลือ | Q155: หมายเหตุ | BD155: ช่วงก่อสร้าง | BG155: พื้นที่ | BH155: ลาดยาง | BI155: Pavement In-Place Recycling | BJ155: เสริมผิว AC | BK155: คสล. | BL155: หินคลุก | BM155: ลูกรัง
C156: =IF(E156=0,0,1) -> 0 | M156: =ROUNDDOWN(IF(AND(G156=0,I156=0),(H156-F156)*2/3*J156,IF(AND(F156=0,G156=0),(((I156-BE156)/(I156-H156)*J156)*0.5*(I156-BE156)),IF(AND(H156=0,I156=0),((BE156-F156)/(G156-F156)*J156*0.5*(BE156-F156)),((G156-F156)*0.5+(H156-G156)+(I156-H156)*0.5)*J156))),2) -> 0 | N156: =IF(J156=0,0,IF(OR(F156>BE156,I156<BD156),ERROR.TYPE(7),ROUND(IF(BD156<=F156,0,IF(BD156>H156,((((G156-F156)*0.5+(H156-G156))*J156)+((ROUND((I156-BD156)/(I156-H156),3)*J156+J156)*0.5*(BD156-H156))),IF(BD156>G156,(((G156-F156)*0.5+(BD156-G156))*J156),IF(BD156>F156,((ROUND((BD156-F156)/(G156-F156),3)*J156)*0.5*(BD156-F156)))))),2))) -> 0 | O156: =IF(J156=0,0,IF(I156<BD156,"#N/A",ROUND(IF(BE156>=I156,0,IF(BE156>H156,((ROUND((I156-BE156)/(I156-H156),3)*J156)*0.5*(I156-BE156)),IF(BE156>G156,(((H156-BE156)+(I156-H156)*0.5)*J156),IF(BE156>F156,((((H156-G156)+(I156-H156)*0.5)*J156)+((ROUND((BE156-F156)/(G156-F156),3)*J156+J156)*0.5*(G156-BE156))))))),2))) -> 0 | P156: =+M156-N156-O156 -> 0 | BD156: =IF(AND(E156=0,J156=0),0,VLOOKUP(E156,$CO$129:$CQ$152,1,TRUE)) -> 0 | BE156: =IF(E156=0,0,VLOOKUP(E156,$CO$129:$CQ$152,3,TRUE)) -> 0 | BH156: =IF(Q156="",P156,0)+IF(Q156=BH$155,P156,0) -> 0 | BI156: =IF(Q156=BI$155,P156,0) -> 0 | BJ156: =IF(Q156=BJ$155,P156,0) -> 0 | BK156: =IF(Q156=BK$155,P156,0) -> 0 | BL156: =IF(Q156=BL$155,P156,0) -> 0 | BM156: =IF(Q156=BM$155,P156,0) -> 0
C157: =IF(E157=0,0,MAX($C$156:C156)+1) -> 0 | M157: =ROUNDDOWN(IF(AND(G157=0,I157=0),(H157-F157)*2/3*J157,IF(AND(F157=0,G157=0),(((I157-BE157)/(I157-H157)*J157)*0.5*(I157-BE157)),IF(AND(H157=0,I157=0),((BE157-F157)/(G157-F157)*J157*0.5*(BE157-F157)),((G157-F157)*0.5+(H157-G157)+(I157-H157)*0.5)*J157))),2) -> 0 | N157: =IF(J157=0,0,IF(OR(F157>BE157,I157<BD157),ERROR.TYPE(7),ROUND(IF(BD157<=F157,0,IF(BD157>H157,((((G157-F157)*0.5+(H157-G157))*J157)+((ROUND((I157-BD157)/(I157-H157),3)*J157+J157)*0.5*(BD157-H157))),IF(BD157>G157,(((G157-F157)*0.5+(BD157-G157))*J157),IF(BD157>F157,((ROUND((BD157-F157)/(G157-F157),3)*J157)*0.5*(BD157-F157)))))),2))) -> 0 | O157: 0 | P157: 0 | BD157: 0 | BE157: 0 | BH157: 0 | BI157: 0 | BJ157: 0 | BK157: 0 | BL157: =IF(Q157=BL$155,P157,0) -> 0 | BM157: 0
C158: =IF(E158=0,0,MAX($C$156:C157)+1) -> 0 | M158: 0 | N158: 0 | O158: 0 | P158: 0 | BD158: 0 | BE158: 0 | BH158: 0 | BI158: 0 | BJ158: 0 | BK158: 0 | BL158: 0 | BM158: 0
C159: =IF(E159=0,0,MAX($C$156:C158)+1) -> 0 | M159: 0 | N159: 0 | O159: 0 | P159: 0 | BD159: 0 | BE159: 0 | BH159: 0 | BI159: 0 | BJ159: 0 | BK159: 0 | BL159: 0 | BM159: 0
C160: =IF(E160=0,0,MAX($C$156:C159)+1) -> 0 | M160: 0 | N160: 0 | O160: 0 | P160: 0 | BD160: 0 | BE160: 0 | BH160: 0 | BI160: 0 | BJ160: 0 | BK160: 0 | BL160: 0 | BM160: 0
C161: =IF(E161=0,0,MAX($C$156:C160)+1) -> 0 | M161: 0 | N161: 0 | O161: 0 | P161: 0 | BD161: 0 | BE161: 0 | BH161: 0 | BI161: 0 | BJ161: 0 | BK161: 0 | BL161: 0 | BM161: 0
C162: =IF(E162=0,0,MAX($C$156:C161)+1) -> 0 | M162: 0 | N162: 0 | O162: 0 | P162: 0 | BD162: 0 | BE162: 0 | BH162: 0 | BI162: 0 | BJ162: 0 | BK162: 0 | BL162: 0 | BM162: 0
C163: =IF(E163=0,0,MAX($C$156:C162)+1) -> 0 | M163: 0 | N163: 0 | O163: 0 | P163: 0 | BD163: 0 | BE163: 0 | BH163: 0 | BI163: 0 | BJ163: 0 | BK163: 0 | BL163: 0 | BM163: 0
C164: =IF(E164=0,0,MAX($C$156:C163)+1) -> 0 | M164: 0 | N164: 0 | O164: 0 | P164: 0 | BD164: 0 | BE164: 0 | BH164: 0 | BI164: 0 | BJ164: 0 | BK164: 0 | BL164: 0 | BM164: 0
C165: =IF(E165=0,0,MAX($C$156:C164)+1) -> 0 | M165: 0 | N165: 0 | O165: 0 | P165: 0 | BD165: 0 | BE165: 0 | BH165: 0 | BI165: 0 | BJ165: 0 | BK165: 0 | BL165: 0 | BM165: 0
C166: =IF(E166=0,0,MAX($C$156:C165)+1) -> 0 | M166: 0 | N166: 0 | O166: 0 | P166: 0 | BD166: 0 | BE166: 0 | BH166: 0 | BI166: 0 | BJ166: 0 | BK166: 0 | BL166: 0 | BM166: 0
C167: =IF(E167=0,0,MAX($C$156:C166)+1) -> 0 | M167: 0 | N167: 0 | O167: 0 | P167: 0 | BD167: 0 | BE167: 0 | BH167: 0 | BI167: 0 | BJ167: 0 | BK167: 0 | BL167: 0 | BM167: 0
C168: =IF(E168=0,0,MAX($C$156:C167)+1) -> 0 | M168: 0 | N168: 0 | O168: 0 | P168: 0 | BD168: 0 | BE168: 0 | BH168: 0 | BI168: 0 | BJ168: 0 | BK168: 0 | BL168: 0 | BM168: 0
C169: =IF(E169=0,0,MAX($C$156:C168)+1) -> 0 | M169: 0 | N169: 0 | O169: 0 | P169: 0 | BD169: 0 | BE169: 0 | BH169: 0 | BI169: 0 | BJ169: 0 | BK169: 0 | BL169: 0 | BM169: 0
C170: =IF(E170=0,0,MAX($C$156:C169)+1) -> 0 | M170: 0 | N170: 0 | O170: 0 | P170: 0 | BD170: 0 | BE170: 0 | BH170: 0 | BI170: 0 | BJ170: 0 | BK170: 0 | BL170: 0 | BM170: 0
C171: =IF(E171=0,0,MAX($C$156:C170)+1) -> 0 | M171: 0 | N171: 0 | O171: 0 | P171: 0 | BD171: 0 | BE171: 0 | BH171: 0 | BI171: 0 | BJ171: 0 | BK171: 0 | BL171: 0 | BM171: 0
C172: =IF(E172=0,0,MAX($C$156:C171)+1) -> 0 | M172: 0 | N172: 0 | O172: 0 | P172: 0 | BD172: 0 | BE172: 0 | BH172: 0 | BI172: 0 | BJ172: 0 | BK172: 0 | BL172: 0 | BM172: 0
C173: =IF(E173=0,0,MAX($C$156:C172)+1) -> 0 | M173: 0 | N173: 0 | O173: 0 | P173: 0 | BD173: 0 | BE173: 0 | BH173: 0 | BI173: 0 | BJ173: 0 | BK173: 0 | BL173: 0 | BM173: 0
C174: =IF(E174=0,0,MAX($C$156:C173)+1) -> 0 | M174: 0 | N174: 0 | O174: 0 | P174: 0 | BD174: 0 | BE174: 0 | BH174: 0 | BI174: 0 | BJ174: 0 | BK174: 0 | BL174: 0 | BM174: 0
C175: =IF(E175=0,0,MAX($C$156:C174)+1) -> 0 | M175: 0 | N175: 0 | O175: 0 | P175: 0 | BD175: 0 | BE175: 0 | BH175: 0 | BI175: 0 | BJ175: 0 | BK175: 0 | BL175: 0 | BM175: 0
C176: =IF(E176=0,0,MAX($C$156:C175)+1) -> 0 | M176: 0 | N176: 0 | O176: 0 | P176: 0 | BD176: 0 | BE176: 0 | BH176: 0 | BI176: 0 | BJ176: 0 | BK176: 0 | BL176: 0 | BM176: 0
C177: =IF(E177=0,0,MAX($C$156:C176)+1) -> 0 | M177: 0 | N177: 0 | O177: 0 | P177: 0 | BD177: 0 | BE177: 0 | BH177: 0 | BI177: 0 | BJ177: 0 | BK177: 0 | BL177: 0 | BM177: 0
C178: =IF(E178=0,0,MAX($C$156:C177)+1) -> 0 | M178: 0 | N178: 0 | O178: 0 | P178: 0 | BD178: 0 | BE178: 0 | BH178: 0 | BI178: 0 | BJ178: 0 | BK178: 0 | BL178: 0 | BM178: 0
C179: =IF(E179=0,0,MAX($C$156:C178)+1) -> 0 | M179: 0 | N179: 0 | O179: =IF(J179=0,0,IF(I179<BD179,"#N/A",ROUND(IF(BE179>=I179,0,IF(BE179>H179,((ROUND((I179-BE179)/(I179-H179),3)*J179)*0.5*(I179-BE179)),IF(BE179>G179,(((H179-BE179)+(I179-H179)*0.5)*J179),IF(BE179>F179,((((H179-G179)+(I179-H179)*0.5)*J179)+((ROUND((BE179-F179)/(G179-F179),3)*J179+J179)*0.5*(G179-BE179))))))),2))) -> 0 | P179: 0 | BD179: 0 | BE179: 0 | BH179: 0 | BI179: 0 | BJ179: 0 | BK179: 0 | BL179: 0 | BM179: 0
C180: =IF(E180=0,0,MAX($C$156:C179)+1) -> 0 | M180: 0 | N180: 0 | O180: 0 | P180: 0 | BD180: 0 | BE180: 0 | BH180: 0 | BI180: 0 | BJ180: 0 | BK180: 0 | BL180: 0 | BM180: 0
C181: =IF(E181=0,0,MAX($C$156:C180)+1) -> 0 | M181: 0 | N181: 0 | O181: 0 | P181: 0 | BD181: 0 | BE181: 0 | BH181: 0 | BI181: 0 | BJ181: 0 | BK181: 0 | BL181: 0 | BM181: 0
C182: =IF(E182=0,0,MAX($C$156:C181)+1) -> 0 | M182: 0 | N182: 0 | O182: 0 | P182: 0 | BD182: 0 | BE182: 0 | BH182: 0 | BI182: 0 | BJ182: 0 | BK182: 0 | BL182: 0 | BM182: 0
C183: =IF(E183=0,0,MAX($C$156:C182)+1) -> 0 | M183: 0 | N183: 0 | O183: 0 | P183: 0 | BD183: 0 | BE183: 0 | BH183: 0 | BI183: 0 | BJ183: 0 | BK183: 0 | BL183: 0 | BM183: 0
C184: =IF(E184=0,0,MAX($C$156:C183)+1) -> 0 | M184: 0 | N184: 0 | O184: 0 | P184: 0 | BD184: 0 | BE184: 0 | BH184: 0 | BI184: 0 | BJ184: 0 | BK184: 0 | BL184: 0 | BM184: 0
C185: =IF(E185=0,0,MAX($C$156:C184)+1) -> 0 | M185: 0 | N185: 0 | O185: 0 | P185: 0 | BD185: 0 | BE185: 0 | BH185: 0 | BI185: 0 | BJ185: 0 | BK185: 0 | BL185: 0 | BM185: 0
C186: =IF(E186=0,0,MAX($C$156:C185)+1) -> 0 | M186: 0 | N186: 0 | O186: 0 | P186: 0 | BD186: 0 | BE186: 0 | BH186: 0 | BI186: 0 | BJ186: 0 | BK186: 0 | BL186: 0 | BM186: 0
C187: =IF(E187=0,0,MAX($C$156:C186)+1) -> 0 | M187: 0 | N187: 0 | O187: 0 | P187: 0 | BD187: 0 | BE187: 0 | BH187: 0 | BI187: 0 | BJ187: 0 | BK187: 0 | BL187: 0 | BM187: 0
C188: =IF(E188=0,0,MAX($C$156:C187)+1) -> 0 | M188: 0 | N188: 0 | O188: 0 | P188: =+M188-N188-O188 -> 0 | BD188: =IF(AND(E188=0,J188=0),0,VLOOKUP(E188,$CO$129:$CQ$152,1,TRUE)) -> 0 | BE188: =IF(E188=0,0,VLOOKUP(E188,$CO$129:$CQ$152,3,TRUE)) -> 0 | BH188: =IF(Q188="",P188,0)+IF(Q188=BH$155,P188,0) -> 0 | BI188: =IF(Q188=BI$155,P188,0) -> 0 | BJ188: =IF(Q188=BJ$155,P188,0) -> 0 | BK188: =IF(Q188=BK$155,P188,0) -> 0 | BL188: 0 | BM188: =IF(Q188=BM$155,P188,0) -> 0
C189: =IF(E189=0,0,MAX($C$156:C188)+1) -> 0 | M189: 0 | N189: 0 | O189: 0 | P189: 0 | BD189: 0 | BE189: 0 | BH189: 0 | BI189: 0 | BJ189: 0 | BK189: 0 | BL189: 0 | BM189: 0
C190: =IF(E190=0,0,MAX($C$156:C189)+1) -> 0 | M190: 0 | N190: 0 | O190: 0 | P190: 0 | BD190: 0 | BE190: 0 | BH190: 0 | BI190: 0 | BJ190: 0 | BK190: 0 | BL190: 0 | BM190: 0
C191: =IF(E191=0,0,MAX($C$156:C190)+1) -> 0 | M191: 0 | N191: 0 | O191: 0 | P191: 0 | BD191: 0 | BE191: 0 | BH191: 0 | BI191: 0 | BJ191: 0 | BK191: 0 | BL191: 0 | BM191: 0
C192: =IF(E192=0,0,MAX($C$156:C191)+1) -> 0 | M192: 0 | N192: 0 | O192: 0 | P192: 0 | BD192: 0 | BE192: 0 | BH192: 0 | BI192: 0 | BJ192: 0 | BK192: 0 | BL192: 0 | BM192: 0
C193: =IF(E193=0,0,MAX($C$156:C192)+1) -> 0 | M193: 0 | N193: 0 | O193: 0 | P193: 0 | BD193: 0 | BE193: 0 | BH193: 0 | BI193: 0 | BJ193: 0 | BK193: 0 | BL193: 0 | BM193: 0
C194: =IF(E194=0,0,MAX($C$156:C193)+1) -> 0 | M194: 0 | N194: 0 | O194: 0 | P194: 0 | BD194: 0 | BE194: 0 | BH194: 0 | BI194: 0 | BJ194: 0 | BK194: 0 | BL194: 0 | BM194: 0
C195: =IF(E195=0,0,MAX($C$156:C194)+1) -> 0 | M195: 0 | N195: 0 | O195: 0 | P195: 0 | BD195: 0 | BE195: 0 | BH195: 0 | BI195: 0 | BJ195: 0 | BK195: 0 | BL195: 0 | BM195: 0
C196: =IF(E196=0,0,MAX($C$156:C195)+1) -> 0 | M196: 0 | N196: 0 | O196: 0 | P196: 0 | BD196: 0 | BE196: 0 | BH196: 0 | BI196: 0 | BJ196: 0 | BK196: 0 | BL196: 0 | BM196: 0
C197: =IF(E197=0,0,MAX($C$156:C196)+1) -> 0 | M197: 0 | N197: 0 | O197: 0 | P197: 0 | BD197: 0 | BE197: 0 | BH197: 0 | BI197: 0 | BJ197: 0 | BK197: 0 | BL197: 0 | BM197: 0
C198: =IF(E198=0,0,MAX($C$156:C197)+1) -> 0 | M198: 0 | N198: 0 | O198: 0 | P198: 0 | BD198: 0 | BE198: 0 | BH198: 0 | BI198: 0 | BJ198: 0 | BK198: 0 | BL198: 0 | BM198: 0
C199: =IF(E199=0,0,MAX($C$156:C198)+1) -> 0 | M199: 0 | N199: 0 | O199: 0 | P199: 0 | BD199: 0 | BE199: 0 | BH199: 0 | BI199: 0 | BJ199: 0 | BK199: 0 | BL199: 0 | BM199: 0
C200: =IF(E200=0,0,MAX($C$156:C199)+1) -> 0 | M200: 0 | N200: 0 | O200: 0 | P200: 0 | BD200: 0 | BE200: 0 | BH200: 0 | BI200: 0 | BJ200: 0 | BK200: 0 | BL200: 0 | BM200: 0
C201: =IF(E201=0,0,MAX($C$156:C200)+1) -> 0 | M201: 0 | N201: 0 | O201: 0 | P201: 0 | BD201: 0 | BE201: 0 | BH201: 0 | BI201: 0 | BJ201: 0 | BK201: 0 | BL201: 0 | BM201: 0
C202: =IF(E202=0,0,MAX($C$156:C201)+1) -> 0 | M202: 0 | N202: 0 | O202: 0 | P202: 0 | BD202: 0 | BE202: 0 | BH202: 0 | BI202: 0 | BJ202: 0 | BK202: 0 | BL202: 0 | BM202: 0
C203: =IF(E203=0,0,MAX($C$156:C202)+1) -> 0 | M203: 0 | N203: 0 | O203: 0 | P203: 0 | BD203: 0 | BE203: 0 | BH203: 0 | BI203: 0 | BJ203: 0 | BK203: 0 | BL203: =IF(Q203=BL$155,P203,0) -> 0 | BM203: 0
... 416 more rows

Sheet ราคากลาง1 (hidden)
A1: =IF(L4=1,"แบบสรุปการประเมินราคางาน","แบบสรุปราคากลางงาน")&ข้อมูลโครงการ!G2 -> แบบสรุปการประเมินราคางานก่อสร้างขยายใหล่ทางคอนกรีตเสริมเหล็ก พร้อมระบบระบายน้ำ 2 ข้างทางตามแบบมาตฐานงานทางสำหรับ อปท
A2: ส่วนราชการ | C2: =CONCATENATE("",ข้อมูลโครงการ!G5) -> งานแบบแผนและก่อสร้าง | G2: =IF(ข้อมูลโครงการ!O5="-","",CONCATENATE("",ข้อมูลโครงการ!O5)) -> กองช่างเทศบาลตำบลนากลาง
C3: =CONCATENATE("กรม",ข้อมูลโครงการ!G4) -> กรมสำนักงานเทศบาลตำบลนากลาง | G3: =CONCATENATE("กระทรวง",ข้อมูลโครงการ!O4) -> กระทรวงมหาดไทย
A4: ประเภทงาน | C4: =ข้อมูลโครงการ!G2 -> ก่อสร้างขยายใหล่ทางคอนกรีตเสริมเหล็ก พร้อมระบบระบายน้ำ 2 ข้างทางตามแบบมาตฐานงานทางสำหรับ อปท | L4: 1 | N4: 2
A5: สถานที่ก่อสร้าง | C5: =CONCATENATE(ข้อมูลโครงการ!$G$7) -> ซอยจันทร์สุวรรณ
C6: =ปร.4!C3&" ระยะทางดำเนินการ "&ปร.5!C24&" กิโลเมตร" -> บ้านกุดแห่ หมู่ 1 ตำบลกุดแห่ อำเภอนากลาง จังหวัดหนองบัวลำภู ระยะทางดำเนินการ 0.356 กิโลเมตร
A7: ประมาณราคา | C7: =ข้อมูลโครงการ!G3+3 -> 2020-02-14
A9: 1 | B9: ผลรวมค่างานต้นทุนงานก่อสร้างทาง | H9: = | I9: =ปร.4!O200 -> 585628 | J9: บาท
A10: 2 | B10: ผลรวมค่างานต้นทุนงานก่อสร้างสะพานและท่อเหลี่ยม | H10: = | I10: =IF(ปร.4!O241=0,"-",ปร.4!O241) -> - | J10: บาท
A11: 3 | B11: ผลรวมค่าใช้จ่ายพิเศษตามข้อกำหนดและค่าใช้จ่ายอื่นๆ | H11: = | I11: =IF(ปร.4!O247=0,"-",ปร.4!O247) -> - | J11: บาท
A13: 4 | B13: ค่า Factor F งานก่อสร้างทาง | H13: = | I13: =ROUND(IF(ข้อมูลโครงการ!R13="ปกติ",Factor_FR!C53,IF(ข้อมูลโครงการ!R13="ฝนตกชุก 1",Factor_FR!D53,Factor_FR!E53)),4) -> 1.3592
A14: 5 | B14: ค่า Factor F งานก่อสร้างสะพานและท่อเหลี่ยม | H14: = | I14: =IF(I10="-","-",ROUND(Factor_FB!C194,4)) -> -
A16: 6 | B16: ค่า Factot F ค่าใช้จ่ายพิเศษตามข้อกำหนดฯ | H16: = | I16: =IF(I11=0,"-",1) -> 1
A17: 7 | B17: ค่า Factot F งานก่อสร้างทางซึ่งรวมค่าใช้จ่ายพิเศษตามข้อกำหนดฯ (Factor FN) = 4X6 | H17: = | I17: =ROUNDDOWN(I13*I16,4) -> 1.3592
A18: 8 | B18: ค่า Factor F งานก่อสร้างสะพานและท่อเหลี่ยมซื่งรวมค่าใช้จ่ายพิเศษตามข้อกำหนดฯ (Factor FN) = 5X6 | H18: = | I18: =IF(I10="-","-",ROUNDDOWN(I14*I16,4)) -> -
A20: 9 | B20: รวมเป็นค่าก่อสร้าง | H20: = | I20: =ปร.5!G20 -> 803825.58 | J20: บาท
A21: 10 | B21: =IF(L4=1,"คิดเป็นราคาค่าก่อสร้างประมาณ","คิดเป็นราคากลางค่าก่อสร้างประมาณ") -> คิดเป็นราคาค่าก่อสร้างประมาณ | H21: = | I21: =ปร.5!G21 -> 803800 | J21: บาท
G23: คณะกรรมการกำหนดราคากลาง
B25: ผู้ประมาณราคา | H25: ประธานกรรมการ
C26: =CONCATENATE("(",ข้อมูลโครงการ!G18,")") -> (นายวิทยา ทิพย์ทอง) | G26: =CONCATENATE("(",ข้อมูลโครงการ!O19,")") -> (นายประยุทธ์ เย็นอารมย์)
C27: =ข้อมูลโครงการ!G19 -> นายช่างโยธาชำนาญงาน | G27: =ข้อมูลโครงการ!O20 -> ผู้อำนวยการกองช่าง
B29: ตรวจ | H29: กรรมการ
B30: (ผู้อำนวยการส่วนอำนวยการ) | C30: =CONCATENATE("(",ข้อมูลโครงการ!G20,")") -> (นายคำสอน อักษรกลาง) | G30: =CONCATENATE("(",ข้อมูลโครงการ!O21,")") -> (นายชัชฤทธิ์ ระวิพันธ์)
C31: =ข้อมูลโครงการ!G21 -> นายช่างโยธาอาวุโส | G31: =ข้อมูลโครงการ!O22 -> หัวหน้าฝ่ายการโยธา
B33: เห็นชอบ | H33: กรรมการ
B34: (ผู้อำนวยการส่วนอำนวยการ) | C34: =CONCATENATE("(",ข้อมูลโครงการ!G22,")") -> (นายประยุทธ์ เย็นอารมย์) | G34: =CONCATENATE("(",ข้อมูลโครงการ!O23,")") -> (นายชัชฤทธิ์ ระวิพันธ์)
C35: =ข้อมูลโครงการ!G23 -> ผู้อำนวยการกองช่าง | G35: =ข้อมูลโครงการ!O24 -> หัวหน้าฝ่ายการโยธา
B37: เห็นชอบ
B38: (ผู้อำนวยการส่วนอำนวยการ) | C38: =CONCATENATE("(",ข้อมูลโครงการ!G24,")") -> (นายชัยพร ขันทะชา)
C39: =ข้อมูลโครงการ!G25 -> ปลัดเทศบาลตำบลนากลาง
B41: =IF(L4=1,"อนุมัติ","เห็นชอบ") -> อนุมัติ
B42: (ผู้อำนวยการส่วนอำนวยการ) | C42: =IF(L4=1,"("&ข้อมูลโครงการ!G26&")",CONCATENATE("(",IF(N4=1,ข้อมูลโครงการ!G26,ข้อมูลโครงการ!G22),")")) -> (นายทองหลั่น เกษทองมา)
C43: =IF(L4=1,ข้อมูลโครงการ!G27,IF(N4=1,ข้อมูลโครงการ!G27,ข้อมูลโครงการ!G23)) -> นายกเทศมนตรีตำบลนากลาง

Sheet ราคากลาง
A1: สรุปราคากลาง
C2: ส่วนราชการ | G2: =+ข้อมูลโครงการ!G5 -> งานแบบแผนและก่อสร้าง | P2: =+ข้อมูลโครงการ!O5 -> กองช่างเทศบาลตำบลนากลาง
G3: =+ข้อมูลโครงการ!C4&ข้อมูลโครงการ!G4 -> สำนักงานเทศบาลตำบลนากลาง | P3: =+ข้อมูลโครงการ!N4&ข้อมูลโครงการ!O4 -> กระทรวงมหาดไทย
C4: ประเภทงาน | G4: =+ข้อมูลโครงการ!G2 -> ก่อสร้างขยายใหล่ทางคอนกรีตเสริมเหล็ก พร้อมระบบระบายน้ำ 2 ข้างทางตามแบบมาตฐานงานทางสำหรับ อปท
C5: สถานที่ก่อสร้าง | G5: =+ข้อมูลโครงการ!G7 -> ซอยจันทร์สุวรรณ
G6: =+ข้อมูลโครงการ!G8 -> บ้านกุดแห่ หมู่ 1 ตำบลกุดแห่ อำเภอนากลาง จังหวัดหนองบัวลำภู
C7: ประมาณราคา | G7: เมื่อวันที่ | H7: =+ข้อมูลโครงการ!G3 -> 2020-02-11 | I7: เดือน | J7: =+ข้อมูลโครงการ!G3 -> 43872 | L7: =+ข้อมูลโครงการ!G3 -> 43872
A9: ลำดับ | B9: รายการ | L9: หน่วย | M9: จำนวน | N9: ราคาต่อหน่วย | O9: ราคาต้นทุน | P9: FN | Q9: ราคาต่อหน่วย X FN | R9: ราคากลาง
B11: =+ปร.4!B14 -> ประเภทงานก่อสร้างทาง
A12: =+ปร.4!A15 -> 1 | B12: =+ปร.4!B15 -> งานรื้อย้าย
B13: =+ปร.4!B16 -> 1.1 | C13: =+ปร.4!C16 -> งานรื้อผิวจราจรลาดยางเดิม (ความหนา 5 ซม.) | L13: =+ปร.4!L16 -> ตร.ม. | M13: =+ปร.4!M16 -> 0 | N13: =+ปร.4!N16 -> 0 | O13: =+M13*N13 -> 0 | P13: =IF(M13=0,0,ปร.5!$I$20) -> 0 | Q13: =+N13*P13 -> 0 | R13: =+O13*P13 -> 0
B14: =+ปร.4!B17 -> 1.2 | C14: =+ปร.4!C17 -> งานรื้อผิวจราจร คสล. เดิม (ความหนา 10 ซม.) | L14: =+ปร.4!L17 -> ตร.ม. | M14: =+ปร.4!M17 -> 0 | N14: =+ปร.4!N17 -> 0 | O14: =+M14*N14 -> 0 | P14: =IF(M14=0,0,ปร.5!$I$20) -> 0 | Q14: =+N14*P14 -> 0 | R14: =+O14*P14 -> 0
B15: =+ปร.4!B18 -> 1.3 | C15: =+ปร.4!C18 -> งานรื้อ ท่อลอดเหลี่ยมเดิม | L15: =+ปร.4!L18 -> เหมาจ่าย | M15: =+ปร.4!M18 -> 0 | N15: =+ปร.4!N18 -> 0 | O15: 0 | P15: =IF(M15=0,0,ปร.5!$I$20) -> 0 | Q15: 0 | R15: 0
B16: =+ปร.4!B19 -> 1.4 | C16: =+ปร.4!C19 -> งานรื้อ สะพานเดิม | L16: =+ปร.4!L19 -> เหมาจ่าย | M16: =+ปร.4!M19 -> 0 | N16: =+ปร.4!N19 -> 0 | O16: 0 | P16: =IF(M16=0,0,ปร.5!$I$20) -> 0 | Q16: 0 | R16: 0
B17: =+ปร.4!B20 -> 1.5 | C17: =+ปร.4!C20 -> งานรื้อหินคลุกเดิม(ขนกอง) (ความหนา 20 ซม.) | L17: =+ปร.4!L20 -> ตร.ม. | M17: =+ปร.4!M20 -> 0 | N17: =+ปร.4!N20 -> 0 | O17: 0 | P17: =IF(M17=0,0,ปร.5!$I$20) -> 0 | Q17: 0 | R17: 0
A18: =+ปร.4!A21 -> 2 | B18: =+ปร.4!B21 -> งานคันทางเดิม
B19: =+ปร.4!B22 -> 2.1 | C19: =+ปร.4!C22 -> งานกรุยทางถางป่า | L19: =+ปร.4!L22 -> ตร.ม. | M19: =+ปร.4!M22 -> 0 | N19: =+ปร.4!N22 -> 0 | O19: 0 | P19: =IF(M19=0,0,ปร.5!$I$20) -> 0 | Q19: 0 | R19: 0
B20: =+ปร.4!B23 -> 2.2 | C20: =+ปร.4!C23 -> งานปรับเกลี่ยแต่งคันทางเดิมและบดทับ | L20: =+ปร.4!L23 -> ตร.ม. | M20: =+ปร.4!M23 -> 0 | N20: =+ปร.4!N23 -> 0 | O20: 0 | P20: =IF(M20=0,0,ปร.5!$I$20) -> 0 | Q20: 0 | R20: 0
B21: =+ปร.4!B24 -> 2.3 | C21: =+ปร.4!C24 -> งานตัดขึ้นรูปคันทาง
C22: =+ปร.4!C25 -> 2.3.1 งานดินตัด | L22: =+ปร.4!L25 -> ลบ.ม. | M22: =+ปร.4!M25 -> 0 | N22: =+ปร.4!N25 -> 0 | O22: 0 | P22: =IF(M22=0,0,ปร.5!$I$20) -> 0 | Q22: 0 | R22: 0
C23: =+ปร.4!C26 -> 2.3.2 งานขุดตัดหินผุ | L23: =+ปร.4!L26 -> ลบ.ม. | M23: =+ปร.4!M26 -> 0 | N23: =+ปร.4!N26 -> 0 | O23: 0 | P23: =IF(M23=0,0,ปร.5!$I$20) -> 0 | Q23: 0 | R23: 0
C24: =+ปร.4!C27 -> 2.3.3 งานขุดตัดหินแข็ง | L24: =+ปร.4!L27 -> ลบ.ม. | M24: =+ปร.4!M27 -> 0 | N24: =+ปร.4!N27 -> 0 | O24: 0 | P24: =IF(M24=0,0,ปร.5!$I$20) -> 0 | Q24: 0 | R24: 0
C25: =+ปร.4!C28 -> 2.3.4 งานขุดวัสดุไม่เหมาะสม | L25: =+ปร.4!L28 -> ลบ.ม. | M25: =+ปร.4!M28 -> 0 | N25: =+ปร.4!N28 -> 0 | O25: 0 | P25: =IF(M25=0,0,ปร.5!$I$20) -> 0 | Q25: 0 | R25: 0
C26: =+ปร.4!C29 -> 2.3.5 งานตัดแต่งขั้นบันได | L26: =+ปร.4!L29 -> ลบ.ม. | M26: =+ปร.4!M29 -> 0 | N26: =+ปร.4!N29 -> 0 | O26: 0 | P26: =IF(M26=0,0,ปร.5!$I$20) -> 0 | Q26: 0 | R26: 0
B27: =+ปร.4!B30 -> 2.4 | C27: =+ปร.4!C30 -> งานดินถมไหล่ทาง
C28: =+ปร.4!C31 -> 2.4.1 งานดินถม
C29: =+ปร.4!C32 -> 2.4.1(1) งานดินถม(จากงานดินตัด) | L29: =+ปร.4!L32 -> ลบ.ม. | M29: =+ปร.4!M32 -> 0 | N29: =+ปร.4!N32 -> 0 | O29: 0 | P29: =IF(M29=0,0,ปร.5!$I$20) -> 0 | Q29: 0 | R29: 0
C30: =+ปร.4!C33 -> 2.4.1(2) งานดินถม(จากนอกโครงการ) | L30: =+ปร.4!L33 -> ลบ.ม. | M30: =+ปร.4!M33 -> 0 | N30: =+ปร.4!N33 -> 0 | O30: 0 | P30: =IF(M30=0,0,ปร.5!$I$20) -> 0 | Q30: 0 | R30: 0
C31: =+ปร.4!C34 -> 2.4.2 งานทรายรองผิวทาง คสล. | L31: =+ปร.4!L34 -> ลบ.ม. | M31: =+ปร.4!M34 -> 16.05 | N31: =+ปร.4!N34 -> 680 | O31: 10914 | P31: =IF(M31=0,0,ปร.5!$I$20) -> 1.3592 | Q31: 924.256 | R31: 14834.3088
B32: =+ปร.4!B35 -> 2.5 | C32: =+ปร.4!C35 -> งานวัสดุคัดเลือก | L32: =+ปร.4!L35 -> ลบ.ม. | M32: =+ปร.4!M35 -> 0 | N32: =+ปร.4!N35 -> 0 | O32: 0 | P32: =IF(M32=0,0,ปร.5!$I$20) -> 0 | Q32: 0 | R32: 0
A33: =+ปร.4!A36 -> 3 | B33: =+ปร.4!B36 -> งานพื้นทางและรองพื้นทาง
B34: =+ปร.4!B37 -> 3.1 | C34: =+ปร.4!C37 -> งานรองพื้นทาง
C35: =+ปร.4!C38 -> 3.1.1 งานรองพื้นทางลูกรัง | L35: =+ปร.4!L38 -> ลบ.ม. | M35: =+ปร.4!M38 -> 0 | N35: =+ปร.4!N38 -> 0 | O35: 0 | P35: =IF(M35=0,0,ปร.5!$I$20) -> 0 | Q35: 0 | R35: 0
C36: =+ปร.4!C39 -> 3.1.2 งานรองพื้นทางดินซีเมนต์ | L36: =+ปร.4!L39 -> ลบ.ม. | M36: =+ปร.4!M39 -> 0 | N36: =+ปร.4!N39 -> 0 | O36: 0 | P36: =IF(M36=0,0,ปร.5!$I$20) -> 0 | Q36: 0 | R36: 0
C37: =+ปร.4!C40 -> 3.1.3 งานทรายรองพื้นทาง | L37: =+ปร.4!L40 -> ลบ.ม. | M37: =+ปร.4!M40 -> 0 | N37: =+ปร.4!N40 -> 0 | O37: 0 | P37: =IF(M37=0,0,ปร.5!$I$20) -> 0 | Q37: 0 | R37: 0
B38: =+ปร.4!B41 -> 3.2 | C38: =+ปร.4!C41 -> งานพื้นทาง
C39: =+ปร.4!C42 -> 3.2.1 งานพื้นทางหินคลุก | L39: =+ปร.4!L42 -> ลบ.ม. | M39: =+ปร.4!M42 -> 0 | N39: =+ปร.4!N42 -> 0 | O39: 0 | P39: =IF(M39=0,0,ปร.5!$I$20) -> 0 | Q39: 0 | R39: 0
C40: =+ปร.4!C43 -> 3.2.2 งานพื้นทางดินซีเมนต์ | L40: =+ปร.4!L43 -> ลบ.ม. | M40: =+ปร.4!M43 -> 0 | N40: =+ปร.4!N43 -> 0 | O40: 0 | P40: =IF(M40=0,0,ปร.5!$I$20) -> 0 | Q40: 0 | R40: 0
B42: =+ปร.4!B44 -> 3.3 | C42: =+ปร.4!C44 -> งานปรับปรุงโครงสร้างถนนเดิม
C43: =+ปร.4!C45 -> 3.3.1(1) Deep Patch | L43: =+ปร.4!L45 -> ตร.ม. | M43: =+ปร.4!M45 -> 0 | N43: =+ปร.4!N45 -> 0 | O43: 0 | P43: =IF(M43=0,0,ปร.5!$I$20) -> 0 | Q43: 0 | R43: 0
C44: =+ปร.4!C46 -> 3.3.2(2) งาน Pavement In-Place Recycling | L44: =+ปร.4!L46 -> ตร.ม. | M44: =+ปร.4!M46 -> 0 | N44: =+ปร.4!N46 -> 0 | O44: 0 | P44: =IF(M44=0,0,ปร.5!$I$20) -> 0 | Q44: 0 | R44: 0
C45: =+ปร.4!C47 -> 3.3.2(3) งานหินคลุกปรับระดับ(หลวม) | L45: =+ปร.4!L47 -> ลบ.ม. | M45: =+ปร.4!M47 -> 0 | N45: =+ปร.4!N47 -> 0 | O45: 0 | P45: =IF(M45=0,0,ปร.5!$I$20) -> 0 | Q45: 0 | R45: 0
A46: =+ปร.4!A48 -> 4 | B46: =+ปร.4!B48 -> งานผิวทางและไหล่ทาง
B47: =+ปร.4!B49 -> 4.1 | C47: =+ปร.4!C49 -> งานผิวทาง + Widening
C48: =+ปร.4!C50 -> 4.1.1 งาน Prime Coat & Tack Coat สำหรับผิวทาง
C49: =+ปร.4!C51 -> 4.1.1(1) Prime Coat | L49: =+ปร.4!L51 -> ตร.ม. | M49: =+ปร.4!M51 -> 0 | N49: =+ปร.4!N51 -> 0 | O49: 0 | P49: =IF(M49=0,0,ปร.5!$I$20) -> 0 | Q49: 0 | R49: 0
C50: =+ปร.4!C52 -> 4.1.1(2) Tack Coat | L50: =+ปร.4!L52 -> ตร.ม. | M50: =+ปร.4!M52 -> 0 | N50: =+ปร.4!N52 -> 0 | O50: 0 | P50: =IF(M50=0,0,ปร.5!$I$20) -> 0 | Q50: 0 | R50: 0
C51: =+ปร.4!C53 -> 4.1.2 งานผิวทาง Cape Seal | L51: =+ปร.4!L53 -> ตร.ม. | M51: =+ปร.4!M53 -> 0 | N51: =+ปร.4!N53 -> 0 | O51: 0 | P51: =IF(M51=0,0,ปร.5!$I$20) -> 0 | Q51: 0 | R51: 0
C52: =+ปร.4!C54 -> 4.1.3 งานผิวทาง Asphalt concrete หนาเฉลี่ย 0.00 ซม.
C53: =+ปร.4!C55 -> 4.1.3(1) ปูบนผิว Prime Coat | L53: =+ปร.4!L55 -> ตร.ม. | M53: =+ปร.4!M55 -> 0 | N53: =+ปร.4!N55 -> 0 | O53: 0 | P53: =IF(M53=0,0,ปร.5!$I$20) -> 0 | Q53: 0 | R53: 0
C54: =+ปร.4!C56 -> 4.1.3(2) ปูบนผิว Tack Coat | L54: =+ปร.4!L56 -> ตร.ม. | M54: =+ปร.4!M56 -> 0 | N54: =+ปร.4!N56 -> 0 | O54: 0 | P54: =IF(M54=0,0,ปร.5!$I$20) -> 0 | Q54: 0 | R54: 0
C55: =+ปร.4!C57 -> 4.1.4 งานผิวทางและผิวทางเชื่อมคอนกรีตเสริมเหล็ก
C56: =+ปร.4!C58 -> 4.1.4(1) งานผิวทางคอนกรีตเสริมเหล็ก หนา 15 ซม. | L56: =+ปร.4!L58 -> ตร.ม. | M56: =+ปร.4!M58 -> 321 | N56: =+ปร.4!N58 -> 318 | O56: 102078 | P56: =IF(M56=0,0,ปร.5!$I$20) -> 1.3592 | Q56: 432.2256 | R56: 138744.4176
C57: =+ปร.4!C59 -> 4.1.4(2) Expansion Joint | L57: =+ปร.4!L59 -> ม. | M57: =+ปร.4!M59 -> 0 | N57: =+ปร.4!N59 -> 0 | O57: 0 | P57: =IF(M57=0,0,ปร.5!$I$20) -> 0 | Q57: 0 | R57: 0
C58: =+ปร.4!C60 -> 4.1.4(3) Contraction Joint | L58: =+ปร.4!L60 -> ม. | M58: =+ปร.4!M60 -> 0 | N58: =+ปร.4!N60 -> 0 | O58: 0 | P58: =IF(M58=0,0,ปร.5!$I$20) -> 0 | Q58: 0 | R58: 0
C59: =+ปร.4!C61 -> 4.1.4(4) Longitudinal Joint | L59: =+ปร.4!L61 -> ม. | M59: =+ปร.4!M61 -> 321 | N59: =+ปร.4!N61 -> 62 | O59: 19902 | P59: =IF(M59=0,0,ปร.5!$I$20) -> 1.3592 | Q59: 84.2704 | R59: 27050.7984
C60: =+ปร.4!C62 -> 4.1.5 งานผิวทาง Para Cape Seal | L60: =+ปร.4!L62 -> ตร.ม. | M60: =+ปร.4!M62 -> 0 | N60: =+ปร.4!N62 -> 0 | O60: 0 | P60: =IF(M60=0,0,ปร.5!$I$20) -> 0 | Q60: 0 | R60: 0
C61: =+ปร.4!C63 -> 4.1.6 งานผิวทางลูกรัง | L61: =+ปร.4!L63 -> ลบ.ม. | M61: =+ปร.4!M63 -> 0 | N61: =+ปร.4!N63 -> 0 | O61: 0 | P61: =IF(M61=0,0,ปร.5!$I$20) -> 0 | Q61: 0 | R61: 0
B62: =+ปร.4!B64 -> 4.2 | C62: =+ปร.4!C64 -> งานไหล่ทาง
C63: =+ปร.4!C65 -> 4.2.1 งาน Prime Coat & Tack Coat สำหรับผิวไหล่ทาง
C64: =+ปร.4!C66 -> 4.2.1(1) Prime Coat | L64: =+ปร.4!L66 -> ตร.ม. | M64: =+ปร.4!M66 -> 0 | N64: =+ปร.4!N66 -> 0 | O64: 0 | P64: =IF(M64=0,0,ปร.5!$I$20) -> 0 | Q64: 0 | R64: 0
C65: =+ปร.4!C67 -> 4.2.1(2) Tack Coat | L65: =+ปร.4!L67 -> ตร.ม. | M65: =+ปร.4!M67 -> 0 | N65: =+ปร.4!N67 -> 0 | O65: 0 | P65: =IF(M65=0,0,ปร.5!$I$20) -> 0 | Q65: 0 | R65: 0
C66: =+ปร.4!C68 -> 4.2.2 งานผิวไหล่ทาง Cape Seal | L66: =+ปร.4!L68 -> ตร.ม. | M66: =+ปร.4!M68 -> 0 | N66: =+ปร.4!N68 -> 0 | O66: 0 | P66: =IF(M66=0,0,ปร.5!$I$20) -> 0 | Q66: 0 | R66: 0
C67: =+ปร.4!C69 -> 4.2.3 งานผิวไหล่ทาง Asphalt concrete หนาเฉลี่ย 0.00 ซม.
C68: =+ปร.4!C70 -> 4.2.3(1) ปูบนผิว Prime Coat | L68: =+ปร.4!L70 -> ตร.ม. | M68: =+ปร.4!M70 -> 0 | N68: =+ปร.4!N70 -> 0 | O68: 0 | P68: =IF(M68=0,0,ปร.5!$I$20) -> 0 | Q68: 0 | R68: 0
C69: =+ปร.4!C71 -> 4.2.3(2) ปูบนผิว Tack Coat | L69: =+ปร.4!L71 -> ตร.ม. | M69: =+ปร.4!M71 -> 0 | N69: =+ปร.4!N71 -> 0 | O69: 0 | P69: =IF(M69=0,0,ปร.5!$I$20) -> 0 | Q69: 0 | R69: 0
C70: =+ปร.4!C72 -> 0
C71: =+ปร.4!C73 -> 0 | L71: =+ปร.4!L73 -> 0 | M71: =+ปร.4!M73 -> 0 | N71: =+ปร.4!N73 -> 0 | O71: 0 | P71: =IF(M71=0,0,ปร.5!$I$20) -> 0 | Q71: 0 | R71: 0
C72: =+ปร.4!C74 -> 0 | L72: =+ปร.4!L74 -> 0 | M72: =+ปร.4!M74 -> 0 | N72: =+ปร.4!N74 -> 0 | O72: 0 | P72: =IF(M72=0,0,ปร.5!$I$20) -> 0 | Q72: 0 | R72: 0
C73: =+ปร.4!C75 -> 0 | L73: =+ปร.4!L75 -> 0 | M73: =+ปร.4!M75 -> 0 | N73: =+ปร.4!N75 -> 0 | O73: 0 | P73: =IF(M73=0,0,ปร.5!$I$20) -> 0 | Q73: 0 | R73: 0
C74: =+ปร.4!C76 -> 0 | L74: =+ปร.4!L76 -> 0 | M74: =+ปร.4!M76 -> 0 | N74: =+ปร.4!N76 -> 0 | O74: 0 | P74: =IF(M74=0,0,ปร.5!$I$20) -> 0 | Q74: 0 | R74: 0
C75: =+ปร.4!C77 -> 0 | L75: =+ปร.4!L77 -> 0 | M75: =+ปร.4!M77 -> 0 | N75: =+ปร.4!N77 -> 0 | O75: 0 | P75: =IF(M75=0,0,ปร.5!$I$20) -> 0 | Q75: 0 | R75: 0
C76: =+ปร.4!C78 -> 0 | L76: =+ปร.4!L78 -> 0 | M76: =+ปร.4!M78 -> 0 | N76: =+ปร.4!N78 -> 0 | O76: 0 | P76: =IF(M76=0,0,ปร.5!$I$20) -> 0 | Q76: 0 | R76: 0
A77: =+ปร.4!A79 -> 5 | B77: =+ปร.4!B79 -> งานเบ็ดเตล็ด
B78: =+ปร.4!B80 -> 5.1 | C78: =+ปร.4!C80 -> งานระบบระบายน้ำ
C79: =+ปร.4!C81 -> 5.1.1 งานท่อลอดกลม คสล. ชนิดกลม
C80: =+ปร.4!C82 -> 5.1.1(1) ขนาด | E80: Ø | F80: 0.4 | G80: ม. | L80: =+ปร.4!L82 -> ม. | M80: =+ปร.4!M82 -> 321 | N80: =+ปร.4!N82 -> 754 | O80: =+M80*N80 -> 242034 | P80: =IF(M80=0,0,ปร.5!$I$20) -> 1.3592 | Q80: =+N80*P80 -> 1024.8368 | R80: =+O80*P80 -> 328972.6128
C81: =+ปร.4!C83 -> 5.1.1(2) ขนาด | E81: Ø | F81: 0.6 | G81: ม. | L81: =+ปร.4!L83 -> ม. | M81: =+ปร.4!M83 -> 0 | N81: =+ปร.4!N83 -> 0 | O81: 0 | P81: =IF(M81=0,0,ปร.5!$I$20) -> 0 | Q81: 0 | R81: 0
C82: =+ปร.4!C84 -> 5.1.1(3) ขนาด | L82: =+ปร.4!L84 -> ม. | M82: =+ปร.4!M84 -> 0 | N82: =+ปร.4!N84 -> 0 | O82: 0 | P82: =IF(M82=0,0,ปร.5!$I$20) -> 0 | Q82: 0 | R82: 0
C83: =+ปร.4!C85 -> 5.1.1(4) ขนาด | L83: =+ปร.4!L85 -> ม. | M83: =+ปร.4!M85 -> 0 | N83: =+ปร.4!N85 -> 0 | O83: 0 | P83: =IF(M83=0,0,ปร.5!$I$20) -> 0 | Q83: 0 | R83: 0
C84: =+ปร.4!C86 -> 5.1.1(5) ขนาด | L84: =+ปร.4!L86 -> ม. | M84: =+ปร.4!M86 -> 0 | N84: =+ปร.4!N86 -> 0 | O84: 0 | P84: =IF(M84=0,0,ปร.5!$I$20) -> 0 | Q84: 0 | R84: 0
C85: =+ปร.4!C87 -> 5.1.2 งานกำแพงปากท่อ (Head Wall, End Wall)
C86: =+ปร.4!C88 -> 5.1.2(1) ขนาด | L86: =+ปร.4!L88 -> ด้าน | M86: =+ปร.4!M88 -> 0 | N86: =+ปร.4!N88 -> 0 | O86: 0 | P86: =IF(M86=0,0,ปร.5!$I$20) -> 0 | Q86: 0 | R86: 0
C87: =+ปร.4!C89 -> 5.1.2(2) ขนาด | L87: =+ปร.4!L89 -> ด้าน | M87: =+ปร.4!M89 -> 0 | N87: =+ปร.4!N89 -> 0 | O87: 0 | P87: =IF(M87=0,0,ปร.5!$I$20) -> 0 | Q87: 0 | R87: 0
C88: =+ปร.4!C90 -> 5.1.2(3) ขนาด | L88: =+ปร.4!L90 -> ด้าน | M88: =+ปร.4!M90 -> 0 | N88: =+ปร.4!N90 -> 0 | O88: 0 | P88: =IF(M88=0,0,ปร.5!$I$20) -> 0 | Q88: 0 | R88: 0
C89: =+ปร.4!C91 -> 5.1.2(4) ขนาด | L89: =+ปร.4!L91 -> ด้าน | M89: =+ปร.4!M91 -> 0 | N89: =+ปร.4!N91 -> 0 | O89: 0 | P89: =IF(M89=0,0,ปร.5!$I$20) -> 0 | Q89: 0 | R89: 0
C90: =+ปร.4!C92 -> 5.1.2(5) ขนาด | L90: =+ปร.4!L92 -> ด้าน | M90: =+ปร.4!M92 -> 0 | N90: =+ปร.4!N92 -> 0 | O90: 0 | P90: =IF(M90=0,0,ปร.5!$I$20) -> 0 | Q90: 0 | R90: 0
C91: =+ปร.4!C93 -> 5.1.2(6) ขนาด | L91: =+ปร.4!L93 -> ด้าน | M91: =+ปร.4!M93 -> 0 | N91: =+ปร.4!N93 -> 0 | O91: 0 | P91: =IF(M91=0,0,ปร.5!$I$20) -> 0 | Q91: 0 | R91: 0
C92: =+ปร.4!C94 -> 5.1.2(7) ขนาด | L92: =+ปร.4!L94 -> ด้าน | M92: =+ปร.4!M94 -> 0 | N92: =+ปร.4!N94 -> 0 | O92: 0 | P92: =IF(M92=0,0,ปร.5!$I$20) -> 0 | Q92: 0 | R92: 0
C93: =+ปร.4!C95 -> 5.1.2(8) ขนาด | L93: =+ปร.4!L95 -> ด้าน | M93: =+ปร.4!M95 -> 0 | N93: =+ปร.4!N95 -> 0 | O93: 0 | P93: =IF(M93=0,0,ปร.5!$I$20) -> 0 | Q93: 0 | R93: 0
C94: =+ปร.4!C96 -> 5.1.2(9) ขนาด | L94: =+ปร.4!L96 -> ด้าน | M94: =+ปร.4!M96 -> 0 | N94: =+ปร.4!N96 -> 0 | O94: 0 | P94: =IF(M94=0,0,ปร.5!$I$20) -> 0 | Q94: 0 | R94: 0
C95: =+ปร.4!C97 -> 5.1.2(10) ขนาด | L95: =+ปร.4!L97 -> ด้าน | M95: =+ปร.4!M97 -> 0 | N95: =+ปร.4!N97 -> 0 | O95: 0 | P95: =IF(M95=0,0,ปร.5!$I$20) -> 0 | Q95: 0 | R95: 0
C96: =+ปร.4!C98 -> 5.1.2(11) ขนาด | L96: =+ปร.4!L98 -> ด้าน | M96: =+ปร.4!M98 -> 0 | N96: =+ปร.4!N98 -> 0 | O96: 0 | P96: =IF(M96=0,0,ปร.5!$I$20) -> 0 | Q96: 0 | R96: 0
C97: =+ปร.4!C99 -> 5.1.2(12) ขนาด | L97: =+ปร.4!L99 -> ด้าน | M97: =+ปร.4!M99 -> 0 | N97: =+ปร.4!N99 -> 0 | O97: 0 | P97: =IF(M97=0,0,ปร.5!$I$20) -> 0 | Q97: 0 | R97: 0
C98: =+ปร.4!C100 -> 5.1.3 งานรางระบายน้ำ คสล.
C99: =+ปร.4!C101 -> 5.1.3(1) แบบเปิด | L99: =+ปร.4!L101 -> ม. | M99: =+ปร.4!M101 -> 0 | N99: =+ปร.4!N101 -> 0 | O99: 0 | P99: =IF(M99=0,0,ปร.5!$I$20) -> 0 | Q99: 0 | R99: 0
C100: =+ปร.4!C102 -> 5.1.3(2) แบบตัวยู พร้อมฝาปิด | L100: =+ปร.4!L102 -> ม. | M100: =+ปร.4!M102 -> 0 | N100: =+ปร.4!N102 -> 0 | O100: 0 | P100: =IF(M100=0,0,ปร.5!$I$20) -> 0 | Q100: 0 | R100: 0
C101: =+ปร.4!C103 -> 5.1.3(3) แบบรางตื้น | L101: =+ปร.4!L103 -> ม. | M101: =+ปร.4!M103 -> 0 | N101: =+ปร.4!N103 -> 0 | O101: 0 | P101: =IF(M101=0,0,ปร.5!$I$20) -> 0 | Q101: 0 | R101: 0
C102: =+ปร.4!C104 -> 5.1.3(3) แบบรางระบายน้ำสำเร็จรูป (ขนาด 0.58 x 0.60 ม.) | L102: =+ปร.4!L104 -> ม. | M102: =+ปร.4!M104 -> 0 | N102: =+ปร.4!N104 -> 0 | O102: 0 | P102: =IF(M102=0,0,ปร.5!$I$20) -> 0 | Q102: 0 | R102: 0
C103: =+ปร.4!C105 -> 5.1.4 งานบ่อรับน้ำ คสล.
C104: =+ปร.4!C106 -> 5.1.4(1) บ่อพัก คสล. พร้อมฝา | L104: =+ปร.4!L106 -> บ่อ | M104: =+ปร.4!M106 -> 35 | N104: =+ปร.4!N106 -> 6020 | O104: 210700 | P104: =IF(M104=0,0,ปร.5!$I$20) -> 1.3592 | Q104: 8182.384 | R104: 286383.44
C105: =+ปร.4!C107 -> 5.1.4(2) บ่อพัก คสล. พร้อมฝา | L105: =+ปร.4!L107 -> บ่อ | M105: =+ปร.4!M107 -> 0 | N105: =+ปร.4!N107 -> 0 | O105: 0 | P105: =IF(M105=0,0,ปร.5!$I$20) -> 0 | Q105: 0 | R105: 0
B106: =+ปร.4!B108 -> 5.2 | C106: =+ปร.4!C108 -> งานปลูกหญ้า
C107: =+ปร.4!C109 -> 5.2.1 แบบ | L107: =+ปร.4!L109 -> ตร.ม. | M107: =+ปร.4!M109 -> 0 | N107: =+ปร.4!N109 -> 0 | O107: 0 | P107: =IF(M107=0,0,ปร.5!$I$20) -> 0 | Q107: 0 | R107: 0
C108: =+ปร.4!C110 -> 5.2.2 แบบ | L108: =+ปร.4!L110 -> ตร.ม. | M108: =+ปร.4!M110 -> 0 | N108: =+ปร.4!N110 -> 0 | O108: 0 | P108: =IF(M108=0,0,ปร.5!$I$20) -> 0 | Q108: 0 | R108: 0
B109: =+ปร.4!B111 -> 5.3 | C109: =+ปร.4!C111 -> งานเครื่องหมายจราจร
C110: =+ปร.4!C112 -> 5.3.1 งานป้ายจราจร ใช้แผ่นสะท้อนแสงตาม มาตรฐาน
C111: =+ปร.4!C113 -> - แบบ บ1 | L111: =+ปร.4!L113 -> ชุด | M111: =+ปร.4!M113 -> 0 | N111: =+ปร.4!N113 -> 0 | O111: 0 | P111: =IF(M111=0,0,ปร.5!$I$20) -> 0 | Q111: 0 | R111: 0
C112: =+ปร.4!C114 -> - แบบ บ2 | L112: =+ปร.4!L114 -> ชุด | M112: =+ปร.4!M114 -> 0 | N112: =+ปร.4!N114 -> 0 | O112: 0 | P112: =IF(M112=0,0,ปร.5!$I$20) -> 0 | Q112: 0 | R112: 0
C113: =+ปร.4!C115 -> - แบบ บ3-บ55 | L113: =+ปร.4!L115 -> ชุด | M113: =+ปร.4!M115 -> 0 | N113: =+ปร.4!N115 -> 0 | O113: 0 | P113: =IF(M113=0,0,ปร.5!$I$20) -> 0 | Q113: 0 | R113: 0
C114: =+ปร.4!C116 -> - แบบ ต1-ต27,ต31-ต60,ต75 | L114: =+ปร.4!L116 -> ชุด | M114: =+ปร.4!M116 -> 0 | N114: =+ปร.4!N116 -> 0 | O114: 0 | P114: =IF(M114=0,0,ปร.5!$I$20) -> 0 | Q114: 0 | R114: 0
C115: =+ปร.4!C117 -> - แบบ ต28-ต30,ต62 | L115: =+ปร.4!L117 -> ชุด | M115: =+ปร.4!M117 -> 0 | N115: =+ปร.4!N117 -> 0 | O115: 0 | P115: =IF(M115=0,0,ปร.5!$I$20) -> 0 | Q115: 0 | R115: 0
C116: =+ปร.4!C118 -> - แบบ ต61 | L116: =+ปร.4!L118 -> ชุด | M116: =+ปร.4!M118 -> 0 | N116: =+ปร.4!N118 -> 0 | O116: 0 | P116: =IF(M116=0,0,ปร.5!$I$20) -> 0 | Q116: 0 | R116: 0
C117: =+ปร.4!C119 -> - แบบ ต63+ต66 (1 แผ่น) | L117: =+ปร.4!L119 -> ชุด | M117: =+ปร.4!M119 -> 0 | N117: =+ปร.4!N119 -> 0 | O117: 0 | P117: =IF(M117=0,0,ปร.5!$I$20) -> 0 | Q117: 0 | R117: 0
C118: =+ปร.4!C120 -> - แบบ ต63+ต66 (2 แผ่น) | L118: =+ปร.4!L120 -> ชุด | M118: =+ปร.4!M120 -> 0 | N118: =+ปร.4!N120 -> 0 | O118: 0 | P118: =IF(M118=0,0,ปร.5!$I$20) -> 0 | Q118: 0 | R118: 0
C119: =+ปร.4!C121 -> - แบบ ต64,ต67 | L119: =+ปร.4!L121 -> ชุด | M119: =+ปร.4!M121 -> 0 | N119: =+ปร.4!N121 -> 0 | O119: 0 | P119: =IF(M119=0,0,ปร.5!$I$20) -> 0 | Q119: 0 | R119: 0
C120: =+ปร.4!C122 -> - แบบ ต65,ต68,ต70 | L120: =+ปร.4!L122 -> ชุด | M120: =+ปร.4!M122 -> 0 | N120: =+ปร.4!N122 -> 0 | O120: 0 | P120: =IF(M120=0,0,ปร.5!$I$20) -> 0 | Q120: 0 | R120: 0
C121: =+ปร.4!C123 -> - แบบ ต69 | L121: =+ปร.4!L123 -> ชุด | M121: =+ปร.4!M123 -> 0 | N121: =+ปร.4!N123 -> 0 | O121: 0 | P121: =IF(M121=0,0,ปร.5!$I$20) -> 0 | Q121: 0 | R121: 0
C122: =+ปร.4!C124 -> - แบบ ต71 | L122: =+ปร.4!L124 -> ชุด | M122: =+ปร.4!M124 -> 0 | N122: =+ปร.4!N124 -> 0 | O122: 0 | P122: =IF(M122=0,0,ปร.5!$I$20) -> 0 | Q122: 0 | R122: 0
C123: =+ปร.4!C125 -> - แบบ ต72-ต73 | L123: =+ปร.4!L125 -> ชุด | M123: =+ปร.4!M125 -> 0 | N123: =+ปร.4!N125 -> 0 | O123: 0 | P123: =IF(M123=0,0,ปร.5!$I$20) -> 0 | Q123: 0 | R123: 0
C124: =+ปร.4!C126 -> - แบบ ต74 | L124: =+ปร.4!L126 -> ชุด | M124: =+ปร.4!M126 -> 0 | N124: =+ปร.4!N126 -> 0 | O124: 0 | P124: =IF(M124=0,0,ปร.5!$I$20) -> 0 | Q124: 0 | R124: 0
C125: =+ปร.4!C127 -> - แบบ ต76 | L125: =+ปร.4!L127 -> ชุด | M125: =+ปร.4!M127 -> 0 | N125: =+ปร.4!N127 -> 0 | O125: 0 | P125: =IF(M125=0,0,ปร.5!$I$20) -> 0 | Q125: 0 | R125: 0
C126: =+ปร.4!C128 -> - แบบ ต77 | L126: =+ปร.4!L128 -> ชุด | M126: =+ปร.4!M128 -> 0 | N126: =+ปร.4!N128 -> 0 | O126: 0 | P126: =IF(M126=0,0,ปร.5!$I$20) -> 0 | Q126: 0 | R126: 0
C127: =+ปร.4!C129 -> - แบบ ต78 | L127: =+ปร.4!L129 -> ชุด | M127: =+ปร.4!M129 -> 0 | N127: =+ปร.4!N129 -> 0 | O127: 0 | P127: =IF(M127=0,0,ปร.5!$I$20) -> 0 | Q127: 0 | R127: 0
C128: =+ปร.4!C130 -> - แบบ บ3-บ55+ต1- ต27,ต31-ต60 | L128: =+ปร.4!L130 -> ชุด | M128: =+ปร.4!M130 -> 0 | N128: =+ปร.4!N130 -> 0 | O128: 0 | P128: =IF(M128=0,0,ปร.5!$I$20) -> 0 | Q128: 0 | R128: 0
C129: =+ปร.4!C131 -> - แบบ ต1-ต27+ต73,ต31-ต60+ต73 | L129: =+ปร.4!L131 -> ชุด | M129: =+ปร.4!M131 -> 0 | N129: =+ปร.4!N131 -> 0 | O129: 0 | P129: =IF(M129=0,0,ปร.5!$I$20) -> 0 | Q129: 0 | R129: 0
C130: =+ปร.4!C132 -> - แบบ ต1-ต27+ต74,ต31-ต60+ต74 | L130: =+ปร.4!L132 -> ชุด | M130: =+ปร.4!M132 -> 0 | N130: =+ปร.4!N132 -> 0 | O130: 0 | P130: =IF(M130=0,0,ปร.5!$I$20) -> 0 | Q130: 0 | R130: 0
C131: =+ปร.4!C133 -> - แบบ ต1-ต27+ต75,ต31-ต60+ต75 | L131: =+ปร.4!L133 -> ชุด | M131: =+ปร.4!M133 -> 0 | N131: =+ปร.4!N133 -> 0 | O131: 0 | P131: =IF(M131=0,0,ปร.5!$I$20) -> 0 | Q131: 0 | R131: 0
C132: =+ปร.4!C134 -> - แบบ ต1-ต27+ต76,ต31-ต60+ต76 | L132: =+ปร.4!L134 -> ชุด | M132: =+ปร.4!M134 -> 0 | N132: =+ปร.4!N134 -> 0 | O132: 0 | P132: =IF(M132=0,0,ปร.5!$I$20) -> 0 | Q132: 0 | R132: 0
C133: =+ปร.4!C135 -> - แบบ ต1-ต27+ต77,ต31-ต60+ต77 | L133: =+ปร.4!L135 -> ชุด | M133: =+ปร.4!M135 -> 0 | N133: =+ปร.4!N135 -> 0 | O133: 0 | P133: =IF(M133=0,0,ปร.5!$I$20) -> 0 | Q133: 0 | R133: 0
C134: =+ปร.4!C136 -> - แบบ ต1-ต27+ต78,ต31-ต60+ต78 | L134: =+ปร.4!L136 -> ชุด | M134: =+ปร.4!M136 -> 0 | N134: =+ปร.4!N136 -> 0 | O134: 0 | P134: =IF(M134=0,0,ปร.5!$I$20) -> 0 | Q134: 0 | R134: 0
C135: =+ปร.4!C137 -> - ป้าย หมายเลขทางหลวงชนบท (น1) | L135: =+ปร.4!L137 -> ชุด | M135: =+ปร.4!M137 -> 0 | N135: =+ปร.4!N137 -> 0 | O135: 0 | P135: =IF(M135=0,0,ปร.5!$I$20) -> 0 | Q135: 0 | R135: 0
C136: =+ปร.4!C138 -> - ป้าย หมายเลขทางหลวงชนบท (น1/1) | L136: =+ปร.4!L138 -> ชุด | M136: =+ปร.4!M138 -> 0 | N136: =+ปร.4!N138 -> 0 | O136: 0 | P136: =IF(M136=0,0,ปร.5!$I$20) -> 0 | Q136: 0 | R136: 0
C137: =+ปร.4!C139 -> - ป้าย บอกจุดหมาย ปลายทาง (1-น2) | L137: =+ปร.4!L139 -> ชุด | M137: =+ปร.4!M139 -> 0 | N137: =+ปร.4!N139 -> 0 | O137: 0 | P137: =IF(M137=0,0,ปร.5!$I$20) -> 0 | Q137: 0 | R137: 0
C138: =+ปร.4!C140 -> - ป้าย บอกจุดหมาย ปลายทาง (2-น2) | L138: =+ปร.4!L140 -> ชุด | M138: =+ปร.4!M140 -> 0 | N138: =+ปร.4!N140 -> 0 | O138: 0 | P138: =IF(M138=0,0,ปร.5!$I$20) -> 0 | Q138: 0 | R138: 0
C139: =+ปร.4!C141 -> - ป้าย บอกจุดหมาย ปลายทาง (3-น2) | L139: =+ปร.4!L141 -> ชุด | M139: =+ปร.4!M141 -> 0 | N139: =+ปร.4!N141 -> 0 | O139: 0 | P139: =IF(M139=0,0,ปร.5!$I$20) -> 0 | Q139: 0 | R139: 0
C140: =+ปร.4!C142 -> - ป้าย บอกระยะทาง (1-น3) | L140: =+ปร.4!L142 -> ชุด | M140: =+ปร.4!M142 -> 0 | N140: =+ปร.4!N142 -> 0 | O140: 0 | P140: =IF(M140=0,0,ปร.5!$I$20) -> 0 | Q140: 0 | R140: 0
C141: =+ปร.4!C143 -> - ป้าย บอกระยะทาง (2-น3) | L141: =+ปร.4!L143 -> ชุด | M141: =+ปร.4!M143 -> 0 | N141: =+ปร.4!N143 -> 0 | O141: 0 | P141: =IF(M141=0,0,ปร.5!$I$20) -> 0 | Q141: 0 | R141: 0
C142: =+ปร.4!C144 -> - ป้าย บอกระยะทาง (3-น3) | L142: =+ปร.4!L144 -> ชุด | M142: =+ปร.4!M144 -> 0 | N142: =+ปร.4!N144 -> 0 | O142: 0 | P142: =IF(M142=0,0,ปร.5!$I$20) -> 0 | Q142: 0 | R142: 0
C143: =+ปร.4!C145 -> - ป้าย ป้าย บอกจุดหมายและระยะทาง (น-4) | L143: =+ปร.4!L145 -> ชุด | M143: =+ปร.4!M145 -> 0 | N143: =+ปร.4!N145 -> 0 | O143: 0 | P143: =IF(M143=0,0,ปร.5!$I$20) -> 0 | Q143: 0 | R143: 0
C144: =+ปร.4!C146 -> - ป้าย บอกหมู่บ้าน (น5) | L144: =+ปร.4!L146 -> ชุด | M144: =+ปร.4!M146 -> 0 | N144: =+ปร.4!N146 -> 0 | O144: =+M144*N144 -> 0 | P144: =IF(M144=0,0,ปร.5!$I$20) -> 0 | Q144: =+N144*P144 -> 0 | R144: =+O144*P144 -> 0
C145: =+ปร.4!C147 -> - ป้าย บอกคลองทางน้ำ (น6) | L145: =+ปร.4!L147 -> ชุด | M145: =+ปร.4!M147 -> 0 | N145: =+ปร.4!N147 -> 0 | O145: 0 | P145: =IF(M145=0,0,ปร.5!$I$20) -> 0 | Q145: 0 | R145: 0
C146: =+ปร.4!C148 -> - ป้าย สิ้นสุดสายทาง (น7) | L146: =+ปร.4!L148 -> ชุด | M146: =+ปร.4!M148 -> 0 | N146: =+ปร.4!N148 -> 0 | O146: 0 | P146: =IF(M146=0,0,ปร.5!$I$20) -> 0 | Q146: 0 | R146: 0
C147: =+ปร.4!C149 -> - ป้าย ระบุทิศทาง (น8 ) | L147: =+ปร.4!L149 -> ชุด | M147: =+ปร.4!M149 -> 0 | N147: =+ปร.4!N149 -> 0 | O147: 0 | P147: =IF(M147=0,0,ปร.5!$I$20) -> 0 | Q147: 0 | R147: 0
C148: =+ปร.4!C150 -> - ป้าย ระบุทิศทาง (น7 ถึง น20) | L148: =+ปร.4!L150 -> ชุด | M148: =+ปร.4!M150 -> 0 | N148: =+ปร.4!N150 -> 0 | O148: 0 | P148: =IF(M148=0,0,ปร.5!$I$20) -> 0 | Q148: 0 | R148: 0
C149: =+ปร.4!C151 -> - ป้าย น1+นส-1 ถึง นส-14 | L149: =+ปร.4!L151 -> ชุด | M149: =+ปร.4!M151 -> 0 | N149: =+ปร.4!N151 -> 0 | O149: 0 | P149: =IF(M149=0,0,ปร.5!$I$20) -> 0 | Q149: 0 | R149: 0
C150: =+ปร.4!C152 -> - ป้าย น1/1+นส-1 ถึง นส-14 | L150: =+ปร.4!L152 -> ชุด | M150: =+ปร.4!M152 -> 0 | N150: =+ปร.4!N152 -> 0 | O150: 0 | P150: =IF(M150=0,0,ปร.5!$I$20) -> 0 | Q150: 0 | R150: 0
C151: =+ปร.4!C153 -> - ป้าย น1+นส-1 ถึง นส-14 + น1+นส-1 ถึง นส-14 | L151: =+ปร.4!L153 -> ชุด | M151: =+ปร.4!M153 -> 0 | N151: =+ปร.4!N153 -> 0 | O151: 0 | P151: =IF(M151=0,0,ปร.5!$I$20) -> 0 | Q151: 0 | R151: 0
C152: =+ปร.4!C154 -> - ป้าย น1+น1/1+นส-1 ถึง นส-14 +นส-14 | L152: =+ปร.4!L154 -> ชุด | M152: =+ปร.4!M154 -> 0 | N152: =+ปร.4!N154 -> 0 | O152: 0 | P152: =IF(M152=0,0,ปร.5!$I$20) -> 0 | Q152: 0 | R152: 0
C153: =+ปร.4!C155 -> - ป้าย น-1+น-1/1(2ชิ้น)+นส-1 ถึง นส-14(3ชิ้น) | L153: =+ปร.4!L155 -> ชุด | M153: =+ปร.4!M155 -> 0 | N153: =+ปร.4!N155 -> 0 | O153: 0 | P153: =IF(M153=0,0,ปร.5!$I$20) -> 0 | Q153: 0 | R153: 0
C154: =+ปร.4!C156 -> - ป้ายกำหนดน้ำหนักบรรทุก | L154: =+ปร.4!L156 -> ชุด | M154: =+ปร.4!M156 -> 0 | N154: =+ปร.4!N156 -> 0 | O154: 0 | P154: =IF(M154=0,0,ปร.5!$I$20) -> 0 | Q154: 0 | R154: 0
C155: =+ปร.4!C157 -> 5.3.2 งานหลักนำโค้ง หลักกิโลเมตร หลักเขตทาง
C156: =+ปร.4!C158 -> 5.3.2(1) หลักนำโค้ง / หลักตำแหน่งท่อ คสล. | L156: =+ปร.4!L158 -> หลัก | M156: =+ปร.4!M158 -> 0 | N156: =+ปร.4!N158 -> 0 | O156: 0 | P156: =IF(M156=0,0,ปร.5!$I$20) -> 0 | Q156: 0 | R156: 0
C157: =+ปร.4!C159 -> 5.3.2(2) หลักกิโลเมตร | L157: =+ปร.4!L159 -> หลัก | M157: =+ปร.4!M159 -> 0 | N157: =+ปร.4!N159 -> 0 | O157: 0 | P157: =IF(M157=0,0,ปร.5!$I$20) -> 0 | Q157: 0 | R157: 0
C158: =+ปร.4!C160 -> 5.3.2(3) หลักเขตทาง | L158: =+ปร.4!L160 -> หลัก | M158: =+ปร.4!M160 -> 0 | N158: =+ปร.4!N160 -> 0 | O158: 0 | P158: =IF(M158=0,0,ปร.5!$I$20) -> 0 | Q158: 0 | R158: 0
C159: =+ปร.4!C161 -> 5.3.3 งานเครื่องหมายจราจรบนผิวทาง
C160: =+ปร.4!C162 -> 5.3.3(1) สีเหลือง กว้าง | L160: =+ปร.4!L162 -> ตร.ม. | M160: =+ปร.4!M162 -> 0 | N160: =+ปร.4!N162 -> 0 | O160: 0 | P160: =IF(M160=0,0,ปร.5!$I$20) -> 0 | Q160: 0 | R160: 0
C161: =+ปร.4!C163 -> 5.3.3(2) สีขาว กว้าง | L161: =+ปร.4!L163 -> ตร.ม. | M161: =+ปร.4!M163 -> 0 | N161: =+ปร.4!N163 -> 0 | O161: 0 | P161: =IF(M161=0,0,ปร.5!$I$20) -> 0 | Q161: 0 | R161: 0
C162: =+ปร.4!C164 -> 5.3.3(3) ทางม้าลาย ( 1 แห่ง = 9.0 ตร.ม.) | L162: =+ปร.4!L164 -> แห่ง | M162: =+ปร.4!M164 -> 0 | N162: =+ปร.4!N164 -> 0 | O162: 0 | P162: =IF(M162=0,0,ปร.5!$I$20) -> 0 | Q162: 0 | R162: 0
C163: =+ปร.4!C165 -> 5.3.4 หมุดสะท้อนแสง
C164: =+ปร.4!C166 -> 5.3.4(1) ชนิดทิศทางเดียว | L164: =+ปร.4!L166 -> ชุด | M164: =+ปร.4!M166 -> 0 | N164: =+ปร.4!N166 -> 0 | O164: 0 | P164: =IF(M164=0,0,ปร.5!$I$20) -> 0 | Q164: 0 | R164: 0
C165: =+ปร.4!C167 -> 5.3.4(2) ชนิดสองทิศทาง | L165: =+ปร.4!L167 -> ชุด | M165: =+ปร.4!M167 -> 0 | N165: =+ปร.4!N167 -> 0 | O165: 0 | P165: =IF(M165=0,0,ปร.5!$I$20) -> 0 | Q165: 0 | R165: 0
B166: =+ปร.4!B168 -> 5.4 | C166: =+ปร.4!C168 -> สัญญาณไฟกระพริบพลังงานแสงอาทิตย์ Ø 300 มม.
C167: =+ปร.4!C169 -> 5.4.1 สัญญาณไฟกระพริบ | L167: =+ปร.4!L169 -> ชุด | M167: =+ปร.4!M169 -> 0 | N167: =+ปร.4!N169 -> 0 | O167: 0 | P167: =IF(M167=0,0,ปร.5!$I$20) -> 0 | Q167: 0 | R167: 0
C168: =+ปร.4!C170 -> 5.4.2 สัญญาณไฟกระพริบ + บ1 | L168: =+ปร.4!L170 -> ชุด | M168: =+ปร.4!M170 -> 0 | N168: =+ปร.4!N170 -> 0 | O168: 0 | P168: =IF(M168=0,0,ปร.5!$I$20) -> 0 | Q168: 0 | R168: 0
C169: =+ปร.4!C171 -> 5.4.3 สัญญาณไฟกระพริบ + ต | L169: =+ปร.4!L171 -> ชุด | M169: =+ปร.4!M171 -> 0 | N169: =+ปร.4!N171 -> 0 | O169: 0 | P169: =IF(M169=0,0,ปร.5!$I$20) -> 0 | Q169: 0 | R169: 0
B170: 5.4 | C170: =+ปร.4!C172 -> RUMBLE STRIP ( 3 จุด = 1 แห่ง = 7.8 ตร.ม.) | L170: =+ปร.4!L172 -> ตร.ม. | M170: =+ปร.4!M172 -> 0 | N170: =+ปร.4!N172 -> 0 | O170: 0 | P170: =IF(M170=0,0,ปร.5!$I$20) -> 0 | Q170: 0 | R170: 0
B171: =+ปร.4!B173 -> 5.6 | C171: =+ปร.4!C173 -> TIMBER BARRICADE | L171: =+ปร.4!L173 -> ม. | M171: =+ปร.4!M173 -> 0 | N171: =+ปร.4!N173 -> 0 | O171: 0 | P171: =IF(M171=0,0,ปร.5!$I$20) -> 0 | Q171: 0 | R171: 0
B172: 5.5 | C172: =+ปร.4!C174 -> GUARD RAIL
C173: 5.5.1 GUARD RAIL (ทางตรง) | L173: =+ปร.4!L175 -> ม. | M173: =+ปร.4!M175 -> 0 | N173: =+ปร.4!N175 -> 0 | O173: 0 | P173: =IF(M173=0,0,ปร.5!$I$20) -> 0 | Q173: 0 | R173: 0
C174: 5.5.2 GUARD RAIL (ทางโค้ง/คอสะพาน) | L174: =+ปร.4!L176 -> ม. | M174: =+ปร.4!M176 -> 0 | N174: =+ปร.4!N176 -> 0 | O174: 0 | P174: =IF(M174=0,0,ปร.5!$I$20) -> 0 | Q174: 0 | R174: 0
B175: =+ปร.4!B177 -> 2.2 | C175: =+ปร.4!C177 -> งานป้องกันการกัดเซาะ
C176: =+ปร.4!C178 -> 2.2.1 ชนิด | L176: =+ปร.4!L178 -> กล่อง | M176: =+ปร.4!M178 -> 0 | N176: =+ปร.4!N178 -> 0 | O176: 0 | P176: =IF(M176=0,0,ปร.5!$I$20) -> 0 | Q176: 0 | R176: 0
C177: =+ปร.4!C179 -> 2.2.2 ชนิด | L177: =+ปร.4!L179 -> กล่อง | M177: =+ปร.4!M179 -> 0 | N177: =+ปร.4!N179 -> 0 | O177: 0 | P177: =IF(M177=0,0,ปร.5!$I$20) -> 0 | Q177: 0 | R177: 0
C178: =+ปร.4!C180 -> 2.2.3 ชนิด | L178: =+ปร.4!L180 -> ตร.ม. | M178: =+ปร.4!M180 -> 0 | N178: =+ปร.4!N180 -> 0 | O178: 0 | P178: =IF(M178=0,0,ปร.5!$I$20) -> 0 | Q178: 0 | R178: 0
C179: =+ปร.4!C181 -> 2.2.4 ชนิด | L179: =+ปร.4!L181 -> ตร.ม. | M179: =+ปร.4!M181 -> 0 | N179: =+ปร.4!N181 -> 0 | O179: 0 | P179: =IF(M179=0,0,ปร.5!$I$20) -> 0 | Q179: 0 | R179: 0
B180: =+ปร.4!B183 -> 2.3 | C180: =+ปร.4!C183 -> Approach Slab | L180: =+ปร.4!L183 -> ตร.ม. | M180: =+ปร.4!M183 -> 0 | N180: =+ปร.4!N183 -> 0 | O180: 0 | P180: =IF(M180=0,0,ปร.5!$I$20) -> 0 | Q180: 0 | R180: 0
B181: =+ปร.4!B184 -> 2.4 | C181: =+ปร.4!C184 -> Concrete Barrier | L181: =+ปร.4!L184 -> แห่ง | M181: =+ปร.4!M184 -> 0 | N181: =+ปร.4!N184 -> 0 | O181: 0 | P181: =IF(M181=0,0,ปร.5!$I$20) -> 0 | Q181: 0 | R181: 0
B182: =+ปร.4!B185 -> 2.5 | C182: =+ปร.4!C185 -> งานทางเบี่ยง | L182: =+ปร.4!L185 -> LS. | M182: =+ปร.4!M185 -> 0 | N182: =+ปร.4!N185 -> 0 | O182: 0 | P182: =IF(M182=0,0,ปร.5!$I$20) -> 0 | Q182: 0 | R182: 0
A183: =+ปร.4!A186 -> 6 | B183: =+ปร.4!B186 -> งานไฟฟ้าแสงสว่าง
B184: =+ปร.4!B187 -> 6.1 | C184: =+ปร.4!C187 -> เสาไฟฟ้าแสงสว่าง สูง 9.00 ม. กิ่งเดี่ยวและอุปกรณ์ | L184: =+ปร.4!L187 -> ชุด | M184: =+ปร.4!M187 -> 0 | N184: =+ปร.4!N187 -> 0 | O184: 0 | P184: =IF(M184=0,0,ปร.5!$I$20) -> 0 | Q184: 0 | R184: 0
B185: =+ปร.4!B188 -> 6.2 | C185: =+ปร.4!C188 -> โคมไฟถนนขนาดกำลัง 250 W.HPS พร้อมอุปกรณ์ | L185: =+ปร.4!L188 -> ชุด | M185: =+ปร.4!M188 -> 0 | N185: =+ปร.4!N188 -> 0 | O185: 0 | P185: =IF(M185=0,0,ปร.5!$I$20) -> 0 | Q185: 0 | R185: 0
B186: =+ปร.4!B189 -> 6.3 | C186: =+ปร.4!C189 -> ฐานรากของเสาไฟฟ้าแสงสว่าง และอุปกรณ์ประกอบ | L186: =+ปร.4!L189 -> ฐาน | M186: =+ปร.4!M189 -> 0 | N186: =+ปร.4!N189 -> 0 | O186: 0 | P186: =IF(M186=0,0,ปร.5!$I$20) -> 0 | Q186: 0 | R186: 0
B187: =+ปร.4!B190 -> 6.4 | C187: =+ปร.4!C190 -> ชุดควบคุมไฟถนนพร้อมอุปกรณ์ประกอบ | L187: =+ปร.4!L190 -> ชุด | M187: =+ปร.4!M190 -> 0 | N187: =+ปร.4!N190 -> 0 | O187: 0 | P187: =IF(M187=0,0,ปร.5!$I$20) -> 0 | Q187: 0 | R187: 0
B188: =+ปร.4!B191 -> 6.5 | C188: =+ปร.4!C191 -> กล่องดึงสาย บ่อพักสาย และอุปกรณ์ประกอบ | L188: =+ปร.4!L191 -> ชุด | M188: =+ปร.4!M191 -> 0 | N188: =+ปร.4!N191 -> 0 | O188: 0 | P188: =IF(M188=0,0,ปร.5!$I$20) -> 0 | Q188: 0 | R188: 0
B189: =+ปร.4!B192 -> 6.6 | C189: =+ปร.4!C192 -> สายไฟฟ้า
C190: =+ปร.4!C193 -> 6.6.1 สายไฟชนิด NYY ขนาด 3x10 ตร.มม. | L190: =+ปร.4!L193 -> ม. | M190: =+ปร.4!M193 -> 0 | N190: =+ปร.4!N193 -> 0 | O190: 0 | P190: =IF(M190=0,0,ปร.5!$I$20) -> 0 | Q190: 0 | R190: 0
C191: =+ปร.4!C194 -> 6.6.2 สายไฟชนิด THW ขนาด 2x2.5 ตร.มม. | L191: =+ปร.4!L194 -> ม. | M191: =+ปร.4!M194 -> 0 | N191: =+ปร.4!N194 -> 0 | O191: 0 | P191: =IF(M191=0,0,ปร.5!$I$20) -> 0 | Q191: 0 | R191: 0
B192: =+ปร.4!B195 -> 6.7 | C192: =+ปร.4!C195 -> ท่อร้อยสายไฟฟ้า
C193: =+ปร.4!C196 -> 6.7.1 ท่อร้อยสายไฟฟ้า ชนิด HDPE Ø 1 1/2" และอุปกรณ์ | L193: =+ปร.4!L196 -> ม. | M193: =+ปร.4!M196 -> 0 | N193: =+ปร.4!N196 -> 0 | O193: 0 | P193: =IF(M193=0,0,ปร.5!$I$20) -> 0 | Q193: 0 | R193: 0
C194: =+ปร.4!C197 -> 6.7.2 ท่อเหล็กชุบสังกะสี Ø 1 1/2" พร้อมค่าดันท่อลอด | L194: =+ปร.4!L197 -> ม. | M194: =+ปร.4!M197 -> 0 | N194: =+ปร.4!N197 -> 0 | O194: 0 | P194: =IF(M194=0,0,ปร.5!$I$20) -> 0 | Q194: 0 | R194: 0
B195: =+ปร.4!B198 -> 6.2 | C195: =+ปร.4!C198 -> เสาไฟฟ้าแสงสว่างพลังงานแสงอาทิตย์ สูง 9.00 ม. กิ่งเดี่ยวและอุปกรณ์ | L195: =+ปร.4!L198 -> ชุด | M195: =+ปร.4!M198 -> 0 | N195: =+ปร.4!N198 -> 0 | O195: 0 | P195: =IF(M195=0,0,ปร.5!$I$20) -> 0 | Q195: 0 | R195: 0
S196: =+R174+R170+R161+R160+R157+R156+R138+R137+R114+R68+R64+R53+R49+R39+R35+R30+R29+R22+R20+R19 -> 0
C197: รวมค่างานประเภทงานทาง | O197: =SUM(O13:O196) -> 585628 | P197: 1.3322 | R197: =+O197*P197 -> 780173.6216 | S197: =SUM(R13:R196) -> 795985.5776 | T197: =IF(ROUND(R197,2)=ROUND(S197,2),"OK","CHECK") -> CHECK
B198: ประเภทงานก่อสร้างสะพานและท่อลอดเหลี่ยม | T198: =IF(ROUND(R198,2)=ROUND(S198,2),"OK","CHECK") -> OK
A199: 1 | B199: งานสะพาน คสล. | T199: OK
B200: 1.1 | C200: งานสะพาน ที่ กม..........ถึง กม. .......... ความกว้าง ...... เมตร ความยาว ....... เมตร | T200: OK
C201: 1.1.1 งานเสาเข็ม | T201: OK
C202: 1.1.1(1) เสาเข็ม ตับริม ขนาด ........ม x......ม. ความยาว ........ ม. | T202: OK
C203: 1.1.1(2) เสาเข็ม ตับกลาง ขนาด ........ม x......ม. ความยาว ........ ม. | T203: OK
... 57 more rows

Sheet ปร.5
A1: =IF(ราคากลาง1!L4=1,"แบบสรุปราคากลางงาน")&ข้อมูลโครงการ!G2 -> แบบสรุปราคากลางงานก่อสร้างขยายใหล่ทางคอนกรีตเสริมเหล็ก พร้อมระบบระบายน้ำ 2 ข้างทางตามแบบมาตฐานงานทางสำหรับ อปท
A2: ส่วนราชการ | C2: =CONCATENATE("",ข้อมูลโครงการ!G5) -> งานแบบแผนและก่อสร้าง | G2: =IF(ข้อมูลโครงการ!O5="-","",CONCATENATE("",ข้อมูลโครงการ!O5)) -> กองช่างเทศบาลตำบลนากลาง
C3: =CONCATENATE("",ข้อมูลโครงการ!G4) -> สำนักงานเทศบาลตำบลนากลาง | G3: =CONCATENATE("กระทรวง",ข้อมูลโครงการ!O4) -> กระทรวงมหาดไทย
A4: ประเภทงาน | C4: =ข้อมูลโครงการ!G2 -> ก่อสร้างขยายใหล่ทางคอนกรีตเสริมเหล็ก พร้อมระบบระบายน้ำ 2 ข้างทางตามแบบมาตฐานงานทางสำหรับ อปท | L4: =ราคากลาง1!L4 -> 1 | N4: =ราคากลาง1!N4 -> 2
A5: ปริมาณงาน | C5: 1. งานขยายไหล่ทาง 2 ข้างทาง กว้างข้างละ 1 เมตร ยาว 356 เมตร หนา 0.15 เมตร พื้นที่ไม่น้อยกว่า 365 ตร.ม.
C6: 2. งานวางท่อระบายน้ำ 2 ข้างทาง ยาวรวม 356 เมตร โดยการวางท่อระบายน้ำขนาด 0.40 x 1.00 เมตร พร้อมบ่อพัก คสล.
A7: สถานที่ก่อสร้าง | C7: =CONCATENATE(ข้อมูลโครงการ!$G$7) -> ซอยจันทร์สุวรรณ
C8: =ปร.4!C3&" จำนวน "&1&" แห่ง" -> บ้านกุดแห่ หมู่ 1 ตำบลกุดแห่ อำเภอนากลาง จังหวัดหนองบัวลำภู จำนวน 1 แห่ง
A9: ประมาณราคา เมื่อวันที่ | D9: =ข้อมูลโครงการ!G3 -> 2020-02-11
A10: ระยะเวลาดำเนินงาน 90 วัน | E10: ราคาน้ำมันเฉลี่ย 26.50 บาท/ลิตร
A11: ลำดับที่ | B11: รายการ | E11: รวมค่างานต้นทุน | F11: Factor F | G11: รวมค่าก่อสร้าง | H11: หมายเหตุ
A12: 1 | B12: ประเภทงานทาง | E12: =ปร.4!O200 -> 585628 | F12: =IF(E12=0,0,I20) -> 1.3592 | G12: =ROUND(E12*I20,2) -> 795985.58 | H12: - เงินล่วงหน้าจ่าย | I12: 0
A13: =IF(E13="","",2) ->  | B13: =IF(E13="","","ประเภทงานสะพานและท่อลอดเหลี่ยม คสล.") ->  | E13: =IF(ปร.4!O241=0,"",ปร.4!O241) ->  | F13: =IF(E13="","",I21) ->  | G13: =IF(E13="","",ROUND(E13*F13,2)) ->  | H13: - ดอกเบี้ยเงินกู้ | I13: 0.06 | N13: Factor F | O13: =ROUNDDOWN(M14-(((M14-M15)*(E12-L14))/(L15-L14)),5) -> 1.40475
A14: =IF(E14="","",IF(E13="",2,3)) -> 2 | B14: =IF(E14="","","ประเภทค่าใช้จ่ายพิเศษตามข้อกำหนดฯ") -> ประเภทค่าใช้จ่ายพิเศษตามข้อกำหนดฯ | E14: =2500+ปร.4!O244 -> 7840 | F14: =IF(E14=0,"",1) -> 1 | G14: =IF(E14="","",ROUND(E14*F14,2)) -> 7840 | H14: - เงินประกันผลงานหัก | I14: 0 | L14: =+Factor_FR!B11*1000000 -> 5000000 | M14: =+Factor_FR!I11 -> 1.3592 | N14: =IF(E12<L14,M14,ROUND(M14-(((M14-M15)*(E12-L14))/(L15-L14)),4)) -> 1.3592 | O14: =IF(F12=N14,"OK","CHECK") -> OK
H15: - ภาษีมูลค่าเพิ่ม(VAT) | I15: 0.07 | L15: =+Factor_FR!B12*1000000 -> 10000000 | M15: =+Factor_FR!I12 -> 1.3076
H16: ="พื้นที่ "&ข้อมูลโครงการ!R13 -> พื้นที่ ปกติ | K16: วงเงิน
B20: รวมเป็นค่าก่อสร้าง | G20: =SUM(G12:G19) -> 803825.58 | H20: Factor F งานทาง | I20: =ROUND(IF(ข้อมูลโครงการ!R13="ปกติ",Factor_FR!C53,IF(ข้อมูลโครงการ!R13="ฝนตกชุก 1",Factor_FR!D53,Factor_FR!E53)),4) -> 1.3592 | J20: < *CHECK* | K20: 7000000
A21: สรุป | B21: คิดเป็นราคาค่าก่อสร้างประมาณ | G21: =ROUNDDOWN(G20,-2) -> 803800 | H21: Factor F งานสะพานฯ | I21: =ROUND(Factor_FB!C194,4) -> 1.2491 | K21: =+K20-G20 -> 6196174.42
B22: ตัวอักษร | C22: =+CONCATENATE("(",BAHTTEXT(G21),")") -> (แปดแสนสามพันแปดร้อยบาทถ้วน)
A24: จำนวน | C24: 0.356 | D24: กิโลเมตร เฉลี่ยราคา กิโลเมตร ละ | F24: =IF(C24=0,0,G21/C24) -> 2257865.169 | G24: บาท
B27: กรรมการ
C28: =CONCATENATE("(",ข้อมูลโครงการ!G18,")") -> (นายวิทยา ทิพย์ทอง)
C29: =ข้อมูลโครงการ!G19 -> นายช่างโยธาชำนาญงาน
B31: ผู้ประมาณราคา
C32: =CONCATENATE("(",ข้อมูลโครงการ!G18,")") -> (นายวิทยา ทิพย์ทอง)
C33: =ข้อมูลโครงการ!G19 -> นายช่างโยธาชำนาญงาน
B35: กรรมการ
B36: (ผู้อำนวยการส่วนอำนวยการ) | C36: =CONCATENATE("(",ข้อมูลโครงการ!G20,")") -> (นายคำสอน อักษรกลาง)
C37: =ข้อมูลโครงการ!G21 -> นายช่างโยธาอาวุโส
B39: =IF(ข้อมูลโครงการ!G22="","","ประธานกรรมการ") -> ประธานกรรมการ
B40: (ผู้อำนวยการส่วนอำนวยการ) | C40: =CONCATENATE("(",ข้อมูลโครงการ!G22,")") -> (นายประยุทธ์ เย็นอารมย์)
C41: =ข้อมูลโครงการ!G23 -> ผู้อำนวยการกองช่าง
B43: เห็นชอบ
B44: (ผู้อำนวยการส่วนอำนวยการ) | C44: =CONCATENATE("(",ข้อมูลโครงการ!G24,")") -> (นายชัยพร ขันทะชา)
C45: =ข้อมูลโครงการ!G25 -> ปลัดเทศบาลตำบลนากลาง
B47: อนุมัติ
B48: (ผู้อำนวยการส่วนอำนวยการ) | C48: =CONCATENATE("(",ข้อมูลโครงการ!G26,")") -> (นายทองหลั่น เกษทองมา)
C49: =ข้อมูลโครงการ!G27 -> นายกเทศมนตรีตำบลนากลาง

Sheet ปร.4
A1: =CONCATENATE(IF(ราคากลาง1!L4=1,"แบบราคากลางงาน"),ข้อมูลโครงการ!G2) -> แบบราคากลางงานก่อสร้างขยายใหล่ทางคอนกรีตเสริมเหล็ก พร้อมระบบระบายน้ำ 2 ข้างทางตามแบบมาตฐานงานทางสำหรับ อปท
A2: สายทาง | C2: =ข้อมูลโครงการ!G7 -> ซอยจันทร์สุวรรณ
C3: =ข้อมูลโครงการ!G8 -> บ้านกุดแห่ หมู่ 1 ตำบลกุดแห่ อำเภอนากลาง จังหวัดหนองบัวลำภู
A4: ลักษณะโครงการ | V4: =IF(S7=T7,"ลาดยางแบบ PARA Asphaltic Concrete",IF(S7=T8,"ลาดยางแบบ Asphalt concrete")) -> ลาดยางแบบ Asphalt concrete
C5: =ข้อมูลโครงการ!G2 -> ก่อสร้างขยายใหล่ทางคอนกรีตเสริมเหล็ก พร้อมระบบระบายน้ำ 2 ข้างทางตามแบบมาตฐานงานทางสำหรับ อปท | V5: =+V4 -> ลาดยางแบบ Asphalt concrete
A6: =ปร.5!A5 -> ปริมาณงาน | C6: =ปร.5!C5 -> 1. งานขยายไหล่ทาง 2 ข้างทาง กว้างข้างละ 1 เมตร ยาว 356 เมตร หนา 0.15 เมตร พื้นที่ไม่น้อยกว่า 365 ตร.ม. | S6: 2
C7: =ปร.5!C6 -> 2. งานวางท่อระบายน้ำ 2 ข้างทาง ยาวรวม 356 เมตร โดยการวางท่อระบายน้ำขนาด 0.40 x 1.00 เมตร พร้อมบ่อพัก คสล. | S7: 2 | T7: 1 | U7: ลาดยางแบบ PARA Asphaltic Concrete
C8: ไหล่ทาง | D8: ลูกรัง | N8: กว้างข้างละ | O8: =ข้อมูลโครงการ!O11 -> 0 | P8: เมตร | T8: 2 | U8: ลาดยางแบบ Asphalt concrete
C9: ช่วงดำเนินการ | D9: จุดเริ่มต้น N 17.33764 " E 102.18578" จุดสิ้นสุด N 17.33702" E 102.18735"
C10: ประมาณราคา วันที่ | F10: =IF(ปร.5!L4=1,ปร.5!D9,ราคากลาง1!C7) -> 2020-02-11 | L10: ราคาน้ำมันเฉลี่ย 26.50 บาท/ลิตร
C11: ระยะเวลาดำเนินงาน 90 วัน
A12: ลำดับ | B12: รายการ | L12: หน่วย | M12: จำนวน | N12: ราคาต่อหน่วย | O12: ราคาต้นทุน | P12: FN | Q12: ราคาต่อหน่วย x FN | R12: =IF(ราคากลาง1!L4=1,"ราคาค่าก่อสร้าง","ราคากลาง") -> ราคาค่าก่อสร้าง | W12: ปรับแก้ | X12: ทศนิยม
X13: 3
B14: ประเภทงานก่อสร้างทาง
A15: 1 | B15: งานรื้อย้าย
B16: 1.1 | C16: ="งานรื้อผิวจราจรลาดยางเดิม (ความหนา "&BackUp!J8*100&" ซม.)" -> งานรื้อผิวจราจรลาดยางเดิม (ความหนา 5 ซม.) | L16: ตร.ม. | M16: =ROUNDDOWN(BackUp!I37,0) -> 0 | N16: =IF(M16=0,0,ราคาต่อหน่วย!J16) -> 0 | O16: =ROUND(N16*M16,2) -> 0 | P16: =IF(M16=0,0,ปร.5!$I$20) -> 0 | Q16: =IF(P16=0,0,ROUND(N16*P16,2)) -> 0 | R16: =IF(P16=0,0,ROUND(O16*P16,2)+W16) -> 0 | X16: =IF(P16=0,0,ROUND(O16*P16,$X$13)) -> 0 | Y16: =IF(X16=0,"0","1") -> 0 | Z16: 1
B17: 1.2 | C17: ="งานรื้อผิวจราจร คสล. เดิม (ความหนา "&BackUp!M8*100&" ซม.)" -> งานรื้อผิวจราจร คสล. เดิม (ความหนา 10 ซม.) | L17: ตร.ม. | M17: =ROUNDDOWN(BackUp!L37,0) -> 0 | N17: =IF(M17=0,0,ราคาต่อหน่วย!J29) -> 0 | O17: =ROUND(N17*M17,2) -> 0 | P17: =IF(M17=0,0,ปร.5!$I$20) -> 0 | Q17: =IF(P17=0,0,ROUND(N17*P17,2)) -> 0 | R17: =IF(P17=0,0,ROUND(O17*P17,2)+W17) -> 0 | T17: ปริมาณคอนกรีตที่รื้อ (กรณี กรอกเอง) | X17: =IF(P17=0,0,ROUND(O17*P17,$X$13)) -> 0 | Y17: =IF(X17=0,"0","1") -> 0 | Z17: 1
B18: 1.3 | C18: งานรื้อ ท่อลอดเหลี่ยมเดิม | L18: เหมาจ่าย | M18: =IF(AND(U18=0,BackUp!BI51=0),0,1) -> 0 | N18: =IF(M18=0,0,ราคาต่อหน่วย!J40) -> 0 | O18: =ROUND(N18*M18,2) -> 0 | P18: =IF(M18=0,0,ปร.5!$I$20) -> 0 | Q18: 0 | R18: 0 | T18: กรอกเอง | V18: ลบ.ม. | X18: 0 | Y18: 0 | Z18: 1
B19: 1.4 | C19: งานรื้อ สะพานเดิม | L19: เหมาจ่าย | M19: =IF(AND(U19=0,BackUp!BL51=0),0,1) -> 0 | N19: =IF(M19=0,0,ราคาต่อหน่วย!J51) -> 0 | O19: =ROUND(N19*M19,2) -> 0 | P19: =IF(M19=0,0,ปร.5!$I$20) -> 0 | Q19: 0 | R19: 0 | T19: กรอกเอง | V19: ลบ.ม. | X19: 0 | Y19: 0 | Z19: 1
B20: 1.5 | C20: =ราคาต่อหน่วย!C52&" "&ราคาต่อหน่วย!E52&" ซม.)" -> งานรื้อหินคลุกเดิม(ขนกอง) (ความหนา 20 ซม.) | L20: ตร.ม. | M20: =ROUNDDOWN(BackUp!N37,0) -> 0 | N20: =IF(M20=0,0,ราคาต่อหน่วย!J63) -> 0 | O20: =ROUND(N20*M20,2) -> 0 | P20: =IF(M20=0,0,ปร.5!$I$20) -> 0 | Q20: 0 | R20: 0 | X20: 0 | Y20: 0 | Z20: 1
A21: 2 | B21: งานคันทางเดิม | X21: 0 | Y21: 0 | Z21: 1
B22: 2.1 | C22: งานกรุยทางถางป่า | E22: =ราคาต่อหน่วย!D66 -> (ขนาดกลาง) | L22: ตร.ม. | M22: =ROUNDDOWN(BackUp!S71,0) -> 0 | N22: =IF(M22=0,0,ราคาต่อหน่วย!J68) -> 0 | O22: =ROUND(N22*M22,2) -> 0 | P22: =IF(M22=0,0,ปร.5!$I$20) -> 0 | Q22: =IF(P22=0,0,ROUND(N22*P22,2)) -> 0 | R22: 0 | W22: =+$T$172 -> 0 | X22: 0 | Y22: 0 | Z22: 1
B23: 2.2 | C23: งานปรับเกลี่ยแต่งคันทางเดิมและบดทับ | L23: ตร.ม. | O23: =ROUND(N23*M23,2) -> 0 | P23: =IF(M23=0,0,ปร.5!$I$20) -> 0 | Q23: =IF(P23=0,0,ROUND(N23*P23,2)) -> 0 | R23: 0 | W23: 0 | X23: 0 | Y23: 0 | Z23: 1
B24: 2.3 | C24: งานตัดขึ้นรูปคันทาง | W24: 0 | X24: 0 | Y24: 0 | Z24: 1
C25: 2.3.1 งานดินตัด | L25: ลบ.ม. | M25: 0 | N25: =IF(M25=0,0,ราคาต่อหน่วย!J84) -> 0 | O25: =ROUND(N25*M25,2) -> 0 | P25: =IF(M25=0,0,ปร.5!$I$20) -> 0 | Q25: 0 | R25: 0 | W25: 0 | X25: 0 | Y25: 0 | Z25: 1
C26: 2.3.2 งานขุดตัดหินผุ | L26: ลบ.ม. | M26: 0 | N26: =IF(M26=0,0,ราคาต่อหน่วย!J95) -> 0 | O26: =ROUND(N26*M26,2) -> 0 | P26: =IF(M26=0,0,ปร.5!$I$20) -> 0 | Q26: 0 | R26: 0 | W26: 0 | X26: 0 | Y26: 0 | Z26: 1
C27: 2.3.3 งานขุดตัดหินแข็ง | L27: ลบ.ม. | M27: 0 | N27: =IF(M27=0,0,ราคาต่อหน่วย!J103) -> 0 | O27: =ROUND(N27*M27,2) -> 0 | P27: =IF(M27=0,0,ปร.5!$I$20) -> 0 | Q27: 0 | R27: 0 | W27: 0 | X27: 0 | Y27: 0 | Z27: 1
C28: 2.3.4 งานขุดวัสดุไม่เหมาะสม | L28: ลบ.ม. | M28: 0 | N28: =IF(M28=0,0,ราคาต่อหน่วย!J107) -> 0 | O28: =ROUND(N28*M28,2) -> 0 | P28: =IF(M28=0,0,ปร.5!$I$20) -> 0 | Q28: 0 | R28: 0 | W28: 0 | X28: 0 | Y28: 0 | Z28: 1
C29: 2.3.5 งานตัดแต่งขั้นบันได | L29: ลบ.ม. | M29: 0 | N29: =IF(M29=0,0,ราคาต่อหน่วย!J112) -> 0 | O29: =ROUND(N29*M29,2) -> 0 | P29: =IF(M29=0,0,ปร.5!$I$20) -> 0 | Q29: 0 | R29: 0 | W29: 0 | X29: 0 | Y29: 0 | Z29: 1
B30: 2.4 | C30: งานดินถมไหล่ทาง | W30: 0 | X30: 0 | Y30: 0 | Z30: 1
C31: 2.4.1 งานดินถม | U31: =0.2*0.2 -> 0.04 | W31: 0 | X31: 0 | Y31: 0 | Z31: 1
C32: 2.4.1(1) งานดินถม(จากงานดินตัด) | L32: ลบ.ม. | M32: =ROUNDDOWN(IF(BackUp!G250=0,0,BackUp!I250),0) -> 0 | N32: =+IF(M32=0,0,ราคาต่อหน่วย!J117) -> 0 | O32: =ROUND(N32*M32,2) -> 0 | P32: =IF(M32=0,0,ปร.5!$I$20) -> 0 | Q32: 0 | R32: 0 | S32: ยาว | T32: กว้าง | U32: หนา | V32: ปริมาฯ | W32: 0 | X32: 0 | Y32: 0 | Z32: 1
C33: 2.4.1(2) งานดินถม(จากนอกโครงการ) | L33: ลบ.ม. | O33: =ROUND(N33*M33,2) -> 0 | P33: =IF(M33=0,0,ปร.5!$I$20) -> 0 | Q33: 0 | R33: 0 | S33: =M58 -> 321 | T33: 1 | U33: 0.2 | V33: =+((S33*T33)*U33) -> 64.2 | W33: 0 | X33: 0 | Y33: 0 | Z33: 1
C34: 2.4.2 งานทรายรองผิวทาง คสล. | L34: ลบ.ม. | M34: =M58*0.05 -> 16.05 | N34: =+IF(M34=0,0,ราคาต่อหน่วย!J464) -> 680 | O34: =ROUND(N34*M34,2) -> 10914 | P34: =IF(M34=0,0,ปร.5!$I$20) -> 1.3592 | Q34: 924.26 | R34: 14834.31 | W34: 0 | X34: 14834.309 | Y34: 1 | Z34: 1
B35: 2.5 | C35: งานวัสดุคัดเลือก | L35: ลบ.ม. | M35: =ROUNDDOWN(IF(BackUp!G253=0,0,BackUp!I253),0) -> 0 | N35: =IF(M35=0,0,ราคาต่อหน่วย!J464) -> 0 | O35: =ROUND(N35*M35,2) -> 0 | P35: =IF(M35=0,0,ปร.5!$I$20) -> 0 | Q35: 0 | R35: 0 | W35: 0 | X35: 0 | Y35: 0 | Z35: 1
A36: 3 | B36: งานพื้นทางและรองพื้นทาง | W36: 0 | X36: 0 | Y36: 0 | Z36: 1
B37: 3.1 | C37: งานรองพื้นทาง | W37: 0 | X37: 0 | Y37: 0 | Z37: 1
C38: 3.1.1 งานรองพื้นทางลูกรัง | L38: ลบ.ม. | M38: =ROUNDDOWN(IF(BackUp!B252=BackUp!BX252,BackUp!I252,0),0)*0 -> 0 | N38: =+IF(M38=0,0,ราคาต่อหน่วย!J161) -> 0 | O38: =ROUND(N38*M38,2) -> 0 | P38: =IF(M38=0,0,ปร.5!$I$20) -> 0 | Q38: 0 | R38: 0 | W38: 0 | X38: 0 | Y38: 0 | Z38: 1
C39: 3.1.2 งานรองพื้นทางดินซีเมนต์ | L39: ลบ.ม. | M39: =ROUNDDOWN(IF(BackUp!B252=BackUp!BX253,BackUp!I252,0),0) -> 0 | N39: =+IF(M39=0,0,ราคาต่อหน่วย!J176) -> 0 | O39: =ROUND(N39*M39,2) -> 0 | P39: =IF(M39=0,0,ปร.5!$I$20) -> 0 | Q39: 0 | R39: 0 | U39: =4000*0.15 -> 600 | W39: 0 | X39: 0 | Y39: 0 | Z39: 1
C40: 3.1.3 งานทรายรองพื้นทาง | L40: ลบ.ม. | M40: =(M58+M73)*BackUp!T244 -> 0 | N40: =+IF(M40=0,0,ราคาต่อหน่วย!J464) -> 0 | O40: =ROUND(N40*M40,2) -> 0 | P40: =IF(M40=0,0,ปร.5!$I$20) -> 0 | Q40: =IF(P40=0,0,ROUND(N40*P40,2)) -> 0 | R40: =IF(P40=0,0,ROUND(O40*P40,2)+W40) -> 0 | W40: 0 | X40: 0 | Y40: 0 | Z40: 1
B41: 3.2 | C41: งานพื้นทาง | N41: =+IF(M41=0,"",พื้นทาง) ->  | W41: 0 | X41: 0 | Y41: 0 | Z41: 1
C42: 3.2.1 งานพื้นทางหินคลุก | L42: ลบ.ม. | M42: =ROUNDDOWN(M58*0,0) -> 0 | N42: 0 | O42: =ROUND(N42*M42,2) -> 0 | P42: =IF(M42=0,0,ปร.5!$I$20) -> 0 | Q42: 0 | R42: 0 | W42: 0 | X42: 0 | Y42: 0 | Z42: 1
C43: 3.2.2 งานพื้นทางดินซีเมนต์ | L43: ลบ.ม. | M43: =ROUNDDOWN(IF(BackUp!B251=BackUp!BX250,BackUp!I251,0),0) -> 0 | N43: =+IF(M43=0,0,ราคาต่อหน่วย!J201) -> 0 | O43: =ROUND(N43*M43,2) -> 0 | P43: =IF(M43=0,0,ปร.5!$I$20) -> 0 | Q43: 0 | R43: 0 | W43: 0 | X43: 0 | Y43: 0 | Z43: 1
B44: 3.3 | C44: งานปรับปรุงโครงสร้างถนนเดิม | W44: =+$T$172 -> 0 | X44: 0 | Y44: 0 | Z44: 1
C45: 3.3.1(1) Deep Patch | L45: ตร.ม. | M45: =ROUNDDOWN(BackUp!H117,0) -> 0 | N45: =IF(M45=0,0,ราคาต่อหน่วย!J233) -> 0 | O45: =ROUND(N45*M45,2) -> 0 | P45: =IF(M45=0,0,ปร.5!$I$20) -> 0 | Q45: 0 | R45: =IF(P45=0,0,ROUND(O45*P45,2)+W45) -> 0 | W45: 0 | X45: 0 | Y45: 0 | Z45: 1
C46: 3.3.2(2) งาน Pavement In-Place Recycling | L46: ตร.ม. | M46: 0 | N46: =IF(M46=0,0,ราคาต่อหน่วย!J261) -> 0 | O46: =ROUND(N46*M46,2) -> 0 | P46: =IF(M46=0,0,ปร.5!$I$20) -> 0 | Q46: 0 | R46: 0 | W46: 0 | X46: 0 | Y46: 0 | Z46: 1
C47: 3.3.2(3) งานหินคลุกปรับระดับ(หลวม) | L47: ลบ.ม. | M47: =BackUp!I257 -> 0 | N47: =+IF(M47=0,0,ROUND(ราคาต่อหน่วย!J181,1)) -> 0 | O47: =ROUND(N47*M47,2) -> 0 | P47: =IF(M47=0,0,ปร.5!$I$20) -> 0 | Q47: 0 | R47: 0 | W47: 0 | X47: 0 | Y47: 0 | Z47: 1
A48: 4 | B48: งานผิวทางและไหล่ทาง | W48: 0 | X48: 0 | Y48: 0 | Z48: 1
B49: 4.1 | C49: งานผิวทาง + Widening | W49: 0 | X49: 0 | Y49: 0 | Z49: 1
C50: 4.1.1 งาน Prime Coat & Tack Coat สำหรับผิวทาง | W50: 0 | X50: 0 | Y50: 0 | Z50: 1
C51: 4.1.1(1) Prime Coat | L51: ตร.ม. | M51: =M53+M55+M62 -> 0 | N51: =+IF(M51=0,0,ราคาต่อหน่วย!J288) -> 0 | O51: =ROUND(N51*M51,2) -> 0 | P51: =IF(M51=0,0,ปร.5!$I$20) -> 0 | Q51: 0 | R51: =IF(P51=0,0,ROUND(O51*P51,2)+W51) -> 0 | W51: 0 | X51: 0 | Y51: 0 | Z51: 1
C52: 4.1.1(2) Tack Coat | L52: ตร.ม. | M52: =M56 -> 0 | N52: =+IF(M52=0,0,ราคาต่อหน่วย!J294) -> 0 | O52: =ROUND(N52*M52,2) -> 0 | P52: =IF(M52=0,0,ปร.5!$I$20) -> 0 | Q52: 0 | R52: 0 | W52: 0 | X52: 0 | Y52: 0 | Z52: 1
C53: 4.1.2 งานผิวทาง Cape Seal | L53: ตร.ม. | M53: =ROUNDDOWN(IF(ข้อมูลโครงการ!G10=ข้อมูลโครงการ!X11,BackUp!BM238+BackUp!BM239-BackUp!DB153,0),0) -> 0 | N53: =+IF(M53=0,0,ราคาต่อหน่วย!J331) -> 0 | O53: =ROUND(N53*M53,2) -> 0 | P53: =IF(M53=0,0,ปร.5!$I$20) -> 0 | Q53: 0 | R53: 0 | W53: 0 | X53: 0 | Y53: 0 | Z53: 1
C54: ="4.1.3 งานผิวทาง "&IF(S7=T7,"PARA Asphaltic Concrete",IF(S7=T8,"Asphalt concrete"))&" หนาเฉลี่ย "&ข้อมูลโครงการ!T11*100&".00 ซม." -> 4.1.3 งานผิวทาง Asphalt concrete หนาเฉลี่ย 0.00 ซม. | W54: 0 | X54: 0 | Y54: 0 | Z54: 1
C55: 4.1.3(1) ปูบนผิว Prime Coat | L55: ตร.ม. | M55: =ROUNDDOWN(IF(ข้อมูลโครงการ!G10=ข้อมูลโครงการ!X13,BackUp!O242,0),0) -> 0 | N55: =+IF(M55=0,0,ราคาต่อหน่วย!J353) -> 0 | O55: =ROUND(N55*M55,2) -> 0 | P55: =IF(M55=0,0,ปร.5!$I$20) -> 0 | Q55: 0 | R55: =IF(P55=0,0,ROUND(O55*P55,2)+W55) -> 0 | W55: 0 | X55: 0 | Y55: 0 | Z55: 1
C56: 4.1.3(2) ปูบนผิว Tack Coat | L56: ตร.ม. | M56: =ROUNDDOWN(IF(ข้อมูลโครงการ!G10=ข้อมูลโครงการ!X13,BackUp!O241,0),0) -> 0 | N56: =+IF(M56=0,0,ราคาต่อหน่วย!J357) -> 0 | O56: =ROUND(N56*M56,2) -> 0 | P56: =IF(M56=0,0,ปร.5!$I$20) -> 0 | Q56: 0 | R56: 0 | W56: 0 | X56: 0 | Y56: 0 | Z56: 1
C57: 4.1.4 งานผิวทางและผิวทางเชื่อมคอนกรีตเสริมเหล็ก | T57: ทางเชื่อม | U57: 0 | W57: 0 | X57: 0 | Y57: 0 | Z57: 1
C58: ="4.1.4(1) งานผิวทางคอนกรีตเสริมเหล็ก หนา "&BackUp!E244*100&" ซม." -> 4.1.4(1) งานผิวทางคอนกรีตเสริมเหล็ก หนา 15 ซม. | L58: ตร.ม. | M58: =ROUNDDOWN((M82*1)+(U57*0),0) -> 321 | N58: =+IF(M58=0,0,ราคาต่อหน่วย!J487) -> 318 | O58: =ROUND(N58*M58,2) -> 102078 | P58: =IF(M58=0,0,ปร.5!$I$20) -> 1.3592 | Q58: 432.23 | R58: =IF(P58=0,0,ROUND(O58*P58,2)+W58) -> 138744.42 | T58: ความยาว Joint | W58: 0 | X58: 138744.418 | Y58: 1 | Z58: 1
C59: 4.1.4(2) Expansion Joint | L59: ม. | M59: =U59 -> 0 | N59: =+IF(M59=0,0,ราคาต่อหน่วย!J497) -> 0 | O59: 0 | P59: =IF(M59=0,0,ปร.5!$I$20) -> 0 | Q59: 0 | R59: 0 | T59: Expansion Joint | U59: =+((S33/100)+1)*0 -> 0 | V59: ม. | W59: 0 | X59: 0 | Y59: 0 | Z59: 1
C60: 4.1.4(3) Contraction Joint | L60: ม. | M60: =U60 -> 0 | N60: =+IF(M60=0,0,ราคาต่อหน่วย!J505) -> 0 | O60: 0 | P60: =IF(M60=0,0,ปร.5!$I$20) -> 0 | Q60: 0 | R60: 0 | T60: Contraction Joint | U60: =+((S33/10)+1)*0 -> 0 | V60: ม. | W60: 0 | X60: 0 | Y60: 0 | Z60: 1
C61: 4.1.4(4) Longitudinal Joint | L61: ม. | M61: 321 | N61: =+IF(M61=0,0,ราคาต่อหน่วย!J512) -> 62 | O61: 19902 | P61: =IF(M61=0,0,ปร.5!$I$20) -> 1.3592 | Q61: 84.27 | R61: 27050.8 | T61: Longitudinal Joint | U61: =+(+S33) -> 321 | V61: ม. | W61: 0 | X61: 27050.798 | Y61: 1 | Z61: 1
C62: 4.1.5 งานผิวทาง Para Cape Seal | L62: ตร.ม. | M62: =ROUNDDOWN(BackUp!I254,0) -> 0 | N62: =+IF(M62=0,0,ราคาต่อหน่วย!J535) -> 0 | O62: 0 | P62: =IF(M62=0,0,ปร.5!$I$20) -> 0 | Q62: =IF(P62=0,0,ROUND(N62*P62,2)) -> 0 | R62: 0 | W62: 0 | X62: 0 | Y62: 0 | Z62: 1
C63: ="4.1.6 งาน"&BackUp!B254 -> 4.1.6 งานผิวทางลูกรัง | L63: ลบ.ม. | M63: =ROUNDDOWN(IF(ข้อมูลโครงการ!G11=ข้อมูลโครงการ!X13,BackUp!BM239+BackUp!BM240-BackUp!DB154,0),0)*0 -> 0 | N63: =+IF(M63=0,0,ราคาต่อหน่วย!J186) -> 0 | O63: 0 | P63: =IF(M63=0,0,ปร.5!$I$20) -> 0 | Q63: =IF(P63=0,0,ROUND(N63*P63,2)) -> 0 | R63: =IF(P63=0,0,ROUND(O63*P63,2)+W63) -> 0 | W63: 0 | X63: =IF(P63=0,0,ROUND(O63*P63,$X$13)) -> 0 | Y63: 0 | Z63: 1
B64: 4.2 | C64: งานไหล่ทาง | W64: 0 | X64: 0 | Y64: 0 | Z64: 1
C65: 4.2.1 งาน Prime Coat & Tack Coat สำหรับผิวไหล่ทาง | W65: 0 | X65: 0 | Y65: 0 | Z65: 1
C66: 4.2.1(1) Prime Coat | L66: ตร.ม. | M66: =M68+M70+M77 -> 0 | N66: =+IF(M66=0,0,ราคาต่อหน่วย!J288) -> 0 | O66: =ROUND(N66*M66,2) -> 0 | P66: =IF(M66=0,0,ปร.5!$I$20) -> 0 | Q66: 0 | R66: =IF(P66=0,0,ROUND(O66*P66,2)+W66) -> 0 | W66: 0 | X66: 0 | Y66: 0 | Z66: 1
C67: 4.2.1(2) Tack Coat | L67: ตร.ม. | M67: =M71 -> 0 | N67: =+IF(M67=0,0,ราคาต่อหน่วย!J294) -> 0 | O67: =ROUND(N67*M67,2) -> 0 | P67: =IF(M67=0,0,ปร.5!$I$20) -> 0 | Q67: 0 | R67: 0 | W67: 0 | X67: 0 | Y67: 0 | Z67: 1
C68: 4.2.2 งานผิวไหล่ทาง Cape Seal | L68: ตร.ม. | M68: =ROUNDDOWN(IF(ข้อมูลโครงการ!G11=ข้อมูลโครงการ!X11,BackUp!BO238+BackUp!BO239-BackUp!DC153,0),0) -> 0 | N68: =+IF(M68=0,0,ราคาต่อหน่วย!J331) -> 0 | O68: =ROUND(N68*M68,2) -> 0 | P68: =IF(M68=0,0,ปร.5!$I$20) -> 0 | Q68: 0 | R68: 0 | W68: 0 | X68: 0 | Y68: 0 | Z68: 1
C69: ="4.2.3 งานผิวไหล่ทาง "&IF(S7=T7,"PARA Asphaltic Concrete",IF(S7=T8,"Asphalt concrete"))&" หนาเฉลี่ย "&ข้อมูลโครงการ!T11*100&".00 ซม." -> 4.2.3 งานผิวไหล่ทาง Asphalt concrete หนาเฉลี่ย 0.00 ซม. | W69: 0 | X69: 0 | Y69: 0 | Z69: 1
C70: 4.2.3(1) ปูบนผิว Prime Coat | L70: ตร.ม. | M70: =ROUNDDOWN(IF(ข้อมูลโครงการ!G11=ข้อมูลโครงการ!X13,BackUp!Q242,0),0) -> 0 | N70: =+IF(M70=0,0,ราคาต่อหน่วย!J353) -> 0 | O70: =ROUND(N70*M70,2) -> 0 | P70: =IF(M70=0,0,ปร.5!$I$20) -> 0 | Q70: 0 | R70: =IF(P70=0,0,ROUND(O70*P70,2)+W70) -> 0 | W70: 0 | X70: 0 | Y70: 0 | Z70: 1
C71: 4.2.3(2) ปูบนผิว Tack Coat | L71: ตร.ม. | M71: =ROUNDDOWN(IF(ข้อมูลโครงการ!G11=ข้อมูลโครงการ!X13,BackUp!Q241,0),0) -> 0 | N71: =+IF(M71=0,0,ราคาต่อหน่วย!J357) -> 0 | O71: =ROUND(N71*M71,2) -> 0 | P71: =IF(M71=0,0,ปร.5!$I$20) -> 0 | Q71: 0 | R71: 0 | W71: 0 | X71: 0 | Y71: 0 | Z71: 1
W72: 0 | X72: 0 | Y72: 0 | Z72: 1
T73: ความยาว Joint | W73: 0 | X73: 0 | Y73: 0 | Z73: 1
T74: Expansion Joint | V74: ม. | W74: 0 | X74: 0 | Y74: 0 | Z74: 1
T75: Contraction Joint | V75: ม. | W75: 0 | X75: 0 | Y75: 0 | Z75: 1
T76: Longitudinal Joint | V76: ม. | W76: 0 | X76: 0 | Y76: 0 | Z76: 1
W77: 0 | X77: 0 | Y77: 0 | Z77: 1
W78: 0 | X78: 0 | Y78: 0 | Z78: 1
A79: 5 | B79: งานเบ็ดเตล็ด | W79: 0 | X79: 0 | Y79: 0 | Z79: 1
B80: 5.1 | C80: งานระบบระบายน้ำ | N80: =+IF(M80=0,"",pipe40.1) ->  | W80: 0 | X80: 0 | Y80: =IF(X80=0,"0","1") -> 0 | Z80: 1
C81: 5.1.1 งานท่อลอดกลม คสล. ชนิดกลม | N81: =+IF(M81=0,"",pipe40.1) ->  | W81: 0 | X81: =IF(P81=0,0,ROUND(O81*P81,$X$13)) -> 0 | Y81: 0 | Z81: 1
C82: 5.1.1(1) ขนาด | E82: Ø | F82: 0.4 | G82: ม. | L82: ม. | M82: =356-M106 -> 321 | N82: =+IF(M82=0,0,ราคาต่อหน่วย!J578) -> 754 | O82: =ROUND(N82*M82,2) -> 242034 | P82: =IF(M82=0,0,ปร.5!$I$20) -> 1.3592 | Q82: 1024.84 | R82: =IF(P82=0,0,ROUND(O82*P82,2)+W82) -> 328972.61 | W82: 0 | X82: 328972.613 | Y82: 1 | Z82: 1
C83: 5.1.1(2) ขนาด | E83: Ø | F83: 0.6 | G83: ม. | L83: ม. | N83: =+IF(M83=0,0,ราคาต่อหน่วย!J591) -> 0 | O83: =ROUND(N83*M83,2) -> 0 | P83: =IF(M83=0,0,ปร.5!$I$20) -> 0 | Q83: 0 | R83: 0 | W83: 0 | X83: 0 | Y83: 0 | Z83: 1
C84: 5.1.1(3) ขนาด | E84: Ø | F84: 0.8 | G84: ม. | L84: ม. | M84: =BackUp!L261 -> 0 | N84: =+IF(M84=0,0,ราคาต่อหน่วย!J604) -> 0 | O84: =ROUND(N84*M84,2) -> 0 | P84: =IF(M84=0,0,ปร.5!$I$20) -> 0 | Q84: 0 | R84: 0 | W84: 0 | X84: 0 | Y84: 0 | Z84: 1
C85: 5.1.1(4) ขนาด | E85: Ø | F85: 1 | G85: ม. | L85: ม. | M85: =BackUp!N261 -> 0 | N85: =+IF(M85=0,0,ราคาต่อหน่วย!J617) -> 0 | O85: =ROUND(N85*M85,2) -> 0 | P85: =IF(M85=0,0,ปร.5!$I$20) -> 0 | Q85: 0 | R85: 0 | W85: 0 | X85: 0 | Y85: 0 | Z85: 1
C86: 5.1.1(5) ขนาด | E86: Ø | F86: 1.2 | G86: ม. | L86: ม. | M86: =BackUp!P261 -> 0 | N86: =+IF(M86=0,0,ราคาต่อหน่วย!J630) -> 0 | O86: =ROUND(N86*M86,2) -> 0 | P86: =IF(M86=0,0,ปร.5!$I$20) -> 0 | Q86: 0 | R86: 0 | W86: =+$T$172 -> 0 | X86: 0 | Y86: 0 | Z86: 1
C87: 5.1.2 งานกำแพงปากท่อ (Head Wall, End Wall) | N87: =+IF(M87=0,"",ปากท่อ1_60) ->  | W87: 0 | X87: 0 | Y87: 0 | Z87: 1
C88: 5.1.2(1) ขนาด | E88: 1- | F88: Ø | G88: 0.6 | H88: ม. | L88: ด้าน | M88: =BackUp!I262 -> 0 | N88: =+IF(M88=0,0,ราคาต่อหน่วย!J661) -> 0 | O88: =ROUND(N88*M88,2) -> 0 | P88: =IF(M88=0,0,ปร.5!$I$20) -> 0 | Q88: 0 | R88: 0 | W88: 0 | X88: 0 | Y88: 0 | Z88: 1
C89: 5.1.2(2) ขนาด | E89: 1- | F89: Ø | G89: 0.8 | H89: ม. | L89: ด้าน | M89: =BackUp!L262 -> 0 | N89: =+IF(M89=0,0,ราคาต่อหน่วย!J697) -> 0 | O89: 0 | P89: =IF(M89=0,0,ปร.5!$I$20) -> 0 | Q89: 0 | R89: 0 | W89: 0 | X89: 0 | Y89: 0 | Z89: 1
C90: 5.1.2(3) ขนาด | E90: 1- | F90: Ø | G90: 1 | H90: ม. | L90: ด้าน | M90: =BackUp!N262 -> 0 | N90: =+IF(M90=0,0,ราคาต่อหน่วย!J733) -> 0 | O90: 0 | P90: =IF(M90=0,0,ปร.5!$I$20) -> 0 | Q90: =IF(P90=0,0,ROUND(N90*P90,2)) -> 0 | R90: 0 | W90: 0 | X90: 0 | Y90: 0 | Z90: 1
C91: 5.1.2(4) ขนาด | E91: 1- | F91: Ø | G91: 1.2 | H91: ม. | L91: ด้าน | M91: =BackUp!P262 -> 0 | N91: =+IF(M91=0,0,ราคาต่อหน่วย!J769) -> 0 | O91: 0 | P91: =IF(M91=0,0,ปร.5!$I$20) -> 0 | Q91: 0 | R91: 0 | W91: 0 | X91: 0 | Y91: 0 | Z91: 1
C92: 5.1.2(5) ขนาด | E92: 2- | F92: Ø | G92: 0.6 | H92: ม. | L92: ด้าน | M92: =BackUp!I263 -> 0 | N92: =+IF(M92=0,0,ราคาต่อหน่วย!J673) -> 0 | O92: 0 | P92: =IF(M92=0,0,ปร.5!$I$20) -> 0 | Q92: 0 | R92: 0 | W92: 0 | X92: 0 | Y92: 0 | Z92: 1
C93: 5.1.2(6) ขนาด | E93: 2- | F93: Ø | G93: 0.8 | H93: ม. | L93: ด้าน | M93: =BackUp!L263 -> 0 | N93: =+IF(M93=0,0,ราคาต่อหน่วย!J709) -> 0 | O93: 0 | P93: =IF(M93=0,0,ปร.5!$I$20) -> 0 | Q93: 0 | R93: 0 | W93: 0 | X93: 0 | Y93: 0 | Z93: 1
C94: 5.1.2(7) ขนาด | E94: 2- | F94: Ø | G94: 1 | H94: ม. | L94: ด้าน | M94: =BackUp!N263 -> 0 | N94: =+IF(M94=0,0,ราคาต่อหน่วย!J745) -> 0 | O94: 0 | P94: =IF(M94=0,0,ปร.5!$I$20) -> 0 | Q94: 0 | R94: 0 | W94: 0 | X94: 0 | Y94: 0 | Z94: 1
C95: 5.1.2(8) ขนาด | E95: 2- | F95: Ø | G95: 1.2 | H95: ม. | L95: ด้าน | M95: =BackUp!P263 -> 0 | N95: =+IF(M95=0,0,ราคาต่อหน่วย!J781) -> 0 | O95: 0 | P95: =IF(M95=0,0,ปร.5!$I$20) -> 0 | Q95: 0 | R95: 0 | W95: 0 | X95: 0 | Y95: 0 | Z95: 1
C96: 5.1.2(9) ขนาด | E96: 3- | F96: Ø | G96: 0.6 | H96: ม. | L96: ด้าน | M96: =BackUp!I264 -> 0 | N96: =+IF(M96=0,0,ราคาต่อหน่วย!J685) -> 0 | O96: 0 | P96: =IF(M96=0,0,ปร.5!$I$20) -> 0 | Q96: 0 | R96: 0 | W96: 0 | X96: 0 | Y96: 0 | Z96: 1
C97: 5.1.2(10) ขนาด | E97: 3- | F97: Ø | G97: 0.8 | H97: ม. | L97: ด้าน | M97: =BackUp!L264 -> 0 | N97: =+IF(M97=0,0,ราคาต่อหน่วย!J721) -> 0 | O97: 0 | P97: =IF(M97=0,0,ปร.5!$I$20) -> 0 | Q97: 0 | R97: 0 | W97: 0 | X97: 0 | Y97: 0 | Z97: 1
C98: 5.1.2(11) ขนาด | E98: 3- | F98: Ø | G98: 1 | H98: ม. | L98: ด้าน | M98: =BackUp!N264 -> 0 | N98: =+IF(M98=0,0,ราคาต่อหน่วย!J757) -> 0 | O98: 0 | P98: =IF(M98=0,0,ปร.5!$I$20) -> 0 | Q98: 0 | R98: 0 | W98: 0 | X98: 0 | Y98: 0 | Z98: 1
C99: 5.1.2(12) ขนาด | E99: 3- | F99: Ø | G99: 1.2 | H99: ม. | L99: ด้าน | M99: =BackUp!P264 -> 0 | N99: =+IF(M99=0,0,ราคาต่อหน่วย!J793) -> 0 | O99: 0 | P99: =IF(M99=0,0,ปร.5!$I$20) -> 0 | Q99: 0 | R99: 0 | W99: 0 | X99: 0 | Y99: 0 | Z99: 1
C100: 5.1.3 งานรางระบายน้ำ คสล. | W100: 0 | X100: 0 | Y100: 0 | Z100: 1
C101: 5.1.3(1) แบบเปิด | I101: =BackUp!E349 -> (รน-303/56) | L101: ม. | M101: =BackUp!E361 -> 0 | N101: =+IF(M101=0,0,ราคาต่อหน่วย!J808) -> 0 | O101: =ROUND(N101*M101,2) -> 0 | P101: =IF(M101=0,0,ปร.5!$I$20) -> 0 | Q101: 0 | R101: 0 | W101: 0 | X101: 0 | Y101: 0 | Z101: 1
C102: 5.1.3(2) แบบตัวยู พร้อมฝาปิด | G102: =BackUp!H349 -> ข-30 | I102: =BackUp!G349 -> (รน-301/56) | L102: ม. | M102: =BackUp!G361 -> 0 | N102: =+IF(M102=0,0,ราคาต่อหน่วย!J838) -> 0 | O102: =ROUND(N102*M102,2) -> 0 | P102: =IF(M102=0,0,ปร.5!$I$20) -> 0 | Q102: 0 | R102: 0 | W102: 0 | X102: 0 | Y102: 0 | Z102: 1
C103: 5.1.3(3) แบบรางตื้น | I103: =BackUp!I349 -> (บร-402/56) | L103: ม. | M103: =BackUp!I361 -> 0 | N103: =+IF(M103=0,0,ราคาต่อหน่วย!J848) -> 0 | O103: =ROUND(N103*M103,2) -> 0 | P103: =IF(M103=0,0,ปร.5!$I$20) -> 0 | Q103: 0 | R103: 0 | W103: 0 | X103: 0 | Y103: 0 | Z103: 1
C104: 5.1.3(3) แบบรางระบายน้ำสำเร็จรูป (ขนาด 0.58 x 0.60 ม.) | L104: ม. | M104: =BackUp!L361 -> 0 | N104: =+IF(M104=0,0,ราคาต่อหน่วย!J883) -> 0 | O104: =ROUND(N104*M104,2) -> 0 | P104: =IF(M104=0,0,ปร.5!$I$20) -> 0 | Q104: =IF(P104=0,0,ROUND(N104*P104,2)) -> 0 | R104: 0 | W104: 0 | X104: 0 | Y104: 0 | Z104: 1
C105: 5.1.4 งานบ่อรับน้ำ คสล. | W105: 0 | X105: 0 | Y105: 0 | Z105: 1
C106: 5.1.4(1) บ่อพัก คสล. พร้อมฝา | I106: =BackUp!O349 -> (ทถ-5-301) | L106: บ่อ | M106: 35 | N106: =ราคาต่อหน่วย!J923 -> 6020 | O106: =ROUND(N106*M106,2) -> 210700 | P106: =IF(M106=0,0,ปร.5!$I$20) -> 1.3592 | Q106: 8182.38 | R106: 286383.44 | W106: 0 | X106: 286383.44 | Y106: 1 | Z106: 1
C107: 5.1.4(2) บ่อพัก คสล. พร้อมฝา | I107: =BackUp!Q349 -> (บร-402/56) | L107: บ่อ | M107: =BackUp!P361 -> 0 | N107: =+IF(M107=0,0,ราคาต่อหน่วย!J923) -> 0 | O107: =ROUND(N107*M107,2) -> 0 | P107: =IF(M107=0,0,ปร.5!$I$20) -> 0 | Q107: 0 | R107: 0 | W107: 0 | X107: 0 | Y107: 0 | Z107: 1
B108: 5.2 | C108: งานปลูกหญ้า | N108: =+IF(M108=0,"",หญ้า) ->  | W108: 0 | X108: 0 | Y108: 0 | Z108: 1
C109: 5.2.1 แบบ | D109: ปักแถว | L109: ตร.ม. | M109: =ROUNDDOWN(BackUp!M410,0) -> 0 | N109: =IF(M109=0,0,ราคาต่อหน่วย!J956) -> 0 | O109: =ROUND(N109*M109,2) -> 0 | P109: =IF(M109=0,0,ปร.5!$I$20) -> 0 | Q109: 0 | R109: 0 | W109: 0 | X109: 0 | Y109: 0 | Z109: 1
C110: 5.2.2 แบบ | D110: ปูแผ่น | L110: ตร.ม. | M110: =ROUNDDOWN(BackUp!O410,0) -> 0 | N110: =IF(M110=0,0,ราคาต่อหน่วย!J962) -> 0 | O110: =ROUND(N110*M110,2) -> 0 | P110: =IF(M110=0,0,ปร.5!$I$20) -> 0 | Q110: 0 | R110: 0 | W110: 0 | X110: 0 | Y110: 0 | Z110: 1
B111: 5.3 | C111: งานเครื่องหมายจราจร | N111: =+IF(M111=0,"",บ_1) ->  | W111: 0 | X111: 0 | Y111: 0 | Z111: 1
C112: 5.3.1 งานป้ายจราจร ใช้แผ่นสะท้อนแสงตาม มาตรฐาน | W112: 0 | X112: 0 | Y112: 0 | Z112: 1
C113: - แบบ บ1 | I113: (แบบที่ 9) | L113: ชุด | M113: =BackUp!H437 -> 0 | N113: =+IF(M113=0,0,ราคาป้าย!F5) -> 0 | O113: =ROUND(N113*M113,2) -> 0 | P113: =IF(M113=0,0,ปร.5!$I$20) -> 0 | Q113: 0 | R113: =IF(P113=0,0,ROUND(O113*P113,2)+W113) -> 0 | W113: 0 | X113: 0 | Y113: 0 | Z113: 1
C114: - แบบ บ2 | L114: ชุด | M114: =BackUp!H438 -> 0 | N114: =+IF(M114=0,0,ราคาป้าย!F6) -> 0 | O114: 0 | P114: =IF(M114=0,0,ปร.5!$I$20) -> 0 | Q114: 0 | R114: 0 | W114: 0 | X114: 0 | Y114: 0 | Z114: 1
C115: - แบบ บ3-บ55 | L115: ชุด | M115: =BackUp!H439 -> 0 | N115: =+IF(M115=0,0,ราคาป้าย!F7) -> 0 | O115: 0 | P115: =IF(M115=0,0,ปร.5!$I$20) -> 0 | Q115: 0 | R115: 0 | W115: 0 | X115: 0 | Y115: 0 | Z115: 1
C116: - แบบ ต1-ต27,ต31-ต60,ต75 | L116: ชุด | N116: =+IF(M116=0,0,2840) -> 0 | O116: 0 | P116: =IF(M116=0,0,ปร.5!$I$20) -> 0 | Q116: 0 | R116: 0 | W116: 0 | X116: 0 | Y116: 0 | Z116: 1
C117: - แบบ ต28-ต30,ต62 | I117: (แบบที่ 9) | L117: ชุด | M117: =BackUp!H441 -> 0 | N117: =+IF(M117=0,0,ราคาป้าย!F9) -> 0 | O117: =ROUND(N117*M117,2) -> 0 | P117: =IF(M117=0,0,ปร.5!$I$20) -> 0 | Q117: 0 | R117: 0 | W117: 0 | X117: 0 | Y117: 0 | Z117: 1
C118: - แบบ ต61 | I118: (แบบที่ 9) | L118: ชุด | M118: =BackUp!H442 -> 0 | N118: =+IF(M118=0,0,ราคาป้าย!F10) -> 0 | O118: 0 | P118: =IF(M118=0,0,ปร.5!$I$20) -> 0 | Q118: 0 | R118: 0 | W118: 0 | X118: 0 | Y118: 0 | Z118: 1
C119: - แบบ ต63+ต66 (1 แผ่น) | I119: (แบบที่ 9) | L119: ชุด | M119: =BackUp!H443 -> 0 | N119: =+IF(M119=0,0,ราคาป้าย!F11) -> 0 | O119: 0 | P119: =IF(M119=0,0,ปร.5!$I$20) -> 0 | Q119: 0 | R119: 0 | W119: 0 | X119: 0 | Y119: 0 | Z119: 1
C120: - แบบ ต63+ต66 (2 แผ่น) | I120: (แบบที่ 9) | L120: ชุด | N120: =+IF(M120=0,0,7090) -> 0 | O120: 0 | P120: =IF(M120=0,0,ปร.5!$I$20) -> 0 | Q120: 0 | R120: 0 | W120: 0 | X120: 0 | Y120: 0 | Z120: 1
C121: - แบบ ต64,ต67 | I121: (แบบที่ 9) | L121: ชุด | M121: =BackUp!H445 -> 0 | N121: =+IF(M121=0,0,ราคาป้าย!F13) -> 0 | O121: 0 | P121: =IF(M121=0,0,ปร.5!$I$20) -> 0 | Q121: 0 | R121: 0 | W121: 0 | X121: 0 | Y121: 0 | Z121: 1
C122: - แบบ ต65,ต68,ต70 | I122: (แบบที่ 9) | L122: ชุด | M122: =BackUp!H446 -> 0 | N122: =+IF(M122=0,0,ราคาป้าย!F14) -> 0 | O122: 0 | P122: =IF(M122=0,0,ปร.5!$I$20) -> 0 | Q122: 0 | R122: 0 | W122: 0 | X122: 0 | Y122: 0 | Z122: 1
C123: - แบบ ต69 | I123: (แบบที่ 9) | L123: ชุด | M123: =BackUp!H447 -> 0 | N123: =+IF(M123=0,0,ราคาป้าย!F15) -> 0 | O123: 0 | P123: =IF(M123=0,0,ปร.5!$I$20) -> 0 | Q123: 0 | R123: 0 | W123: 0 | X123: 0 | Y123: 0 | Z123: 1
C124: - แบบ ต71 | I124: (แบบที่ 9) | L124: ชุด | M124: =BackUp!H448 -> 0 | N124: =+IF(M124=0,0,ราคาป้าย!F16) -> 0 | O124: =ROUND(N124*M124,2) -> 0 | P124: =IF(M124=0,0,ปร.5!$I$20) -> 0 | Q124: =IF(P124=0,0,ROUND(N124*P124,2)) -> 0 | R124: 0 | W124: 0 | X124: 0 | Y124: 0 | Z124: 1
C125: - แบบ ต72-ต73 | I125: (แบบที่ 9) | L125: ชุด | M125: =BackUp!H449 -> 0 | N125: =+IF(M125=0,0,ราคาป้าย!F17) -> 0 | O125: 0 | P125: =IF(M125=0,0,ปร.5!$I$20) -> 0 | Q125: 0 | R125: 0 | W125: 0 | X125: 0 | Y125: 0 | Z125: 1
C126: - แบบ ต74 | L126: ชุด | M126: =BackUp!H450 -> 0 | N126: =+IF(M126=0,0,ราคาป้าย!F18) -> 0 | O126: 0 | P126: =IF(M126=0,0,ปร.5!$I$20) -> 0 | Q126: 0 | R126: 0 | W126: 0 | X126: 0 | Y126: 0 | Z126: 1
C127: - แบบ ต76 | L127: ชุด | M127: =BackUp!H451 -> 0 | N127: =+IF(M127=0,0,ราคาป้าย!F19) -> 0 | O127: 0 | P127: =IF(M127=0,0,ปร.5!$I$20) -> 0 | Q127: 0 | R127: 0 | W127: 0 | X127: 0 | Y127: 0 | Z127: 1
C128: - แบบ ต77 | L128: ชุด | M128: =BackUp!H452 -> 0 | N128: =+IF(M128=0,0,ราคาป้าย!F20) -> 0 | O128: 0 | P128: =IF(M128=0,0,ปร.5!$I$20) -> 0 | Q128: 0 | R128: 0 | W128: 0 | X128: 0 | Y128: 0 | Z128: 1
C129: - แบบ ต78 | L129: ชุด | M129: =BackUp!H453 -> 0 | N129: =+IF(M129=0,0,ราคาป้าย!F21) -> 0 | O129: 0 | P129: =IF(M129=0,0,ปร.5!$I$20) -> 0 | Q129: 0 | R129: 0 | W129: 0 | X129: 0 | Y129: 0 | Z129: 1
C130: - แบบ บ3-บ55+ต1- ต27,ต31-ต60 | L130: ชุด | M130: =BackUp!H454 -> 0 | N130: =+IF(M130=0,0,ราคาป้าย!F22) -> 0 | O130: 0 | P130: =IF(M130=0,0,ปร.5!$I$20) -> 0 | Q130: 0 | R130: 0 | W130: 0 | X130: 0 | Y130: 0 | Z130: 1
C131: - แบบ ต1-ต27+ต73,ต31-ต60+ต73 | L131: ชุด | M131: =BackUp!H455 -> 0 | N131: =+IF(M131=0,0,ราคาป้าย!F23) -> 0 | O131: =ROUND(N131*M131,2) -> 0 | P131: =IF(M131=0,0,ปร.5!$I$20) -> 0 | Q131: 0 | R131: 0 | W131: 0 | X131: 0 | Y131: 0 | Z131: 1
C132: - แบบ ต1-ต27+ต74,ต31-ต60+ต74 | L132: ชุด | M132: =BackUp!H456 -> 0 | N132: =+IF(M132=0,0,ราคาป้าย!F24) -> 0 | O132: 0 | P132: =IF(M132=0,0,ปร.5!$I$20) -> 0 | Q132: 0 | R132: 0 | W132: 0 | X132: 0 | Y132: 0 | Z132: 1
C133: - แบบ ต1-ต27+ต75,ต31-ต60+ต75 | L133: ชุด | M133: =BackUp!H457 -> 0 | N133: =+IF(M133=0,0,ราคาป้าย!F25) -> 0 | O133: 0 | P133: =IF(M133=0,0,ปร.5!$I$20) -> 0 | Q133: =IF(P133=0,0,ROUND(N133*P133,2)) -> 0 | R133: 0 | W133: 0 | X133: 0 | Y133: 0 | Z133: 1
C134: - แบบ ต1-ต27+ต76,ต31-ต60+ต76 | L134: ชุด | M134: =BackUp!H458 -> 0 | N134: =+IF(M134=0,0,ราคาป้าย!F26) -> 0 | O134: 0 | P134: =IF(M134=0,0,ปร.5!$I$20) -> 0 | Q134: =IF(P134=0,0,ROUND(N134*P134,2)) -> 0 | R134: 0 | W134: 0 | X134: 0 | Y134: 0 | Z134: 1
C135: - แบบ ต1-ต27+ต77,ต31-ต60+ต77 | L135: ชุด | M135: =BackUp!H459 -> 0 | N135: =+IF(M135=0,0,ราคาป้าย!F27) -> 0 | O135: =ROUND(N135*M135,2) -> 0 | P135: =IF(M135=0,0,ปร.5!$I$20) -> 0 | Q135: =IF(P135=0,0,ROUND(N135*P135,2)) -> 0 | R135: 0 | W135: 0 | X135: 0 | Y135: 0 | Z135: 1
C136: - แบบ ต1-ต27+ต78,ต31-ต60+ต78 | L136: ชุด | M136: =BackUp!H460 -> 0 | N136: =+IF(M136=0,0,ราคาป้าย!F27) -> 0 | O136: 0 | P136: =IF(M136=0,0,ปร.5!$I$20) -> 0 | Q136: =IF(P136=0,0,ROUND(N136*P136,2)) -> 0 | R136: 0 | W136: 0 | X136: 0 | Y136: 0 | Z136: 1
C137: - ป้าย หมายเลขทางหลวงชนบท (น1) | L137: ชุด | M137: =BackUp!H461 -> 0 | N137: =+IF(M137=0,0,ราคาป้าย!F29) -> 0 | O137: 0 | P137: =IF(M137=0,0,ปร.5!$I$20) -> 0 | Q137: 0 | R137: 0 | W137: 0 | X137: 0 | Y137: 0 | Z137: 1
C138: - ป้าย หมายเลขทางหลวงชนบท (น1/1) | L138: ชุด | M138: =BackUp!H462 -> 0 | N138: =+IF(M138=0,0,ราคาป้าย!F30) -> 0 | O138: 0 | P138: =IF(M138=0,0,ปร.5!$I$20) -> 0 | Q138: 0 | R138: 0 | W138: 0 | X138: 0 | Y138: 0 | Z138: 1
C139: - ป้าย บอกจุดหมาย ปลายทาง (1-น2) | L139: ชุด | M139: =BackUp!H463 -> 0 | N139: =+IF(M139=0,0,ราคาป้าย!F31) -> 0 | O139: =ROUND(N139*M139,2) -> 0 | P139: =IF(M139=0,0,ปร.5!$I$20) -> 0 | Q139: 0 | R139: 0 | W139: 0 | X139: 0 | Y139: 0 | Z139: 1
C140: - ป้าย บอกจุดหมาย ปลายทาง (2-น2) | L140: ชุด | M140: =BackUp!H464 -> 0 | N140: =+IF(M140=0,0,ราคาป้าย!F32) -> 0 | O140: 0 | P140: =IF(M140=0,0,ปร.5!$I$20) -> 0 | Q140: 0 | R140: 0 | W140: 0 | X140: 0 | Y140: 0 | Z140: 1
C141: - ป้าย บอกจุดหมาย ปลายทาง (3-น2) | L141: ชุด | M141: =BackUp!H465 -> 0 | N141: =+IF(M141=0,0,ราคาป้าย!F33) -> 0 | O141: 0 | P141: =IF(M141=0,0,ปร.5!$I$20) -> 0 | Q141: 0 | R141: 0 | W141: 0 | X141: 0 | Y141: 0 | Z141: 1
C142: - ป้าย บอกระยะทาง (1-น3) | L142: ชุด | M142: =BackUp!R437 -> 0 | N142: =+IF(M142=0,0,ราคาป้าย!F34) -> 0 | O142: 0 | P142: =IF(M142=0,0,ปร.5!$I$20) -> 0 | Q142: 0 | R142: 0 | W142: 0 | X142: 0 | Y142: 0 | Z142: 1
C143: - ป้าย บอกระยะทาง (2-น3) | L143: ชุด | M143: =BackUp!R438 -> 0 | N143: =+IF(M143=0,0,ราคาป้าย!F35) -> 0 | O143: =ROUND(N143*M143,2) -> 0 | P143: =IF(M143=0,0,ปร.5!$I$20) -> 0 | Q143: =IF(P143=0,0,ROUND(N143*P143,2)) -> 0 | R143: 0 | W143: 0 | X143: 0 | Y143: 0 | Z143: 1
C144: - ป้าย บอกระยะทาง (3-น3) | L144: ชุด | M144: =BackUp!R439 -> 0 | N144: =+IF(M144=0,0,ราคาป้าย!F36) -> 0 | O144: =ROUND(N144*M144,2) -> 0 | P144: =IF(M144=0,0,ปร.5!$I$20) -> 0 | Q144: =IF(P144=0,0,ROUND(N144*P144,2)) -> 0 | R144: 0 | W144: 0 | X144: 0 | Y144: =IF(X144=0,"0","1") -> 0 | Z144: 1
C145: - ป้าย ป้าย บอกจุดหมายและระยะทาง (น-4) | L145: ชุด | M145: =BackUp!R440 -> 0 | N145: =+IF(M145=0,0,ราคาป้าย!F37) -> 0 | O145: 0 | P145: =IF(M145=0,0,ปร.5!$I$20) -> 0 | Q145: 0 | R145: 0 | W145: 0 | X145: =IF(P145=0,0,ROUND(O145*P145,$X$13)) -> 0 | Y145: 0 | Z145: 1
C146: - ป้าย บอกหมู่บ้าน (น5) | L146: ชุด | M146: =BackUp!R441 -> 0 | N146: =+IF(M146=0,0,ราคาป้าย!F38) -> 0 | O146: 0 | P146: =IF(M146=0,0,ปร.5!$I$20) -> 0 | Q146: 0 | R146: 0 | W146: 0 | X146: 0 | Y146: 0 | Z146: 1
C147: - ป้าย บอกคลองทางน้ำ (น6) | L147: ชุด | M147: =BackUp!R442 -> 0 | N147: =+IF(M147=0,0,ราคาป้าย!F39) -> 0 | O147: 0 | P147: =IF(M147=0,0,ปร.5!$I$20) -> 0 | Q147: 0 | R147: 0 | W147: 0 | X147: 0 | Y147: 0 | Z147: 1
C148: - ป้าย สิ้นสุดสายทาง (น7) | L148: ชุด | M148: =BackUp!R443 -> 0 | N148: =+IF(M148=0,0,ราคาป้าย!F40) -> 0 | O148: 0 | P148: =IF(M148=0,0,ปร.5!$I$20) -> 0 | Q148: 0 | R148: 0 | W148: 0 | X148: 0 | Y148: 0 | Z148: 1
C149: - ป้าย ระบุทิศทาง (น8 ) | L149: ชุด | M149: =BackUp!R444 -> 0 | N149: =+IF(M149=0,0,ราคาป้าย!F41) -> 0 | O149: 0 | P149: =IF(M149=0,0,ปร.5!$I$20) -> 0 | Q149: 0 | R149: 0 | W149: 0 | X149: 0 | Y149: 0 | Z149: 1
C150: - ป้าย ระบุทิศทาง (น7 ถึง น20) | L150: ชุด | M150: =BackUp!R445 -> 0 | N150: =+IF(M150=0,0,ราคาป้าย!F42) -> 0 | O150: =ROUND(N150*M150,2) -> 0 | P150: =IF(M150=0,0,ปร.5!$I$20) -> 0 | Q150: =IF(P150=0,0,ROUND(N150*P150,2)) -> 0 | R150: 0 | W150: =+$T$172 -> 0 | X150: 0 | Y150: 0 | Z150: 1
C151: - ป้าย น1+นส-1 ถึง นส-14 | L151: ชุด | M151: =BackUp!R446 -> 0 | N151: =+IF(M151=0,0,ราคาป้าย!F43) -> 0 | O151: 0 | P151: =IF(M151=0,0,ปร.5!$I$20) -> 0 | Q151: 0 | R151: 0 | W151: 0 | X151: 0 | Y151: 0 | Z151: 1
C152: - ป้าย น1/1+นส-1 ถึง นส-14 | L152: ชุด | M152: =BackUp!R447 -> 0 | N152: =+IF(M152=0,0,ราคาป้าย!F44) -> 0 | O152: 0 | P152: =IF(M152=0,0,ปร.5!$I$20) -> 0 | Q152: 0 | R152: 0 | W152: 0 | X152: 0 | Y152: 0 | Z152: 1
C153: - ป้าย น1+นส-1 ถึง นส-14 + น1+นส-1 ถึง นส-14 | L153: ชุด | M153: =BackUp!R448 -> 0 | N153: =+IF(M153=0,0,ราคาป้าย!F45) -> 0 | O153: =ROUND(N153*M153,2) -> 0 | P153: =IF(M153=0,0,ปร.5!$I$20) -> 0 | Q153: =IF(P153=0,0,ROUND(N153*P153,2)) -> 0 | R153: 0 | W153: 0 | X153: 0 | Y153: 0 | Z153: 1
C154: - ป้าย น1+น1/1+นส-1 ถึง นส-14 +นส-14 | L154: ชุด | M154: =BackUp!R449 -> 0 | N154: =+IF(M154=0,0,ราคาป้าย!F46) -> 0 | O154: =ROUND(N154*M154,2) -> 0 | P154: =IF(M154=0,0,ปร.5!$I$20) -> 0 | Q154: =IF(P154=0,0,ROUND(N154*P154,2)) -> 0 | R154: 0 | W154: 0 | X154: 0 | Y154: 0 | Z154: 1
C155: - ป้าย น-1+น-1/1(2ชิ้น)+นส-1 ถึง นส-14(3ชิ้น) | L155: ชุด | M155: =BackUp!R450 -> 0 | N155: =+IF(M155=0,0,ราคาป้าย!F47) -> 0 | O155: =ROUND(N155*M155,2) -> 0 | P155: =IF(M155=0,0,ปร.5!$I$20) -> 0 | Q155: =IF(P155=0,0,ROUND(N155*P155,2)) -> 0 | R155: 0 | W155: 0 | X155: 0 | Y155: 0 | Z155: 1
C156: - ป้ายกำหนดน้ำหนักบรรทุก | L156: ชุด | M156: =BackUp!R451 -> 0 | N156: =+IF(M156=0,0,ราคาป้าย!F48) -> 0 | O156: 0 | P156: =IF(M156=0,0,ปร.5!$I$20) -> 0 | Q156: 0 | R156: 0 | W156: 0 | X156: 0 | Y156: 0 | Z156: 1
C157: 5.3.2 งานหลักนำโค้ง หลักกิโลเมตร หลักเขตทาง | W157: 0 | X157: 0 | Y157: 0 | Z157: 1
C158: 5.3.2(1) หลักนำโค้ง / หลักตำแหน่งท่อ คสล. | L158: หลัก | N158: =+IF(M158=0,0,ราคาป้าย!F50) -> 0 | O158: =ROUND(N158*M158,2) -> 0 | P158: =IF(M158=0,0,ปร.5!$I$20) -> 0 | Q158: 0 | R158: 0 | W158: 0 | X158: 0 | Y158: 0 | Z158: 1
C159: 5.3.2(2) หลักกิโลเมตร | L159: หลัก | N159: =+IF(M159=0,0,ราคาป้าย!F51) -> 0 | O159: =ROUND(N159*M159,2) -> 0 | P159: =IF(M159=0,0,ปร.5!$I$20) -> 0 | Q159: 0 | R159: 0 | W159: 0 | X159: 0 | Y159: 0 | Z159: 1
C160: 5.3.2(3) หลักเขตทาง | L160: หลัก | M160: =BackUp!R456 -> 0 | N160: =+IF(M160=0,0,ราคาป้าย!F52) -> 0 | O160: =ROUND(N160*M160,2) -> 0 | P160: =IF(M160=0,0,ปร.5!$I$20) -> 0 | Q160: 0 | R160: 0 | W160: 0 | X160: 0 | Y160: 0 | Z160: 1
C161: 5.3.3 งานเครื่องหมายจราจรบนผิวทาง | W161: 0 | X161: 0 | Y161: 0 | Z161: 1
C162: 5.3.3(1) สีเหลือง กว้าง | G162: =G163 -> 0.1 | H162: ม. | L162: ตร.ม. | N162: =+IF(M162=0,0,ราคาป้าย!F54) -> 0 | O162: =ROUND(N162*M162,2) -> 0 | P162: =IF(M162=0,0,ปร.5!$I$20) -> 0 | Q162: 0 | R162: 0 | W162: 0 | X162: 0 | Y162: 0 | Z162: 1
C163: 5.3.3(2) สีขาว กว้าง | G163: =BackUp!J414 -> 0.1 | H163: ม. | L163: ตร.ม. | N163: =+IF(M163=0,0,ราคาป้าย!F55) -> 0 | O163: =ROUND(N163*M163,2) -> 0 | P163: =IF(M163=0,0,ปร.5!$I$20) -> 0 | Q163: 0 | R163: 0 | W163: 0 | X163: 0 | Y163: 0 | Z163: 1
C164: 5.3.3(3) ทางม้าลาย ( 1 แห่ง = 9.0 ตร.ม.) | L164: แห่ง | M164: =BackUp!R460 -> 0 | N164: =+IF(M164=0,0,ราคาป้าย!F56) -> 0 | O164: =ROUND(N164*M164,2) -> 0 | P164: =IF(M164=0,0,ปร.5!$I$20) -> 0 | Q164: 0 | R164: 0 | W164: 0 | X164: 0 | Y164: 0 | Z164: 1
C165: 5.3.4 หมุดสะท้อนแสง | W165: 0 | X165: 0 | Y165: 0 | Z165: 1
C166: 5.3.4(1) ชนิดทิศทางเดียว | L166: ชุด | M166: =BackUp!R457 -> 0 | N166: =+IF(M166=0,0,ราคาป้าย!F58) -> 0 | O166: =ROUND(N166*M166,2) -> 0 | P166: =IF(M166=0,0,ปร.5!$I$20) -> 0 | Q166: 0 | R166: 0 | W166: 0 | X166: 0 | Y166: 0 | Z166: 1
C167: 5.3.4(2) ชนิดสองทิศทาง | L167: ชุด | M167: =BackUp!R458 -> 0 | N167: =+IF(M167=0,0,ราคาป้าย!F59) -> 0 | O167: =ROUND(N167*M167,2) -> 0 | P167: =IF(M167=0,0,ปร.5!$I$20) -> 0 | Q167: =IF(P167=0,0,ROUND(N167*P167,2)) -> 0 | R167: 0 | W167: 0 | X167: 0 | Y167: 0 | Z167: 1
B168: 5.4 | C168: สัญญาณไฟกระพริบพลังงานแสงอาทิตย์ Ø 300 มม. | U168: ]\ | W168: 0 | X168: 0 | Y168: 0 | Z168: 1
C169: 5.4.1 สัญญาณไฟกระพริบ | L169: ชุด | M169: =BackUp!R461 -> 0 | N169: =+IF(M169=0,0,ราคาป้าย!F61) -> 0 | O169: =ROUND(N169*M169,2) -> 0 | P169: =IF(M169=0,0,ปร.5!$I$20) -> 0 | Q169: =IF(P169=0,0,ROUND(N169*P169,2)) -> 0 | R169: 0 | W169: 0 | X169: 0 | Y169: 0 | Z169: 1
C170: 5.4.2 สัญญาณไฟกระพริบ + บ1 | L170: ชุด | N170: =+IF(M170=0,0,ราคาป้าย!F62) -> 0 | O170: =ROUND(N170*M170,2) -> 0 | P170: =IF(M170=0,0,ปร.5!$I$20) -> 0 | Q170: =IF(P170=0,0,ROUND(N170*P170,2)) -> 0 | R170: 0 | W170: 0 | X170: 0 | Y170: 0 | Z170: 1
C171: 5.4.3 สัญญาณไฟกระพริบ + ต | L171: ชุด | M171: =BackUp!R463 -> 0 | N171: =+IF(M171=0,0,ราคาป้าย!F63) -> 0 | O171: =ROUND(N171*M171,2) -> 0 | P171: =IF(M171=0,0,ปร.5!$I$20) -> 0 | Q171: =IF(P171=0,0,ROUND(N171*P171,2)) -> 0 | R171: 0 | W171: 0 | X171: 0 | Y171: 0 | Z171: 1
B172: 5.5 | C172: RUMBLE STRIP ( 3 จุด = 1 แห่ง = 7.8 ตร.ม.) | L172: ตร.ม. | N172: =+IF(M172=0,0,ราคาป้าย!F64) -> 0 | O172: =ROUND(N172*M172,2) -> 0 | P172: =IF(M172=0,0,ปร.5!$I$20) -> 0 | Q172: 0 | R172: 0 | W172: 0 | X172: 0 | Y172: 0 | Z172: 1
B173: 5.6 | C173: TIMBER BARRICADE | L173: ม. | M173: =BackUp!R454 -> 0 | N173: =+IF(M173=0,0,ราคาป้าย!F65) -> 0 | O173: =ROUND(N173*M173,2) -> 0 | P173: =IF(M173=0,0,ปร.5!$I$20) -> 0 | Q173: 0 | R173: 0 | T173: =+T174-T175 -> 0 | W173: 0 | X173: 0 | Y173: 0 | Z173: 1
B174: 5.7 | C174: GUARD RAIL | W174: 0 | X174: 0 | Y174: 0 | Z174: 1
C175: 5.7.1 GUARD RAIL (ทางตรง) | L175: ม. | M175: =BackUp!R452 -> 0 | N175: =+IF(M175=0,0,ราคาป้าย!F67) -> 0 | O175: =ROUND(N175*M175,2) -> 0 | P175: =IF(M175=0,0,ปร.5!$I$20) -> 0 | Q175: 0 | R175: 0 | T175: =+R200-T200 -> 0 | W175: 0 | X175: 0 | Y175: 0 | Z175: 1
C176: 5.7.2 GUARD RAIL (ทางโค้ง/คอสะพาน) | L176: ม. | M176: =BackUp!R453 -> 0 | N176: =+IF(M176=0,0,ราคาป้าย!F68) -> 0 | O176: =ROUND(N176*M176,2) -> 0 | P176: =IF(M176=0,0,ปร.5!$I$20) -> 0 | Q176: 0 | R176: 0 | W176: 0 | X176: 0 | Y176: 0 | Z176: 1
B177: 2.2 | C177: งานป้องกันการกัดเซาะ | W177: 0 | X177: 0 | Y177: 0 | Z177: 1
C178: 2.2.1 ชนิด | D178: กล่องตาข่าย Gabion -1.00 x 1.00 x 1.00 ม. | L178: กล่อง | M178: =BackUp!G377 -> 0 | N178: =+IF(M178=0,0,ราคาต่อหน่วย!J1002) -> 0 | O178: =ROUND(N178*M178,2) -> 0 | P178: =IF(M178=0,0,ปร.5!$I$20) -> 0 | Q178: =IF(P178=0,0,ROUND(N178*P178,2)) -> 0 | R178: 0 | W178: 0 | X178: 0 | Y178: 0 | Z178: 1
C179: 2.2.2 ชนิด | D179: กล่องตาข่าย Mattres - 2.00x3.00x0.30 ม. | L179: กล่อง | M179: =BackUp!I377 -> 0 | N179: =+IF(M179=0,0,ราคาต่อหน่วย!J1011) -> 0 | O179: 0 | P179: =IF(M179=0,0,ปร.5!$I$20) -> 0 | Q179: =IF(P179=0,0,ROUND(N179*P179,2)) -> 0 | R179: =IF(P179=0,0,ROUND(O179*P179,2)+W179) -> 0 | W179: 0 | X179: 0 | Y179: 0 | Z179: 1
C180: 2.2.3 ชนิด | D180: เรียงหิน | L180: ตร.ม. | M180: =BackUp!L377 -> 0 | N180: =+IF(M180=0,0,ราคาต่อหน่วย!J1021) -> 0 | O180: 0 | P180: =IF(M180=0,0,ปร.5!$I$20) -> 0 | Q180: =IF(P180=0,0,ROUND(N180*P180,2)) -> 0 | R180: 0 | W180: 0 | X180: 0 | Y180: 0 | Z180: 1
C181: 2.2.4 ชนิด | D181: Concrete slope protection | L181: ตร.ม. | M181: =BackUp!N377 -> 0 | N181: =+IF(M181=0,0,ราคาต่อหน่วย!J1042) -> 0 | O181: 0 | P181: =IF(M181=0,0,ปร.5!$I$20) -> 0 | Q181: 0 | R181: 0 | W181: 0 | X181: 0 | Y181: 0 | Z181: 1
C182: 2.2.5 ชนิด | D182: กำแพงกันดิน Abutment Portecment | L182: แห่ง | M182: 0 | N182: =+IF(M182=0,0,ต้นทุนกำแพงกันดิน!M37) -> 0 | O182: 0 | P182: =IF(M182=0,0,ปร.5!$I$20) -> 0 | Q182: 0 | R182: 0
B183: 2.3 | C183: Approach Slab | L183: ตร.ม. | M183: 0 | N183: =+IF(M183=0,0,ราคาต่อหน่วย!J1060) -> 0 | O183: 0 | P183: =IF(M183=0,0,ปร.5!$I$20) -> 0 | Q183: 0 | R183: 0 | W183: 0 | X183: 0 | Y183: 0 | Z183: 1
B184: 2.4 | C184: Concrete Barrier | D184: แบบไม่มีทางเท้า | L184: แห่ง | M184: 0 | N184: =+IF(M184=0,0,ราคาต่อหน่วย!J1073) -> 0 | O184: =ROUND(N184*M184,2) -> 0 | P184: =IF(M184=0,0,ปร.5!$I$20) -> 0 | Q184: =IF(P184=0,0,ROUND(N184*P184,2)) -> 0 | R184: =IF(P184=0,0,ROUND(O184*P184,2)+W184) -> 0 | W184: 0 | Y184: 0 | Z184: 1
B185: 2.5 | C185: งานทางเบี่ยง | L185: LS. | M185: 0 | O185: 0 | P185: =IF(M185=0,0,ปร.5!$I$20) -> 0 | Q185: =IF(P185=0,0,ROUND(N185*P185,2)) -> 0 | R185: 0 | W185: 0 | X185: 0 | Y185: 0 | Z185: 1
A186: 6 | B186: งานไฟฟ้าแสงสว่าง | W186: 0 | X186: 0 | Y186: 0 | Z186: 1
B187: 6.1 | C187: เสาไฟฟ้าแสงสว่าง สูง 9.00 ม. กิ่งเดี่ยวและอุปกรณ์ | L187: ชุด | M187: =BackUp!G394 -> 0 | N187: =+IF(M187=0,0,ราคาต่อหน่วย!J1130) -> 0 | O187: =ROUND(N187*M187,2) -> 0 | P187: =IF(M187=0,0,ปร.5!$I$20) -> 0 | Q187: 0 | R187: =IF(P187=0,0,ROUND(O187*P187,2)+W187) -> 0 | W187: 0 | X187: 0 | Y187: 0 | Z187: 1
B188: 6.2 | C188: โคมไฟถนนขนาดกำลัง 250 W.HPS พร้อมอุปกรณ์ | L188: ชุด | N188: =+IF(M188=0,0,ราคาต่อหน่วย!J1085) -> 0 | O188: =ROUND(N188*M188,2) -> 0 | P188: =IF(M188=0,0,ปร.5!$I$20) -> 0 | Q188: 0 | R188: 0 | W188: 0 | X188: 0 | Y188: 0 | Z188: 1
B189: 6.3 | C189: ฐานรากของเสาไฟฟ้าแสงสว่าง และอุปกรณ์ประกอบ | L189: ฐาน | N189: =+IF(M189=0,0,ราคาต่อหน่วย!J1097) -> 0 | O189: 0 | P189: =IF(M189=0,0,ปร.5!$I$20) -> 0 | Q189: 0 | R189: 0 | W189: 0 | X189: 0 | Y189: 0 | Z189: 1
B190: 6.4 | C190: ชุดควบคุมไฟถนนพร้อมอุปกรณ์ประกอบ | K190: =ROUNDDOWN(IF(M187=0,0,IF(M187>40,2,1)),0) -> 0 | L190: ชุด | N190: =+IF(M190=0,0,ราคาต่อหน่วย!J1102) -> 0 | O190: 0 | P190: =IF(M190=0,0,ปร.5!$I$20) -> 0 | Q190: 0 | R190: 0 | W190: 0 | X190: 0 | Y190: 0 | Z190: 1
B191: 6.5 | C191: กล่องดึงสาย บ่อพักสาย และอุปกรณ์ประกอบ | L191: ชุด | N191: =+IF(M191=0,0,ราคาต่อหน่วย!J1107) -> 0 | O191: 0 | P191: =IF(M191=0,0,ปร.5!$I$20) -> 0 | Q191: 0 | R191: 0 | W191: 0 | X191: 0 | Y191: 0 | Z191: 1
B192: 6.6 | C192: สายไฟฟ้า | W192: 0 | X192: 0 | Y192: 0 | Z192: 1
C193: 6.6.1 สายไฟชนิด NYY ขนาด 3x10 ตร.มม. | K193: =ROUNDDOWN((M187-1)*BackUp!J394*(1+5%),0) -> 0 | L193: ม. | N193: =+IF(M193=0,0,ราคาต่อหน่วย!J1113) -> 0 | O193: 0 | P193: =IF(M193=0,0,ปร.5!$I$20) -> 0 | Q193: 0 | R193: =IF(P193=0,0,ROUND(O193*P193,2)+W193) -> 0 | W193: 0 | X193: 0 | Y193: 0 | Z193: 1
C194: 6.6.2 สายไฟชนิด THW ขนาด 2x2.5 ตร.มม. | K194: =ROUNDDOWN(M187*12,0) -> 0 | L194: ม. | N194: =+IF(M194=0,0,ราคาต่อหน่วย!J1118) -> 0 | O194: 0 | P194: =IF(M194=0,0,ปร.5!$I$20) -> 0 | Q194: 0 | R194: 0 | W194: 0 | X194: 0 | Y194: 0 | Z194: 1
B195: 6.7 | C195: ท่อร้อยสายไฟฟ้า | W195: 0 | X195: 0 | Y195: 0 | Z195: 1
C196: 6.7.1 ท่อร้อยสายไฟฟ้า ชนิด HDPE Ø 1 1/2" และอุปกรณ์ | K196: =ROUNDDOWN((M187-1)*BackUp!J394,0) -> 0 | L196: ม. | N196: =+IF(M196=0,0,ราคาต่อหน่วย!J1124) -> 0 | O196: 0 | P196: =IF(M196=0,0,ปร.5!$I$20) -> 0 | Q196: 0 | R196: =IF(P196=0,0,ROUND(O196*P196,2)+W196) -> 0 | W196: 0 | X196: 0 | Y196: 0 | Z196: 1
C197: 6.7.2 ท่อเหล็กชุบสังกะสี Ø 1 1/2" พร้อมค่าดันท่อลอด | L197: ม. | N197: =+IF(M197=0,0,ราคาต่อหน่วย!J1129) -> 0 | O197: 0 | P197: =IF(M197=0,0,ปร.5!$I$20) -> 0 | Q197: 0 | R197: 0 | W197: 0 | X197: 0 | Y197: 0 | Z197: 1
B198: 6.2 | C198: เสาไฟฟ้าแสงสว่างพลังงานแสงอาทิตย์ สูง 9.00 ม. กิ่งเดี่ยวและอุปกรณ์ | L198: ชุด | M198: =BackUp!L394 -> 0 | N198: =+IF(M198=0,0,58000) -> 0 | O198: =ROUND(N198*M198,2) -> 0 | P198: =IF(M198=0,0,ปร.5!$I$20) -> 0 | Q198: =IF(P198=0,0,ROUND(N198*P198,2)) -> 0 | R198: 0 | W198: 0 | X198: 0 | Y198: 0 | Z198: 1
W199: 0 | X199: 0 | Y199: 0 | Z199: 1
C200: รวมค่างานประเภทงานทาง | O200: =O106+O82+O61+O60+O59+O58+O34+O33+O23 -> 585628 | P200: =ปร.5!I20 -> 1.3592 | R200: =R106+R82+R61+R60+R59+R58+R34+R33+R23 -> 795985.58 | T200: =SUM(R14:R199) -> 795985.58 | U200: =IF(ROUND(R200,2)=ROUND(T200,2),"OK","CHECK") -> OK | V200: =IF(SUM(W14:W199)<>0,"มีการปรับแก้","") ->  | X200: =SUM(X14:X199) -> 795985.578 | Y200: =SUMIF(Y16:Y199,"1",Z16:Z199) -> 5
... 48 more rows

Sheet ราคาต่อหน่วย
A1: =+CONCATENATE("รายการประมาณราคาต่อหน่วย ","(ราคาน้ำมันโซล่า ที่ อ.เมือง "&ข้อมูลขนส่ง!K1-0.5&".00 - "&ข้อมูลขนส่ง!K1+0.4&"9 บาท/ลิตร เฉลี่ย "&ข้อมูลขนส่ง!K1&"0 บาท/ลิตร)") -> รายการประมาณราคาต่อหน่วย (ราคาน้ำมันโซล่า ที่ อ.เมือง 29.00 - 29.99 บาท/ลิตร เฉลี่ย 29.50 บาท/ลิตร)
A2: =+CONCATENATE("(ใช้ราคาเฉลี่ยน้ำมัน ลิตรละ "&ข้อมูลขนส่ง!K1&"0 บาท หาค่าขนส่ง,ค่าดำเนินการและค่าเสื่อมราคา)") -> (ใช้ราคาเฉลี่ยน้ำมัน ลิตรละ 29.50 บาท หาค่าขนส่ง,ค่าดำเนินการและค่าเสื่อมราคา)
B3: =ข้อมูลโครงการ!R13 -> ปกติ | D3: =ข้อมูลโครงการ!G7 -> ซอยจันทร์สุวรรณ
A4: 1 | B4: งานรื้อย้าย | N4: =IF(Q4="","","("&Q4&")") -> 
B5: 1.1 | C5: งานรื้อผิวจราจรลาดยางเดิม (ความหนา | E5: 5 | F5: ซม.)
C6: ="คิดจากความหนาของผิวทางแอสฟัลท์คอนกรีต = "&E5&" ซม." -> คิดจากความหนาของผิวทางแอสฟัลท์คอนกรีต = 5 ซม.
C7: ="ค่าดำเนินการ + ค่าเสื่อมราคา รื้อผิวทางเดิมหนา = "&E5&" ซม." -> ค่าดำเนินการ + ค่าเสื่อมราคา รื้อผิวทางเดิมหนา = 5 ซม. | I7: = | J7: =ROUND(ค่าเสื่อมราคา!I42*ราคาต่อหน่วย!E5/5,2) -> 10.97 | K7: บาท / ตร.ม. | L7: [1] | M7: (จากตารางค่าดำเนินการฯ)
C8: คิดจากพื้นที่ 1 ตร.ม.
C9: ปริมาตรวัสดุที่รื้อออก | I9: = | J9: =1*1*E5/100 -> 0.05 | K9: ลบ.ม./ตร.ม. | L9: [2]
C10: ="ส่วนขยาย" -> ส่วนขยาย | I10: = | J10: =+J9*1.6 -> 0.08 | K10: ลบ.ม./ตร.ม. | L10: [3] = [2] x 1.60
C11: ค่าดำเนินการ + ค่าเสื่อมดันและตัก (หิน ผุ) | I11: = | J11: =ROUND(ค่าเสื่อมราคา!I25,2) -> 38.57 | K11: บาท/ลบ.ม. | L11: [4] | M11: (จากตารางค่าดำเนินการฯ)
C12: ค่าขนทิ้ง | D12: =D79 -> 1 | E12: กม. | I12: = | J12: =J79 -> 11.19 | K12: บาท/ลบ.ม. | L12: [5] | M12: (จากตารางค่าขนส่ง)
C13: รวมค่าขนทิ้ง | I13: = | J13: =ROUND(J12+J11,2) -> 49.76 | K13: บาท/ลบ.ม. | L13: [6] = [4] + [5]
C14: ค่าขนคอนกรีตที่ทุบแล้วไปทิ้ง | I14: = | J14: =ROUND(J10*J13,2) -> 3.98 | K14: บาท / ตร.ม. | L14: [7] = [3] x [6]
C15: รวมค่าใช้จ่าย | I15: = | J15: =J7+J14 -> 14.95 | K15: บาท / ตร.ม. | L15: [8] = [1] + [7]
C16: …ค่างานต้นทุน | I16: = | J16: =ROUNDDOWN(J15,0) -> 14 | K16: บาท / ตร.ม.
B17: 1.2 | C17: งานรื้อถอนถนน คสล. เดิม (ความหนา | E17: 15 | F17: ซม.)
C18: คิดจากความหนาของผิวทางคอนกรีต | I18: = | J18: =E17 -> 15 | K18: ซม. | L18: [1]
C19: คิดจากพื้นที่ 1 ตร.ม.
C20: ปริมาตรคอนกรีตที่รื้อออก | I20: = | J20: =J18*1/100 -> 0.15 | K20: ลบ.ม. / ตร.ม. | L20: [2]= 1 x [1] / 100
C21: ส่วนขยาย | I21: = | J21: =J20*1.7 -> 0.255 | K21: ลบ.ม. / ตร.ม. | L21: [3]= [2] x 1.70
C22: ค่าทุบคอนกรีตเดิม | I22: = | J22: 400 | K22: บาท / ลบ.ม. | L22: [4] | M22: (ค่าทุบคอนกรีตตามหลักเกณฑ์ฯ)
C23: ค่าทุบคอนกรีต | I23: = | J23: =J20*J22 -> 60 | K23: บาท / ตร.ม. | L23: [5]= [2] x [4]
C24: ค่าดำเนินการ + ค่าเสื่อมราคาดันและตัก (หินแข็ง) | I24: = | J24: =ROUND(ค่าเสื่อมราคา!I27,2) -> 72.9 | K24: บาท / ลบ.ม. | L24: [6] | M24: (จากตารางค่าดำเนินการฯ)
C25: ขนทิ้ง | D25: =ข้อมูลขนส่ง!U11 -> 1 | E25: กม. | I25: = | J25: =ข้อมูลขนส่ง!Z11 -> 11.19 | K25: บาท / ลบ.ม. | L25: [7] | M25: (จากตารางค่าขนส่ง)
C26: รวมค่าขนทิ้ง | I26: = | J26: =J24+J25 -> 84.09 | K26: บาท / ลบ.ม. | L26: [8]= [6] + [7]
C27: ค่าขนคอนกรีตที่ทุบแล้วไปทิ้ง | I27: = | J27: =J21*J26 -> 21.44295 | K27: บาท / ตร.ม. | L27: [9]= [3] x [8]
C28: รวมค่าใช้จ่าย | I28: = | J28: =J23+J27 -> 81.44295 | K28: บาท / ตร.ม. | L28: [10]= [5] + [9]
C29: …ค่างานต้นทุน | I29: = | J29: =ROUNDDOWN(J28,0) -> 81 | K29: บาท / ตร.ม.
B30: 1.3 | C30: งานรื้อถอนท่อลอดเหลี่ยมเดิม
C31: คิดจากปริมาตรคอนกรีตของท่อเหลี่ยมที่ต้องทุบทิ้ง | I31: = | J31: =IF(ปร.4!U18=0,ROUNDDOWN(BackUp!BI51,0),ปร.4!U18) -> 0 | K31: ลบ.ม. | L31: [1]
C32: ค่าทุบคอนกรีตเดิม | I32: = | J32: 500 | K32: บาท / ลบ.ม. | L32: [2] | M32: (ค่าทุบคอนกรีตตามหลักเกณฑ์ฯ)
C33: ส่วนขยาย | I33: = | J33: =J31*1.7 -> 0 | K33: ลบ.ม. | L33: [3]= [1] x 1.70
C34: ค่าทุบคอนกรีต | I34: = | J34: =J31*J32 -> 0 | K34: บาท | L34: [4]= [1] x [2]
C35: ค่าดำเนินการ + ค่าเสื่อมราคาดันและตัก (หินแข็ง) | I35: = | J35: =ROUND(ค่าเสื่อมราคา!I27,2) -> 72.9 | K35: บาท / ลบ.ม. | L35: [5] | M35: (จากตารางค่าดำเนินการฯ)
C36: ขนทิ้ง | D36: =ข้อมูลขนส่ง!U11 -> 1 | E36: กม. | I36: = | J36: =ข้อมูลขนส่ง!Z11 -> 11.19 | K36: บาท / ลบ.ม. | L36: [6] | M36: (จากตารางค่าขนส่ง)
C37: รวมค่าขนทิ้ง | I37: = | J37: =J35+J36 -> 84.09 | K37: บาท / ลบ.ม. | L37: [7]= [5] + [6]
C38: ค่าขนคอนกรีตที่ทุบแล้วไปทิ้ง | I38: = | J38: =J33*J37 -> 0 | K38: บาท | L38: [8]= [3] x [7]
C39: รวมค่าใช้จ่าย | I39: = | J39: =J34+J38 -> 0 | K39: บาท | L39: [9]= [4] + [8]
C40: …ค่างานต้นทุน | I40: = | J40: =ROUNDDOWN(J39,0) -> 0 | K40: บาท
B41: 1.4 | C41: งานรื้อถอนสะพานเดิม
C42: คิดจากปริมาตรคอนกรีตของสะพานที่ต้องทุบทิ้ง | I42: = | J42: =IF(ปร.4!U19=0,ROUNDDOWN(BackUp!BL51,0),ปร.4!U19) -> 0 | K42: ลบ.ม. | L42: [1]
C43: ค่าทุบคอนกรีตเดิม | I43: = | J43: 1000 | K43: บาท / ลบ.ม. | L43: [2] | M43: (ค่าทุบคอนกรีตตามหลักเกณฑ์ฯ)
C44: ส่วนขยาย | I44: = | J44: =J42*1.7 -> 0 | K44: ลบ.ม. | L44: [3]= [1] x 1.70
C45: ค่าทุบคอนกรีต | I45: = | J45: =J42*J43 -> 0 | K45: บาท | L45: [4]= [1] x [2]
C46: ค่าดำเนินการ + ค่าเสื่อมราคาดันและตัก (หินแข็ง) | I46: = | J46: =ราคาต่อหน่วย!J35 -> 72.9 | K46: บาท / ลบ.ม. | L46: [5] | M46: (จากตารางค่าดำเนินการฯ)
C47: ขนทิ้ง | D47: =ราคาต่อหน่วย!D36 -> 1 | E47: กม. | I47: = | J47: =ราคาต่อหน่วย!J36 -> 11.19 | K47: บาท / ลบ.ม. | L47: [6] | M47: (จากตารางค่าขนส่ง)
C48: รวมค่าขนทิ้ง | I48: = | J48: =J46+J47 -> 84.09 | K48: บาท / ลบ.ม. | L48: [7]= [5] + [6]
C49: ค่าขนคอนกรีตที่ทุบแล้วไปทิ้ง | I49: = | J49: =J44*J48 -> 0 | K49: บาท | L49: [8]= [3] x [7]
C50: รวมค่าใช้จ่าย | I50: = | J50: =J45+J49 -> 0 | K50: บาท | L50: [9]= [4] + [8]
C51: …ค่างานต้นทุน | I51: = | J51: =ROUNDDOWN(J50,0) -> 0 | K51: บาท | M51: =IF(N51="","","("&N51&")") -> 
B52: 1.5 | C52: งานรื้อหินคลุกเดิม(ขนกอง) (ความหนา | E52: =BackUp!O8*100 -> 20 | F52: ซม.)
C53: ="คิดจากความหนาหินคลุกเดิม = "&E52&" ซม." -> คิดจากความหนาหินคลุกเดิม = 20 ซม.
C54: ="ค่าดำเนินการ + ค่าเสื่อมราคา รื้อผิวทางเดิมหนา = "&E52&" ซม." -> ค่าดำเนินการ + ค่าเสื่อมราคา รื้อผิวทางเดิมหนา = 20 ซม. | I54: = | J54: =ROUND(ค่าเสื่อมราคา!I41*E52/10,2) -> 27.32 | K54: บาท / ตร.ม. | L54: [1] | M54: (จากตารางค่าดำเนินการฯ)
C55: คิดจากพื้นที่ 1 ตร.ม.
C56: ปริมาตรวัสดุที่รื้อออก | I56: = | J56: =1*1*E52/100 -> 0.2 | K56: ลบ.ม./ตร.ม. | L56: [2]
C57: ="ส่วนขยาย" -> ส่วนขยาย | I57: = | J57: =+J56*1.5 -> 0.3 | K57: ลบ.ม./ตร.ม. | L57: [3] = [2] x 1.50
C58: ค่าดำเนินการ + ค่าเสื่อมดันและตัก (ดิน) | I58: = | J58: =ROUND(ค่าเสื่อมราคา!I23,2) -> 7.96 | K58: บาท/ลบ.ม. | L58: [4] | M58: (จากตารางค่าดำเนินการฯ)
C59: ค่าขนกอง | D59: =D12 -> 1 | E59: กม. | I59: = | J59: =J12 -> 11.19 | K59: บาท/ลบ.ม. | L59: [5] | M59: (จากตารางค่าขนส่ง)
C60: รวมค่าขนกอง | I60: = | J60: =ROUND(J59+J58,2) -> 19.15 | K60: บาท/ลบ.ม. | L60: [6] = [4] + [5]
C61: ค่าขนหินคลุกไปกอง | I61: = | J61: =ROUND(J57*J60,2) -> 5.75 | K61: บาท / ตร.ม. | L61: [7] = [3] x [6]
C62: รวมค่าใช้จ่าย | I62: = | J62: =J54+J61 -> 33.07 | K62: บาท / ตร.ม. | L62: [8] = [1] + [7]
C63: …ค่างานต้นทุน | I63: = | J63: =ROUNDDOWN(J62,0) -> 33 | K63: บาท / ตร.ม.
A64: 2 | B64: งานดิน
B65: 2.1 | C65: งานกรุยทางถางป่า
C66: พิจารณาตามสภาพพื้นที่ | D66: ="("&BackUp!I52&")" -> (ขนาดกลาง)
C67: ค่าดำเนินการ + ค่าเสื่อมราคา | I67: = | J67: =ข้อมูลขนส่ง!N4 -> 3.54 | K67: บาท / ตร.ม. | L67: [1] | M67: (จากตารางค่าดำเนินการฯ)
C68: …ค่างานต้นทุน | I68: = | J68: =ROUND(J67,2) -> 3.54 | K68: บาท / ตร.ม. | N68: =IF(Q68="","","("&Q68&")") -> 
D69: หมายเหตุ
E70: งานถางป่าขุดตอขนาดเบา | I70: มีเฉพาะการถากถางวัชพืชเท่านั้น
E71: งานถางป่าขุดตอขนาดกลาง | I71: มีการถากถางวัชพืช และปาดหน้าดินเดิมออกด้วย
E72: งานถางป่าขุดตอขนาดหนัก | I72: มีการตัดโค่นต้นไม้ ขุดตอ ถากถางวัชพืช และปาดหน้าดินเดิมออกด้วย
B73: 2.2 | C73: งานปรับเกลี่ยแต่งและบดอัดคันทางเดิม
C74: ค่าดำเนินการ+ค่าเสื่อมราคา | E74: ="("&BackUp!F74&" "&TEXT(BackUp!G74,"0.00")&" ม.)" -> (หินคลุก หนา 0.10 ม.) | I74: = | J74: =ROUND(IF(BackUp!F74=BackUp!BD73,ค่าเสื่อมราคา!I40*BackUp!G74/0.1,ค่าเสื่อมราคา!I41*BackUp!G74/0.1),2) -> 13.66 | K74: บาท / ตร.ม. | L74: [1] | M74: (จากตารางค่าดำเนินการฯ)
C75: …ค่างานต้นทุน | I75: = | J75: =ROUNDDOWN(J74,2) -> 13.66 | K75: บาท / ตร.ม.
B76: 2.3 | C76: งานตัดขึ้นรูปคันทาง
B77: 2.3.1 | C77: งานดินตัด | E77: =+CONCATENATE("ขนด้วย ",ข้อมูลขนส่ง!A11) -> ขนด้วย รถบรรทุก 10 ล้อ | N77: =IF(Q77="","","("&Q77&")") -> 
C78: ค่าดำเนินการและเสื่อมราคา (ตัก) | I78: = | J78: =ROUND(ค่าเสื่อมราคา!I23,2) -> 7.96 | K78: บาท / ลบ.ม. | L78: [1] | M78: (จากตารางค่าดำเนินการฯ)
C79: ค่าขนวัสดุไปทิ้ง | D79: =ข้อมูลขนส่ง!U11 -> 1 | E79: กม. | I79: = | J79: =ข้อมูลขนส่ง!Z11 -> 11.19 | K79: บาท / ลบ.ม. | L79: [2] | M79: (จากตารางค่าขนส่ง)
C80: รวมค่างาน | I80: = | J80: =+(J78+J79) -> 19.15 | K80: บาท / ลบ.ม. | L80: [3] = [1] + [2]
C81: ส่วนขยาย | I81: = | J81: =J80*1.25 -> 23.9375 | K81: บาท / ลบ.ม. | L81: [4] = [3] x 1.25
C82: ค่าดำเนินการและเสื่อมราคา (ขุดตัด) | I82: = | J82: =ROUND(ค่าเสื่อมราคา!I22,2) -> 20.71 | K82: บาท / ลบ.ม. | L82: [5]
C83: รวมค่าใช้จ่าย | I83: = | J83: =ROUND(J82+J81,2) -> 44.65 | K83: บาท / ลบ.ม. | L83: [6] = [4] + [5]
C84: …ค่างานต้นทุน | I84: = | J84: =+ROUNDDOWN(J83,1) -> 44.6 | K84: บาท / ลบ.ม.
D85: หมายเหตุ
D86: ส่วนขยายตัวของทราย | I86: = | J86: 1.15
D87: ส่วนขยายตัวของดิน, ดินปนทราย | I87: = | J87: 1.25
B88: 2.3.2 | C88: งานตัดหินผุ | N88: =IF(Q88="","","("&Q88&")") -> 
C89: ค่าดำเนินการและเสื่อมราคา (ดันและตัก) | I89: = | J89: =ROUND(ค่าเสื่อมราคา!I25,2) -> 38.57 | K89: บาท / ลบ.ม. | L89: [1] | M89: (จากตารางค่าดำเนินการฯ)
C90: ค่าขนส่งวัสดุไปทิ้ง | D90: =D79 -> 1 | E90: กม. | I90: = | J90: =J79 -> 11.19 | K90: บาท / ลบ.ม. | L90: [2] | M90: (จากตารางค่าขนส่ง)
C91: รวมค่างาน | I91: = | J91: =(J89+J90) -> 49.76 | K91: บาท / ลบ.ม. | L91: [3] = [1] + [2]
C92: ส่วนขยาย | I92: = | J92: =J91*1.6 -> 79.616 | K92: บาท / ลบ.ม. | L92: [4] = [3] x 1.60
C93: ค่าดำเนินการและเสื่อมราคา (ขุดตัด) | I93: = | J93: =ROUND(ค่าเสื่อมราคา!I24,2) -> 31.13 | K93: บาท / ลบ.ม. | L93: [5]
C94: รวมค่าใช้จ่าย | I94: = | J94: =SUM(J92:J93) -> 110.746 | K94: บาท / ลบ.ม. | L94: [6] = [4] + [5]
C95: …ค่างานต้นทุน | I95: = | J95: =+ROUNDDOWN(J94,1) -> 110.7 | K95: บาท / ลบ.ม.
B96: 2.3.3 | C96: งานตัดหินแข็ง | N96: =IF(Q96="","","("&Q96&")") -> 
C97: ค่าดำเนินการและเสื่อมราคา (ดันและตัก) | I97: = | J97: =ROUND(ค่าเสื่อมราคา!I27,2) -> 72.9 | K97: บาท / ลบ.ม. | L97: [1] | M97: (จากตารางค่าดำเนินการฯ)
C98: ค่าขนส่งวัสดุไปทิ้ง | D98: =D90 -> 1 | E98: =+E90 -> กม. | I98: = | J98: =J90 -> 11.19 | K98: บาท / ลบ.ม. | L98: [2] | M98: (จากตารางค่าขนส่ง)
C99: รวมค่างาน | I99: = | J99: =(J97+J98) -> 84.09 | K99: บาท / ลบ.ม. | L99: [3] = [1] + [2]
C100: ส่วนขยาย | I100: = | J100: =J99*1.7 -> 142.953 | K100: บาท / ลบ.ม. | L100: [4] = [3] x 1.70
C101: ค่าดำเนินการและเสื่อมราคา (เจาะระเบิด) | I101: = | J101: =ROUND(ค่าเสื่อมราคา!I26,2) -> 65.84 | K101: บาท / ลบ.ม. | L101: [5]
C102: รวมค่าใช้จ่าย | I102: = | J102: =SUM(J100:J101) -> 208.793 | K102: บาท / ลบ.ม. | L102: [6] = [4] + [5]
C103: …ค่างานต้นทุน | I103: = | J103: =+ROUNDDOWN(J102,1) -> 208.7 | K103: บาท / ลบ.ม.
B104: 2.3.4 | C104: งานขุดวัสดุไม่เหมาะสม
C105: คิดค่าใช้จ่ายเหมือนรายการที่ 2.2.1 | I105: = | J105: =J84 -> 44.6 | K105: บาท/ลบ.ม. | L105: [1]
C106: เนื่องจากเป็นการขุดในพื้นที่จำกัดเฉพาะแห่ง คิดค่าใช้จ่ายเพิ่มขึ้นให้ 10% | I106: = | J106: =J105*1.1 -> 49.06 | K106: บาท/ลบ.ม. | L106: [2] = [1] x 1.10
C107: …ค่างานต้นทุน | I107: = | J107: =+ROUNDDOWN(J106,1) -> 49 | K107: บาท/ลบ.ม.
B108: 2.3.5 | C108: งานตัดแต่งขั้นบันได
C109: ค่าดำเนินการ+ค่าเสื่อมราคา (ขุดตัดดินขั้นบันได) | I109: = | J109: =ROUND(ค่าเสื่อมราคา!I38,2) -> 7.78 | K109: บาท/ลบ.ม. | L109: [1] | M109: (จากตารางค่าดำเนินการฯ)
C110: ค่าดำเนินการ+ค่าเสื่อมราคา (บดทับ) | I110: = | J110: =ROUND(ค่าเสื่อมราคา!I20,2) -> 44.13 | K110: บาท/ลบ.ม. | L110: [2] | M110: (จากตารางค่าดำเนินการฯ)
C111: รวมค่าใช้จ่าย | I111: = | J111: =+J109+J110 -> 51.91 | K111: บาท/ลบ.ม. | L111: [3] = [1] + [2]
C112: …ค่างานต้นทุน | I112: = | J112: =+ROUNDDOWN(J111,1) -> 51.9 | K112: บาท/ลบ.ม.
B113: 2.4 | C113: งานถมคันทาง
B114: 2.4.1 | C114: งานดินถม
B115: 2.4.1 | C115: (1) งานดินถม(วัสดุจากงานดินตัด) | E115: (ขนส่งมาจากงานดินตัด)
C116: ค่าดำเนินการและค่าเสื่อมราคา (บดทับ) | I116: = | J116: =+J124 -> 0 | K116: บาท/ลบ.ม. | L116: [1] | M116: (จากตารางค่าดำเนินการฯ)
C117: …ค่างานต้นทุน | I117: = | J117: =+ROUNDDOWN(J116,1) -> 0 | K117: บาท/ลบ.ม. | M117: =IF(N117="","","("&N117&")") -> 
B118: 2.4.1 | C118: (2) งานดินถม(จากการขนส่ง) | E118: =+CONCATENATE("ขนด้วย ",ข้อมูลขนส่ง!A13) -> ขนด้วย รถบรรทุก 10 ล้อ | J118: =+CONCATENATE("จากแหล่ง",ราคาวัสดุ!M4) -> จากแหล่งพื้นที่ใกล้เคียงสถานที่ก่อสร้าง
C119: ค่าวัสดุจากแหล่ง | I119: = | J119: =ราคาวัสดุ!L4 -> 84.11 | K119: บาท/ลบ.ม. | L119: [1]
C120: ค่าดำเนินการและค่าเสื่อมราคา (ขุด-ขน) | I120: = | J120: =ROUND(ค่าเสื่อมราคา!I19,2) -> 20.9 | K120: บาท/ลบ.ม. | L120: [2] | M120: (จากตารางค่าดำเนินการฯ)
C121: ค่าขนส่ง | D121: =ข้อมูลขนส่ง!U13 -> 1 | E121: =E98 -> กม. | I121: = | J121: =ข้อมูลขนส่ง!Z13 -> 11.19 | K121: บาท/ลบ.ม. | L121: [3] | M121: (จากตารางค่าขนส่ง)
C122: รวมค่าวัสดุที่หน้างาน | I122: = | J122: =SUM(J119:J121) -> 116.2 | K122: บาท/ลบ.ม. | L122: [4] = [1] + [2] + [3]
C125: รวมค่าใช้จ่าย | I125: = | J125: =+J122 -> 116.2 | K125: บาท/ลบ.ม. | L125: [5] = [4]
C126: …ค่างานต้นทุน | I126: = | J126: =+ROUNDDOWN(J125,1) -> 116.2 | K126: บาท/ลบ.ม.
B127: 2.4.2 | C127: งานทรายถม | E127: =+CONCATENATE("ขนด้วย ",ข้อมูลขนส่ง!A21) -> ขนด้วย รถบรรทุก 10 ล้อ | J127: =+CONCATENATE("จากแหล่ง ",ราคาวัสดุ!M19) -> จากแหล่ง
C128: ค่าวัสดุจากแหล่ง | I128: = | J128: =ราคาวัสดุ!L20 -> 529.6 | K128: บาท/ลบ.ม. | L128: [1]
C129: ค่าดำเนินการและค่าเสื่อมราคา (ขุด-ขน) | E129: (ไม่คิดค่าใช้จ่าย) | I129: = | J129: 0 | K129: บาท/ลบ.ม. | L129: [2] | M129: (จากตารางค่าดำเนินการฯ)
C130: ค่าขนส่ง | D130: =ข้อมูลขนส่ง!V21 -> 30 | E130: =E121 -> กม. | I130: = | J130: =ข้อมูลขนส่ง!Z21 -> 100.39 | K130: บาท/ลบ.ม. | L130: [3] | M130: (จากตารางค่าขนส่ง)
C131: รวมค่าวัสดุที่หน้างาน | I131: = | J131: =SUM(J128:J130) -> 629.99 | K131: บาท/ลบ.ม. | L131: [4] = [1] + [2] + [3]
C132: ส่วนการยุบตัว | I132: = | J132: =+J131*1.4 -> 881.986 | K132: บาท/ลบ.ม. | L132: [5] = [4] x 1.40
C133: ค่าดำเนินการและค่าเสื่อมราคา (บดทับ) คิด | F133: 0.75 | G133: % | I133: = | J133: =ROUND(ค่าเสื่อมราคา!I20*F133/100,2) -> 0.33 | K133: บาท/ลบ.ม. | L133: [6] | M133: (จากตารางค่าดำเนินการฯ)
C134: รวมค่าใช้จ่าย | I134: = | J134: =SUM(J132:J133) -> 882.316 | K134: บาท/ลบ.ม. | L134: [7] = [5] + [6]
C135: …ค่างานต้นทุน | I135: = | J135: =+ROUNDDOWN(J134,1) -> 882.3 | K135: บาท/ลบ.ม.
D136: หมายเหตุ | J136: แนวเก่า | L136: แนวใหม่
D137: ส่วนยุบตัวของทรายถมคันทาง | J137: 1.4 | L137: 1.45
D138: ดิน, ดินปนทราย ถมคันทาง | J138: 1.6 | L138: 1.7
D139: ดินเหนียว ถมคันทาง | J139: 1.85 | L139: 1.9
D140: (ดินเหนียวมีค่า CBR น้อยกว่า 2)
D141: ค่าดินที่แหล่ง = ราคาที่ดิน/2 (บาท/ไร่) x 1/1600 x 1/3 = …………….บาท/ลบ.ม.
B142: 2.5 | C142: งานวัสดุคัดเลือก | E142: =+CONCATENATE("ขนด้วย ",ข้อมูลขนส่ง!A15) -> ขนด้วย รถบรรทุก 10 ล้อ | J142: =+CONCATENATE("จากแหล่ง",ราคาวัสดุ!M5) -> จากแหล่งพื้นที่ใกล้เคียงสถานที่ก่อสร้าง
C143: ค่าวัสดุที่แหล่ง | I143: = | J143: =ราคาวัสดุ!L6 -> 105.1425 | K143: บาท/ลบ.ม. | L143: [1]
C144: ค่าดำเนินการและค่าเสื่อมราคา (ขุด-ขน) | I144: = | J144: =ROUND(ค่าเสื่อมราคา!I29,2) -> 30.86 | K144: บาท/ลบ.ม. | L144: [2] | M144: (จากตารางค่าดำเนินการฯ)
C145: ค่าขนส่ง | D145: =ข้อมูลขนส่ง!U15 -> 2 | E145: =E121 -> กม. | I145: = | J145: =ข้อมูลขนส่ง!Z15 -> 13.55 | K145: บาท/ลบ.ม. | L145: [3] | M145: (จากตารางค่าขนส่ง)
C146: รวมค่าวัสดุที่หน้างาน | I146: = | J146: =SUM(J143:J145) -> 149.5525 | K146: บาท/ลบ.ม. | L146: [4] = [1] + [2] + [3]
C147: ส่วนการยุบตัว | I147: = | J147: =+J146*1.6 -> 239.284 | K147: บาท/ลบ.ม. | L147: [5] = [4] x 1.60
C148: ค่าดำเนินการและค่าเสื่อมราคา (บดทับ) | I148: = | J148: =ROUND(ค่าเสื่อมราคา!I31,2) -> 52.96 | K148: บาท/ลบ.ม. | L148: [6] | M148: (จากตารางค่าดำเนินการฯ)
C149: รวมค่าใช้จ่าย | I149: = | J149: =SUM(J147:J148) -> 292.244 | K149: บาท/ลบ.ม. | L149: [7] = [5] + [6]
C150: …ค่างานต้นทุน | I150: = | J150: =+ROUNDDOWN(J149,1) -> 292.2 | K150: บาท/ลบ.ม.
A151: 3 | B151: งานพื้นทางและรองพื้นทาง
B152: 3.1 | C152: งานชั้นรองพื้นทาง
B153: 3.1.1 | C153: งานชั้นรองพื้นทางลูกรัง | E153: =+CONCATENATE("ขนด้วย ",ข้อมูลขนส่ง!A15) -> ขนด้วย รถบรรทุก 10 ล้อ | J153: =+CONCATENATE("จากแหล่ง",ราคาวัสดุ!M5) -> จากแหล่งพื้นที่ใกล้เคียงสถานที่ก่อสร้าง
C154: ค่าวัสดุที่แหล่ง | I154: = | J154: =ราคาวัสดุ!L5 -> 140.19 | K154: บาท/ลบ.ม. | L154: [1]
C155: ค่าดำเนินการและค่าเสื่อมราคา (ขุด-ขน) | I155: = | J155: =ROUND(ค่าเสื่อมราคา!I29,2) -> 30.86 | K155: บาท/ลบ.ม. | L155: [2] | M155: (จากตารางค่าดำเนินการฯ)
C156: ค่าขนส่ง | D156: =ข้อมูลขนส่ง!U15 -> 2 | E156: กม. | I156: = | J156: =ข้อมูลขนส่ง!Z15 -> 13.55 | K156: บาท/ลบ.ม. | L156: [3] | M156: (จากตารางค่าขนส่ง)
C157: รวมค่าวัสดุที่หน้างาน | I157: = | J157: =SUM(J154:J156) -> 184.6 | K157: บาท/ลบ.ม. | L157: [4] = [1] + [2] + [3]
C158: ส่วนการยุบตัว | I158: = | J158: =+J157*1.6 -> 295.36 | K158: บาท/ลบ.ม. | L158: [5] = [4] x 1.60
C159: ค่าดำเนินการและค่าเสื่อมราคา (บดทับ) | I159: = | J159: =ROUND(ค่าเสื่อมราคา!I31,2) -> 52.96 | K159: บาท/ลบ.ม. | L159: [6] | M159: (จากตารางค่าดำเนินการฯ)
C160: รวมค่าใช้จ่าย | I160: = | J160: =SUM(J158:J159) -> 348.32 | K160: บาท/ลบ.ม. | L160: [7] = [5] + [6]
C161: …ค่างานต้นทุน | I161: = | J161: =+ROUNDDOWN(J160,0) -> 348 | K161: บาท/ลบ.ม.
B162: 3.1.2 | C162: งานชั้นรองพื้นทางดินซีเมนต์ | E162: =+CONCATENATE("ขนด้วย ",ข้อมูลขนส่ง!A19) -> ขนด้วย รถบรรทุก 10 ล้อ + ลากพ่วง | J162: =+CONCATENATE("จากแหล่ง ",ราคาวัสดุ!M5) -> จากแหล่ง พื้นที่ใกล้เคียงสถานที่ก่อสร้าง
C163: ค่าวัสดุที่แหล่ง | I163: = | J163: =J154 -> 140.19 | K163: บาท/ลบ.ม. | L163: [1]
C164: ค่าดำเนินการและค่าเสื่อมราคา (ขุด-ขน) | I164: = | J164: =ROUND(ค่าเสื่อมราคา!I29,2) -> 30.86 | K164: บาท/ลบ.ม. | L164: [2] | M164: (จากตารางค่าดำเนินการฯ)
C165: ค่าขนส่ง | D165: =ข้อมูลขนส่ง!U15 -> 2 | E165: กม. | I165: = | J165: =ข้อมูลขนส่ง!Z15 -> 13.55 | K165: บาท/ลบ.ม. | L165: [3] | M165: (จากตารางค่าขนส่ง)
C166: รวมค่าวัสดุที่หน้างาน | I166: = | J166: =SUM(J163:J165) -> 184.6 | K166: บาท/ลบ.ม. | L166: [4] = [1] + [2] + [3]
C167: ส่วนการยุบตัว | I167: = | J167: =1.6*J166 -> 295.36 | K167: บาท/ลบ.ม. | L167: [5] = [4] x 1.60
C168: ราคาซีเมนต์ (รวมค่าขนส่ง) | I168: = | J168: =ราคาวัสดุ!ราคาปูนtype1ที่แหล่ง+ข้อมูลขนส่ง!Z31 -> 2310.43 | K168: บาท / ตัน | L168: [6]
C169: ปูนซีเมต์ | D169: 3.5 | E169: % = | F169: =ROUNDDOWN(D169/100*2100,0) -> 73 | G169: กก. ในดินซีเมนต์ 1 ลบ.ม. | L169: [7]
C170: ค่าปูนซีเมนต์ | I170: = | J170: =J168*F169/1000 -> 168.66139 | K170: =K122 -> บาท/ลบ.ม. | L170: [8] = [6] x [7]
C171: ค่าติดตั้งเครื่องผสม | E171: (ไม่คิดค่าใช้จ่าย) | I171: = | J171: 0 | K171: บาท/ลบ.ม. | L171: [9]
C172: ค่าดำเนินการและค่าเสื่อมราคา (ผสม) | I172: = | J172: =ROUND(ค่าเสื่อมราคา!I72,2) -> 42.15 | K172: บาท/ลบ.ม. | L172: [10] | M172: (จากตารางค่าดำเนินการฯ)
C173: ค่าดำเนินการและค่าเสื่อมราคา (บดทับ) | I173: = | J173: =ROUND(ค่าเสื่อมราคา!I31,2) -> 52.96 | K173: บาท/ลบ.ม. | L173: [11] | M173: (จากตารางค่าดำเนินการฯ)
C174: ค่าดำเนินการและค่าเสื่อมราคา (บ่ม) | I174: = | J174: =ROUND(ค่าเสื่อมราคา!I73,2) -> 43.66 | K174: บาท/ลบ.ม. | L174: [12] | M174: (จากตารางค่าดำเนินการฯ)
C175: รวมค่าใช้จ่าย | I175: = | J175: =ROUND(J167+J170+J172+J173+J174,2) -> 602.79 | K175: บาท/ลบ.ม. | L175: [13] =[5] + [8] + [10] + [11] + [12]
C176: …ค่างานต้นทุน | I176: = | J176: =+ROUNDDOWN(J175,1) -> 602.7 | K176: บาท/ลบ.ม.
B177: 3.2 | C177: งานชั้นพื้นทาง
B178: 3.2.1 | C178: งานชั้นพื้นทางหินคลุก | E178: =+CONCATENATE("ขนด้วย ",ข้อมูลขนส่ง!A19) -> ขนด้วย รถบรรทุก 10 ล้อ + ลากพ่วง | J178: =+CONCATENATE("จากแหล่ง",ราคาวัสดุ!M8) -> จากแหล่งโรงโม่ อ.นากลาง จ.หนองบัวลำภู
C179: ค่าวัสดุที่แหล่ง (รวมค่าตัก) | I179: = | J179: =ราคาวัสดุ!L8 -> 170 | K179: บาท/ลบ.ม. | L179: [1]
C180: ค่าขนส่ง | D180: =ข้อมูลขนส่ง!U19 -> 62 | E180: กม. | I180: = | J180: =ข้อมูลขนส่ง!Z19 -> 126.94 | K180: บาท/ลบ.ม. | L180: [2]
C181: รวมค่าวัสดุที่หน้างาน | I181: = | J181: =SUM(J179:J180) -> 296.94 | K181: บาท/ลบ.ม. | L181: [3] = [1] + [2]
C182: ส่วนการยุบตัว | I182: = | J182: =1.5*J181 -> 445.41 | K182: บาท/ลบ.ม. | L182: [4] = [3] x 1.50
C183: ค่าดำเนินการและค่าเสื่อมราคา (ผสม) | I183: = | J183: =ROUND(ค่าเสื่อมราคา!I36,2) -> 24.14 | K183: บาท/ลบ.ม. | L183: [5] | M183: (จากตารางค่าดำเนินการฯ)
C184: ค่าดำเนินการและค่าเสื่อมราคา (บดทับ) | I184: = | J184: =ROUND(ค่าเสื่อมราคา!I37,2) -> 84.22 | K184: บาท/ลบ.ม. | L184: [6] | M184: (จากตารางค่าดำเนินการฯ)
C185: รวมค่าใช้จ่าย | I185: = | J185: =SUM(J182:J184) -> 553.77 | K185: บาท/ลบ.ม. | L185: [7] = [4] + [5] + [6]
C186: …ค่างานต้นทุน | I186: = | J186: =+ROUNDDOWN(J185,1) -> 553.7 | K186: บาท/ลบ.ม.
B187: 3.2.2 | C187: (1)งานชั้นพื้นทางดินซีเมนต์ | E187: =+CONCATENATE("ขนด้วย ",ข้อมูลขนส่ง!A15) -> ขนด้วย รถบรรทุก 10 ล้อ | J187: =+CONCATENATE("จากแหล่ง",ราคาวัสดุ!M5) -> จากแหล่งพื้นที่ใกล้เคียงสถานที่ก่อสร้าง
C188: ค่าวัสดุลูกรังที่แหล่ง | I188: = | J188: =J154 -> 140.19 | K188: บาท/ลบ.ม. | L188: [1]
C189: ค่าดำเนินการและค่าเสื่อมราคา (ขุด-ขน) | I189: = | J189: =J164 -> 30.86 | K189: บาท/ลบ.ม. | L189: [2] | M189: (จากตารางค่าดำเนินการฯ)
C190: ค่าขนส่ง | D190: =D165 -> 2 | E190: กม. | I190: = | J190: =J156 -> 13.55 | K190: บาท/ลบ.ม. | L190: [3] | M190: (จากตารางค่าขนส่ง)
C191: รวมค่าวัสดุที่หน้างาน | I191: = | J191: =SUM(J188:J190) -> 184.6 | K191: บาท/ลบ.ม. | L191: [4] = [1] + [2] + [3]
C192: ส่วนการยุบตัว | I192: = | J192: =+J191*1.6 -> 295.36 | K192: บาท/ลบ.ม. | L192: [5] = [4] x 1.60
C193: ราคาซีเมนต์ (รวมค่าขนส่ง) | I193: = | J193: =ราคาวัสดุ!ราคาปูนtype1ที่แหล่ง+ข้อมูลขนส่ง!Z31 -> 2310.43 | K193: บาท / ตัน | L193: [6]
C194: ปูนซีเมต์ | D194: 4.5 | E194: % = | F194: =ROUNDDOWN(D194/100*2100,0) -> 94 | G194: กก. ในดินซีเมนต์ 1 ลบ.ม. | L194: [7]
C195: ค่าปูนซีเมนต์ | I195: = | J195: =J193*F194/1000 -> 217.18042 | K195: =K147 -> บาท/ลบ.ม. | L195: [8] = [6] x [7]
C196: ค่าติดตั้งเครื่องผสม | E196: (ไม่คิดค่าใช้จ่าย) | I196: = | J196: 0 | K196: บาท/ลบ.ม. | L196: [9]
C197: ค่าดำเนินการและค่าเสื่อมราคา (ผสม) | I197: = | J197: =J172 -> 42.15 | K197: บาท/ลบ.ม. | L197: [10] | M197: (จากตารางค่าดำเนินการฯ)
C198: ค่าดำเนินการและค่าเสื่อมราคา (บดทับ) | I198: = | J198: =J173 -> 52.96 | K198: บาท/ลบ.ม. | L198: [11] | M198: (จากตารางค่าดำเนินการฯ)
C199: ค่าดำเนินการและค่าเสื่อมราคา (บ่ม) | I199: = | J199: =J174 -> 43.66 | K199: บาท/ลบ.ม. | L199: [12] | M199: (จากตารางค่าดำเนินการฯ)
C200: รวมค่าใช้จ่าย | I200: = | J200: =ROUND(J192+J195+J197+J198+J199,2) -> 651.31 | K200: บาท/ลบ.ม. | L200: [13] =[5] + [8] + [10] + [11] + [12]
C201: …ค่างานต้นทุน | I201: = | J201: =+ROUNDDOWN(J200,1) -> 651.3 | K201: บาท/ลบ.ม.
B202: 3.2.2 | C202: (2)งานชั้นพื้นทางหินคลุกซีเมนต์ | E202: =E178 -> ขนด้วย รถบรรทุก 10 ล้อ + ลากพ่วง | J202: =J178 -> จากแหล่งโรงโม่ อ.นากลาง จ.หนองบัวลำภู
... 931 more rows

Sheet Sheet3

Sheet ต้นทุนกำแพงกันดิน
A1: ราคาต้นทุนต่อหน่วยของงานกำแพงกันดิน
A3: สถานที่ก่อสร้าง | C3: =+อื่นๆ!C2 -> ซอยจันทร์สุวรรณ
C4: =+อื่นๆ!C3 -> บ้านกุดแห่ หมู่ 1 ตำบลกุดแห่ อำเภอนากลาง จังหวัดหนองบัวลำภู
A5: วันที่ประมาณราคา | C5: =+อื่นๆ!D4 -> 2020-02-11
A7: ลำดับ | B7: รายการลักษณะงาน / วิธีคำนวณ | G7: ปริมาณ | H7: หน่วย | I7: ค่าวัสดุ | K7: ค่าแรงงาน | M7: ราคารวม
I8: หน่วยละ | J8: จำนวนเงิน | K8: หน่วยละ | L8: จำนวนเงิน | M8: (บาท)
B9: งานกำแพงกันดิน Abutment Portecment
B12: ความสูงกำแพงกันดิน | G12: 4 | H12: ม. | I12: (H)
B13: ความยาวกำแพงกันดิน | G13: =+G12*1.3 -> 5.2 | H13: ม. | I13: (1.3H)
B14: ความกว้างกำแพงกันดิน (ต่อช่อง) | G14: 1.8 | H14: ม. | I14: (ไม่เกิน 2.00 ม.)
B15: ความกว้างกำแพงกันดินรวม | G15: 9 | H15: ม.
A17: 1) | B17: งานคอนกรีต ; ค2 | D17: 29.85 | E17: % เผื่อ | F17: 0.05 | G17: =D17*(1+(F17)) -> 31.3425 | H17: ลบ.ม. | I17: =IF(G17=0,0,ราคาต่อหน่วย!I401) -> 2096 | J17: =I17*G17 -> 65693.88 | K17: 0 | L17: =K17*G17 -> 0 | M17: =J17+L17 -> 65693.88
A18: 2) | B18: งานไม้แบบ (2)
B19: - ค่าไม้แบบงานสะพาน,ท่อเหลี่ยม | G19: 104 | H19: ตร.ม. | I19: =+IF(G19=0,0,ราคาต่อหน่วย!J456) -> 330 | J19: =I19*G19 -> 34320 | K19: 0 | L19: =K19*G19 -> 0 | M19: =J19+L19 -> 34320
B20: - ไม้คิ้ว 1''x1'' | H20: ลบ.ฟ. | I20: 0 | J20: =I20*G20 -> 0 | K20: 0 | L20: =K20*G20 -> 0 | M20: =J20+L20 -> 0
A21: 3) | B21: งานเหล็ก ; (SR 24 , SD 40) | F21: % เผื่อ | M21: 0
B22: RB 6 ; | D22: 0 | F22: 0.1 | G22: =+D22*(1+F22) -> 0 | H22: กก. | I22: =IF(G22=0,0,ราคาต่อหน่วย!L417) -> 0 | J22: =I22*G22 -> 0 | K22: =IF(G22=0,0,ราคาต่อหน่วย!$K$437) -> 0 | L22: =K22*G22 -> 0 | M22: 0
B23: RB 9 ; | D23: 0 | F23: 0.1 | G23: =+D23*(1+F23) -> 0 | H23: กก. | I23: =IF(G23=0,0,ราคาต่อหน่วย!L418) -> 0 | J23: 0 | K23: =IF(G23=0,0,ราคาต่อหน่วย!$K$437) -> 0 | L23: 0 | M23: 0
B24: DB 12 ; | D24: =+ROUNDDOWN(N24*P24,2) -> 2768.78 | F24: 0.1 | G24: 3045.658 | H24: กก. | I24: =IF(G24=0,0,ราคาต่อหน่วย!L425) -> 17.58 | J24: 53542.66764 | K24: =IF(G24=0,0,ราคาต่อหน่วย!$K$437) -> 4.1 | L24: 12487.1978 | M24: 66029.86544 | N24: =1030+1296+45+36+288+375+48 -> 3118 | O24: ม. | P24: 0.888 | Q24: กก./ม.
B25: DB 16 ; | D25: 0 | F25: 0.1 | G25: 0 | H25: กก. | I25: =IF(G25=0,0,ราคาต่อหน่วย!L426) -> 0 | J25: 0 | K25: =IF(G25=0,0,ราคาต่อหน่วย!$K$437) -> 0 | L25: 0 | M25: 0 | O25: ม. | Q25: กก./ม.
B26: DB 20 ; | D26: 0 | F26: 0.1 | G26: 0 | H26: กก. | I26: =IF(G26=0,0,ราคาต่อหน่วย!L427) -> 0 | J26: 0 | K26: =IF(G26=0,0,ราคาต่อหน่วย!$K$437) -> 0 | L26: 0 | M26: =J26+L26 -> 0 | O26: ม. | Q26: กก./ม.
B27: DB 25 ; | D27: =+ROUNDDOWN(N27*P27,2) -> 581.8 | F27: 0.1 | G27: 639.98 | H27: กก. | I27: =IF(G27=0,0,ราคาต่อหน่วย!L428) -> 16.84 | J27: 10777.2632 | K27: =IF(G27=0,0,ราคาต่อหน่วย!$K$437) -> 4.1 | L27: 2623.918 | M27: =J27+L27 -> 13401.1812 | N27: =88+63 -> 151 | O27: ม. | P27: 3.853 | Q27: กก./ม.
B28: -เหล็ก Dowel
B29: RB 25 ; | D29: 0 | F29: 0.1 | G29: =+D29*E29*(1+F29) -> 0 | H29: กก. | I29: =IF(G29=0,0,ราคาต่อหน่วย!L420) -> 0 | J29: =I29*G29 -> 0 | K29: =IF(G29=0,0,ราคาต่อหน่วย!$K$437) -> 0 | L29: =K29*G29 -> 0 | M29: =J29+L29 -> 0
B30: DB 25 ; | D30: 0 | F30: 0.1 | G30: =+D30*E30*(1+F30) -> 0 | H30: กก. | I30: =IF(G30=0,0,ราคาต่อหน่วย!L428) -> 0 | J30: =I30*G30 -> 0 | K30: =IF(G30=0,0,ราคาต่อหน่วย!$K$437) -> 0 | L30: =K30*G30 -> 0 | M30: =J30+L30 -> 0
B31: - ลวดผูกเหล็ก | G31: =SUM(G22:G29)*0.03 -> 110.56914 | H31: กก. | I31: =IF(G31=0,0,ราคาวัสดุ!L46) -> 57.95 | J31: =I31*G31 -> 6407.481663 | K31: 0 | L31: =K31*G31 -> 0 | M31: =J31+L31 -> 6407.481663
A32: 4) | B32: วัสดุอื่น ๆ (ระบุ)……. | F32: % เผื่อ
B33: - งานขุดดิน | G33: 187 | H33: ลบ.ม. | I33: =IF(G33=0,0,0) -> 0 | J33: =I33*G33 -> 0 | K33: =IF(G33=0,0,ราคาต่อหน่วย!J84) -> 44.6 | L33: =K33*G33 -> 8340.2 | M33: =J33+L33 -> 8340.2
B34: - งานถมดิน (บดอัดแน่น) | G34: 187 | H34: ลบ.ม. | I34: =IF(G34=0,0,ราคาต่อหน่วย!J126) -> 116.2 | J34: =I34*G34 -> 21729.4 | K34: =IF(G34=0,0,0) -> 0 | L34: =K34*G34 -> 0 | M34: =J34+L34 -> 21729.4
C37: รวมราคาต้นทุน | M37: =SUM(M17:M36) -> 215922.0083
C38: พิจารณาใช้ | M38: =ROUNDDOWN(M37,0) -> 215922

Sheet อื่นๆ
A1: ราคาต้นทุนต่อหน่วยของงานทั่วไป
A2: สถานที่ก่อสร้าง | C2: =+ข้อมูลโครงการ!G7 -> ซอยจันทร์สุวรรณ
C3: =+ข้อมูลโครงการ!G8 -> บ้านกุดแห่ หมู่ 1 ตำบลกุดแห่ อำเภอนากลาง จังหวัดหนองบัวลำภู
A4: วันที่ประมาณราคา | D4: =+ข้อมูลโครงการ!G3 -> 2020-02-11
A6: ลำดับ | B6: รายการลักษณะงาน / วิธีคำนวณ | G6: ปริมาณ | H6: หน่วย | I6: ค่าวัสดุ | K6: ค่าแรงงาน | M6: ราคารวม
I7: หน่วยละ | J7: จำนวนเงิน | K7: หน่วยละ | L7: จำนวนเงิน | M7: (บาท)
B8: งานทาสีหัวและท้ายสะพาน | G8: 1 | H8: แห่ง
B10: - ค่าสีขาวทา 3 ชั้น | G10: 0.102 | H10: ตร.ม. | I10: 50 | J10: =I10*G10 -> 5.1 | K10: 30 | L10: =K10*G10 -> 3.06 | M10: =L10+J10 -> 8.16
B11: - ค่าสีดำทา 3 ชั้น | G11: 0.142 | H11: ตร.ม. | I11: 50 | J11: =I11*G11 -> 7.1 | K11: 30 | L11: =K11*G11 -> 4.26 | M11: =L11+J11 -> 11.36
B12: - ค่าสติ๊กเกอร์สะท้อนแสงสีขาว | G12: 0.033 | H12: ตร.ม. | I12: 1500 | J12: =I12*G12 -> 49.5 | K12: 0 | L12: =K12*G12 -> 0 | M12: =L12+J12 -> 49.5
F14: รวม | M14: =SUM(M10:M13) -> 69.02
C15: พิจารณาใช้ | M15: =ROUNDDOWN(SUM(M10:M13),0) -> 69
A18: ลำดับ | B18: รายการลักษณะงาน / วิธีคำนวณ | G18: ปริมาณ | H18: หน่วย | I18: ค่าวัสดุ | K18: ค่าแรงงาน | M18: ราคารวม
I19: หน่วยละ | J19: จำนวนเงิน | K19: หน่วยละ | L19: จำนวนเงิน | M19: (บาท)
B20: งานป้ายชื่อสะพานหินแกรนิต
B22: - แผ่นหินแกรนิต | G22: 1 | H22: แผ่น | I22: 1000 | J22: =I22*G22 -> 1000 | K22: 500 | L22: =K22*G22 -> 500 | M22: =L22+J22 -> 1500
B23: - ค่าจัดทำตัวอักษร | G23: 1 | H23: LS | I23: 2000 | J23: =I23*G23 -> 2000 | K23: 0 | M23: =L23+J23 -> 2000
C26: พิจารณาใช้ค่า งานป้ายชื่อสะพานหินแกรนิต | M26: =SUM(M22:M25) -> 3500
A35: ลำดับ | B35: รายการลักษณะงาน / วิธีคำนวณ | G35: ปริมาณ | H35: หน่วย | I35: ค่าวัสดุ | K35: ค่าแรงงาน | M35: ราคารวม
I36: หน่วยละ | J36: จำนวนเงิน | K36: หน่วยละ | L36: จำนวนเงิน | M36: (บาท)
B37: งานแผ่นป้ายข้อมูลแผ่นหินแกรนิต
B40: - แผ่นหินแกรนิต | G40: 1 | H40: แผ่น | I40: 400 | J40: =I40*G40 -> 400 | K40: 0 | L40: =K40*G40 -> 0 | M40: =L40+J40 -> 400
B41: - ค่าจัดทำตัวอักษร | G41: 1 | H41: LS | I41: 2000 | J41: =I41*G41 -> 2000 | K41: 0 | L41: 0 | M41: =L41+J41 -> 2000
B42: - ค่าติดตั้ง | G42: 1 | H42: แผ่น | I42: 0 | J42: 0 | K42: 100 | L42: =K42*G42 -> 100 | M42: =L42+J42 -> 100
C44: พิจารณาใช้ค่า งานป้ายข้อมูลแผ่นหินแกรนิต | M44: =SUM(M40:M43) -> 2500
A47: ลำดับ | B47: รายการลักษณะงาน / วิธีคำนวณ | G47: ปริมาณ | H47: หน่วย | I47: ค่าวัสดุ | K47: ค่าแรงงาน | M47: ราคารวม
I48: หน่วยละ | J48: จำนวนเงิน | K48: หน่วยละ | L48: จำนวนเงิน | M48: (บาท)
B49: งานวาง Plank girder ความยาว 5.00 - 12.00 เมตร
A50: 1 | B50: รถเครน | G50: 2 | H50: คัน | I50: 0 | J50: 0 | K50: 8000 | L50: =G50*K50 -> 16000 | M50: =J50+L50 -> 16000
A51: 2 | B51: รถขนคาน(รวมค่าขนย้ายคาน) | G51: 1 | H51: คัน | I51: 0 | J51: 0 | K51: 7000 | L51: =G51*K51 -> 7000 | M51: =J51+L51 -> 7000
A52: 3 | B52: คนงานติดตั้ง | G52: 4 | H52: คน | I52: 0 | J52: 0 | K52: 300 | L52: 1200 | M52: 1200
B59: สรุปใช้ราคา ; | D59: รวม | G59: 10 | H59: คาน | M59: =SUM(M50:M55) -> 24200
G60: 1 | H60: คาน | M60: =M59/G59 -> 2420
A64: ลำดับ | B64: รายการลักษณะงาน / วิธีคำนวณ | G64: ปริมาณ | H64: หน่วย | I64: ค่าวัสดุ | K64: ค่าแรงงาน | M64: ราคารวม
I65: หน่วยละ | J65: จำนวนเงิน | K65: หน่วยละ | L65: จำนวนเงิน | M65: (บาท)
B66: งานวาง Box girder ความยาว 13.00 - 20.00 เมตร
A67: 1 | B67: รถเครน | G67: 2 | H67: คัน | I67: 0 | J67: 0 | K67: 15000 | L67: =G67*K67 -> 30000 | M67: =J67+L67 -> 30000
A68: 2 | B68: รถขนคาน(รวมค่าขนย้ายคาน) | G68: 2 | H68: คัน | I68: 0 | J68: 0 | K68: 7000 | L68: =G68*K68 -> 14000 | M68: =J68+L68 -> 14000
A69: 3 | B69: ค่าขนย้าย (Stock คานหน้างาน) | G69: 1 | H69: LS. | I69: 0 | J69: 0 | K69: 11000 | L69: 11000 | M69: 11000
A70: 4 | B70: คนงานติดตั้ง | G70: 4 | H70: คน | I70: 0 | J70: 0 | K70: 300 | L70: 1200 | M70: 1200
B74: สรุปใช้ราคา ; | D74: รวม | G74: 10 | H74: คาน | M74: =SUM(M67:M71) -> 56200
G75: 1 | H75: คาน | M75: =M74/G74 -> 5620
A78: ลำดับ | B78: รายการ | G78: จำนวน | H78: หน่วย | I78: ค่าวัสดุสิ่งของ | K78: ค่าแรงงาน | M78: รวมค่าวัสดุ
I79: หน่วยละ | J79: จำนวนเงิน | K79: หน่วยละ | L79: จำนวนเงิน | M79: และค่าแรง
B80: งานปรับพื้นที่สำหรับตอกเสาเข็ม
B81: ความยาวของงานที่จะก่อสร้าง | G81: 20 | H81: ม.
B82: ความกว้าง | G82: =IF(L82>15,6,4) -> 4 | H82: ม. | I82: (เฉพาะทางเคลื่อนอุปกรณ์/ปั้นจั่น)
B83: ถมสูง เฉลี่ย | G83: 3 | H83: ม. | I83: (เฉพาะทางเคลื่อนอุปกรณ์(ปั้นจั่น))
B84: จำนวนตอม่อที่ปรับพื้นที่ | G84: 3 | H84: ตับ | I84: (สำหรับตอกเสาเข็ม)
B85: รวมปรับพื้นที่สำหรับตอกเสาเข็ม | G85: =+G81*G82*G84 -> 240 | H85: ตรม.
A87: 1 | B87: งานกรุยทางถางป่า | G87: =G85 -> 240 | H87: ตรม. | I87: 2.9 | J87: =I87*G87 -> 696 | K87: =J87*F87 -> 0 | L87: =K87*G87 -> 0 | M87: =J87+L87 -> 696
A88: 2 | B88: งานดินตัด ขุดปรับ = | E88: 0.1 | F88: ม. | G88: =G87*E88*0.3 -> 7.2 | H88: ลบ.ม. | I88: 0 | J88: =I88*G88 -> 0 | K88: 35.3 | L88: =K88*G88 -> 254.16 | M88: =J88+L88 -> 254.16
A89: 3 | B89: งานดินถม จากนอกโครงการ (แน่น) | G89: =((G85*G83)*0.7)-G90 -> 378 | H89: ลบ.ม. | I89: 81.9 | J89: =I89*G89 -> 30958.2 | K89: =J89*F89 -> 0 | L89: =K89*G89 -> 0 | M89: =J89+L89 -> 30958.2
B90: งานดินถม จากงานดินตัด (แน่น) | G90: 126 | H90: ลบ.ม. | I90: 33.7 | J90: =I90*G90 -> 4246.2 | K90: =J90*F90 -> 0 | L90: =K90*G90 -> 0 | M90: =J90+L90 -> 4246.2
A91: 4 | B91: งานท่อ 2-Ø 1.00 x 16 ม. | G91: 32 | H91: ม. | I91: 1932.486 | J91: =I91*G91 -> 61839.552 | K91: 0 | L91: 0 | M91: =(J91+L91)*0.5 -> 30919.776
B92: พิจารณาคิดงานท่อ คสล. ทั้งสิ้น (50%)
C93: รวมคิดเป็นเงินค่าปรับพื้นที่ทั้งสิ้น | J93: =SUM(J87:J91) -> 97739.952 | L93: =SUM(L87:L91) -> 254.16 | M93: =SUM(M87:M91) -> 67074.336
A96: ลำดับ | B96: รายการ | G96: จำนวน | H96: หน่วย | I96: ค่าวัสดุสิ่งของ | K96: ค่าแรงงาน | M96: รวมค่าวัสดุ
I97: หน่วยละ | J97: จำนวนเงิน | K97: หน่วยละ | L97: จำนวนเงิน | M97: และค่าแรง
B98: งานถนนทางเบี่ยง
B99: ความยาวถนนทางเบี่ยง | G99: 50 | H99: ม.
B100: ความกว้าง | G100: 6 | H100: ม.
B101: ถมสูง เฉลี่ย | G101: 4 | H101: ม.
B102: รวมปริมาณ | G102: =+G99*G100*G101 -> 1200 | H102: ลบ.ม.
A104: 1 | B104: งานกรุยทางถางป่า | G104: =+G99*G100 -> 300 | H104: ตรม. | I104: =+ราคาต่อหน่วย!J68 -> 3.54 | J104: =I104*G104 -> 1062 | K104: =J104*F104 -> 0 | L104: =K104*G104 -> 0 | M104: =J104+L104 -> 1062
A105: 2 | B105: งานดินตัด ขุดปรับ = | E105: 0.1 | F105: ม. | G105: =G104*E105*0.3 -> 9 | H105: ลบ.ม. | I105: 0 | J105: =I105*G105 -> 0 | K105: =+ราคาต่อหน่วย!J84 -> 44.6 | L105: =K105*G105 -> 401.4 | M105: =J105+L105 -> 401.4
A106: 3 | B106: งานดินถม (แน่น) | G106: =G102*0.7 -> 840 | H106: ลบ.ม. | I106: =+ราคาต่อหน่วย!J126 -> 116.2 | J106: =I106*G106 -> 97608 | K106: =J106*F106 -> 0 | L106: =K106*G106 -> 0 | M106: =J106+L106 -> 97608
A107: 4 | B107: งานท่อ 2-Ø 1.00 x 9 ม. | G107: 18 | H107: ม. | I107: =+ราคาต่อหน่วย!J613 -> 3100 | J107: =I107*G107 -> 55800 | K107: 0 | L107: 0 | M107: =(J107+L107)*0.5 -> 27900
B108: พิจารณาคิดงานท่อ คสล. ทั้งสิ้น (50%)
C109: รวมคิดเป็นเงินค่าปรับพื้นที่ทั้งสิ้น | J109: =SUM(J104:J107) -> 154470 | L109: =SUM(L104:L107) -> 401.4 | M109: =SUM(M104:M107) -> 126971.4
A111: ลำดับ | B111: รายการ | G111: จำนวน | H111: หน่วย | I111: ค่าวัสดุสิ่งของ | K111: ค่าแรงงาน | M111: รวมค่าวัสดุ
I112: หน่วยละ | J112: จำนวนเงิน | K112: หน่วยละ | L112: จำนวนเงิน | M112: และค่าแรง
B113: นั่งร้านตอกเสาเข็มพิจารณาต่อ พื้นที่ 10.00 x 10.00 = 100.00 ตร.ม.
B114: ความยาวของงานที่จะก่อสร้าง | G114: 36 | H114: ม.
B115: ความกว้าง | G115: 4 | H115: ม. | I115: (เฉพาะทางเคลื่อนอุปกรณ์/ปั้นจั่น)
B116: ความสูง เฉลี่ย | G116: 3 | H116: ม. | I116: (เฉพาะทางเคลื่อนอุปกรณ์(ปั้นจั่น))
B117: จำนวนตอม่อที่สร้างนั่งร้าน | G117: 2 | H117: ตับ | I117: (สูง2.5-3.00 คิดนั่งร้าน 1 ชั้น)
B118: รวมพื้นที่นั่งร้านทั้งสิ้น | G118: =26*G115+(9*G117)*G115 -> 176 | H118: ตรม.
A119: 1 | B119: ไม้เสาขนาด dia 6"x3.00 ม | F119: =IF(G116<3,1,CEILING(G116/3,1)) -> 1 | G119: =141*F119 -> 141 | H119: ต้น | I119: 50 | J119: =I119*G119 -> 7050 | K119: 0 | L119: =K119*G119 -> 0 | M119: =J119+L119 -> 7050
A120: 2 | B120: ไม้เนื้อแข็ง | G120: 154 | H120: ลบ.ฟ. | I120: 423 | J120: =I120*G120 -> 65142 | K120: 0 | L120: =K120*G120 -> 0 | M120: =J120+L120 -> 65142
A121: 3 | B121: น๊อต ขนาด dia 3/4" x 6" - ตะปู | G121: =G120*0.25 -> 38.5 | H121: กก. | I121: 42 | J121: =I121*G121 -> 1617 | K121: 0 | L121: =K121*G121 -> 0 | M121: =J121+L121 -> 1617
A122: 4 | B122: ค่าแรงประกอบ - รื้อถอน | G122: 100 | H122: ตร.ม. | I122: 0 | J122: 0 | K122: 230 | L122: =K122*G122 -> 23000 | M122: =J122+L122 -> 23000
C123: รวม | I123: 0 | J123: =SUM(J119:J122) -> 73809 | K123: 0 | L123: =SUM(L119:L122) -> 23000 | M123: =SUM(M119:M122) -> 96809
B124: ค่าวัสดุนั่งร้านตอกเข็ม / ตร.ม. | I124: 0 | J124: =J123/100 -> 738.09 | K124: 0 | L124: =L123/100 -> 230 | M124: =M123/100 -> 968.09
B125: ขอใช้ค่าวัสดุนั่งร้านตอกเข็ม / ตร.ม. | G125: 0.5 | I125: =ROUND(J124*G125,0) -> 369 | K125: =L124 -> 230 | M125: =M124*G125 -> 484.045
B126: ราคาค่าก่อสร้างนั่งร้านตอกเสาเข็ม | G126: =G118 -> 176 | H126: ตร.ม. | I126: =INT(I125) -> 369 | J126: =G126*I126 -> 64944 | K126: =K125 -> 230 | L126: =G126*K126 -> 40480 | M126: =J126+L126 -> 105424
D127: คิดเป็นเงินค่าก่อสร้างทั้งสิ้น | L127: =M126 -> 105424

Sheet ข้อมูลวัสดุ
A1: แบบฟอร์ม ข้อมูลราคาและวัสดุก่อสร้าง
A2: =ราคาต่อหน่วย!A2 -> (ใช้ราคาเฉลี่ยน้ำมัน ลิตรละ 29.50 บาท หาค่าขนส่ง,ค่าดำเนินการและค่าเสื่อมราคา)
A3: ="สถานที่ก่อสร้าง "&ปร.5!C7&" "&ปร.5!C8 -> สถานที่ก่อสร้าง ซอยจันทร์สุวรรณ บ้านกุดแห่ หมู่ 1 ตำบลกุดแห่ อำเภอนากลาง จังหวัดหนองบัวลำภู จำนวน 1 แห่ง
A4: ="ประมาณราคาวันที่ "&TEXT(ปร.5!D9,"d mmmm พ.ศ. bbbb") -> ประมาณราคาวันที่ 11 กุมภาพันธ์ พ.ศ. 2563
D6: ราคาวัสดุ
A7: ลำดับที่ | B7: ประเภท วัสดุ | C7: หน่วย | E7: ระยะขนส่ง (กม.) | I7: ค่าขนส่ง | J7: Factor | K7: ค่าขนส่ง | L7: รวม | M7: ข้อมูลที่ตั้งแหล่งวัสดุ
D8: ราคา | E8: ทางราบ | F8: ทางลูกเนิน | G8: ทางภูเขา | H8: รวม | I8: ตามตาราง | J8: ค่าขนส่ง | K8: ปรับแก้
D9: (บาท) | E9: (กม.) | F9: (กม.) | G9: (กม.) | H9: (กม.) | I9: (บาท) | J9: F= D/L | K9: (บาท) | L9: (บาท)
A10: 1 | B10: ดินถม | C10: ลบ.ม. | D10: =ราคาวัสดุ!L4 -> 84.11 | E10: =ข้อมูลขนส่ง!C13 -> 1 | F10: =ข้อมูลขนส่ง!D13 -> 0 | G10: =ข้อมูลขนส่ง!E13 -> 0 | H10: =ข้อมูลขนส่ง!V13 -> 1 | I10: =K10/J10 -> 11.19 | J10: =ข้อมูลขนส่ง!U13/ข้อมูลขนส่ง!V13 -> 1 | K10: =ข้อมูลขนส่ง!Z13 -> 11.19 | L10: =K10+D10 -> 95.3 | M10: =ราคาวัสดุ!M4 -> พื้นที่ใกล้เคียงสถานที่ก่อสร้าง
A11: 2 | B11: ทรายถม | C11: ลบ.ม. | D11: =ราคาวัสดุ!L20 -> 529.6 | E11: =ข้อมูลขนส่ง!C21 -> 30 | F11: =ข้อมูลขนส่ง!D21 -> 0 | G11: =ข้อมูลขนส่ง!E21 -> 0 | H11: =ข้อมูลขนส่ง!V21 -> 30 | I11: =K11/J11 -> 100.39 | J11: =ข้อมูลขนส่ง!U21/ข้อมูลขนส่ง!V21 -> 1 | K11: =ข้อมูลขนส่ง!Z21 -> 100.39 | L11: =K11+D11 -> 629.99 | M11: =ราคาวัสดุ!M19 -> 0
A12: 3 | B12: ลูกรัง | C12: ลบ.ม. | D12: =ราคาวัสดุ!L5 -> 140.19 | E12: =ข้อมูลขนส่ง!C15 -> 2 | F12: =ข้อมูลขนส่ง!D15 -> 0 | G12: =ข้อมูลขนส่ง!E15 -> 0 | H12: =ข้อมูลขนส่ง!V15 -> 2 | I12: 13.55 | J12: =ข้อมูลขนส่ง!U15/ข้อมูลขนส่ง!V15 -> 1 | K12: =ข้อมูลขนส่ง!Z15 -> 13.55 | L12: =K12+D12 -> 153.74 | M12: =ราคาวัสดุ!M5 -> พื้นที่ใกล้เคียงสถานที่ก่อสร้าง
A13: 4 | B13: วัสดุคัดเลือก | C13: ลบ.ม. | D13: =(D12+D10)/2 -> 112.15 | E13: =E12 -> 2 | F13: =F12 -> 0 | G13: =G12 -> 0 | H13: =H12 -> 2 | I13: 13.55 | J13: =J12 -> 1 | K13: =K12 -> 13.55 | L13: =K13+D13 -> 125.7 | M13: =M12 -> พื้นที่ใกล้เคียงสถานที่ก่อสร้าง
A14: 5 | B14: หินขนาดต่าง ๆ | L14: =K14+D14 -> 0 | M14: =เปรียบเทียบราคา!Q25 -> โรงโม่ อ.นากลาง จ.หนองบัวลำภู
B15: - หินคลุก | C15: ลบ.ม. | D15: =ราคาวัสดุ!L8 -> 170 | E15: =ข้อมูลขนส่ง!C19 -> 62 | F15: =ข้อมูลขนส่ง!D19 -> 0 | G15: =ข้อมูลขนส่ง!E19 -> 0 | H15: =ข้อมูลขนส่ง!V19 -> 62 | I15: 126.94 | J15: =ข้อมูลขนส่ง!U19/ข้อมูลขนส่ง!V19 -> 1 | K15: =ข้อมูลขนส่ง!Z19 -> 126.94 | L15: 296.94
B16: - หินฝุ่น | C16: ลบ.ม. | D16: =ราคาวัสดุ!L9 -> 280 | E16: =E15 -> 62 | F16: =F15 -> 0 | G16: 0 | H16: 62 | I16: 126.94 | J16: 1 | K16: =K15 -> 126.94 | L16: 406.94
B17: - หิน 3/8 | C17: ลบ.ม. | D17: =ราคาวัสดุ!L10 -> 230 | E17: =E16 -> 62 | F17: 0 | G17: 0 | H17: 62 | I17: 126.94 | J17: 1 | K17: =K16 -> 126.94 | L17: 356.94
B18: - หิน 1/2 | C18: ลบ.ม. | D18: =ราคาวัสดุ!L11 -> 330 | E18: =E17 -> 62 | F18: 0 | G18: 0 | H18: 62 | I18: 126.94 | J18: 1 | K18: =K17 -> 126.94 | L18: 456.94
B19: - หิน 3/4 | C19: ลบ.ม. | D19: =ราคาวัสดุ!L12 -> 290 | E19: =E18 -> 62 | F19: 0 | G19: 0 | H19: 62 | I19: 126.94 | J19: 1 | K19: =K18 -> 126.94 | L19: 416.94
B20: - หินใหญ่ | C20: ลบ.ม.
A21: 6 | B21: เหล็กกลม SR 24 ( รวมค่าขนขึ้น-ลง ) | M21: =ราคาวัสดุ!M30 -> 0
B22: - 6 มม. | C22: ตัน | D22: =ราคาวัสดุ!L30 -> 20630.38 | E22: =ข้อมูลขนส่ง!C29 -> 46 | F22: =ข้อมูลขนส่ง!D29 -> 0 | G22: =ข้อมูลขนส่ง!E29 -> 0 | H22: =ข้อมูลขนส่ง!V29 -> 46 | I22: 67.44 | J22: =ข้อมูลขนส่ง!U29/ข้อมูลขนส่ง!V29 -> 1 | K22: =ข้อมูลขนส่ง!Z29 -> 67.44 | L22: 20697.82
B23: - 9 มม. | C23: ตัน | D23: =ราคาวัสดุ!L31 -> 18448.04 | E23: =$E$22 -> 46 | F23: =$F$22 -> 0 | G23: =$G$22 -> 0 | H23: =$H$22 -> 46 | I23: 67.44 | J23: =$J$22 -> 1 | K23: =$K$22 -> 67.44 | L23: 18515.48
B24: - 12 มม. | C24: ตัน | D24: =ราคาวัสดุ!L32 -> 18750 | E24: =$E$22 -> 46 | F24: =$F$22 -> 0 | G24: =$G$22 -> 0 | H24: =$H$22 -> 46 | I24: 67.44 | J24: =$J$22 -> 1 | K24: =$K$22 -> 67.44 | L24: 18817.44
B25: - 15 มม. | C25: ตัน | D25: =ราคาวัสดุ!L33 -> 19921.26 | E25: =$E$22 -> 46 | F25: =$F$22 -> 0 | G25: =$G$22 -> 0 | H25: =$H$22 -> 46 | I25: 67.44 | J25: =$J$22 -> 1 | K25: =$K$22 -> 67.44 | L25: 19988.7
B26: - 19 มม. | C26: ตัน | D26: =ราคาวัสดุ!L34 -> 19688.08 | E26: =$E$22 -> 46 | F26: =$F$22 -> 0 | G26: =$G$22 -> 0 | H26: =$H$22 -> 46 | I26: 67.44 | J26: =$J$22 -> 1 | K26: =$K$22 -> 67.44 | L26: 19755.52
B27: - 25 มม. | C27: ตัน | D27: =ราคาวัสดุ!L35 -> 21818.22 | E27: =$E$22 -> 46 | F27: =$F$22 -> 0 | G27: =$G$22 -> 0 | H27: =$H$22 -> 46 | I27: 67.44 | J27: =$J$22 -> 1 | K27: =$K$22 -> 67.44 | L27: 21885.66
A28: ลำดับที่ | B28: ประเภท วัสดุ | C28: หน่วย | D28: ราคาวัสดุ | M28: ข้อมูลที่ตั้งแหล่งวัสดุ
E29: ระยะขนส่ง (กม.) | I29: ค่าขนส่ง | J29: Factor | K29: ค่าขนส่ง | L29: รวม
D30: ราคา | E30: ทางราบ | F30: ทางลูกเนิน | G30: ทางภูเขา | H30: รวม | I30: ตามตาราง | J30: ค่าขนส่ง | K30: ปรับแก้
D31: (บาท) | E31: (กม.) | F31: (กม.) | G31: (กม.) | H31: (กม.) | I31: (บาท) | J31: F= D/L | K31: (บาท) | L31: (บาท)
A32: 7 | B32: เหล็กข้ออ้อย SD 30 ( รวมค่าขนขึ้น-ลง ) | M32: =M21 -> 0
B33: - 12 มม. | C33: ตัน | D33: =ราคาวัสดุ!L37 -> 16995.24 | E33: =$E$22 -> 46 | F33: =$F$22 -> 0 | G33: =$G$22 -> 0 | H33: =$H$22 -> 46 | I33: =K33/J33 -> 67.44 | J33: =$J$22 -> 1 | K33: =$K$22 -> 67.44 | L33: =K33+D33 -> 17062.68
B34: - 16 มม. | C34: ตัน | D34: =ราคาวัสดุ!L38 -> 19844.24 | E34: 46 | F34: 0 | G34: 0 | H34: 46 | I34: 67.44 | J34: 1 | K34: =$K$22 -> 67.44 | L34: 19911.68
B35: - 20 มม. | C35: ตัน | D35: =ราคาวัสดุ!L39 -> 19829.59 | E35: 46 | F35: 0 | G35: 0 | H35: 46 | I35: 67.44 | J35: 1 | K35: =$K$22 -> 67.44 | L35: 19897.03
B36: - 25 มม. | C36: ตัน | D36: =ราคาวัสดุ!L40 -> 19953.27 | E36: 46 | F36: 0 | G36: 0 | H36: 46 | I36: 67.44 | J36: 1 | K36: =$K$22 -> 67.44 | L36: 20020.71
A37: 8 | B37: เหล็กข้ออ้อย SD 40 ( รวมค่าขนขึ้น-ลง ) | M37: =M21 -> 0
B38: - 12 มม. | C38: ตัน | D38: =ราคาวัสดุ!L42 -> 17434.58 | E38: 46 | F38: 0 | G38: 0 | H38: 46 | I38: 67.44 | J38: 1 | K38: =$K$22 -> 67.44 | L38: 17502.02
B39: - 16 มม. | C39: ตัน | D39: =ราคาวัสดุ!L43 -> 17000 | E39: 46 | F39: 0 | G39: 0 | H39: 46 | I39: 67.44 | J39: 1 | K39: =$K$22 -> 67.44 | L39: 17067.44
B40: - 20 มม. | C40: ตัน | D40: =ราคาวัสดุ!L44 -> 17000 | E40: 46 | F40: 0 | G40: 0 | H40: 46 | I40: 67.44 | J40: 1 | K40: =$K$22 -> 67.44 | L40: 17067.44
B41: - 25 มม. | C41: ตัน | D41: =ราคาวัสดุ!L45 -> 16700 | E41: 46 | F41: 0 | G41: 0 | H41: 46 | I41: 67.44 | J41: 1 | K41: =$K$22 -> 67.44 | L41: 16767.44
A43: =+A3 -> สถานที่ก่อสร้าง ซอยจันทร์สุวรรณ บ้านกุดแห่ หมู่ 1 ตำบลกุดแห่ อำเภอนากลาง จังหวัดหนองบัวลำภู จำนวน 1 แห่ง
A44: =+A4 -> ประมาณราคาวันที่ 11 กุมภาพันธ์ พ.ศ. 2563
A46: ลำดับที่ | B46: ประเภท วัสดุ | C46: หน่วย | D46: ราคาวัสดุ | M46: ข้อมูลที่ตั้งแหล่งวัสดุ
D47: ราคา | E47: ระยะขนส่ง | L47: รวม
D48: วัสดุที่แหล่ง
D49: (บาท) | E49: (กม.) | L49: (บาท)
A50: 9 | B50: ลวดอัดแรง ( รวมค่าขนขึ้น-ลง )
B51: - ชนิดตีเกลียว (PC STRAND) 7 เส้น ศก. 3/8 นิ้ว และ 1/2 นิ้ว | C51: ตัน
A52: 10 | B52: ลวดผูกเหล็ก | C52: กก. | D52: =ราคาวัสดุ!L46 -> 57.95 | E52: 0 | F52: 0 | G52: 0 | H52: 0 | I52: 0 | J52: 0 | K52: 0 | L52: =D52 -> 57.95 | M52: =M37 -> 0
A53: 11 | B53: ท่อกลม คสล. | M53: =ราคาวัสดุ!M73 -> 0
B54: - dia. 0.30 ม. | C54: ท่อน
B55: - dia. 0.40 ม. | C55: ท่อน | D55: =ราคาวัสดุ!L73 -> 385.61 | E55: =ข้อมูลขนส่ง!C41 -> 70 | F55: =ข้อมูลขนส่ง!D41 -> 0 | G55: =ข้อมูลขนส่ง!E41 -> 0 | H55: =ข้อมูลขนส่ง!V41 -> 70 | I55: 165.64 | J55: =ข้อมูลขนส่ง!U41/ข้อมูลขนส่ง!V41 -> 1 | K55: =ข้อมูลขนส่ง!Z41 -> 165.64 | L55: =K55+D55 -> 551.25
B56: - dia. 0.60 ม. | C56: ท่อน | D56: =ราคาวัสดุ!L74 -> 531.03 | E56: =E55 -> 70 | F56: =F55 -> 0 | G56: =G55 -> 0 | H56: =H55 -> 70 | I56: 165.64 | J56: =J55 -> 1 | K56: =K55 -> 165.64 | L56: =K56+D56 -> 696.67
B57: - dia. 0.80 ม. | C57: ท่อน | D57: =ราคาวัสดุ!L75 -> 889.02 | E57: =E56 -> 70 | F57: =F56 -> 0 | G57: 0 | H57: 70 | I57: 165.64 | J57: 1 | K57: =K56 -> 165.64 | L57: =K57+D57 -> 1054.66
B58: - dia. 1.00 ม. | C58: ท่อน | D58: =ราคาวัสดุ!L76 -> 1278.74 | E58: =E57 -> 70 | F58: 0 | G58: 0 | H58: 70 | I58: 165.64 | J58: 1 | K58: =K57 -> 165.64 | L58: =K58+D58 -> 1444.38
B59: - dia. 1.20 ม. | C59: ท่อน | D59: =ราคาวัสดุ!L77 -> 1678.04 | E59: =E58 -> 70 | F59: 0 | G59: 0 | H59: 70 | I59: 165.64 | J59: 1 | K59: =K58 -> 165.64 | L59: =K59+D59 -> 1843.68
A61: ลำดับที่ | B61: ประเภท วัสดุ | C61: หน่วย | D61: ราคาวัสดุ | M61: ข้อมูลที่ตั้งแหล่งวัสดุ
E62: ระยะขนส่ง (กม.) | I62: ค่าขนส่ง | J62: Factor | K62: ค่าขนส่ง | L62: รวม
D63: ราคา | E63: ทางราบ | F63: ทางลูกเนิน | G63: ทางภูเขา | H63: รวม | I63: ตามตาราง | J63: ค่าขนส่ง | K63: ปรับแก้
D64: (บาท) | E64: (กม.) | F64: (กม.) | G64: (กม.) | H64: (กม.) | I64: (บาท) | J64: F= D/L | K64: (บาท) | L64: (บาท)
A65: 12 | B65: ปูนซีเมนต์ปอร์ตแลนด์ ( รวมค่าขนขึ้นลง ) | M65: =ราคาวัสดุ!แหล่งปูน -> 0
B66: 12.1 ปูนซีเมนต์ปอร์ตแลนด์ | C66: ตัน | D66: =ราคาวัสดุ!ราคาปูนtype1ที่แหล่ง -> 2242.99 | E66: =ข้อมูลขนส่ง!C31 -> 46 | F66: =ข้อมูลขนส่ง!D31 -> 0 | G66: =ข้อมูลขนส่ง!E31 -> 0 | H66: =ข้อมูลขนส่ง!V31 -> 46 | I66: =K66/J66 -> 67.44 | J66: =ข้อมูลขนส่ง!U31/ข้อมูลขนส่ง!V31 -> 1 | K66: =ข้อมูลขนส่ง!Z31 -> 67.44 | L66: =K66+D66 -> 2310.43
B67: 12.1 ปูนซีเมนต์ผสม | C67: ตัน | D67: =ราคาวัสดุ!L17 -> 2242.99 | E67: =E66 -> 46 | F67: 0 | G67: 0 | H67: 46 | I67: 67.44 | J67: 1 | K67: =K66 -> 67.44 | L67: 2310.43
A68: 13 | B68: ทรายหยาบ | C68: ลบ.ม. | D68: =ราคาวัสดุ!L19 -> 529.6 | E68: =ข้อมูลขนส่ง!C21 -> 30 | F68: =ข้อมูลขนส่ง!D21 -> 0 | G68: =ข้อมูลขนส่ง!E21 -> 0 | H68: =ข้อมูลขนส่ง!V21 -> 30 | I68: 100.39 | J68: =ข้อมูลขนส่ง!U21/ข้อมูลขนส่ง!V21 -> 1 | K68: =ข้อมูลขนส่ง!Z21 -> 100.39 | L68: 629.99
A69: 14 | B69: หินผสมคอนกรีต | C69: ลบ.ม. | D69: =IF(ข้อมูลขนส่ง!F22=1,ราคาวัสดุ!L12,ราคาวัสดุ!L14) -> 290 | E69: =ข้อมูลขนส่ง!C23 -> 62 | F69: =ข้อมูลขนส่ง!D23 -> 0 | G69: =ข้อมูลขนส่ง!E23 -> 0 | H69: =ข้อมูลขนส่ง!V23 -> 62 | I69: 205.65 | J69: =ข้อมูลขนส่ง!U23/ข้อมูลขนส่ง!V23 -> 1 | K69: =ข้อมูลขนส่ง!Z23 -> 205.65 | L69: 495.65
A70: 15 | B70: คอนกรีต | L70: 0
B71: - ค1 | C71: ลบ.ม. | I71: =K71/J71 ->  | L71: =K71+D71 -> 0
B72: - ค2 | C72: ลบ.ม. | L72: 0
B73: - ค3 | C73: ลบ.ม. | L73: 0
B74: - ค4 | C74: ลบ.ม. | L74: 0
B75: - คอนกรีตหยาบ | C75: ลบ.ม. | L75: 0
B76: - ปูนทราย | C76: ลบ.ม. | L76: 0
L77: 0
A78: 15 | B78: ยางแอสฟัลต์
B79: - CSS-1h | C79: ตัน | D79: =ราคาวัสดุ!L22 -> 19057.94 | E79: =E82 -> 631 | F79: 0 | G79: 0 | H79: 631 | I79: 920.47 | J79: 1 | K79: 920.47 | L79: =K79+D79 -> 19978.41 | M79: =ราคาวัสดุ!M22 -> บมจ. เอสโซ่ (ประเทศไทย) อ.ศรีราชา จ.ชลบุรี
B80: - CSS-1 | C80: ตัน | D80: =ราคาวัสดุ!L23 -> 19488.6 | E80: =E83 -> 631 | F80: =F83 -> 0 | G80: =G83 -> 0 | H80: =H83 -> 631 | I80: =K80/J80 -> 920.47 | J80: =J83 -> 1 | K80: =K83 -> 920.47 | L80: =K80+D80 -> 20409.07 | M80: =ราคาวัสดุ!M23 -> บมจ. เอสโซ่ (ประเทศไทย) อ.ศรีราชา จ.ชลบุรี
B81: - CRS-2 | C81: ตัน | D81: =ราคาวัสดุ!L24 -> 18841.94 | E81: =E80 -> 631 | F81: =F80 -> 0 | G81: =G80 -> 0 | H81: =H80 -> 631 | I81: =K81/J81 -> 920.47 | J81: =J80 -> 1 | K81: =K80 -> 920.47 | L81: =K81+D81 -> 19762.41 | M81: =ราคาวัสดุ!M24 -> บมจ. เอสโซ่ (ประเทศไทย) อ.ศรีราชา จ.ชลบุรี
B82: - AC 60/70 | C82: ตัน | D82: =ราคาวัสดุ!L25 -> 14469.27 | E82: =ข้อมูลขนส่ง!C25 -> 631 | F82: =ข้อมูลขนส่ง!D25 -> 0 | G82: =ข้อมูลขนส่ง!E25 -> 0 | H82: =ข้อมูลขนส่ง!V25 -> 631 | I82: 920.47 | J82: =ข้อมูลขนส่ง!U25/ข้อมูลขนส่ง!V25 -> 1 | K82: =ข้อมูลขนส่ง!Z25 -> 920.47 | L82: 15389.74 | M82: =ราคาวัสดุ!M27 -> บมจ.ทิปโก้แอสฟัลท์ อ.สูงเนิน จ.นครราชสีมา
B83: - MC-70 | C83: ตัน | D83: =ราคาวัสดุ!L26 -> 35469.27 | E83: =E82 -> 631 | F83: 0 | G83: 0 | H83: 631 | I83: 920.47 | J83: =J82 -> 1 | K83: =K82 -> 920.47 | L83: 36389.74 | M83: =ราคาวัสดุ!M26 -> บมจ. เอสโซ่ (ประเทศไทย) อ.ศรีราชา จ.ชลบุรี
B84: - CSS-1h (EMA) | C84: ตัน | D84: =ราคาวัสดุ!L27 -> 0 | E84: 631 | F84: 0 | G84: 0 | H84: 631 | I84: =K84/J84 -> 920.47 | J84: =J83 -> 1 | K84: =K83 -> 920.47 | L84: =K84+D84 -> 920.47 | M84: =ราคาวัสดุ!M27 -> บมจ.ทิปโก้แอสฟัลท์ อ.สูงเนิน จ.นครราชสีมา
B89: หมายเหตุ
B90: 1. รายการที่ 1 - 5 และ 13 -14 ให้แสดงแผนที่สังเขปเส้นทางขนส่งจากแหล่งวัสดุถึงโครงการ กรณีมีแหล่งวัสดุหลายแหล่งให้แสดงทั้งหมดพร้อมสืบราคาวัสดุที่แหล่ง
B91: 2. หากกระทรวงพาณิชย์ไม่ได้กำหนดราคาวัสดุรายการใดให้สืบราคาวัสดุและแสดงหลักฐานการสืบราคาอย่างน้อย 2 แหล่ง
B92: 3. ทางขนส่งจากแหล่งผลิตถึงจังหวัด และทางขนส่งจากจังหวัดถึงหน้างานให้พิจารณาตามลักษณะภูมิประเทศ โดยทางขนส่งจากแหล่งผลิตถึงจังหวัดให้ใช้ประกาศจาก
B93: กรมฯ โดย สสอ. ขณะที่ยังไม่มีประกาศดังกล่าว ให้ สทช. เป็นผู้กำหนดให้ สนง.ทชจ. ในพื้นที่รับผิดชอบใช้งานก่อนในเบื้องต้น
B94: - ทางลูกเนิน มีความลาดชัน 4-8 %
B95: - ทางภูเขา มีความลาดชันมากกว่า 8 %
B96: 4. วัสดุเหล็กเส้น , ปูนซีเมนต์ , ยางแอสฟัลท์ ขนส่งโดยรถบรรทุก 10 ล้อ + ลากพ่วง
B97: (คู่มือแนวทาง วิธีปฏิบัติและรายละเอียดประกอบการคำนวณราคากลางงานก่อสร้าง , น-91 , สำนักมาตรฐานการจัดซื้อจัดจ้าง-
B98: ภาครัฐ กรมบัญชีกลาง กระทรวงการคลัง , 2555)
B99: 5. วัสดุผสมคอนกรีต การเผื่อความเสียหายของปริมาณให้คิดในราคาต่อหน่วยดังนี้
B100: - ปริมาณปูนซีเมนต์คิดเผื่อร้อยละ 5
B101: - ปริมาณทรายหยาบคิดเผื่อร้อยละ 20
B102: - ปริมาณหินคิดเผื่อร้อยละ 15
B103: 6. งานเหล็กเสริมคอนกรีตให้คิดปริมาณหน่วยเป็นกิโลกรัมหรือตัน โดยให้รวมถึงการเผื่อระยะทาบ ระยะงอ และเศษเสียหายโดยพิจารณาดังนี้
B104: 6.1 ระยะทาบเหล็กและระยะงอเหล็ก ให้คิดปริมาณจริงตามแบบ กรณีในแบบไม่ระบุให้คิดตามมาตรฐานของวิศวกรรมสถานแห่งประเทศไทย (ว.ส.ท.)
B105: 6.2 การเผื่อเศษเสียหายให้เพิ่มปริมาณเผื่อได้ 10%
B106: 7. กรณีขนส่งวัสดุบนทางภูเขา และมีความลาดชันมากกว่า 15% สามารถพิจารณาขนส่งโดยรถบรรทุก 6 ล้อได้

Sheet วันก่อสร้าง
H1: แผนการปฏิบัติงาน
B2: โครงการ | C2: =ข้อมูลโครงการ!G7&" "&ข้อมูลโครงการ!G8 -> ซอยจันทร์สุวรรณ บ้านกุดแห่ หมู่ 1 ตำบลกุดแห่ อำเภอนากลาง จังหวัดหนองบัวลำภู
B3: ระยะทางก่อสร้าง | C3: =ข้อมูลโครงการ!G12*0 -> 0 | D3: กม.
B4: กรณีพื้นที่ | C4: ปกติ
A6: ลำดับ | B6: ประเภทงาน | C6: ปริมาณ | D6: อัตราวัน | E6: หน่วย | F6: ใช้ | K6: แผนการปฏิบัติงาน | Q6: ถึงวันที่ | S6: คิดเป็น | T6: ปรับเป็น | U6: วันเริ่มต้น | V6: ปรับแก้วันเริ่มต้น | W6: =IF(C4=W8,5,0) -> 0
A7: 1 | B7: เตรียมงานโครงการ | C7: =+C3 -> 0 | D7: 15 | E7: โครงการ | F7: =T7 -> 15 | Q7: =IF(T7+U7=0,"",T7+U7) -> 15 | R7: 1 | S7: =IF(D7=0,"",15) -> 15 | T7: =IF(S7="",0,ROUNDUP(S7,0)) -> 15 | U7: 0 | W7: ปกติ | AC7: =IF(U7=MAX($U$7:$U$24),T7,0) -> 0
A8: 2 | B8: งานกรุยทาง/ปรับเกลี่ย | C8: =+C3 -> 0 | D8: =5+$W$6 -> 5 | E8: กม. | F8: 0 | Q8: =IF(T8+U8=0,"",T8+U8) ->  | R8: =IF(S8=0,0,MAX($R$6:R7)+1) -> 0 | S8: =IF(D8=0,"",D8*$C$3) -> 0 | T8: =IF(S8="",0,ROUNDUP(S8,0)) -> 0 | U8: =IF(T8=0,0,IF(OR(V8=0,V8=""),MAX($U$7:U7)+VLOOKUP(MAX($R$7:R7),$R$7:T7,3),V8)) -> 0 | W8: ฝนตกชุก | AC8: =IF(U8=MAX($U$7:$U$24),T8,0) -> 0
A9: 3 | B9: งานท่อ | C9: 6 | D9: =5+$W$6 -> 5 | E9: แถว | F9: 30 | Q9: 45 | R9: =IF(S9=0,0,MAX($R$6:R8)+1) -> 2 | S9: =IF(D9=0,"",D9*$C$9) -> 30 | T9: 30 | U9: =IF(T9=0,0,IF(OR(V9=0,V9=""),MAX($U$7:U8)+VLOOKUP(MAX($R$7:R8),$R$7:T8,3),V9)) -> 15 | AC9: =IF(U9=MAX($U$7:$U$24),T9,0) -> 0
A10: 4 | B10: งานดินตัด ดินถม (ลบ.ม./กม.) | C10: =+ปร.4!M32+ปร.4!M33+ปร.4!M25 -> 0 | D10: =IF(C10<=2000,10+W6,ROUND(C10/2000,2)*10+$W$6) -> 10 | E10: กม./2,000 ลบ.ม. | F10: 0 | R10: =IF(S10=0,0,MAX($R$6:R9)+1) -> 0 | S10: =IF(D10=0,"",D10*$C$3) -> 0 | T10: 0 | U10: =IF(T10=0,0,IF(OR(V10=0,V10=""),MAX($U$7:U9)+VLOOKUP(MAX($R$7:R9),$R$7:T9,3),V10)) -> 0 | AC10: =IF(U10=MAX($U$7:$U$24),T10,0) -> 0
A11: 5 | B11: งานลูกรัง | C11: =+C3 -> 0 | D11: =10+$W$6 -> 10 | E11: กม. | F11: 0 | Q11: =IF(T11+U11=0,"",T11+U11) ->  | R11: =IF(S11=0,0,MAX($R$6:R10)+1) -> 0 | S11: =IF(D11=0,"",D11*$C$3) -> 0 | T11: 0 | U11: =IF(T11=0,0,IF(OR(V11=0,V11=""),MAX($U$7:U10)+VLOOKUP(MAX($R$7:R10),$R$7:T10,3),V11)) -> 0 | AC11: =IF(U11=MAX($U$7:$U$24),T11,0) -> 0
A12: 6 | B12: งานรางระบายน้ำ+บ่อพัก | C12: 0 | D12: =IF(C4="ปกติ",1/10,1/(10+$W$6)) -> 0.1 | E12: ม. | F12: 0 | R12: =IF(S12=0,0,MAX($R$6:R11)+1) -> 0 | S12: =IF(D12=0,"",BackUp!L361*D12) -> 0 | T12: 0 | U12: =IF(T12=0,0,IF(OR(V12=0,V12=""),MAX($U$7:U11)+VLOOKUP(MAX($R$7:R11),$R$7:T11,3),V12)) -> 0 | AC12: =IF(U12=MAX($U$7:$U$24),T12,0) -> 0
A13: 7 | B13: งานหินคลุก | C13: =+C3 -> 0 | D13: =10+$W$6 -> 10 | E13: กม. | F13: 0 | R13: =IF(S13=0,0,MAX($R$6:R12)+1) -> 0 | S13: =IF(D13=0,"",D13*$C$13) -> 0 | T13: 0 | U13: =IF(T13=0,0,IF(OR(V13=0,V13=""),MAX($U$7:U12)+VLOOKUP(MAX($R$7:R12),$R$7:T12,3),V13)) -> 0 | AC13: 0
A14: 8 | B14: งานกำแพงปากท่อ | C14: 3 | D14: =5+$W$6 -> 5 | E14: จุด | F14: 15 | Q14: 60 | R14: =IF(S14=0,0,MAX($R$6:R13)+1) -> 3 | S14: =IF(D14=0,"",D14*$C$14) -> 15 | T14: 15 | U14: =IF(T14=0,0,IF(OR(V14=0,V14=""),MAX($U$7:U13)+VLOOKUP(MAX($R$7:R13),$R$7:T13,3),V14)) -> 45 | V14: 45 | AC14: =IF(U14=MAX($U$7:$U$24),T14,0) -> 15
A15: 9 | B15: งาน Prime Coat | C15: =+C3 -> 0 | D15: =5+$W$6 -> 5 | E15: กม. | F15: 0 | Q15: =IF(T15+U15=0,"",T15+U15) ->  | R15: =IF(S15=0,0,MAX($R$6:R14)+1) -> 0 | S15: =IF(D15=0,"",D15*$C$13) -> 0 | T15: 0 | U15: =IF(T15=0,0,IF(OR(V15=0,V15=""),MAX($U$7:U14)+VLOOKUP(MAX($R$7:R14),$R$7:T14,3),V15)) -> 0 | AC15: 0
A16: 10 | B16: งานผิว PARA AC | C16: =+C3 -> 0 | D16: =5+$W$6 -> 5 | E16: กม. | F16: 0 | R16: =IF(S16=0,0,MAX($R$6:R15)+1) -> 0 | S16: =IF(D16=0,"",D16*$C$3) -> 0 | T16: 0 | U16: =IF(T16=0,0,IF(OR(V16=0,V16=""),MAX($U$7:U15)+VLOOKUP(MAX($R$7:R15),$R$7:T15,3),V16)) -> 0 | AC16: 0
A17: 11 | B17: งานเครื่องหมายจราจร | C17: =+C3 -> 0 | D17: =5+$W$6 -> 5 | E17: กม. | F17: 0 | R17: =IF(S17=0,0,MAX($R$6:R16)+1) -> 0 | S17: 0 | T17: 0 | U17: =IF(T17=0,0,IF(OR(V17=0,V17=""),MAX($U$7:U16)+VLOOKUP(MAX($R$7:R16),$R$7:T16,3),V17)) -> 0 | AC17: 0
R18: =IF(S18=0,0,MAX($R$6:R17)+1) -> 4 | U18: =IF(T18=0,0,IF(OR(V18=0,V18=""),MAX($U$7:U17)+VLOOKUP(MAX($R$7:R17),$R$7:T17,3),V18)) -> 0 | AC18: 0
R19: =IF(S19=0,0,MAX($R$6:R18)+1) -> 5 | U19: =IF(T19=0,0,IF(OR(V19=0,V19=""),MAX($U$7:U18)+VLOOKUP(MAX($R$7:R18),$R$7:T18,3),V19)) -> 0 | AC19: 0
R20: =IF(S20=0,0,MAX($R$6:R19)+1) -> 6 | U20: =IF(T20=0,0,IF(OR(V20=0,V20=""),MAX($U$7:U19)+VLOOKUP(MAX($R$7:R19),$R$7:T19,3),V20)) -> 0 | AC20: 0
R21: =IF(S21=0,0,MAX($R$6:R20)+1) -> 7 | U21: =IF(T21=0,0,IF(OR(V21=0,V21=""),MAX($U$7:U20)+VLOOKUP(MAX($R$7:R20),$R$7:T20,3),V21)) -> 0 | AC21: 0
R22: =IF(S22=0,0,MAX($R$6:R21)+1) -> 8 | U22: =IF(T22=0,0,IF(OR(V22=0,V22=""),MAX($U$7:U21)+VLOOKUP(MAX($R$7:R21),$R$7:T21,3),V22)) -> 0 | AC22: 0
R23: =IF(S23=0,0,MAX($R$6:R22)+1) -> 9 | U23: =IF(T23=0,0,IF(OR(V23=0,V23=""),MAX($U$7:U22)+VLOOKUP(MAX($R$7:R22),$R$7:T22,3),V23)) -> 0 | AC23: 0
R24: =IF(S24=0,0,MAX($R$6:R23)+1) -> 10 | U24: =IF(T24=0,0,IF(OR(V24=0,V24=""),MAX($U$7:U23)+VLOOKUP(MAX($R$7:R23),$R$7:T23,3),V24)) -> 0 | AC24: 0
D25: รวม | F25: =U25 -> 60 | T25: =SUM(T7:T17) -> 60 | U25: =MAX(Q7:Q24) -> 60

Sheet Box
B1: โปรดเลือกและกำหนดความยาว Box Cultvert
B2: BOX CULTVERT
B5: ความยาว Box | D5: 0 | E5: เมตร
B6: จำนวนช่อง | F6: กำแพงปากท่อ | H6: 2 | I6: ด้าน
B7: BOX CULTVERT
B8: =IF((D70+1)=1,"Single Box ขนาด "," Multiple Box ขนาด ") -> Single Box ขนาด | D8: =D70+1&" - "&VLOOKUP(B70,ข้อมูล_Box!A4:B19,2)&" ความยาว "&TEXT(D5,"0.00")&" เมตร" -> 1 - 2.40 เมตร x 2.10 เมตร ความยาว 0.00 เมตร
B9: กำแพงปากท่อ | D9: =H6 -> 2 | E9: ด้าน | G9: Skew | H9: =IF(B71=2,"15 ",IF(B71=3,"30 ",IF(B71=4,"45 ","0 "))) -> 0 | I9: องศา
B10: แบบมาตรฐานเลขที่ | D10: ทช-ท-3004 , ทช-ท-3005 , ทช-ท-3010 และ ทช-ท-3011
F12: ค่างานต้นทุนท่อลอดเหลี่ยม
B13: =ข้อมูลโครงการ!G7 -> ซอยจันทร์สุวรรณ
B14: =" ขนาด "&D8&" Skew "&H9&" องศา" -> ขนาด 1 - 2.40 เมตร x 2.10 เมตร ความยาว 0.00 เมตร Skew 0 องศา
J15: กม.ที่ 5+872 | L15: จำนวนแถว | M15: ขนาด
A16: ลำดับที่ | B16: รายการ | F16: หน่วย | G16: ปริมาณ | H16: ค่างานต้นทุน(บาท) | J16: หมายเหตุ | L16: 3 | M16: 1 | N16: ม.
H17: ราคา/หน่วย | I17: จำนวนเงิน | L17: ความสูงทางเบี่ยง | M17: 3 | N17: ม.
A18: 1 | B18: งานท่อลอดเหลี่ยม คสล. | L18: ความกว้างทางเบี่ยง | M18: 6 | N18: ม.
A19: =IF(I19=0,0,MAX($A$18:A18)+0.1) -> 0 | B19: งานดินขุด | F19: ลบ.ม. | G19: =IF(ยาว12=0,0,ROUNDDOWN(สูง12*กว้าง12*ยาว12*(D70+1),0)) -> 0 | H19: =IF(G19=0,0,ราคาวัสดุ!L109) -> 0 | I19: =ROUND(G19*H19,0) -> 0
A20: =IF(I20=0,0,MAX($A$18:A19)+0.1) -> 0 | B20: งานคอนกรีตหยาบ | F20: ลบ.ม. | G20: =IF(ยาว12=0,0,ROUNDDOWN(D94+D108,0)) -> 0 | H20: =IF(G20=0,0,ราคาต่อหน่วย!G401) -> 0 | I20: =ROUND(G20*H20,0) -> 0
A21: =IF(I21=0,0,MAX($A$18:A20)+0.1) -> 0 | B21: งานคอนกรีตโครงสร้าง | F21: ลบ.ม. | G21: =IF(ยาว12=0,0,ROUNDDOWN(D93+D107,0)) -> 0 | H21: =IF(G21=0,0,ราคาต่อหน่วย!I401) -> 0 | I21: =ROUND(G21*H21,0) -> 0
A22: =IF(I22=0,0,MAX($A$18:A21)+0.1) -> 0 | B22: งานไม้แบบ ( 3 ) | F22: ตร.ม. | G22: =IF(ยาว12=0,0,ROUNDDOWN(D95+D109,0)) -> 0 | H22: =IF(G22=0,0,ราคาต่อหน่วย!J457+ราคาต่อหน่วย!J454) -> 0 | I22: =ROUND(G22*H22,0) -> 0
A23: =IF(I23=0,0,MAX($A$18:A22)+0.1) -> 0 | B23: งานไม้ค้ำยัน | F23: ต้น | G23: =IF(ยาว12=0,0,ROUND(G22*0.3,0)) -> 0 | H23: =IF(G23=0,0,ราคาวัสดุ!L67) -> 0 | I23: =ROUND(G23*H23,0) -> 0
A24: =IF(SUM(I25:I31)=0,0,MAX($A$18:A23)+0.1) -> 0 | B24: งานเหล็กเสริม | D24: ความยาว (ม.) | E24: % เผื่อ
B25: - RB ขนาด 6 มม. | D25: =IF(ยาว12=0,0,E110+E111) -> 0 | E25: 0.1 | F25: กก. | G25: =IF(ยาว12=0,0,ROUND(D25*0.222*(1+E25),2)) -> 0 | H25: =IF(G25=0,0,ROUND(ราคาต่อหน่วย!K417/1000,2)) -> 0 | I25: =ROUND(G25*H25,0) -> 0
B26: - RB ขนาด 9 มม. | D26: =IF(ยาว12=0,0,F110+F111) -> 0 | E26: 0.1 | F26: กก. | G26: =IF(ยาว12=0,0,ROUND(D26*0.499*(1+E26),2)) -> 0 | H26: =IF(G26=0,0,ROUND(ราคาต่อหน่วย!K418/1000,2)) -> 0 | I26: 0
B27: - RB ขนาด 25 มม. (Dowel) | D27: =IF(ยาว12=0,0,D106) -> 0 | E27: 0.1 | F27: กก. | G27: =IF(ยาว12=0,0,ROUND(D27*3.85*(1+E27),2)) -> 0 | H27: =IF(G27=0,0,ROUND(ราคาต่อหน่วย!K419/1000,2)) -> 0 | I27: 0
B28: - DB ขนาด 12 มม. | D28: =IF(ยาว12=0,0,G110+G111) -> 0 | E28: 0.1 | F28: กก. | G28: =IF(ยาว12=0,0,ROUND(D28*0.888*(1+E28),2)) -> 0 | H28: =IF(G28=0,0,ROUND(ราคาต่อหน่วย!K421/1000,2)) -> 0 | I28: 0
B29: - DB ขนาด 16 มม. | D29: =IF(ยาว12=0,0,H110+H111) -> 0 | E29: 0.1 | F29: กก. | G29: =IF(ยาว12=0,0,ROUND(D29*1.58*(1+E29),2)) -> 0 | H29: =IF(G29=0,0,ROUND(ราคาต่อหน่วย!K422/1000,2)) -> 0 | I29: 0
B30: - DB ขนาด 20 มม. | D30: =IF(ยาว12=0,0,I110+I111) -> 0 | E30: 0.1 | F30: กก. | G30: =IF(ยาว12=0,0,ROUND(D30*2.47*(1+E30),2)) -> 0 | H30: =IF(G30=0,0,ROUND(ราคาต่อหน่วย!K423/1000,2)) -> 0 | I30: 0
B31: - DB ขนาด 25 มม. | D31: =IF(ยาว12=0,0,J110+J111) -> 0 | E31: 0.1 | F31: กก. | G31: =IF(ยาว12=0,0,ROUND(D31*3.85*(1+E31),2)) -> 0 | H31: =IF(G31=0,0,ROUND(ราคาต่อหน่วย!K424/1000,2)) -> 0 | I31: 0
B32: - ค่าแรงงานผูกเหล็ก | F32: กก. | G32: =IF(ยาว12=0,0,SUM(G25:G31)) -> 0 | H32: =IF(G32=0,0,ROUND(ราคาวัสดุ!L55/1000,2)) -> 0 | I32: 0
A33: =IF(I33=0,0,MAX($A$18:A32)+0.1) -> 0 | B33: ลวดผูกเหล็ก | F33: กก. | G33: =IF(ยาว12=0,0,ROUND(SUM(G25:G26,G28:G31)*25/1000,2)) -> 0 | H33: =IF(G33=0,0,ราคาวัสดุ!L46) -> 0 | I33: 0
B37: รวมค่างานต้นทุนท่อลอดเหลี่ยม | I37: =SUM(I18:I35) -> 0
B58: Box Culvert
B59: ความกว้าง | D59: ความสูง | E59: พื้นหนา | F59: ผนังหนา | G59: Bar Mark a | J59: Bar Mark a1 | M59: Bar Mark b | R59: Bar Mark b1 | W59: Bar Mark b2 | Z59: Bar Mark v | AC59: Bar Mark v1 | AF59: Bar Mark h | AI59: Bar Mark h1 | AL59: Bar Mark h2
B60: S (ม.) | D60: D (ม.) | E60: T (ม.) | F60: W (ม.) | G60: dia. (มม.) | H60: @ (ม.) | I60: L (ม.) | J60: dia. (มม.) | K60: @ (ม.) | L60: L (ม.) | M60: dia. (มม.) | N60: @ (ม.) | O60: F (ม.) | P60: G (ม.) | Q60: L (ม.) | R60: dia. (มม.) | S60: @ (ม.) | T60: F (ม.) | U60: G1 (ม.) | V60: L (ม.) | W60: dia. (มม.) | X60: @ (ม.) | Y60: L (ม.) | Z60: dia. (มม.) | AA60: @ (ม.) | AB60: L (ม.) | AC60: dia. (มม.) | AD60: @ (ม.) | AE60: L (ม.) | AF60: dia. (มม.) | AG60: @ (ม.) | AH60: No | AI60: dia. (มม.) | AJ60: @ (ม.) | AK60: No | AL60: dia. (มม.) | AM60: @ (ม.) | AN60: No
B61: =IF($D$69=1,VLOOKUP($B$70,ข้อมูล_Box!$A$4:$AK$28,Box!B62,FALSE),VLOOKUP($B$70,ข้อมูล_Box!$A$34:$AK$58,Box!B62,FALSE)) -> 2.4 | D61: =IF($D$69=1,VLOOKUP($B$70,ข้อมูล_Box!$A$4:$AK$28,Box!D62,FALSE),VLOOKUP($B$70,ข้อมูล_Box!$A$34:$AK$58,Box!D62,FALSE)) -> 2.1 | E61: =IF($D$69=1,VLOOKUP($B$70,ข้อมูล_Box!$A$4:$AK$28,Box!E62,FALSE),VLOOKUP($B$70,ข้อมูล_Box!$A$34:$AK$58,Box!E62,FALSE)) -> 0.24 | F61: =IF($D$69=1,VLOOKUP($B$70,ข้อมูล_Box!$A$4:$AK$28,Box!F62,FALSE),VLOOKUP($B$70,ข้อมูล_Box!$A$34:$AK$58,Box!F62,FALSE)) -> 0.25 | G61: =IF($D$69=1,VLOOKUP($B$70,ข้อมูล_Box!$A$4:$AK$28,Box!G62,FALSE),VLOOKUP($B$70,ข้อมูล_Box!$A$34:$AK$58,Box!G62,FALSE)) -> 16 | H61: =IF($D$69=1,VLOOKUP($B$70,ข้อมูล_Box!$A$4:$AK$28,Box!H62,FALSE),VLOOKUP($B$70,ข้อมูล_Box!$A$34:$AK$58,Box!H62,FALSE)) -> 0.14 | I61: =IF($D$69=1,VLOOKUP($B$70,ข้อมูล_Box!$A$4:$AK$28,Box!I62,FALSE),VLOOKUP($B$70,ข้อมูล_Box!$A$34:$AK$58,Box!I62,FALSE)) -> 3 | J61: =IF($D$69=1,VLOOKUP($B$70,ข้อมูล_Box!$A$4:$AK$28,Box!J62,FALSE),VLOOKUP($B$70,ข้อมูล_Box!$A$34:$AK$58,Box!J62,FALSE)) -> 12 | K61: =IF($D$69=1,VLOOKUP($B$70,ข้อมูล_Box!$A$4:$AK$28,Box!K62,FALSE),VLOOKUP($B$70,ข้อมูล_Box!$A$34:$AK$58,Box!K62,FALSE)) -> 1.2 | L61: =IF($D$69=1,VLOOKUP($B$70,ข้อมูล_Box!$A$4:$AK$28,Box!L62,FALSE),VLOOKUP($B$70,ข้อมูล_Box!$A$34:$AK$58,Box!L62,FALSE)) -> 1.48 | M61: =IF($D$69=1,VLOOKUP($B$70,ข้อมูล_Box!$A$4:$AK$28,Box!M62,FALSE),VLOOKUP($B$70,ข้อมูล_Box!$A$34:$AK$58,Box!M62,FALSE)) -> 12 | N61: =IF($D$69=1,VLOOKUP($B$70,ข้อมูล_Box!$A$4:$AK$28,Box!N62,FALSE),VLOOKUP($B$70,ข้อมูล_Box!$A$34:$AK$58,Box!N62,FALSE)) -> 0.12 | O61: =IF($D$69=1,VLOOKUP($B$70,ข้อมูล_Box!$A$4:$AK$28,Box!O62,FALSE),VLOOKUP($B$70,ข้อมูล_Box!$A$34:$AK$58,Box!O62,FALSE)) -> 1.16 | P61: =IF($D$69=1,VLOOKUP($B$70,ข้อมูล_Box!$A$4:$AK$28,Box!P62,FALSE),VLOOKUP($B$70,ข้อมูล_Box!$A$34:$AK$58,Box!P62,FALSE)) -> 1.56 | Q61: =IF($D$69=1,VLOOKUP($B$70,ข้อมูล_Box!$A$4:$AK$28,Box!Q62,FALSE),VLOOKUP($B$70,ข้อมูล_Box!$A$34:$AK$58,Box!Q62,FALSE)) -> 2.72 | R61: =IF($D$69=1,VLOOKUP($B$70,ข้อมูล_Box!$A$4:$AK$28,Box!R62,FALSE),VLOOKUP($B$70,ข้อมูล_Box!$A$34:$AK$58,Box!R62,FALSE)) -> 12 | S61: =IF($D$69=1,VLOOKUP($B$70,ข้อมูล_Box!$A$4:$AK$28,Box!S62,FALSE),VLOOKUP($B$70,ข้อมูล_Box!$A$34:$AK$58,Box!S62,FALSE)) -> 0.12 | T61: =IF($D$69=1,VLOOKUP($B$70,ข้อมูล_Box!$A$4:$AK$28,Box!T62,FALSE),VLOOKUP($B$70,ข้อมูล_Box!$A$34:$AK$58,Box!T62,FALSE)) -> 1.16 | U61: =IF($D$69=1,VLOOKUP($B$70,ข้อมูล_Box!$A$4:$AK$28,Box!U62,FALSE),VLOOKUP($B$70,ข้อมูล_Box!$A$34:$AK$58,Box!U62,FALSE)) -> 1.56 | V61: =IF($D$69=1,VLOOKUP($B$70,ข้อมูล_Box!$A$4:$AK$28,Box!V62,FALSE),VLOOKUP($B$70,ข้อมูล_Box!$A$34:$AK$58,Box!V62,FALSE)) -> 2.72 | W61: =IF($D$69=1,VLOOKUP($B$70,ข้อมูล_Box!$A$4:$AK$28,Box!W62,FALSE),VLOOKUP($B$70,ข้อมูล_Box!$A$34:$AK$58,Box!W62,FALSE)) -> 0 | X61: =IF($D$69=1,VLOOKUP($B$70,ข้อมูล_Box!$A$4:$AK$28,Box!X62,FALSE),VLOOKUP($B$70,ข้อมูล_Box!$A$34:$AK$58,Box!X62,FALSE)) -> 0 | Y61: =IF($D$69=1,VLOOKUP($B$70,ข้อมูล_Box!$A$4:$AK$28,Box!Y62,FALSE),VLOOKUP($B$70,ข้อมูล_Box!$A$34:$AK$58,Box!Y62,FALSE)) -> 0 | Z61: =IF($D$69=1,VLOOKUP($B$70,ข้อมูล_Box!$A$4:$AK$28,Box!Z62,FALSE),VLOOKUP($B$70,ข้อมูล_Box!$A$34:$AK$58,Box!Z62,FALSE)) -> 0 | AA61: =IF($D$69=1,VLOOKUP($B$70,ข้อมูล_Box!$A$4:$AK$28,Box!AA62,FALSE),VLOOKUP($B$70,ข้อมูล_Box!$A$34:$AK$58,Box!AA62,FALSE)) -> 0 | AB61: =IF($D$69=1,VLOOKUP($B$70,ข้อมูล_Box!$A$4:$AK$28,Box!AB62,FALSE),VLOOKUP($B$70,ข้อมูล_Box!$A$34:$AK$58,Box!AB62,FALSE)) -> 0 | AC61: =IF($D$69=1,VLOOKUP($B$70,ข้อมูล_Box!$A$4:$AK$28,Box!AC62,FALSE),VLOOKUP($B$70,ข้อมูล_Box!$A$34:$AK$58,Box!AC62,FALSE)) -> 12 | AD61: =IF($D$69=1,VLOOKUP($B$70,ข้อมูล_Box!$A$4:$AK$28,Box!AD62,FALSE),VLOOKUP($B$70,ข้อมูล_Box!$A$34:$AK$58,Box!AD62,FALSE)) -> 0.225 | AE61: =IF($D$69=1,VLOOKUP($B$70,ข้อมูล_Box!$A$4:$AK$28,Box!AE62,FALSE),VLOOKUP($B$70,ข้อมูล_Box!$A$34:$AK$58,Box!AE62,FALSE)) -> 2.85 | AF61: =IF($D$69=1,VLOOKUP($B$70,ข้อมูล_Box!$A$4:$AK$28,Box!AF62,FALSE),VLOOKUP($B$70,ข้อมูล_Box!$A$34:$AK$58,Box!AF62,FALSE)) -> 12 | AG61: =IF($D$69=1,VLOOKUP($B$70,ข้อมูล_Box!$A$4:$AK$28,Box!AG62,FALSE),VLOOKUP($B$70,ข้อมูล_Box!$A$34:$AK$58,Box!AG62,FALSE)) -> 0.23 | AH61: =IF($D$69=1,VLOOKUP($B$70,ข้อมูล_Box!$A$4:$AK$28,Box!AH62,FALSE),VLOOKUP($B$70,ข้อมูล_Box!$A$34:$AK$58,Box!AH62,FALSE)) -> 18 | AI61: =IF($D$69=1,VLOOKUP($B$70,ข้อมูล_Box!$A$4:$AK$28,Box!AI62,FALSE),VLOOKUP($B$70,ข้อมูล_Box!$A$34:$AK$58,Box!AI62,FALSE)) -> 12 | AJ61: =IF($D$69=1,VLOOKUP($B$70,ข้อมูล_Box!$A$4:$AK$28,Box!AJ62,FALSE),VLOOKUP($B$70,ข้อมูล_Box!$A$34:$AK$58,Box!AJ62,FALSE)) -> 0.45 | AK61: =IF($D$69=1,VLOOKUP($B$70,ข้อมูล_Box!$A$4:$AL$28,Box!AL62,FALSE),VLOOKUP($B$70,ข้อมูล_Box!$A$34:$AL$58,Box!AL62,FALSE)) -> 8 | AL61: =AI61 -> 12 | AM61: =AJ61 -> 0.45 | AN61: =IF($D$69=1,VLOOKUP($B$70,ข้อมูล_Box!$A$4:$AK$28,Box!AK62,FALSE),VLOOKUP($B$70,ข้อมูล_Box!$A$34:$AK$58,Box!AK62,FALSE))-AK61 -> 26
B62: 3 | D62: 4 | E62: 5 | F62: 6 | G62: 7 | H62: 8 | I62: 9 | J62: 10 | K62: 11 | L62: 12 | M62: 13 | N62: 14 | O62: 15 | P62: 16 | Q62: 17 | R62: 18 | S62: 19 | T62: 20 | U62: 21 | V62: 22 | W62: 23 | X62: 24 | Y62: 25 | Z62: 26 | AA62: 27 | AB62: 28 | AC62: 29 | AD62: 30 | AE62: 31 | AF62: 32 | AG62: 33 | AH62: 34 | AI62: 35 | AJ62: 36 | AK62: 37 | AL62: 38
B63: หูช้าง Box Culvert
B64: ขนาดท่อลอด | E64: L | F64: h1 | G64: t1 | H64: S1 | I64: SKEW 15ฐ | L64: SKEW 30ฐ | O64: SKEW 45ฐ | R64: V1 | T64: V2 | V64: V3 | X64: H1 | Z64: H2 | AB64: b1
B65: S (ม.) | D65: D (ม.) | I65: L1 | J65: S1 | K65: S2 | L65: L1 | M65: S1 | N65: S2 | O65: L1 | P65: S1 | Q65: S2 | R65: ฦ | S65: @ | T65: ฦ | U65: @ | V65: ฦ | W65: @ | X65: ฦ | Y65: @ | Z65: ฦ | AA65: @ | AB65: ฦ | AC65: No
B66: =VLOOKUP($B$70,ข้อมูล_Box!$B$63:$AC$87,Box!B67,FALSE) -> 2.4 | D66: =VLOOKUP($B$70,ข้อมูล_Box!$B$63:$AC$87,Box!D67,FALSE) -> 2.1 | E66: =VLOOKUP($B$70,ข้อมูล_Box!$B$63:$AC$87,Box!E67,FALSE) -> 3.2 | F66: =VLOOKUP($B$70,ข้อมูล_Box!$B$63:$AC$87,Box!F67,FALSE) -> 0.85 | G66: =VLOOKUP($B$70,ข้อมูล_Box!$B$63:$AC$87,Box!G67,FALSE) -> 0.25 | H66: =VLOOKUP($B$70,ข้อมูล_Box!$B$63:$AC$87,Box!H67,FALSE) -> 2.06 | I66: =VLOOKUP($B$70,ข้อมูล_Box!$B$63:$AC$87,Box!I67,FALSE) -> 3.31 | J66: =VLOOKUP($B$70,ข้อมูล_Box!$B$63:$AC$87,Box!J67,FALSE) -> 2.1 | K66: =VLOOKUP($B$70,ข้อมูล_Box!$B$63:$AC$87,Box!K67,FALSE) -> 2.23 | L66: =VLOOKUP($B$70,ข้อมูล_Box!$B$63:$AC$87,Box!L67,FALSE) -> 3.7 | M66: =VLOOKUP($B$70,ข้อมูล_Box!$B$63:$AC$87,Box!M67,FALSE) -> 2.38 | N66: =VLOOKUP($B$70,ข้อมูล_Box!$B$63:$AC$87,Box!N67,FALSE) -> 2.74 | O66: =VLOOKUP($B$70,ข้อมูล_Box!$B$63:$AC$87,Box!O67,FALSE) -> 4.53 | P66: =VLOOKUP($B$70,ข้อมูล_Box!$B$63:$AC$87,Box!P67,FALSE) -> 3.05 | Q66: =VLOOKUP($B$70,ข้อมูล_Box!$B$63:$AC$87,Box!Q67,FALSE) -> 4.04 | R66: =VLOOKUP($B$70,ข้อมูล_Box!$B$63:$AC$87,Box!R67,FALSE) -> 9 | S66: =VLOOKUP($B$70,ข้อมูล_Box!$B$63:$AC$87,Box!S67,FALSE) -> 0.3 | T66: =VLOOKUP($B$70,ข้อมูล_Box!$B$63:$AC$87,Box!T67,FALSE) -> 12 | U66: =VLOOKUP($B$70,ข้อมูล_Box!$B$63:$AC$87,Box!U67,FALSE) -> 0.16 | V66: =VLOOKUP($B$70,ข้อมูล_Box!$B$63:$AC$87,Box!V67,FALSE) -> 12 | W66: =VLOOKUP($B$70,ข้อมูล_Box!$B$63:$AC$87,Box!W67,FALSE) -> 0.16 | X66: =VLOOKUP($B$70,ข้อมูล_Box!$B$63:$AC$87,Box!X67,FALSE) -> 12 | Y66: =VLOOKUP($B$70,ข้อมูล_Box!$B$63:$AC$87,Box!Y67,FALSE) -> 0.3 | Z66: =VLOOKUP($B$70,ข้อมูล_Box!$B$63:$AC$87,Box!Z67,FALSE) -> 12 | AA66: =VLOOKUP($B$70,ข้อมูล_Box!$B$63:$AC$87,Box!AA67,FALSE) -> 0.16 | AB66: =VLOOKUP($B$70,ข้อมูล_Box!$B$63:$AC$87,Box!AB67,FALSE) -> 12 | AC66: =VLOOKUP($B$70,ข้อมูล_Box!$B$63:$AC$87,Box!AC67,FALSE) -> 4
B67: 2 | D67: 3 | E67: 4 | F67: 5 | G67: 6 | H67: 7 | I67: 8 | J67: 9 | K67: 10 | L67: 11 | M67: 12 | N67: 13 | O67: 14 | P67: 15 | Q67: 16 | R67: 17 | S67: 18 | T67: 19 | U67: 20 | V67: 21 | W67: 22 | X67: 23 | Y67: 24 | Z67: 25 | AA67: 26 | AB67: 27 | AC67: 28
D69: 1 | E69: 1 ช่อง
B70: 14 | D70: =D69-1 -> 0 | E70: 2 ช่อง | F70: =+D70+1 -> 1 | G70: =F70-1 -> 0
B71: 1 | E71: 3 ช่อง | H71: กว้าง | I71: =(กว้าง12+2*ผนัง12)+(กว้าง12+ผนัง12)*AW -> 2.9
E72: 4 ช่อง | F72: =((พื้น12*2)+0.025)*((I71/COS($H$9*PI()/180)))+ผนัง12*(2+AW)*สูง12 -> 2.5145 | G72: =((พื้น12+0.025)*(I71/COS($H$9*PI()/180))+(ผนัง12*(2+AW))*สูง12)*2 -> 3.637
E73: 5 ช่อง | F73: กลาง | G73: 2 ริม
B76: สรุปปริมาณงาน
B77: รายการ | C77: ขนาด | D77: จำนวน | E77: 6 | F77: 9 | G77: 12 | H77: 16 | I77: 20 | J77: 25 | K77: หน่วย
B78: เหล็กตัว BOX
B79: Bar Mark a | C79: =CM_A -> 16 | D79: =ROUND(VM_A,2) -> 6.4 | E79: =IF(C79=$E$77,D79,0) -> 0 | F79: =IF(C79=$F$77,D79,0) -> 0 | G79: =IF(C79=$G$77,D79,0) -> 0 | H79: =IF(C79=$H$77,D79,0) -> 6.4 | I79: =IF(C79=$I$77,D79,0) -> 0 | J79: =IF(C79=$J$77,D79,0) -> 0 | K79: ม.
B80: Bar Mark a1 | C80: =CM_A1 -> 12 | D80: =ROUND(VM_A1,2) -> 1.48 | E80: 0 | F80: 0 | G80: 1.48 | H80: 0 | I80: 0 | J80: 0 | K80: ม.
B81: Bar Mark b | C81: =CM_B -> 12 | D81: =ROUND(VM_B,2) -> 5.44 | E81: 0 | F81: 0 | G81: 5.44 | H81: 0 | I81: 0 | J81: 0 | K81: ม.
B82: Bar Mark b1 | C82: =CM_B1 -> 12 | D82: =ROUND(VM_B1,2) -> 5.44 | E82: 0 | F82: 0 | G82: 5.44 | H82: 0 | I82: 0 | J82: 0 | K82: ม.
B83: Bar Mark b2 | C83: =CM_B2 -> 0 | D83: =ROUND(VM_B2,2) -> 0 | E83: 0 | F83: 0 | G83: 0 | H83: 0 | I83: 0 | J83: 0 | K83: ม.
B84: Bar Mark v1 | C84: =CM_V1 -> 12 | D84: =VM_V1 -> 5.7 | E84: 0 | F84: 0 | G84: 5.7 | H84: 0 | I84: 0 | J84: 0 | K84: ม.
B85: Bar Mark h | C85: =CM_H -> 12 | D85: =ROUND(VM_H,2) -> -1.8 | E85: 0 | F85: 0 | G85: -1.8 | H85: 0 | I85: 0 | J85: 0 | K85: ม.
B86: Bar Mark h1 | C86: =CM_H1 -> 12 | D86: =ROUND(VM_H1,2) -> -0.8 | E86: 0 | F86: 0 | G86: -0.8 | H86: 0 | I86: 0 | J86: 0 | K86: ม.
B87: Bar Mark h2 | C87: =G147 -> 12 | D87: =ROUND(K147,2) -> -2.6 | E87: 0 | F87: 0 | G87: -2.6 | H87: 0 | I87: 0 | J87: 0 | K87: ม.
B88: เหล็กตามยาวมุม BOX | C88: =G150 -> 12 | D88: =K150 -> -1.6 | E88: 0 | F88: 0 | G88: -1.6 | H88: 0 | I88: 0 | J88: 0 | K88: ม.
B89: TOP BEAM | C89: =G153 -> 9 | D89: =K153 -> 24 | E89: 0 | F89: 24 | G89: 0 | H89: 0 | I89: 0 | J89: 0 | K89: ม.
B90: ปลอก | C90: =G154 -> 9 | D90: =K154 -> 33.92 | E90: 0 | F90: 33.92 | G90: 0 | H90: 0 | I90: 0 | J90: 0 | K90: ม.
B91: BOTTOM BEAM | C91: =G157 -> 9 | D91: =NM_2 -> 24 | E91: 0 | F91: 24 | G91: 0 | H91: 0 | I91: 0 | J91: 0 | K91: ม.
B92: ปลอก | C92: =G158 -> 9 | D92: =PM_2 -> 64.32 | E92: 0 | F92: 64.32 | G92: 0 | H92: 0 | I92: 0 | J92: 0 | K92: ม.
B93: คอนกรีต - คอนกรีตโครงสร้าง | D93: =H168 -> 0.87 | K93: ลบ.ม.
B94: - คอนกรีตหยาบ | D94: =H169 -> 0 | K94: ลบ.ม.
B95: ไม้แบบ | D95: =H177 -> 14.479 | K95: ตร.ม.
B96: เหล็กกำแพงปากท่อ BOX | D96: จำนวน | E96: =H6 -> 2 | F96: ด้าน
B97: Bar Mark V1 | C97: =ขนาดวี11 -> 9 | D97: =ROUND(จำนวนวี11+K187+K190+K191,2)*$E$96 -> 130.14 | E97: =IF(C97=$E$77,D97,0) -> 0 | F97: =IF(C97=$F$77,D97,0) -> 130.14 | G97: =IF(C97=$G$77,D97,0) -> 0 | H97: =IF(C97=$H$77,D97,0) -> 0 | I97: =IF(C97=$I$77,D97,0) -> 0 | J97: =IF(C97=$J$77,D97,0) -> 0 | K97: ม.
B98: Bar Mark V2 | C98: =ขนาดวี22 -> 12 | D98: =ROUND(จำนวนวี22,2)*$E$96 -> 186.24 | E98: 0 | F98: 0 | G98: 186.24 | H98: 0 | I98: 0 | J98: 0 | K98: ม.
B99: Bar Mark V3 | C99: =ขนาดวี33 -> 12 | D99: =ROUND(จำนวนวี33,2)*$E$96 -> 220.32 | E99: 0 | F99: 0 | G99: 220.32 | H99: 0 | I99: 0 | J99: 0 | K99: ม.
B100: Bar Mark H1 | C100: =ขนาดเฮช11 -> 12 | D100: =ROUND(จำนวนเฮช11+K201+K202,2)*$E$96 -> 206.54 | E100: 0 | F100: 0 | G100: 206.54 | H100: 0 | I100: 0 | J100: 0 | K100: ม.
B101: Bar Mark H2 | C101: =ขนาดเฮช22 -> 12 | D101: =ROUND(จำนวนเฮช22,2)*$E$96 -> 178.98 | E101: 0 | F101: 0 | G101: 178.98 | H101: 0 | I101: 0 | J101: 0 | K101: ม.
B102: Bar Mark b1 | C102: =G208 -> 12 | D102: =K208*$E$96 -> 33.76 | E102: 0 | F102: 0 | G102: 33.76 | H102: 0 | I102: 0 | J102: 0 | K102: ม.
B103: เสริม | C103: =G209 -> 12 | D103: =K209*$E$96 -> 16.88 | E103: 0 | F103: 0 | G103: 16.88 | H103: 0 | I103: 0 | J103: 0 | K103: ม.
B104: ปลอก | C104: =G210 -> 6 | D104: =K210*$E$96 -> 64.32 | E104: 64.32 | F104: 0 | G104: 0 | H104: 0 | I104: 0 | J104: 0 | K104: ม.
B105: เหล็กหลังกำแพง | C105: =G213 -> 12 | D105: =K213*$E$96 -> 29.824 | E105: 0 | F105: 0 | G105: 29.824 | H105: 0 | I105: 0 | J105: 0 | K105: ม.
B106: RB Dowel | C106: =G216 -> 25 | D106: =K216*$E$96 -> 28.8 | K106: ม.
B107: คอนกรีต - คอนกรีตโครงสร้าง | D107: =H228*$E$96 -> 13.497 | K107: ลบ.ม.
B108: - คอนกรีตหยาบ | D108: =H229*$E$96 -> 1.128 | K108: ลบ.ม.
B109: ไม้แบบ | D109: =H236*$E$96 -> 61.958 | K109: ตร.ม.
B110: รวมเหล็กเสริม ตัว BOX | E110: =ROUND(SUM(E78:E92),2) -> 0 | F110: 146.24 | G110: 11.26 | H110: 6.4 | I110: 0 | J110: 0
B111: รวมเหล็กเสริม กำแพงปากท่อ BOX | E111: =ROUND(SUM(E97:E106),2) -> 64.32 | F111: =ROUND(SUM(F97:F106),2) -> 130.14 | G111: 872.54 | H111: 0 | I111: 0 | J111: 0
E112: 6 | F112: 9 | G112: 12 | H112: 16 | I112: 20 | J112: 25
B116: ปริมาณงาน | E116: =+D8&" จำนวน "&F70&" ช่อง ทำมุม "&H9&" องศา กับแนวทาง" -> 1 - 2.40 เมตร x 2.10 เมตร ความยาว 0.00 เมตร จำนวน 1 ช่อง ทำมุม 0 องศา กับแนวทาง
B117: ตัว BOX | D117: จำนวน | E117: =F70 -> 1 | F117: ช่อง | G117: Skew | H117: =$H$9 -> 0 | I117: องศา
D118: กว้าง | E118: =B61 -> 2.4 | F118: เมตร | G118: พื้นหนา | H118: =E61 -> 0.24 | I118: เมตร
D119: สูง | E119: =D61 -> 2.1 | F119: เมตร | G119: ผนังหนา | H119: =F61 -> 0.25 | I119: เมตร
D120: ความกว้างรวม | E120: =ROUNDDOWN((E118*AC+H119*2+H119*AW)*1/COS($H$9*PI()/180),3) -> 2.9 | F120: เมตร | G120: ความยาวรวม | H120: =D5 -> 0 | I120: เมตร
B121: เหล็กเสริม
C122: Bar Mark a | D122: (บน+ล่าง) | G122: เหล็ก DB (มม.) | H122: @ | I122: L (ม.) | J122: จำนวน | K122: ความยาว (ม.)
G123: =G61 -> 16 | H123: =H61 -> 0.14 | I123: =ROUND((I61+E118*AW+W*AW+0.1*2)*1/COS($H$9*PI()/180),3) -> 3.2 | J123: =(ROUNDDOWN((D5-0.05*2)/H123,0)+1)*2 -> 2 | K123: =IF(G123=0,0,I123*J123) -> 6.4
C125: Bar Mark a1 | D125: (ล่าง) | G125: เหล็ก DB (มม.) | H125: @ | I125: L (ม.) | J125: จำนวน | K125: ความยาว (ม.)
G126: =J61 -> 12 | H126: =K61 -> 1.2 | I126: =ROUND(L61,3) -> 1.48 | J126: =(ROUNDDOWN((D5-0.05*2)/H126,0)+1)*AC -> 1 | K126: =IF(G126=0,0,I126*J126) -> 1.48
C128: Bar Mark b | D128: (มุมบน 2 ข้าง) | G128: เหล็ก DB (มม.) | H128: @ | I128: L (ม.) | J128: จำนวน | K128: ความยาว (ม.)
G129: =M61 -> 12 | H129: =N61 -> 0.12 | I129: =ROUND(Q61,3) -> 2.72 | J129: =(ROUNDDOWN((D5-0.05*2)/H129,0)+1)*2 -> 2 | K129: =IF(G129=0,0,I129*J129) -> 5.44
C131: Bar Mark b1 | D131: (มุมล่าง 2 ข้าง) | G131: เหล็ก DB (มม.) | H131: @ | I131: L (ม.) | J131: จำนวน | K131: ความยาว (ม.)
G132: =R61 -> 12 | H132: =S61 -> 0.12 | I132: =ROUND(V61,3) -> 2.72 | J132: =(ROUNDDOWN((D5-0.05*2)/S61,0)+1)*2 -> 2 | K132: =IF(G132=0,0,I132*J132) -> 5.44
C134: Bar Mark b2 | D134: (เสริมตรงผนังกลาง บน+ล่าง) | G134: เหล็ก DB (มม.) | H134: @ | I134: L (ม.) | J134: จำนวน | K134: ความยาว (ม.)
G135: =W61 -> 0 | H135: =X61 -> 0 | I135: =ROUND(Y61,3) -> 0 | J135: =IF(I135=0,0,(ROUNDDOWN((D5-0.05*2)/H135,0)+1)*AW)*2 -> 0 | K135: =IF(G135=0,0,I135*J135) -> 0
C137: Bar Mark v1 | D137: (ผนังด้านใน 2 ด้าน) | G137: เหล็ก DB (มม.) | H137: @ | I137: L (ม.) | J137: จำนวน | K137: ความยาว (ม.)
G138: =AC61 -> 12 | H138: =AD61 -> 0.225 | I138: =AE61 -> 2.85 | J138: =(ROUNDDOWN((D5-0.05*2)/H138,0)+1)*(2+AW*2) -> 2 | K138: =IF(G138=0,0,I138*J138) -> 5.7
C140: Bar Mark h | D140: (เหล็กตามยาวด้านบน) | G140: เหล็ก DB (มม.) | H140: @ | I140: L (ม.) | J140: จำนวน | K140: ความยาว (ม.)
G141: =AF61 -> 12 | H141: =AG61 -> 0.23 | I141: =(D5-0.05*2) -> -0.1 | J141: =AH61 -> 18 | K141: =IF(G141=0,0,I141*J141) -> -1.8
C143: Bar Mark h1 | D143: (เหล็กตามยาวพื้น) | G143: เหล็ก DB (มม.) | H143: @ | I143: L (ม.) | J143: จำนวน | K143: ความยาว (ม.)
G144: =AI61 -> 12 | H144: =AJ61 -> 0.45 | I144: =(D5-0.05*2) -> -0.1 | J144: =AK61 -> 8 | K144: =J144*I144 -> -0.8
C146: Bar Mark h2 | D146: (เหล็กตามยาวกำแพง) | G146: เหล็ก DB (มม.) | H146: @ | I146: L (ม.) | J146: จำนวน | K146: ความยาว (ม.)
G147: =CM_H1 -> 12 | H147: =H144 -> 0.45 | I147: =I144 -> -0.1 | J147: =AN61 -> 26 | K147: =J147*I147 -> -2.6
C149: เหล็กตามยาวมุม BOX | G149: เหล็ก DB (มม.) | H149: @ | I149: L (ม.) | J149: จำนวน | K149: ความยาว (ม.)
G150: 12 | I150: =(D5-0.05*2) -> -0.1 | J150: =(4+AW*2)*4 -> 16 | K150: =J150*I150 -> -1.6
C152: TOP BEAM | G152: เหล็ก RB (มม.) | H152: @ | I152: L (ม.) | J152: จำนวน | K152: ความยาว (ม.)
F153: นอน | G153: 9 | I153: =ROUND((I61+E118*AW+W*AW)*1/COS($H$9*PI()/180),3) -> 3 | J153: =4*$H$6 -> 8 | K153: =J153*I153 -> 24
F154: ปลอก | G154: 9 | H154: 0.2 | I154: =(0.2-0.03*2)*2+(พื้น12+0.15-0.03*2)*2+0.06*2 -> 1.06 | J154: =IF(I154=0,0,(ROUNDDOWN((I153)/H154,0)+1))*$H$6 -> 32 | K154: =J154*I154 -> 33.92
C156: BOTTOM BEAM | G156: เหล็ก RB (มม.) | H156: @ | I156: L (ม.) | J156: จำนวน | K156: ความยาว (ม.)
F157: นอน | G157: 9 | I157: =ROUND((I61+E118*AW+W*AW)*1/COS($H$9*PI()/180),3) -> 3 | J157: =4*$H$6 -> 8 | K157: =J157*I157 -> 24
F158: ปลอก | G158: 9 | H158: 0.2 | I158: =(0.2-0.03*2)*2+(พื้น12+0.025+0.6-0.03*2)*2+0.06*2 -> 2.01 | J158: =IF(I158=0,0,(ROUNDDOWN((I157)/H158,0)+1))*$H$6 -> 32 | K158: 64.32
B160: คอนกรีต
D161: พื้นด้านล่าง | E161: กว้าง +Skew | F161: =E120 -> 2.9 | G161: ม. ยาว | H161: =H120 -> 0 | I161: ม. หนา | J161: =H118+0.025 -> 0.265 | K161: ม. | R161: ความกว้างที่นำมาคิด | S161: =ROUNDDOWN((E118*AC+H119*2+H119*AW),3) -> 2.9 | T161: ม.
F162: ปริมาตร | G162: = | H162: =S161*H161*J161+(0.15+0.6)/2*0.1*H163*2*AC -> 0 | I162: ลบ.ม.
D163: พื้นด้านบน | E163: กว้าง +Skew | F163: =F161 -> 2.9 | G163: ม. ยาว | H163: =H161 -> 0 | I163: ม. หนา | J163: =H118 -> 0.24 | K163: ม.
G164: = | H164: =S161*H163*J163+(0.1*0.6/2)*H163*2*AC -> 0 | I164: ลบ.ม.
D165: ผนัง | G165: = | H165: =(E119*H120*H119)*2+(E119*H120*H119)*AW -> 0 | I165: ลบ.ม.
D166: Top Beam | G166: = | H166: =0.2*0.15*S161*$H$6 -> 0.174 | I166: ลบ.ม.
D167: Bottom Beam | G167: = | H167: =0.2*0.6*S161*$H$6 -> 0.696 | I167: ลบ.ม.
E168: รวมคอนกรีต ตัว Box | G168: = | H168: =ROUND(SUM(H164:H167)+H162,3) -> 0.87 | I168: ลบ.ม.
E169: คอนกรีตหยาบ | G169: = | H169: =ROUND((F161*H161*0.05),3) -> 0 | I169: ลบ.ม.
B171: ไม้แบบ
D172: พื้นด้านล่าง | G172: = | H172: =(F161*H6+H161*2)*J161+(0.15+0.6)/2*0.1*2*H6*AC -> 1.687 | I172: ตร.ม.
D173: พื้นด้านบน | G173: = | H173: =(F163*H6+H163*2)*J163+((E118-1.2)*H163)*AC+(SQRT(0.6^2+0.1^2)*H163*2*AC) -> 1.392 | I173: ตร.ม. (เฉพาะพื้น | J173: =((E118-1.2)*H163)*AC+(SQRT(0.6^2+0.1^2)*H163*2*AC) -> 0 | K173: )
D174: ผนัง | G174: = | H174: =(E119*H120*2)*2+(E119*H120*2)*AW-(0.1*4*H120)*AC+(E119*H119*2*H6)+(E119*H119*AW*H6) -> 2.1 | I174: ตร.ม.
D175: Top Beam | G175: = | H175: =ROUND((F163+0.2)*0.15*2*$H$6,3) -> 1.86 | I175: ตร.ม.
D176: Bottom Beam | G176: = | H176: =ROUND((F163+0.2)*0.6*2*$H$6,3) -> 7.44 | I176: ตร.ม.
E177: รวมไม้แบบตัวกำแพง | G177: = | H177: =SUM(H172:H176) -> 14.479 | I177: ตร.ม.
B180: กำแพงปาก BOX | D180: จำนวน | E180: 1 | F180: ด้าน | G180: Skew | H180: =$H$9 -> 0 | I180: องศา | R180: Skew | S180: =H180*1 -> 0 | T180: (S + Skew) / 2 | U180: L1*sin | V180: เหลือ
D181: ความกว้าง 1 | E181: =(E118*AC+H119*AW)*1/COS($H$9*PI()/180) -> 2.4 | F181: ม. | G181: S1 | H181: =IF(S180=0,H66,IF(S180=15,J66,IF(S180=30,M66,IF(S180=45,P66,"NO")))) -> 2.06 | I181: ม. S2 | J181: =IF(S180=0,H66,IF(S180=15,K66,IF(S180=30,N66,IF(S180=45,Q66,"NO")))) -> 2.06 | K181: ม. | R181: ความยาวกำแพงด้าน S1 | S181: =ROUND(SQRT($E$183^2+V181^2),3) -> 3.314 | T181: =ROUND(E118*1/COS($H$9*PI()/180)/2,3) -> 1.2 | U181: =ROUND(SIN(S180*PI()/180)*S183,3) -> 0 | V181: =IF((T181+U181)>=H181,(T181+U181-H181),(H181-(T181+U181))) -> 0.86
D182: ความกว้าง 2 | E182: =H181+J181+E181-E118 -> 4.12 | F182: ม. | G182: พื้นหนา | H182: =พื้น12+0.025 -> 0.265 | I182: ม. ความสูง | J182: =D61+E61+0.025+0.15 -> 2.515 | K182: ม. | R182: ความยาวกำแพงด้าน S2 | S182: =ROUND(SQRT($E$183^2+V182^2),3) -> 3.356 | T182: =ROUND(E119*1/COS($H$9*PI()/180)/2,3) -> 1.05 | U182: =ROUND(SIN(S180*PI()/180)*S183,3) -> 0 | V182: =IF((U182)>=T182,(U182-T182)+J181,J181-(T182-U182)) -> 1.01
D183: ความยาว | E183: =E66 -> 3.2 | F183: ม. | G183: ผนังหนา | H183: =G66 -> 0.25 | I183: ม. h1 | J183: =F66 -> 0.85 | K183: ม. | R183: L1 | S183: =IF(S180=0,E66,IF(S180=15,I66,IF(S180=30,L66,IF(S180=45,O66,"NO")))) -> 3.2
B184: เหล็กเสริม
C185: Bar Mark V1 | D185: ด้าน S1 | G185: เหล็ก (มม.) | H185: @ | I185: L (ม.) | J185: จำนวน | K185: ความยาว (ม.) | R185: จำนวน | T185: เส้นยาว | U185: เส้นสั้น | V185: เฉลี่ย
G186: =R66 -> 9 | H186: =S66 -> 0.3 | I186: =ROUND(S181-0.05*2,3) -> 3.214 | J186: =R186*2 -> 4 | K186: =J186*I186 -> 12.856 | R186: =(ROUNDDOWN(J183/H186,0)) -> 2 | S186: =R186*H186 -> 0.6 | T186: =S187-H186 -> 1.615 | U186: =T186-(R187-1)*H186 -> 0.115
F187: ช่วง Varies | G187: =ขนาดวี11 -> 9 | H187: =H186 -> 0.3 | I187: =V187 -> 1.622 | J187: =R187*2 -> 12 | K187: 19.464 | R187: =(ROUNDDOWN(S187/H187,0)) -> 6 | S187: =J182-S186 -> 1.915 | T187: =ROUND($S$181*T186/($J$182-$J$183),3)-0.05*2 -> 3.114 | U187: =ROUND($S$181*U186/($J$182-$J$183),3)-0.05*2 -> 0.129 | V187: =ROUND((T187+U187)/2,3) -> 1.622
D189: ด้าน S2 | G189: เหล็ก (มม.) | H189: @ | I189: L (ม.) | J189: จำนวน | K189: ความยาว (ม.) | R189: จำนวน | T189: เส้นยาว | U189: เส้นสั้น | V189: เฉลี่ย
G190: =ขนาดวี11 -> 9 | H190: =H186 -> 0.3 | I190: =ROUND(S182-0.05*2,3) -> 3.256 | J190: =R190*2 -> 4 | K190: =J190*I190 -> 13.024 | R190: =R186 -> 2 | S190: =S186 -> 0.6 | T190: =T186 -> 1.615 | U190: =U186 -> 0.115
F191: ช่วง Varies | G191: =ขนาดวี11 -> 9 | H191: =H190 -> 0.3 | I191: =V191 -> 1.644 | J191: =R191*2 -> 12 | K191: 19.728 | R191: =R187 -> 6 | S191: =S187 -> 1.915 | T191: =ROUND(S182*T190/(J182-J183),3)-0.05*2 -> 3.155 | U191: =ROUND(S182*U190/(J182-J183),3)-0.05*2 -> 0.132 | V191: =ROUND((T191+U191)/2,3) -> 1.644
C193: Bar Mark V2 | G193: เหล็ก (มม.) | H193: @ | I193: L (ม.) | J193: จำนวน | K193: ความยาว (ม.) | R193: จำนวน | T193: เส้นยาว | U193: เส้นสั้น | V193: เฉลี่ย
F194: ช่วง Varies | G194: =T66 -> 12 | H194: =U66 -> 0.16 | I194: =V194 -> 2.328 | J194: =R194*2 -> 40 | K194: =J194*I194 -> 93.12 | R194: =(ROUNDDOWN((S183-0.05*2)/H194,0))+1 -> 20 | T194: =(J182-0.05)+(H182-0.05)+$E$118/5 -> 3.16 | U194: =(J183-0.05)+(H182-0.05)+$E$118/5 -> 1.495 | V194: =ROUND((T194+U194)/2,3) -> 2.328
C196: Bar Mark V3 | G196: เหล็ก (มม.) | H196: @ | I196: L (ม.) | J196: จำนวน | K196: ความยาว (ม.) | R196: จำนวน | T196: ติด BOX | U196: ปาก BOX | V196: เฉลี่ย
F197: ช่วง Varies | G197: =V66 -> 12 | H197: =W66 -> 0.16 | I197: =V197 -> 5.508 | J197: =R197 -> 20 | K197: =J197*I197 -> 110.16 | R197: =(ROUNDDOWN((S183-0.05*2)/H197,0))+1 -> 20 | T197: =(J182-0.05)+(H182-0.05)+E181+H183*2-0.05*2 -> 5.48 | U197: =(J183-0.05)+(H182-0.05)+E182+H183*2-0.05*2 -> 5.535 | V197: =ROUND((T197+U197)/2,3) -> 5.508
C199: Bar Mark H1 | G199: เหล็ก (มม.) | H199: @ | I199: L (ม.) | J199: จำนวน | K199: ความยาว (ม.) | R199: จำนวน | T199: เส้นยาว | U199: เส้นสั้น | V199: เฉลี่ย | Z199: เส้นยาว | AA199: เส้นสั้น | AB199: เฉลี่ย
G200: =X66 -> 12 | H200: =Y66 -> 0.3 | I200: =((S183+H182+0.56-0.05*2)+(S183+H182+0.56-0.05*2-H182-0.05))/2 -> 3.7675 | J200: =(ROUNDDOWN((E181+H183*2-0.05*2)/H200,0)+1)*2 -> 20 | K200: =J200*I200 -> 75.35 | R200: =(J200/2-1)/2 -> 4.5 | S200: =ROUND(R200*H200,3) -> 1.35 | T200: =S201-$H$201+($E$181/2+$H$183-S200) -> 0.91 | U200: =T200-(R201-1)*$H$200 -> 0.31 | X200: =R200 -> 4.5 | Y200: =S200 -> 1.35 | Z200: =Y201-$H$201+($E$181/2+$H$183-Y200) -> 0.91 | AA200: =Z200-(X201-1)*$H$200 -> 0.31
E201: ด้าน S1 | F201: ช่วง Varies | G201: =ขนาดเฮช11 -> 12 | H201: =H200 -> 0.3 | I201: =((V201+H182+0.56)+(V201+H182+0.56-H182-0.05))/2 -> 2.3265 | J201: =R201*2 -> 6 | K201: =J201*I201 -> 13.959 | Q201: ด้าน S1 | R201: =(ROUNDDOWN(S201/H201,0)) -> 3 | S201: =H181-T181+H183 -> 1.11 | T201: =ROUND($S$183*T200/S201,3)-0.05*2 -> 2.523 | U201: =ROUND($S$183*U200/S201,3)-0.05*2 -> 0.794 | V201: =ROUND((T201+U201)/2,3) -> 1.659 | W201: ด้าน S2 | X201: =(ROUNDDOWN(Y201/H202,0)) -> 3 | Y201: =J181-T181+H183 -> 1.11 | Z201: =ROUND($S$183*Z200/Y201,3)-0.05*2 -> 2.523 | AA201: =ROUND($S$183*AA200/Y201,3)-0.05*2 -> 0.794 | AB201: =ROUND((Z201+AA201)/2,3) -> 1.659
E202: ด้าน S2 | F202: ช่วง Varies | G202: =ขนาดเฮช11 -> 12 | H202: =H200 -> 0.3 | I202: =((AB201+H182+0.56)+(AB201+H182+0.56-H182-0.05))/2 -> 2.3265 | J202: =X201*2 -> 6 | K202: =J202*I202 -> 13.959
C204: Bar Mark H2 | G204: เหล็ก (มม.) | H204: @ | I204: L (ม.) | J204: จำนวน | K204: ความยาว (ม.) | R204: จำนวน | T204: ติด BOX | U204: ปาก BOX | V204: เฉลี่ย
F205: ช่วง Varies | G205: =Z66 -> 12 | H205: =AA66 -> 0.16 | I205: =V205 -> 4.71 | J205: =R205 -> 19 | K205: =J205*I205 -> 89.49 | R205: =(ROUNDDOWN((S183-0.2-0.05)/H205,0))+1 -> 19 | T205: =E181+H183*2+E119/4*2-0.05*2 -> 3.85 | U205: =E182+H183*2+E119/4*2-0.05*2 -> 5.57 | V205: =ROUND((T205+U205)/2,3) -> 4.71
C207: Bar Mark b1 | G207: เหล็ก (มม.) | H207: @ | I207: L (ม.) | J207: จำนวน | K207: ความยาว (ม.)
F208: นอน | G208: =AB66 -> 12 | I208: =E182+0.1*2-0.05*2 -> 4.22 | J208: =AC66 -> 4 | K208: =J208*I208 -> 16.88
F209: เสริม | G209: 12 | I209: =I208 -> 4.22 | J209: 2 | K209: =J209*I209 -> 8.44
F210: ปลอก | G210: 6 | H210: 0.3 | I210: =(0.2-0.03*2)*2+(พื้น12+0.025+0.6-0.03*2)*2+0.06*2 -> 2.01 | J210: =IF(I210=0,0,(ROUNDDOWN((E182+H183*2-0.05*2)/H210,0)+1)) -> 16 | K210: =J210*I210 -> 32.16
C212: เหล็กหลังกำแพง | G212: เหล็ก (มม.) | H212: @ | I212: L (ม.) | J212: จำนวน | K212: ความยาว (ม.) | S212: ความสูงช่วง Varies | T212: ความยาว 1 | U212: ความยาว 2 | V212: เฉลี่ย
G213: 12 | I213: =ROUND(SQRT(S213^2+V213^2),3) -> 3.728 | J213: =2*2 -> 4 | K213: =J213*I213 -> 14.912 | S213: =J182-J183 -> 1.665 | T213: =S181 -> 3.314 | U213: =S182 -> 3.356 | V213: =ROUND((T213+U213)/2,3) -> 3.335
C215: เหล็ก Dowel | G215: เหล็ก RB (มม.) | H215: @ | I215: L (ม.) | J215: จำนวน | K215: ความยาว (ม.) | S215: ความสูง+พื้นบน+พื้นล่าง
G216: 25 | H216: 0.3 | I216: 0.8 | J216: =IF(I216=0,0,(ROUNDDOWN((S216)/H216,0)+1))*2 -> 18 | K216: =J216*I216 -> 14.4 | S216: =E119+H118+H119 -> 2.59
B218: คอนกรีต | D218: พื้นกำแพง | E218: ความกว้าง | I218: ความยาว | J218: =ROUND(S183*COS($H$9*PI()/180),3) -> 3.2 | K218: ม.
E219: ด้าน ติด BOX + ผนัง | G219: =ROUND(E181+H183*2,3) -> 2.9 | H219: ม. | I219: ความหนาพื้น | J219: =H182 -> 0.265 | K219: ม.
E220: ด้าน ปาก BOX + ผนัง | G220: =ROUND(E182+H183*2,3) -> 4.62 | H220: ม.
F221: ปริมตร | G221: = | H221: =ROUND((G219+G220)/2*J218*J219,3)+(0.45*0.1/2*(G223+G224))+(0.15*0.1+0)/2*(G223+G224) -> 3.3881 | I221: ลบ.ม.
D222: ผนังกำแพง | E222: ความยาว | I222: ความสูง | J222: =J182 -> 2.515 | K222: ม.
E223: ด้าน S1 | G223: =S181 -> 3.314 | H223: ม. | I223: h1 | J223: =J183 -> 0.85 | K223: ม.
E224: ด้าน S2 | G224: =S182 -> 3.356 | H224: ม. | I224: ความหนาผนัง | J224: =H183 -> 0.25 | K224: ม.
F225: ปริมตร ด้าน S1 | G225: = | H225: =ROUND((J222+J223)/2*G223*J224,3) -> 1.394 | I225: ลบ.ม.
F226: ปริมตร ด้าน S2 | G226: = | H226: =ROUND((J222+J223)/2*G224*J224,3) -> 1.412 | I226: ลบ.ม.
D227: Bottom Beam | G227: = | H227: =0.2*0.6*G220 -> 0.5544 | I227: ลบ.ม.
E228: รวมคอนกรีต ตัวกำแพง | G228: = | H228: =SUM(H221:H227) -> 6.7485 | I228: ลบ.ม.
E229: คอนกรีตหยาบ | G229: = | H229: =ROUND((G219+G220)/2*(J218-0.2)*0.05,3) -> 0.564 | I229: ลบ.ม.
B231: ไม้แบบ
D232: พื้นกำแพง | G232: = | H232: =ROUND((G220+G223+G224)*J219,3) -> 2.992 | I232: ตร.ม.
D233: ผนังกำแพง | E233: ด้าน S1 | G233: = | H233: =ROUND((J222+J223)/2*G223*2+(J223*J224)-(G223*0.1),3) -> 11.033 | I233: ตร.ม.
E234: ด้าน S2 | G234: = | H234: =ROUND((J222+J223)/2*G224*2+(J223*J224)-(G224*0.1),3) -> 11.17 | I234: ตร.ม.
D235: Bottom Beam | G235: = | H235: =ROUND((G220*0.6*2+0.2*0.6*2),3) -> 5.784 | I235: ตร.ม.
E236: รวมไม้แบบตัวกำแพง | G236: = | H236: =SUM(H232:H235) -> 30.979 | I236: ตร.ม.

Sheet สรุป-BackUp (hidden)
A1: แบบถอดปริมาณงาน
A2: โครงการก่อสร้าง | B2: =ปร.5!C7&" " -> ซอยจันทร์สุวรรณ
B3: =ปร.5!C8 -> บ้านกุดแห่ หมู่ 1 ตำบลกุดแห่ อำเภอนากลาง จังหวัดหนองบัวลำภู จำนวน 1 แห่ง
B4: ="ช่วง "&BackUp!G3 -> ช่วง กม.0+000 - กม.0+590 , กม.1+698 - กม.2+098 , กม.2+128 - กม.2+178
B5: =" "&BackUp!G4 -> 
A6: งานปรับเกลี่ยแต่ง บดอัดคันทางเดิมและโครงสร้างทาง | F6: งานรางระบายน้ำ คสล.และบ่อพัก
A7: งาน | C7: ปริมาณ | F7: ชนิด | H7: จำนวน
A8: กรุยทางถางป่า | C8: =IF(BackUp!S71=0,"-",BackUp!S71) -> - | D8: ตร.ม. | F8: แบบ Rip Rap | H8: =IF(BackUp!E361=0,"-",BackUp!E361) -> - | I8: ม.
A9: ปรับเกลี่ยแต่ง บดอัดคันทางเดิม | C9: =IF(BackUp!S101=0,"-",BackUp!S101) -> - | D9: ตร.ม. | F9: แบบตัวยู พร้อมฝา | H9: =IF(BackUp!G361=0,"-",BackUp!G361) -> - | I9: ม.
A10: ดินตัด | C10: =IF(BackUp!D106=0,"-",BackUp!D106) -> 532.5 | D10: ลบ.ม. | F10: แบบรางตื้น | H10: =IF(BackUp!I361=0,"-",BackUp!I361) -> - | I10: ม.
A11: ดินถมจากดินตัด | C11: =IF(BackUp!G106=0,"-",BackUp!G106) -> 185 | D11: ลบ.ม. | F11: บ่อพัก คสล. พร้อมฝาตะแกรงเหล็ก | H11: =IF(BackUp!N361=0,"-",BackUp!N361) -> 141.4 | I11: บ่อ
A12: ดินถมจากขนส่ง | C12: =IF(BackUp!J106=0,"-",BackUp!J106) -> - | D12: ลบ.ม. | F12: บ่อพัก คสล. พร้อม ฝาบ่อพัก คสล. | H12: =IF(BackUp!P361=0,"-",BackUp!P361) -> - | I12: บ่อ
A13: วัสดุคัดเลือก | C13: =IF(BackUp!I253=0,"-",BackUp!I253) -> - | D13: ลบ.ม. | F13: งานป้องกันการกัดเซาะ
A14: ลูกรัง | C14: =IF(BackUp!I252=0,"-",BackUp!I252) -> 1245.3 | D14: ลบ.ม. | F14: ชนิด | H14: จำนวน
A15: หินคลุก | C15: =IF(BackUp!I251=0,"-",BackUp!I251) -> - | D15: ลบ.ม. | F15: กล่องตาข่าย Gabion | H15: =IF(BackUp!G377=0,"-",BackUp!G377) -> - | I15: ลบ.ม.
A16: หินคลุกปรับระดับ | C16: =IF(BackUp!I257=0,"-",BackUp!I257) -> - | D16: ลบ.ม. | F16: กล่องตาข่าย Mattres | H16: =IF(BackUp!I377=0,"-",BackUp!I377) -> - | I16: ลบ.ม.
A17: งานผิวทาง+ทางเชื่อม ทางแยก+Widening และไหล่ทาง | F17: เรียงหิน | H17: =IF(BackUp!L377=0,"-",BackUp!L377) -> - | I17: ตร.ม.
A18: ประเภท | C18: ผิวจราจร(ตร.ม.) | D18: ไหล่ทาง(ตร.ม.) | F18: Concrete Slope Protection | H18: =IF(BackUp!N377=0,"-",BackUp!N377) -> - | I18: ตร.ม.
A19: Pavement In-Place Recycling | C19: =IF(BackUp!BM239=0,"-",BackUp!BM239) -> - | D19: =IF(BackUp!BO239=0,"-",BackUp!BO239) -> - | F19: งานเครื่องหมายจราจร
A20: Prime Coat | C20: =IF(BackUp!BM238+BackUp!BM239=0,"-",BackUp!BM238+BackUp!BM239) -> - | D20: =IF(BackUp!BO238+BackUp!BO239=0,"-",BackUp!BO238+BackUp!BO239) -> - | F20: แบบ | G20: จำนวน | H20: แบบ | I20: จำนวน
A21: Tack Coat | C21: =IF(BackUp!BM240=0,"-",BackUp!BM240) -> - | D21: =IF(BackUp!BO240=0,"-",BackUp!BO240) -> - | F21: บ1 | G21: =IF(BackUp!H437=0,"-",BackUp!H437) -> - | H21: น1 | I21: =IF(BackUp!H461=0,"-",BackUp!H461) -> -
A22: ผิวลาดยาง | C22: =IF(BackUp!#REF!=0,"-",BackUp!#REF!) ->  | D22: =IF(BackUp!#REF!=0,"-",BackUp!#REF!) ->  | F22: บ2 | G22: =IF(BackUp!H438=0,"-",BackUp!H438) -> - | H22: น1/1 | I22: =IF(BackUp!H462=0,"-",BackUp!H462) -> -
A23: ผิวคอนกรีต | C23: =IF(BackUp!#REF!=0,"-",BackUp!#REF!) ->  | D23: =IF(BackUp!#REF!=0,"-",BackUp!#REF!) ->  | F23: บ3-บ55 | G23: =IF(BackUp!H439=0,"-",BackUp!H439) -> - | H23: 1-น2 | I23: =IF(BackUp!H463=0,"-",BackUp!H463) -> -
A24: งานท่อระบายน้ำ | F24: ต1-ต27,ต31-ต60,ต75 | G24: =IF(BackUp!H440=0,"-",BackUp!H440) -> 10 | H24: 2-น2 | I24: =IF(BackUp!H464=0,"-",BackUp!H464) -> -
A25: ขนาด | C25: จำนวน | F25: ต28-ต30,ต62 | G25: =IF(BackUp!H441=0,"-",BackUp!H441) -> - | H25: 3-น2 | I25: =IF(BackUp!H465=0,"-",BackUp!H465) -> -
A26: ท่อ Ø 0.40 | C26: =IF(BackUp!G261=0,"-",BackUp!G261) -> 1272.6 | D26: ม. | F26: ต61 | G26: =IF(BackUp!H442=0,"-",BackUp!H442) -> - | H26: 1-น3 | I26: =IF(BackUp!R437=0,"-",BackUp!R437) -> -
A27: ท่อ Ø 0.60 | C27: =IF(BackUp!I261=0,"-",BackUp!I261) -> - | D27: ม. | F27: ต63+ต66(1แผ่น) | G27: =IF(BackUp!H443=0,"-",BackUp!H443) -> - | H27: 2-น3 | I27: =IF(BackUp!R438=0,"-",BackUp!R438) -> -
A28: ท่อ Ø 0.80 | C28: =IF(BackUp!L261=0,"-",BackUp!L261) -> - | D28: ม. | F28: ต63+ต66(2แผ่น) | G28: =IF(BackUp!H444=0,"-",BackUp!H444) -> - | H28: 3-น3 | I28: =IF(BackUp!R439=0,"-",BackUp!R439) -> -
A29: ท่อ Ø 1.00 | C29: =IF(BackUp!N261=0,"-",BackUp!N261) -> - | D29: ม. | F29: ต64,ต67 | G29: =IF(BackUp!H445=0,"-",BackUp!H445) -> - | H29: น4 | I29: =IF(BackUp!R441=0,"-",BackUp!R441) -> -
A30: ท่อ Ø 1.20 | C30: =IF(BackUp!P261=0,"-",BackUp!P261) -> - | D30: ม. | F30: ต65,ต68,ต70 | G30: =IF(BackUp!H446=0,"-",BackUp!H446) -> - | H30: น5 | I30: =IF(BackUp!R443=0,"-",BackUp!R443) -> -
A31: งานกำแพงปากท่อ | F31: ต69 | G31: =IF(BackUp!H447=0,"-",BackUp!H447) -> - | H31: น6 | I31: =IF(BackUp!R444=0,"-",BackUp!R444) -> -
A32: ขนาด | C32: จำนวน | F32: ต71-ต73 | G32: =IF(BackUp!H449=0,"-",BackUp!H449) -> - | H32: น7-น20 | I32: =IF(BackUp!R445=0,"-",BackUp!R445) -> -
A33: 1- Ø 0.80 | C33: =IF(BackUp!L262=0,"-",BackUp!L262) -> - | D33: ด้าน | F33: ต74 | G33: =IF(BackUp!H450=0,"-",BackUp!H450) -> - | H33: น1+น7 - น20 | I33: =IF(BackUp!R446=0,"-",BackUp!R446) -> -
A34: 2- Ø 0.80 | C34: =IF(BackUp!L263=0,"-",BackUp!L263) -> - | D34: ด้าน | F34: ต76 | G34: =IF(BackUp!H451=0,"-",BackUp!H451) -> - | H34: น1+น1/1+น7 - น20 + น20 | I34: =IF(BackUp!R447=0,"-",BackUp!R447) -> -
A35: 1- Ø 1.00 | C35: =IF(BackUp!N262=0,"-",BackUp!N262) -> - | D35: ด้าน | F35: ต77 | G35: =IF(BackUp!H452=0,"-",BackUp!H452) -> - | H35: น1+น7 - น20 + น1+น7 - น20 | I35: =IF(BackUp!R448=0,"-",BackUp!R448) -> -
A36: 2- Ø 1.00 | C36: =IF(BackUp!N263=0,"-",BackUp!N263) -> - | D36: ด้าน | F36: ต78 | G36: =IF(BackUp!H453=0,"-",BackUp!H453) -> - | H36: น1+น1/1+น7 - น20 + น20 | I36: =IF(BackUp!R449=0,"-",BackUp!R449) -> -
A37: 1- Ø 1.20 | C37: =IF(BackUp!P262=0,"-",BackUp!P262) -> - | D37: ด้าน | F37: บ3-บ55+ต1-ต27, ต31-ต60 | G37: =IF(BackUp!H454=0,"-",BackUp!H454) -> - | H37: ป้ายกำหนดน้ำหนัก | I37: =IF(BackUp!R451=0,"-",BackUp!R451) -> -
A38: 2- Ø 1.21 | C38: =IF(BackUp!P263=0,"-",BackUp!P263) -> - | D38: ด้าน | F38: ต1-ต27+ต73,ต31-ต60+ต73 | G38: =IF(BackUp!H455=0,"-",BackUp!H455) -> - | H38: หลักนำโค้ง / หลักตำแหน่งท่อ | I38: =IF(BackUp!R452=0,"-",BackUp!R452) -> -
A39: งานท่อลอดเหลี่ยมและสะพาน คสล. | F39: ต1-ต27+ต74,ต31-ต60+ต74 | G39: =IF(BackUp!H456=0,"-",BackUp!H456) -> - | H39: หลักกิโลเมตร | I39: =IF(BackUp!R453=0,"-",BackUp!R453) -> -
A40: =IF(BackUp!E120="","-","กม."&BackUp!E120&" "&BackUp!H120) -> - | F40: ต1-ต27+ต75,ต31-ต60+ต75 | G40: =IF(BackUp!H457=0,"-",BackUp!H457) -> - | H40: ชนิดทิศทางเดียว | I40: =IF(BackUp!R454=0,"-",BackUp!R454) -> -
A41: =IF(BackUp!E121="","-","กม."&BackUp!E121&" "&BackUp!H121) -> - | F41: ต1-ต27+ต76,ต31-ต60+ต76 | G41: =IF(BackUp!H458=0,"-",BackUp!H458) -> - | H41: ชนิดสองทิศทาง | I41: =IF(BackUp!R455=0,"-",BackUp!R455) -> -
A42: =IF(BackUp!E122="","-","กม."&BackUp!E122&" "&BackUp!H122) -> - | F42: ต1-ต27+ต78,ต31-ต60+ต78 | G42: =IF(BackUp!H460=0,"-",BackUp!H460) -> - | H42: สัญญาณไฟกระพริบ | I42: =IF(BackUp!R456=0,"-",BackUp!R456) -> -
A43: =IF(BackUp!E123="","-","กม."&BackUp!E123&" "&BackUp!H123) -> - | F43: RUMBLE STRIP | G43: =IF(BackUp!R459=0,"-",BackUp!R459) -> 7 | H43: สัญญาณไฟกระพริบ + บ1 | I43: =IF(BackUp!R457=0,"-",BackUp!R457) -> -
A44: =IF(BackUp!#REF!="","-","กม."&BackUp!#REF!&" "&BackUp!#REF!) ->  | F44: TIMBER BARRICADE | G44: =IF(BackUp!R454=0,"-",BackUp!R454) -> - | H44: GUARD RAIL (ทางตรง) | I44: =IF(BackUp!R452=0,"-",BackUp!R452) -> -
A45: =IF(BackUp!#REF!="","-","กม."&BackUp!#REF!&" "&BackUp!#REF!) ->  | F45: ทางม้าลาย | G45: =IF(BackUp!R460=0,"-",BackUp!R460) -> - | H45: GUARD RAIL (ทางโค้ง) | I45: =IF(BackUp!R453=0,"-",BackUp!R453) -> -
A46: งานไฟฟ้าแสงสว่าง | F46: งานตีเส้นจราจร
